Workbook

Sheet CAPA
A3: MINISTÉRIO DA INTEGRAÇÃO E DO DESENVOLVIMENTO REGIONAL - MIDR
A4: COMPANHIA DE DESENVOLVIMENTO DOS VALES DO SÃO FRANCISCO E DO PARNAÍBA
A5: 14ª SUPERINTENDÊNCIA REGIONAL
A8: CONTRATAÇÃO DE SERVIÇOS DE ENGENHARIA, POR MEIO DO SISTEMA DE REGISTRO DE PREÇOS – SRP, PARA IMPLANTAÇÃO DE AGROINDÚSTRIAS DE LÁCTEOS EM COMUNIDADES RURAIS, NO ESTADO DO CEARÁ.
A10: RESUMO
A11: ITEM | B11: DESCRIÇÃO DOS SERVIÇOS | C11: UNID. | D11: QUANT. | E11: PREÇO UNIT. C/ BDI | F11: PREÇO TOTAL (R$)
A12: 1 | B12: IMPLANTAÇÃO DE AGROINDÚSTRIA DE LÁCTEO | C12: 1 | D12: 10 | E12: ='ORC1'!I156 -> 989056.6 | F12: =D12*E12 -> 9890566
A687: ='ORC10'!A158 -> FORTALEZA/CE, OUTUBRO DE 2025.

Sheet ORC10
D3: MINISTÉRIO DA INTEGRAÇÃO E DO DESENVOLVIMENTO REGIONAL - MIDR
D4: COMPANHIA DE DESENVOLVIMENTO DOS VALES DO SÃO FRANCISCO E DO PARNAÍBA
D5: 14ª SUPERINTENDÊNCIA REGIONAL
A8: FONTES DE PREÇOS UTILIZADAS:
A9: SINAPI/CE: | C9: 08/2025 | D9: DESONERADO
A10: SEINFRA/CE: | C10: 28.1 | D10: DESONERADO
A11: SICRO/CE: | C11: 04/2025
A12: PESQUISA DE MERCADO: | C12: 03/2025
A14: ENCARGOS SOCIAIS | D14: BDI DE SERVIÇOS: | E14: ='BDI - SRV'!C26 -> 0.2592
A15: HORISTA | B15: MENSALISTA
A16: =ES!C49 -> 0.9217 | B16: =ES!D49 -> 0.535 | D16: BDI DE MATERIAIS: | E16: ='BDI - EQP'!C26 -> 0.1632
D18: DATA BASE DO ORÇAMENTO: | E18: 10/2025
A20: CONTRATAÇÃO DE SERVIÇOS DE ENGENHARIA, POR MEIO DO SISTEMA DE REGISTRO DE PREÇOS – SRP, PARA IMPLANTAÇÃO DE AGROINDÚSTRIAS DE LÁCTEOS EM COMUNIDADES RURAIS, NO ESTADO DO CEARÁ.
A22: ORÇAMENTO SINTÉTICO - CUSTO POR UNIDADE
A23: ITEM | B23: FONTE | C23: CÓDIGO | D23: DESCRIÇÃO DOS SERVIÇOS | E23: UNID. | F23: QUANT. | G23: PREÇO UNIT. S/ BDI (R$) | H23: PREÇO UNIT. C/ BDI (R$) | I23: PREÇO TOTAL (R$)
A24: 1 | D24: SERVIÇOS PRELIMINARES | I24: =TRUNC(SUM(I25:I30),2) -> 781011.8
A25: 1.1 | B25: SINAPI | C25: 103689 | D25: =_xlfn.XLOOKUP(C25,CCD!B:B,CCD!C:C,_xlfn.XLOOKUP(C25,'COMP-SEINFRA'!A:A,'COMP-SEINFRA'!C:C,_xlfn.XLOOKUP(C25,'CP-CODEVASF'!A:A,'CP-CODEVASF'!B:B))) -> FORNECIMENTO E INSTALAÇÃO DE PLACA DE OBRA COM CHAPA GALVANIZADA E ESTRUTURA DE MADEIRA. AF_03/2022_PS | E25: =_xlfn.XLOOKUP(C25,CCD!B:B,CCD!D:D,_xlfn.XLOOKUP(C25,'COMP-SEINFRA'!A:A,'COMP-SEINFRA'!D:D,_xlfn.XLOOKUP(C25,'CP-CODEVASF'!A:A,'CP-CODEVASF'!C:C))) -> M2 | F25: ='ORC1'!F25*10 -> 60 | G25: =TRUNC(_xlfn.XLOOKUP(C25,CCD!B:B,CCD!O:O,_xlfn.XLOOKUP(C25,'COMP-SEINFRA'!A:A,'COMP-SEINFRA'!G:G,_xlfn.XLOOKUP(C25,'CP-CODEVASF'!A:A,'CP-CODEVASF'!D:D))),2) -> 464.51 | H25: =TRUNC(G25*(1+$E$14),2) -> 584.91 | I25: =TRUNC('ORC1'!I25*(F25/'ORC1'!F25),2) -> 35094.6
A26: 1.2 | B26: CODEVASF | C26: ='CP-CODEVASF'!A12 -> COMP-12 | D26: =_xlfn.XLOOKUP(C26,CCD!B:B,CCD!C:C,_xlfn.XLOOKUP(C26,'COMP-SEINFRA'!A:A,'COMP-SEINFRA'!C:C,_xlfn.XLOOKUP(C26,'CP-CODEVASF'!A:A,'CP-CODEVASF'!B:B))) -> ADMISTRAÇÃO LOCAL | E26: =_xlfn.XLOOKUP(C26,CCD!B:B,CCD!D:D,_xlfn.XLOOKUP(C26,'COMP-SEINFRA'!A:A,'COMP-SEINFRA'!D:D,_xlfn.XLOOKUP(C26,'CP-CODEVASF'!A:A,'CP-CODEVASF'!C:C))) -> UN | F26: ='ORC1'!F26*10 -> 10 | G26: =TRUNC(_xlfn.XLOOKUP(C26,CCD!B:B,CCD!O:O,_xlfn.XLOOKUP(C26,'COMP-SEINFRA'!A:A,'COMP-SEINFRA'!G:G,_xlfn.XLOOKUP(C26,'CP-CODEVASF'!A:A,'CP-CODEVASF'!D:D))),2) -> 46580.4 | H26: 58654.03 | I26: =TRUNC('ORC1'!I26*(F26/'ORC1'!F26),2) -> 586540.3 | J26: =I26/I156 -> 0.05930300652
A27: 1.3 | B27: CODEVASF | C27: ='CP-CODEVASF'!A13 -> COMP-13 | D27: =_xlfn.XLOOKUP(C27,CCD!B:B,CCD!C:C,_xlfn.XLOOKUP(C27,'COMP-SEINFRA'!A:A,'COMP-SEINFRA'!C:C,_xlfn.XLOOKUP(C27,'CP-CODEVASF'!A:A,'CP-CODEVASF'!B:B))) -> MOBILIZAÇÃO E DESMOBILIZAÇÃO | E27: =_xlfn.XLOOKUP(C27,CCD!B:B,CCD!D:D,_xlfn.XLOOKUP(C27,'COMP-SEINFRA'!A:A,'COMP-SEINFRA'!D:D,_xlfn.XLOOKUP(C27,'CP-CODEVASF'!A:A,'CP-CODEVASF'!C:C))) -> UN | F27: ='ORC1'!F27*10 -> 10 | G27: =TRUNC(_xlfn.XLOOKUP(C27,CCD!B:B,CCD!O:O,_xlfn.XLOOKUP(C27,'COMP-SEINFRA'!A:A,'COMP-SEINFRA'!G:G,_xlfn.XLOOKUP(C27,'CP-CODEVASF'!A:A,'CP-CODEVASF'!D:D))),2) -> 3030.53 | H27: 3816.04 | I27: =TRUNC('ORC1'!I27*(F27/'ORC1'!F27),2) -> 38160.4
A28: 1.4 | B28: SICRO | C28: B8952 | D28: Residencial (2,45% do CMCC - SINAPI) | E28: m² x mês | F28: ='ORC1'!F28*10 -> 1000 | G28: =TRUNC(_xlfn.XLOOKUP(C28,'CG-SICRO'!B:B,'CG-SICRO'!F:F),2) -> 48.26 | H28: 60.76 | I28: =TRUNC('ORC1'!I28*(F28/'ORC1'!F28),2) -> 60760
A29: 1.5 | B29: SINAPI | C29: 105009 | D29: =_xlfn.XLOOKUP(C29,CCD!B:B,CCD!C:C,_xlfn.XLOOKUP(C29,'COMP-SEINFRA'!A:A,'COMP-SEINFRA'!C:C,_xlfn.XLOOKUP(C29,'CP-CODEVASF'!A:A,'CP-CODEVASF'!B:B))) -> LOCAÇÃO CONVENCIONAL DE OBRA, UTILIZANDO GABARITO DE TÁBUAS CORRIDAS PONTALETADAS A CADA 1,50M - 2 UTILIZAÇÕES. AF_03/2024 | E29: =_xlfn.XLOOKUP(C29,CCD!B:B,CCD!D:D,_xlfn.XLOOKUP(C29,'COMP-SEINFRA'!A:A,'COMP-SEINFRA'!D:D,_xlfn.XLOOKUP(C29,'CP-CODEVASF'!A:A,'CP-CODEVASF'!C:C))) -> M | F29: ='ORC1'!F29*10 -> 550 | G29: =TRUNC(_xlfn.XLOOKUP(C29,CCD!B:B,CCD!O:O,_xlfn.XLOOKUP(C29,'COMP-SEINFRA'!A:A,'COMP-SEINFRA'!G:G,_xlfn.XLOOKUP(C29,'CP-CODEVASF'!A:A,'CP-CODEVASF'!D:D))),2) -> 81.19 | H29: 102.23 | I29: =TRUNC('ORC1'!I29*(F29/'ORC1'!F29),2) -> 56226.5
A30: 1.6 | B30: SINAPI | C30: 98525 | D30: =_xlfn.XLOOKUP(C30,CCD!B:B,CCD!C:C,_xlfn.XLOOKUP(C30,'COMP-SEINFRA'!A:A,'COMP-SEINFRA'!C:C,_xlfn.XLOOKUP(C30,'CP-CODEVASF'!A:A,'CP-CODEVASF'!B:B))) -> LIMPEZA MECANIZADA DE CAMADA VEGETAL, VEGETAÇÃO E PEQUENAS ÁRVORES (DIÂMETRO DE TRONCO MENOR QUE 0,20 M), COM TRATOR DE ESTEIRAS. AF_03/2024 | E30: =_xlfn.XLOOKUP(C30,CCD!B:B,CCD!D:D,_xlfn.XLOOKUP(C30,'COMP-SEINFRA'!A:A,'COMP-SEINFRA'!D:D,_xlfn.XLOOKUP(C30,'CP-CODEVASF'!A:A,'CP-CODEVASF'!C:C))) -> M2 | F30: ='ORC1'!F30*10 -> 5035.8 | G30: =TRUNC(_xlfn.XLOOKUP(C30,CCD!B:B,CCD!O:O,_xlfn.XLOOKUP(C30,'COMP-SEINFRA'!A:A,'COMP-SEINFRA'!G:G,_xlfn.XLOOKUP(C30,'CP-CODEVASF'!A:A,'CP-CODEVASF'!D:D))),2) -> 0.67 | H30: 0.84 | I30: =TRUNC('ORC1'!I30*(F30/'ORC1'!F30),2) -> 4230
A31: 2 | D31: MOVIMENTAÇÃO DE TERRA / CONTENÇÃO | I31: =TRUNC(SUM(I32:I34),2) -> 52347.4
A32: 2.1 | B32: SINAPI | C32: 100576 | D32: =_xlfn.XLOOKUP(C32,CCD!B:B,CCD!C:C,_xlfn.XLOOKUP(C32,'COMP-SEINFRA'!A:A,'COMP-SEINFRA'!C:C,_xlfn.XLOOKUP(C32,'CP-CODEVASF'!A:A,'CP-CODEVASF'!B:B))) -> REGULARIZAÇÃO E COMPACTAÇÃO DE SUBLEITO DE SOLO PREDOMINANTEMENTE ARGILOSO, PARA OBRAS DE CONSTRUÇÃO DE PAVIMENTOS. AF_09/2024 | E32: =_xlfn.XLOOKUP(C32,CCD!B:B,CCD!D:D,_xlfn.XLOOKUP(C32,'COMP-SEINFRA'!A:A,'COMP-SEINFRA'!D:D,_xlfn.XLOOKUP(C32,'CP-CODEVASF'!A:A,'CP-CODEVASF'!C:C))) -> M2 | F32: ='ORC1'!F32*10 -> 5035.8 | G32: =TRUNC(_xlfn.XLOOKUP(C32,CCD!B:B,CCD!O:O,_xlfn.XLOOKUP(C32,'COMP-SEINFRA'!A:A,'COMP-SEINFRA'!G:G,_xlfn.XLOOKUP(C32,'CP-CODEVASF'!A:A,'CP-CODEVASF'!D:D))),2) -> 3.01 | H32: =TRUNC(G32*(1+$E$14),2) -> 3.79 | I32: =TRUNC('ORC1'!I32*('ORC10'!F32/'ORC1'!F32),2) -> 19085.6
A33: 2.2 | B33: SINAPI | C33: 93358 | D33: =_xlfn.XLOOKUP(C33,CCD!B:B,CCD!C:C,_xlfn.XLOOKUP(C33,'COMP-SEINFRA'!A:A,'COMP-SEINFRA'!C:C,_xlfn.XLOOKUP(C33,'CP-CODEVASF'!A:A,'CP-CODEVASF'!B:B))) -> ESCAVAÇÃO MANUAL DE VALA. AF_09/2024 | E33: =_xlfn.XLOOKUP(C33,CCD!B:B,CCD!D:D,_xlfn.XLOOKUP(C33,'COMP-SEINFRA'!A:A,'COMP-SEINFRA'!D:D,_xlfn.XLOOKUP(C33,'CP-CODEVASF'!A:A,'CP-CODEVASF'!C:C))) -> M3 | F33: ='ORC1'!F33*10 -> 43.1 | G33: =TRUNC(_xlfn.XLOOKUP(C33,CCD!B:B,CCD!O:O,_xlfn.XLOOKUP(C33,'COMP-SEINFRA'!A:A,'COMP-SEINFRA'!G:G,_xlfn.XLOOKUP(C33,'CP-CODEVASF'!A:A,'CP-CODEVASF'!D:D))),2) -> 86.74 | H33: =TRUNC(G33*(1+$E$14),2) -> 109.22 | I33: =TRUNC('ORC1'!I33*('ORC10'!F33/'ORC1'!F33),2) -> 4707.3
A34: 2.3 | B34: SINAPI | C34: 94342 | D34: =_xlfn.XLOOKUP(C34,CCD!B:B,CCD!C:C,_xlfn.XLOOKUP(C34,'COMP-SEINFRA'!A:A,'COMP-SEINFRA'!C:C,_xlfn.XLOOKUP(C34,'CP-CODEVASF'!A:A,'CP-CODEVASF'!B:B))) -> ATERRO MANUAL DE VALAS COM AREIA PARA ATERRO. AF_08/2023 | E34: =_xlfn.XLOOKUP(C34,CCD!B:B,CCD!D:D,_xlfn.XLOOKUP(C34,'COMP-SEINFRA'!A:A,'COMP-SEINFRA'!D:D,_xlfn.XLOOKUP(C34,'CP-CODEVASF'!A:A,'CP-CODEVASF'!C:C))) -> M3 | F34: ='ORC1'!F34*10 -> 199 | G34: =TRUNC(_xlfn.XLOOKUP(C34,CCD!B:B,CCD!O:O,_xlfn.XLOOKUP(C34,'COMP-SEINFRA'!A:A,'COMP-SEINFRA'!G:G,_xlfn.XLOOKUP(C34,'CP-CODEVASF'!A:A,'CP-CODEVASF'!D:D))),2) -> 113.96 | H34: =TRUNC(G34*(1+$E$14),2) -> 143.49 | I34: =TRUNC('ORC1'!I34*('ORC10'!F34/'ORC1'!F34),2) -> 28554.5
A35: 3 | D35: PAVIMENTAÇÃO / PISO | I35: =TRUNC(SUM(I36:I40),2) -> 724151.2
A36: 3.1 | B36: SINAPI | C36: 101172 | D36: =_xlfn.XLOOKUP(C36,CCD!B:B,CCD!C:C,_xlfn.XLOOKUP(C36,'COMP-SEINFRA'!A:A,'COMP-SEINFRA'!C:C,_xlfn.XLOOKUP(C36,'CP-CODEVASF'!A:A,'CP-CODEVASF'!B:B))) -> EXECUÇÃO DE PAVIMENTO EM PEDRAS POLIÉDRICAS, REJUNTAMENTO COM ARGAMASSA TRAÇO 1:3 (CIMENTO E AREIA). AF_05/2020 | E36: =_xlfn.XLOOKUP(C36,CCD!B:B,CCD!D:D,_xlfn.XLOOKUP(C36,'COMP-SEINFRA'!A:A,'COMP-SEINFRA'!D:D,_xlfn.XLOOKUP(C36,'CP-CODEVASF'!A:A,'CP-CODEVASF'!C:C))) -> M2 | F36: ='ORC1'!F36*10 -> 3228 | G36: =TRUNC(_xlfn.XLOOKUP(C36,CCD!B:B,CCD!O:O,_xlfn.XLOOKUP(C36,'COMP-SEINFRA'!A:A,'COMP-SEINFRA'!G:G,_xlfn.XLOOKUP(C36,'CP-CODEVASF'!A:A,'CP-CODEVASF'!D:D))),2) -> 79.4 | H36: =TRUNC(G36*(1+$E$14),2) -> 99.98 | I36: =TRUNC('ORC1'!I36*('ORC10'!F36/'ORC1'!F36),2) -> 322735.4
A37: 3.2 | B37: SINAPI | C37: 94273 | D37: =_xlfn.XLOOKUP(C37,CCD!B:B,CCD!C:C,_xlfn.XLOOKUP(C37,'COMP-SEINFRA'!A:A,'COMP-SEINFRA'!C:C,_xlfn.XLOOKUP(C37,'CP-CODEVASF'!A:A,'CP-CODEVASF'!B:B))) -> ASSENTAMENTO DE GUIA (MEIO-FIO) EM TRECHO RETO, CONFECCIONADA EM CONCRETO PRÉ-FABRICADO, DIMENSÕES 100X15X13X30 CM (COMPRIMENTO X BASE INFERIOR X BASE SUPERIOR X ALTURA). AF_01/2024 | E37: =_xlfn.XLOOKUP(C37,CCD!B:B,CCD!D:D,_xlfn.XLOOKUP(C37,'COMP-SEINFRA'!A:A,'COMP-SEINFRA'!D:D,_xlfn.XLOOKUP(C37,'CP-CODEVASF'!A:A,'CP-CODEVASF'!C:C))) -> M | F37: ='ORC1'!F37*10 -> 898 | G37: =TRUNC(_xlfn.XLOOKUP(C37,CCD!B:B,CCD!O:O,_xlfn.XLOOKUP(C37,'COMP-SEINFRA'!A:A,'COMP-SEINFRA'!G:G,_xlfn.XLOOKUP(C37,'CP-CODEVASF'!A:A,'CP-CODEVASF'!D:D))),2) -> 43.56 | H37: =TRUNC(G37*(1+$E$14),2) -> 54.85 | I37: =TRUNC('ORC1'!I37*('ORC10'!F37/'ORC1'!F37),2) -> 49255.3
A38: 3.3 | B38: SINAPI | C38: 97087 | D38: =_xlfn.XLOOKUP(C38,CCD!B:B,CCD!C:C,_xlfn.XLOOKUP(C38,'COMP-SEINFRA'!A:A,'COMP-SEINFRA'!C:C,_xlfn.XLOOKUP(C38,'CP-CODEVASF'!A:A,'CP-CODEVASF'!B:B))) -> CAMADA SEPARADORA PARA EXECUÇÃO DE RADIER, PISO DE CONCRETO OU LAJE SOBRE SOLO, EM LONA PLÁSTICA. AF_09/2021 | E38: =_xlfn.XLOOKUP(C38,CCD!B:B,CCD!D:D,_xlfn.XLOOKUP(C38,'COMP-SEINFRA'!A:A,'COMP-SEINFRA'!D:D,_xlfn.XLOOKUP(C38,'CP-CODEVASF'!A:A,'CP-CODEVASF'!C:C))) -> M2 | F38: ='ORC1'!F38*10 -> 1001 | G38: =TRUNC(_xlfn.XLOOKUP(C38,CCD!B:B,CCD!O:O,_xlfn.XLOOKUP(C38,'COMP-SEINFRA'!A:A,'COMP-SEINFRA'!G:G,_xlfn.XLOOKUP(C38,'CP-CODEVASF'!A:A,'CP-CODEVASF'!D:D))),2) -> 2.13 | H38: =TRUNC(G38*(1+$E$14),2) -> 2.68 | I38: =TRUNC('ORC1'!I38*('ORC10'!F38/'ORC1'!F38),2) -> 2682.6
A39: 3.4 | B39: SINAPI | C39: 94994 | D39: =_xlfn.XLOOKUP(C39,CCD!B:B,CCD!C:C,_xlfn.XLOOKUP(C39,'COMP-SEINFRA'!A:A,'COMP-SEINFRA'!C:C,_xlfn.XLOOKUP(C39,'CP-CODEVASF'!A:A,'CP-CODEVASF'!B:B))) -> EXECUÇÃO DE PASSEIO (CALÇADA) OU PISO DE CONCRETO COM CONCRETO MOLDADO IN LOCO, FEITO EM OBRA, ACABAMENTO CONVENCIONAL, ESPESSURA 8 CM, ARMADO. AF_08/2022 | E39: =_xlfn.XLOOKUP(C39,CCD!B:B,CCD!D:D,_xlfn.XLOOKUP(C39,'COMP-SEINFRA'!A:A,'COMP-SEINFRA'!D:D,_xlfn.XLOOKUP(C39,'CP-CODEVASF'!A:A,'CP-CODEVASF'!C:C))) -> M2 | F39: ='ORC1'!F39*10 -> 1126.6 | G39: =TRUNC(_xlfn.XLOOKUP(C39,CCD!B:B,CCD!O:O,_xlfn.XLOOKUP(C39,'COMP-SEINFRA'!A:A,'COMP-SEINFRA'!G:G,_xlfn.XLOOKUP(C39,'CP-CODEVASF'!A:A,'CP-CODEVASF'!D:D))),2) -> 94.05 | H39: =TRUNC(G39*(1+$E$14),2) -> 118.42 | I39: =TRUNC('ORC1'!I39*('ORC10'!F39/'ORC1'!F39),2) -> 133411.9
A40: 3.5 | B40: SINAPI | C40: 103917 | D40: =_xlfn.XLOOKUP(C40,CCD!B:B,CCD!C:C,_xlfn.XLOOKUP(C40,'COMP-SEINFRA'!A:A,'COMP-SEINFRA'!C:C,_xlfn.XLOOKUP(C40,'CP-CODEVASF'!A:A,'CP-CODEVASF'!B:B))) -> EXECUÇÃO DE PISO INDUSTRIAL DE CONCRETO ARMADO, FCK = 20 MPA, ESPESSURA DE 20,0 CM. AF_04/2022 | E40: =_xlfn.XLOOKUP(C40,CCD!B:B,CCD!D:D,_xlfn.XLOOKUP(C40,'COMP-SEINFRA'!A:A,'COMP-SEINFRA'!D:D,_xlfn.XLOOKUP(C40,'CP-CODEVASF'!A:A,'CP-CODEVASF'!C:C))) -> M2 | F40: ='ORC1'!F40*10 -> 896.8 | G40: =TRUNC(_xlfn.XLOOKUP(C40,CCD!B:B,CCD!O:O,_xlfn.XLOOKUP(C40,'COMP-SEINFRA'!A:A,'COMP-SEINFRA'!G:G,_xlfn.XLOOKUP(C40,'CP-CODEVASF'!A:A,'CP-CODEVASF'!D:D))),2) -> 191.34 | H40: =TRUNC(G40*(1+$E$14),2) -> 240.93 | I40: =TRUNC('ORC1'!I40*('ORC10'!F40/'ORC1'!F40),2) -> 216066
A41: 4 | D41: COBERTURA | I41: =TRUNC(I42+I48+I54,2) -> 1133030.5
A42: 4.1 | D42: FUNDAÇÃO - BLOCOS | I42: =TRUNC(SUM(I43:I47),2) -> 65482.7
A43: 4.1.1 | B43: SINAPI | C43: 93358 | D43: =_xlfn.XLOOKUP(C43,CCD!B:B,CCD!C:C,_xlfn.XLOOKUP(C43,'COMP-SEINFRA'!A:A,'COMP-SEINFRA'!C:C,_xlfn.XLOOKUP(C43,'CP-CODEVASF'!A:A,'CP-CODEVASF'!B:B))) -> ESCAVAÇÃO MANUAL DE VALA. AF_09/2024 | E43: =_xlfn.XLOOKUP(C43,CCD!B:B,CCD!D:D,_xlfn.XLOOKUP(C43,'COMP-SEINFRA'!A:A,'COMP-SEINFRA'!D:D,_xlfn.XLOOKUP(C43,'CP-CODEVASF'!A:A,'CP-CODEVASF'!C:C))) -> M3 | F43: ='ORC1'!F43*10 -> 25 | G43: =TRUNC(_xlfn.XLOOKUP(C43,CCD!B:B,CCD!O:O,_xlfn.XLOOKUP(C43,'COMP-SEINFRA'!A:A,'COMP-SEINFRA'!G:G,_xlfn.XLOOKUP(C43,'CP-CODEVASF'!A:A,'CP-CODEVASF'!D:D))),2) -> 86.74 | H43: =TRUNC(G43*(1+$E$14),2) -> 109.22 | I43: =TRUNC('ORC1'!I43*('ORC10'!F43/'ORC1'!F43),2) -> 2730.5
A44: 4.1.2 | B44: SINAPI | C44: 101616 | D44: =_xlfn.XLOOKUP(C44,CCD!B:B,CCD!C:C,_xlfn.XLOOKUP(C44,'COMP-SEINFRA'!A:A,'COMP-SEINFRA'!C:C,_xlfn.XLOOKUP(C44,'CP-CODEVASF'!A:A,'CP-CODEVASF'!B:B))) -> PREPARO DE FUNDO DE VALA COM LARGURA MENOR QUE 1,5 M (ACERTO DO SOLO NATURAL). AF_08/2020 | E44: =_xlfn.XLOOKUP(C44,CCD!B:B,CCD!D:D,_xlfn.XLOOKUP(C44,'COMP-SEINFRA'!A:A,'COMP-SEINFRA'!D:D,_xlfn.XLOOKUP(C44,'CP-CODEVASF'!A:A,'CP-CODEVASF'!C:C))) -> M2 | F44: ='ORC1'!F44*10 -> 50 | G44: =TRUNC(_xlfn.XLOOKUP(C44,CCD!B:B,CCD!O:O,_xlfn.XLOOKUP(C44,'COMP-SEINFRA'!A:A,'COMP-SEINFRA'!G:G,_xlfn.XLOOKUP(C44,'CP-CODEVASF'!A:A,'CP-CODEVASF'!D:D))),2) -> 6.48 | H44: =TRUNC(G44*(1+$E$14),2) -> 8.15 | I44: =TRUNC('ORC1'!I44*('ORC10'!F44/'ORC1'!F44),2) -> 407.5
A45: 4.1.3 | B45: SINAPI | C45: 96546 | D45: =_xlfn.XLOOKUP(C45,CCD!B:B,CCD!C:C,_xlfn.XLOOKUP(C45,'COMP-SEINFRA'!A:A,'COMP-SEINFRA'!C:C,_xlfn.XLOOKUP(C45,'CP-CODEVASF'!A:A,'CP-CODEVASF'!B:B))) -> ARMAÇÃO DE BLOCO UTILIZANDO AÇO CA-50 DE 10 MM - MONTAGEM. AF_01/2024 | E45: =_xlfn.XLOOKUP(C45,CCD!B:B,CCD!D:D,_xlfn.XLOOKUP(C45,'COMP-SEINFRA'!A:A,'COMP-SEINFRA'!D:D,_xlfn.XLOOKUP(C45,'CP-CODEVASF'!A:A,'CP-CODEVASF'!C:C))) -> KG | F45: ='ORC1'!F45*10 -> 1421.2 | G45: =TRUNC(_xlfn.XLOOKUP(C45,CCD!B:B,CCD!O:O,_xlfn.XLOOKUP(C45,'COMP-SEINFRA'!A:A,'COMP-SEINFRA'!G:G,_xlfn.XLOOKUP(C45,'CP-CODEVASF'!A:A,'CP-CODEVASF'!D:D))),2) -> 13.08 | H45: =TRUNC(G45*(1+$E$14),2) -> 16.47 | I45: =TRUNC('ORC1'!I45*('ORC10'!F45/'ORC1'!F45),2) -> 23407.1
A46: 4.1.4 | B46: SINAPI | C46: 96543 | D46: =_xlfn.XLOOKUP(C46,CCD!B:B,CCD!C:C,_xlfn.XLOOKUP(C46,'COMP-SEINFRA'!A:A,'COMP-SEINFRA'!C:C,_xlfn.XLOOKUP(C46,'CP-CODEVASF'!A:A,'CP-CODEVASF'!B:B))) -> ARMAÇÃO DE BLOCO UTILIZANDO AÇO CA-60 DE 5 MM - MONTAGEM. AF_01/2024 | E46: =_xlfn.XLOOKUP(C46,CCD!B:B,CCD!D:D,_xlfn.XLOOKUP(C46,'COMP-SEINFRA'!A:A,'COMP-SEINFRA'!D:D,_xlfn.XLOOKUP(C46,'CP-CODEVASF'!A:A,'CP-CODEVASF'!C:C))) -> KG | F46: ='ORC1'!F46*10 -> 946.2 | G46: =TRUNC(_xlfn.XLOOKUP(C46,CCD!B:B,CCD!O:O,_xlfn.XLOOKUP(C46,'COMP-SEINFRA'!A:A,'COMP-SEINFRA'!G:G,_xlfn.XLOOKUP(C46,'CP-CODEVASF'!A:A,'CP-CODEVASF'!D:D))),2) -> 19.13 | H46: =TRUNC(G46*(1+$E$14),2) -> 24.08 | I46: =TRUNC('ORC1'!I46*('ORC10'!F46/'ORC1'!F46),2) -> 22784.4
A47: 4.1.5 | B47: SINAPI | C47: 94965 | D47: =_xlfn.XLOOKUP(C47,CCD!B:B,CCD!C:C,_xlfn.XLOOKUP(C47,'COMP-SEINFRA'!A:A,'COMP-SEINFRA'!C:C,_xlfn.XLOOKUP(C47,'CP-CODEVASF'!A:A,'CP-CODEVASF'!B:B))) -> CONCRETO FCK = 25MPA, TRAÇO 1:2,3:2,7 (EM MASSA SECA DE CIMENTO/ AREIA MÉDIA/ BRITA 1) - PREPARO MECÂNICO COM BETONEIRA 400 L. AF_05/2021 | E47: =_xlfn.XLOOKUP(C47,CCD!B:B,CCD!D:D,_xlfn.XLOOKUP(C47,'COMP-SEINFRA'!A:A,'COMP-SEINFRA'!D:D,_xlfn.XLOOKUP(C47,'CP-CODEVASF'!A:A,'CP-CODEVASF'!C:C))) -> M3 | F47: ='ORC1'!F47*10 -> 25 | G47: =TRUNC(_xlfn.XLOOKUP(C47,CCD!B:B,CCD!O:O,_xlfn.XLOOKUP(C47,'COMP-SEINFRA'!A:A,'COMP-SEINFRA'!G:G,_xlfn.XLOOKUP(C47,'CP-CODEVASF'!A:A,'CP-CODEVASF'!D:D))),2) -> 513.13 | H47: =TRUNC(G47*(1+$E$14),2) -> 646.13 | I47: =TRUNC('ORC1'!I47*('ORC10'!F47/'ORC1'!F47),2) -> 16153.2
A48: 4.2 | D48: FUNDAÇÃO - VIGAS BALDRAMES | I48: =TRUNC(SUM(I49:I53),2) -> 78224.7
A49: 4.2.1 | B49: SINAPI | C49: 93358 | D49: =_xlfn.XLOOKUP(C49,CCD!B:B,CCD!C:C,_xlfn.XLOOKUP(C49,'COMP-SEINFRA'!A:A,'COMP-SEINFRA'!C:C,_xlfn.XLOOKUP(C49,'CP-CODEVASF'!A:A,'CP-CODEVASF'!B:B))) -> ESCAVAÇÃO MANUAL DE VALA. AF_09/2024 | E49: =_xlfn.XLOOKUP(C49,CCD!B:B,CCD!D:D,_xlfn.XLOOKUP(C49,'COMP-SEINFRA'!A:A,'COMP-SEINFRA'!D:D,_xlfn.XLOOKUP(C49,'CP-CODEVASF'!A:A,'CP-CODEVASF'!C:C))) -> M3 | F49: ='ORC1'!F49*10 -> 53.1 | G49: =TRUNC(_xlfn.XLOOKUP(C49,CCD!B:B,CCD!O:O,_xlfn.XLOOKUP(C49,'COMP-SEINFRA'!A:A,'COMP-SEINFRA'!G:G,_xlfn.XLOOKUP(C49,'CP-CODEVASF'!A:A,'CP-CODEVASF'!D:D))),2) -> 86.74 | H49: =TRUNC(G49*(1+$E$14),2) -> 109.22 | I49: =TRUNC('ORC1'!I49*('ORC10'!F49/'ORC1'!F49),2) -> 5799.5
A50: 4.2.2 | B50: SINAPI | C50: 101616 | D50: =_xlfn.XLOOKUP(C50,CCD!B:B,CCD!C:C,_xlfn.XLOOKUP(C50,'COMP-SEINFRA'!A:A,'COMP-SEINFRA'!C:C,_xlfn.XLOOKUP(C50,'CP-CODEVASF'!A:A,'CP-CODEVASF'!B:B))) -> PREPARO DE FUNDO DE VALA COM LARGURA MENOR QUE 1,5 M (ACERTO DO SOLO NATURAL). AF_08/2020 | E50: =_xlfn.XLOOKUP(C50,CCD!B:B,CCD!D:D,_xlfn.XLOOKUP(C50,'COMP-SEINFRA'!A:A,'COMP-SEINFRA'!D:D,_xlfn.XLOOKUP(C50,'CP-CODEVASF'!A:A,'CP-CODEVASF'!C:C))) -> M2 | F50: ='ORC1'!F50*10 -> 132.8 | G50: =TRUNC(_xlfn.XLOOKUP(C50,CCD!B:B,CCD!O:O,_xlfn.XLOOKUP(C50,'COMP-SEINFRA'!A:A,'COMP-SEINFRA'!G:G,_xlfn.XLOOKUP(C50,'CP-CODEVASF'!A:A,'CP-CODEVASF'!D:D))),2) -> 6.48 | H50: =TRUNC(G50*(1+$E$14),2) -> 8.15 | I50: =TRUNC('ORC1'!I50*('ORC10'!F50/'ORC1'!F50),2) -> 1082.3
A51: 4.2.3 | B51: SINAPI | C51: 104918 | D51: =_xlfn.XLOOKUP(C51,CCD!B:B,CCD!C:C,_xlfn.XLOOKUP(C51,'COMP-SEINFRA'!A:A,'COMP-SEINFRA'!C:C,_xlfn.XLOOKUP(C51,'CP-CODEVASF'!A:A,'CP-CODEVASF'!B:B))) -> ARMAÇÃO DE SAPATA ISOLADA, VIGA BALDRAME E SAPATA CORRIDA UTILIZANDO AÇO CA-50 DE 8 MM - MONTAGEM. AF_01/2024 | E51: =_xlfn.XLOOKUP(C51,CCD!B:B,CCD!D:D,_xlfn.XLOOKUP(C51,'COMP-SEINFRA'!A:A,'COMP-SEINFRA'!D:D,_xlfn.XLOOKUP(C51,'CP-CODEVASF'!A:A,'CP-CODEVASF'!C:C))) -> KG | F51: ='ORC1'!F51*10 -> 1460.4 | G51: =TRUNC(_xlfn.XLOOKUP(C51,CCD!B:B,CCD!O:O,_xlfn.XLOOKUP(C51,'COMP-SEINFRA'!A:A,'COMP-SEINFRA'!G:G,_xlfn.XLOOKUP(C51,'CP-CODEVASF'!A:A,'CP-CODEVASF'!D:D))),2) -> 13.31 | H51: =TRUNC(G51*(1+$E$14),2) -> 16.75 | I51: =TRUNC('ORC1'!I51*('ORC10'!F51/'ORC1'!F51),2) -> 24461.7
A52: 4.2.4 | B52: SINAPI | C52: 104916 | D52: =_xlfn.XLOOKUP(C52,CCD!B:B,CCD!C:C,_xlfn.XLOOKUP(C52,'COMP-SEINFRA'!A:A,'COMP-SEINFRA'!C:C,_xlfn.XLOOKUP(C52,'CP-CODEVASF'!A:A,'CP-CODEVASF'!B:B))) -> ARMAÇÃO DE SAPATA ISOLADA, VIGA BALDRAME E SAPATA CORRIDA UTILIZANDO AÇO CA-60 DE 5 MM - MONTAGEM. AF_01/2024 | E52: =_xlfn.XLOOKUP(C52,CCD!B:B,CCD!D:D,_xlfn.XLOOKUP(C52,'COMP-SEINFRA'!A:A,'COMP-SEINFRA'!D:D,_xlfn.XLOOKUP(C52,'CP-CODEVASF'!A:A,'CP-CODEVASF'!C:C))) -> KG | F52: ='ORC1'!F52*10 -> 628.9 | G52: =TRUNC(_xlfn.XLOOKUP(C52,CCD!B:B,CCD!O:O,_xlfn.XLOOKUP(C52,'COMP-SEINFRA'!A:A,'COMP-SEINFRA'!G:G,_xlfn.XLOOKUP(C52,'CP-CODEVASF'!A:A,'CP-CODEVASF'!D:D))),2) -> 15.88 | H52: =TRUNC(G52*(1+$E$14),2) -> 19.99 | I52: =TRUNC('ORC1'!I52*('ORC10'!F52/'ORC1'!F52),2) -> 12571.7
A53: 4.2.5 | B53: SINAPI | C53: 94965 | D53: =_xlfn.XLOOKUP(C53,CCD!B:B,CCD!C:C,_xlfn.XLOOKUP(C53,'COMP-SEINFRA'!A:A,'COMP-SEINFRA'!C:C,_xlfn.XLOOKUP(C53,'CP-CODEVASF'!A:A,'CP-CODEVASF'!B:B))) -> CONCRETO FCK = 25MPA, TRAÇO 1:2,3:2,7 (EM MASSA SECA DE CIMENTO/ AREIA MÉDIA/ BRITA 1) - PREPARO MECÂNICO COM BETONEIRA 400 L. AF_05/2021 | E53: =_xlfn.XLOOKUP(C53,CCD!B:B,CCD!D:D,_xlfn.XLOOKUP(C53,'COMP-SEINFRA'!A:A,'COMP-SEINFRA'!D:D,_xlfn.XLOOKUP(C53,'CP-CODEVASF'!A:A,'CP-CODEVASF'!C:C))) -> M3 | F53: ='ORC1'!F53*10 -> 53.1 | G53: =TRUNC(_xlfn.XLOOKUP(C53,CCD!B:B,CCD!O:O,_xlfn.XLOOKUP(C53,'COMP-SEINFRA'!A:A,'COMP-SEINFRA'!G:G,_xlfn.XLOOKUP(C53,'CP-CODEVASF'!A:A,'CP-CODEVASF'!D:D))),2) -> 513.13 | H53: =TRUNC(G53*(1+$E$14),2) -> 646.13 | I53: =TRUNC('ORC1'!I53*('ORC10'!F53/'ORC1'!F53),2) -> 34309.5
A54: 4.3 | D54: ESTRUTURA METÁLICA | I54: =TRUNC(SUM(I55:I57),2) -> 989323.1
A55: 4.3.1 | B55: SEINFRA | C55: C1353 | D55: =_xlfn.XLOOKUP(C55,CCD!B:B,CCD!C:C,_xlfn.XLOOKUP(C55,'COMP-SEINFRA'!A:A,'COMP-SEINFRA'!C:C,_xlfn.XLOOKUP(C55,'CP-CODEVASF'!A:A,'CP-CODEVASF'!B:B))) -> ESTRUTURA METÁLICA TRELIÇADA EM AÇO, EM MARQUISES | E55: =_xlfn.XLOOKUP(C55,CCD!B:B,CCD!D:D,_xlfn.XLOOKUP(C55,'COMP-SEINFRA'!A:A,'COMP-SEINFRA'!D:D,_xlfn.XLOOKUP(C55,'CP-CODEVASF'!A:A,'CP-CODEVASF'!C:C))) -> M2 | F55: ='ORC1'!F55*10 -> 1742.1 | G55: =TRUNC(_xlfn.XLOOKUP(C55,CCD!B:B,CCD!O:O,_xlfn.XLOOKUP(C55,'COMP-SEINFRA'!A:A,'COMP-SEINFRA'!G:G,_xlfn.XLOOKUP(C55,'CP-CODEVASF'!A:A,'CP-CODEVASF'!D:D))),2) -> 269.61 | H55: =TRUNC(G55*(1+$E$14),2) -> 339.49 | I55: =TRUNC('ORC1'!I55*('ORC10'!F55/'ORC1'!F55),2) -> 591425.5
A56: 4.3.2 | B56: SINAPI | C56: 94216 | D56: =_xlfn.XLOOKUP(C56,CCD!B:B,CCD!C:C,_xlfn.XLOOKUP(C56,'COMP-SEINFRA'!A:A,'COMP-SEINFRA'!C:C,_xlfn.XLOOKUP(C56,'CP-CODEVASF'!A:A,'CP-CODEVASF'!B:B))) -> TELHAMENTO COM TELHA METÁLICA TERMOACÚSTICA E = 30 MM, COM ATÉ 2 ÁGUAS, INCLUSO IÇAMENTO. AF_07/2019 | E56: =_xlfn.XLOOKUP(C56,CCD!B:B,CCD!D:D,_xlfn.XLOOKUP(C56,'COMP-SEINFRA'!A:A,'COMP-SEINFRA'!D:D,_xlfn.XLOOKUP(C56,'CP-CODEVASF'!A:A,'CP-CODEVASF'!C:C))) -> M2 | F56: ='ORC1'!F56*10 -> 1532.6 | G56: =TRUNC(_xlfn.XLOOKUP(C56,CCD!B:B,CCD!O:O,_xlfn.XLOOKUP(C56,'COMP-SEINFRA'!A:A,'COMP-SEINFRA'!G:G,_xlfn.XLOOKUP(C56,'CP-CODEVASF'!A:A,'CP-CODEVASF'!D:D))),2) -> 196.64 | H56: =TRUNC(G56*(1+$E$14),2) -> 247.6 | I56: =TRUNC('ORC1'!I56*('ORC10'!F56/'ORC1'!F56),2) -> 379471.7
A57: 4.3.3 | B57: SEINFRA | C57: C2479 | D57: =_xlfn.XLOOKUP(C57,CCD!B:B,CCD!C:C,_xlfn.XLOOKUP(C57,'COMP-SEINFRA'!A:A,'COMP-SEINFRA'!C:C,_xlfn.XLOOKUP(C57,'CP-CODEVASF'!A:A,'CP-CODEVASF'!B:B))) -> TOLDO COM ESTRUTURA METÁLICA | E57: =_xlfn.XLOOKUP(C57,CCD!B:B,CCD!D:D,_xlfn.XLOOKUP(C57,'COMP-SEINFRA'!A:A,'COMP-SEINFRA'!D:D,_xlfn.XLOOKUP(C57,'CP-CODEVASF'!A:A,'CP-CODEVASF'!C:C))) -> M2 | F57: ='ORC1'!F57*10 -> 54.5 | G57: =TRUNC(_xlfn.XLOOKUP(C57,CCD!B:B,CCD!O:O,_xlfn.XLOOKUP(C57,'COMP-SEINFRA'!A:A,'COMP-SEINFRA'!G:G,_xlfn.XLOOKUP(C57,'CP-CODEVASF'!A:A,'CP-CODEVASF'!D:D))),2) -> 268.5 | H57: =TRUNC(G57*(1+$E$14),2) -> 338.09 | I57: =TRUNC('ORC1'!I57*('ORC10'!F57/'ORC1'!F57),2) -> 18425.9
A58: 5 | D58: PAREDES / PAINÉIS / VEDAÇÃO | I58: =TRUNC(SUM(I59:I59),2) -> 1803030.3
A59: 5.1 | B59: CODEVASF | C59: ='CP-CODEVASF'!A21 -> COMP-21 | D59: =_xlfn.XLOOKUP(C59,CCD!B:B,CCD!C:C,_xlfn.XLOOKUP(C59,'COMP-SEINFRA'!A:A,'COMP-SEINFRA'!C:C,_xlfn.XLOOKUP(C59,'CP-CODEVASF'!A:A,'CP-CODEVASF'!B:B))) -> FORNECIMENTO E INSTALAÇÃO DE ISOPAINEL EPS 100 MM | E59: =_xlfn.XLOOKUP(C59,CCD!B:B,CCD!D:D,_xlfn.XLOOKUP(C59,'COMP-SEINFRA'!A:A,'COMP-SEINFRA'!D:D,_xlfn.XLOOKUP(C59,'CP-CODEVASF'!A:A,'CP-CODEVASF'!C:C))) -> M2 | F59: ='ORC1'!F59*10 -> 4500.6 | G59: =TRUNC(_xlfn.XLOOKUP(C59,CCD!B:B,CCD!O:O,_xlfn.XLOOKUP(C59,'COMP-SEINFRA'!A:A,'COMP-SEINFRA'!G:G,_xlfn.XLOOKUP(C59,'CP-CODEVASF'!A:A,'CP-CODEVASF'!D:D))),2) -> 318.16 | H59: =TRUNC(G59*(1+$E$14),2) -> 400.62 | I59: =TRUNC('ORC1'!I59*('ORC10'!F59/'ORC1'!F59),2) -> 1803030.3
A60: 6 | D60: PINTURA | I60: =TRUNC(SUM(I61:I62),2) -> 76211.7
A61: 6.1 | B61: SEINFRA | C61: C2040 | D61: =_xlfn.XLOOKUP(C61,CCD!B:B,CCD!C:C,_xlfn.XLOOKUP(C61,'COMP-SEINFRA'!A:A,'COMP-SEINFRA'!C:C,_xlfn.XLOOKUP(C61,'CP-CODEVASF'!A:A,'CP-CODEVASF'!B:B))) -> PINTURA C/ PRIMER EPOXI EM ESTRUTURA DE AÇO CARBONO 25 MICRA C/REVÓLVER | E61: =_xlfn.XLOOKUP(C61,CCD!B:B,CCD!D:D,_xlfn.XLOOKUP(C61,'COMP-SEINFRA'!A:A,'COMP-SEINFRA'!D:D,_xlfn.XLOOKUP(C61,'CP-CODEVASF'!A:A,'CP-CODEVASF'!C:C))) -> M2 | F61: ='ORC1'!F61*10 -> 1796.6 | G61: =TRUNC(_xlfn.XLOOKUP(C61,CCD!B:B,CCD!O:O,_xlfn.XLOOKUP(C61,'COMP-SEINFRA'!A:A,'COMP-SEINFRA'!G:G,_xlfn.XLOOKUP(C61,'CP-CODEVASF'!A:A,'CP-CODEVASF'!D:D))),2) -> 12.38 | H61: =TRUNC(G61*(1+$E$14),2) -> 15.58 | I61: =TRUNC('ORC1'!I61*('ORC10'!F61/'ORC1'!F61),2) -> 27991
A62: 6.2 | B62: SEINFRA | C62: C2473 | D62: =_xlfn.XLOOKUP(C62,CCD!B:B,CCD!C:C,_xlfn.XLOOKUP(C62,'COMP-SEINFRA'!A:A,'COMP-SEINFRA'!C:C,_xlfn.XLOOKUP(C62,'CP-CODEVASF'!A:A,'CP-CODEVASF'!B:B))) -> PINTURA C/ TINTA EPOXI EM ESTRUTURA DE AÇO CARBONO 50 MICRA C/REVÓLVER | E62: =_xlfn.XLOOKUP(C62,CCD!B:B,CCD!D:D,_xlfn.XLOOKUP(C62,'COMP-SEINFRA'!A:A,'COMP-SEINFRA'!D:D,_xlfn.XLOOKUP(C62,'CP-CODEVASF'!A:A,'CP-CODEVASF'!C:C))) -> M2 | F62: ='ORC1'!F62*10 -> 1796.6 | G62: =TRUNC(_xlfn.XLOOKUP(C62,CCD!B:B,CCD!O:O,_xlfn.XLOOKUP(C62,'COMP-SEINFRA'!A:A,'COMP-SEINFRA'!G:G,_xlfn.XLOOKUP(C62,'CP-CODEVASF'!A:A,'CP-CODEVASF'!D:D))),2) -> 21.32 | H62: =TRUNC(G62*(1+$E$14),2) -> 26.84 | I62: =TRUNC('ORC1'!I62*('ORC10'!F62/'ORC1'!F62),2) -> 48220.7
A63: 7 | D63: ESQUADRIAS | I63: =TRUNC(SUM(I64:I69),2) -> 379932.8
A64: 7.1 | B64: SINAPI | C64: 91341 | D64: =_xlfn.XLOOKUP(C64,CCD!B:B,CCD!C:C,_xlfn.XLOOKUP(C64,'COMP-SEINFRA'!A:A,'COMP-SEINFRA'!C:C,_xlfn.XLOOKUP(C64,'CP-CODEVASF'!A:A,'CP-CODEVASF'!B:B))) -> PORTA EM ALUMÍNIO DE ABRIR TIPO VENEZIANA COM GUARNIÇÃO, FIXAÇÃO COM PARAFUSOS - FORNECIMENTO E INSTALAÇÃO. AF_12/2019 | E64: =_xlfn.XLOOKUP(C64,CCD!B:B,CCD!D:D,_xlfn.XLOOKUP(C64,'COMP-SEINFRA'!A:A,'COMP-SEINFRA'!D:D,_xlfn.XLOOKUP(C64,'CP-CODEVASF'!A:A,'CP-CODEVASF'!C:C))) -> M2 | F64: ='ORC1'!F64*10 -> 207.9 | G64: =TRUNC(_xlfn.XLOOKUP(C64,CCD!B:B,CCD!O:O,_xlfn.XLOOKUP(C64,'COMP-SEINFRA'!A:A,'COMP-SEINFRA'!G:G,_xlfn.XLOOKUP(C64,'CP-CODEVASF'!A:A,'CP-CODEVASF'!D:D))),2) -> 652.2 | H64: =TRUNC(G64*(1+$E$14),2) -> 821.25 | I64: =TRUNC('ORC1'!I64*('ORC10'!F64/'ORC1'!F64),2) -> 170737.8
A65: 7.2 | B65: SEINFRA | C65: C4514 | D65: =_xlfn.XLOOKUP(C65,CCD!B:B,CCD!C:C,_xlfn.XLOOKUP(C65,'COMP-SEINFRA'!A:A,'COMP-SEINFRA'!C:C,_xlfn.XLOOKUP(C65,'CP-CODEVASF'!A:A,'CP-CODEVASF'!B:B))) -> PORTA EM ALUMÍNIO ANODIZADO NATURAL/FOSCO, DE CORRER, SEM BANDEIROLA E/OU PEITORIL, SEM VIDRO - FORNECIMENTO E MONTAGEM | E65: =_xlfn.XLOOKUP(C65,CCD!B:B,CCD!D:D,_xlfn.XLOOKUP(C65,'COMP-SEINFRA'!A:A,'COMP-SEINFRA'!D:D,_xlfn.XLOOKUP(C65,'CP-CODEVASF'!A:A,'CP-CODEVASF'!C:C))) -> M2 | F65: ='ORC1'!F65*10 -> 100.8 | G65: =TRUNC(_xlfn.XLOOKUP(C65,CCD!B:B,CCD!O:O,_xlfn.XLOOKUP(C65,'COMP-SEINFRA'!A:A,'COMP-SEINFRA'!G:G,_xlfn.XLOOKUP(C65,'CP-CODEVASF'!A:A,'CP-CODEVASF'!D:D))),2) -> 404.39 | H65: 509.2 | I65: =TRUNC('ORC1'!I65*('ORC10'!F65/'ORC1'!F65),2) -> 51327.3
A66: 7.3 | B66: SEINFRA | C66: C3737 | D66: =_xlfn.XLOOKUP(C66,CCD!B:B,CCD!C:C,_xlfn.XLOOKUP(C66,'COMP-SEINFRA'!A:A,'COMP-SEINFRA'!C:C,_xlfn.XLOOKUP(C66,'CP-CODEVASF'!A:A,'CP-CODEVASF'!B:B))) -> PORTA FRIGORÍFICA TERMO-ISOLANTE DE ACIONAMENTO MANUAL C/AQUECIMENTO. 2100X1000X150MM -( FORNECIMENTO | E66: =_xlfn.XLOOKUP(C66,CCD!B:B,CCD!D:D,_xlfn.XLOOKUP(C66,'COMP-SEINFRA'!A:A,'COMP-SEINFRA'!D:D,_xlfn.XLOOKUP(C66,'CP-CODEVASF'!A:A,'CP-CODEVASF'!C:C))) -> UN | F66: ='ORC1'!F66*10 -> 10 | G66: =TRUNC(_xlfn.XLOOKUP(C66,CCD!B:B,CCD!O:O,_xlfn.XLOOKUP(C66,'COMP-SEINFRA'!A:A,'COMP-SEINFRA'!G:G,_xlfn.XLOOKUP(C66,'CP-CODEVASF'!A:A,'CP-CODEVASF'!D:D))),2) -> 3352.31 | H66: 4221.22 | I66: =TRUNC('ORC1'!I66*('ORC10'!F66/'ORC1'!F66),2) -> 42212.2
A67: 7.4 | B67: SINAPI | C67: 94570 | D67: =_xlfn.XLOOKUP(C67,CCD!B:B,CCD!C:C,_xlfn.XLOOKUP(C67,'COMP-SEINFRA'!A:A,'COMP-SEINFRA'!C:C,_xlfn.XLOOKUP(C67,'CP-CODEVASF'!A:A,'CP-CODEVASF'!B:B))) -> JANELA DE ALUMÍNIO DE CORRER COM 2 FOLHAS PARA VIDROS (VIDROS INCLUSOS), BATENTE/ REQUADRO 6 A 14 CM, ACABAMENTO COM ACETATO OU BRILHANTE, FIXAÇÃO COM PARAFUSO, SEM GUARNIÇÃO/ ALIZAR, DIMENSÕES 100X120 CM, VEDAÇÃO COM SILICONE, EXCLUSIVE CONTRAMARCO - FORNECIMENTO E INSTALAÇÃO. AF_11/2024 | E67: =_xlfn.XLOOKUP(C67,CCD!B:B,CCD!D:D,_xlfn.XLOOKUP(C67,'COMP-SEINFRA'!A:A,'COMP-SEINFRA'!D:D,_xlfn.XLOOKUP(C67,'CP-CODEVASF'!A:A,'CP-CODEVASF'!C:C))) -> M2 | F67: ='ORC1'!F67*10 -> 28 | G67: =TRUNC(_xlfn.XLOOKUP(C67,CCD!B:B,CCD!O:O,_xlfn.XLOOKUP(C67,'COMP-SEINFRA'!A:A,'COMP-SEINFRA'!G:G,_xlfn.XLOOKUP(C67,'CP-CODEVASF'!A:A,'CP-CODEVASF'!D:D))),2) -> 401.12 | H67: 505.09 | I67: =TRUNC('ORC1'!I67*('ORC10'!F67/'ORC1'!F67),2) -> 14142.5
A68: 7.5 | B68: SINAPI | C68: 100674 | D68: =_xlfn.XLOOKUP(C68,CCD!B:B,CCD!C:C,_xlfn.XLOOKUP(C68,'COMP-SEINFRA'!A:A,'COMP-SEINFRA'!C:C,_xlfn.XLOOKUP(C68,'CP-CODEVASF'!A:A,'CP-CODEVASF'!B:B))) -> CAIXILHO FIXO DE ALUMÍNIO PARA VIDRO (VIDRO INCLUSO), BATENTE/ REQUADRO DE 4 A 14 CM, SEM GUARNIÇÃO/ ALIZAR, FIXAÇÃO COM PARAFUSOS, VEDAÇÃO COM SILICONE, EXCLUSIVE CONTRAMARCO - FORNECIMENTO E INSTALAÇÃO. AF_11/2024 | E68: =_xlfn.XLOOKUP(C68,CCD!B:B,CCD!D:D,_xlfn.XLOOKUP(C68,'COMP-SEINFRA'!A:A,'COMP-SEINFRA'!D:D,_xlfn.XLOOKUP(C68,'CP-CODEVASF'!A:A,'CP-CODEVASF'!C:C))) -> M2 | F68: ='ORC1'!F68*10 -> 80 | G68: =TRUNC(_xlfn.XLOOKUP(C68,CCD!B:B,CCD!O:O,_xlfn.XLOOKUP(C68,'COMP-SEINFRA'!A:A,'COMP-SEINFRA'!G:G,_xlfn.XLOOKUP(C68,'CP-CODEVASF'!A:A,'CP-CODEVASF'!D:D))),2) -> 871.67 | H68: 1097.6 | I68: =TRUNC('ORC1'!I68*('ORC10'!F68/'ORC1'!F68),2) -> 87808
A69: 7.6 | B69: SINAPI | C69: 94569 | D69: =_xlfn.XLOOKUP(C69,CCD!B:B,CCD!C:C,_xlfn.XLOOKUP(C69,'COMP-SEINFRA'!A:A,'COMP-SEINFRA'!C:C,_xlfn.XLOOKUP(C69,'CP-CODEVASF'!A:A,'CP-CODEVASF'!B:B))) -> JANELA DE ALUMÍNIO TIPO MAXIM-AR, BATENTE/ REQUADRO 3 A 14 CM, VIDRO INCLUSO, FIXAÇÃO COM PARAFUSO, SEM GUARNIÇÃO/ ALIZAR, DIMENSÕES 60X80 (A X L) CM, SEM ACABAMENTO, VEDAÇÃO COM SILICONE, EXCLUSIVE CONTRAMARCO - FORNECIMENTO E INSTALAÇÃO. AF_11/2024 | E69: =_xlfn.XLOOKUP(C69,CCD!B:B,CCD!D:D,_xlfn.XLOOKUP(C69,'COMP-SEINFRA'!A:A,'COMP-SEINFRA'!D:D,_xlfn.XLOOKUP(C69,'CP-CODEVASF'!A:A,'CP-CODEVASF'!C:C))) -> M2 | F69: ='ORC1'!F69*10 -> 14.4 | G69: =TRUNC(_xlfn.XLOOKUP(C69,CCD!B:B,CCD!O:O,_xlfn.XLOOKUP(C69,'COMP-SEINFRA'!A:A,'COMP-SEINFRA'!G:G,_xlfn.XLOOKUP(C69,'CP-CODEVASF'!A:A,'CP-CODEVASF'!D:D))),2) -> 755.83 | H69: 951.74 | I69: =TRUNC('ORC1'!I69*('ORC10'!F69/'ORC1'!F69),2) -> 13705
A70: 8 | D70: INSTALAÇÕES ELÉTRICAS | I70: =TRUNC(SUM(I71:I96),2) -> 316546.6
A71: 8.1 | B71: SINAPI | C71: COMP-33 | D71: =_xlfn.XLOOKUP(C71,CCD!B:B,CCD!C:C,_xlfn.XLOOKUP(C71,'COMP-SEINFRA'!A:A,'COMP-SEINFRA'!C:C,_xlfn.XLOOKUP(C71,'CP-CODEVASF'!A:A,'CP-CODEVASF'!B:B))) -> ENTRADA DE ENERGIA COM POSTE E ASSENTAMENTO | E71: =_xlfn.XLOOKUP(C71,CCD!B:B,CCD!D:D,_xlfn.XLOOKUP(C71,'COMP-SEINFRA'!A:A,'COMP-SEINFRA'!D:D,_xlfn.XLOOKUP(C71,'CP-CODEVASF'!A:A,'CP-CODEVASF'!C:C))) -> UN | F71: ='ORC1'!F71*10 -> 10 | G71: =TRUNC(_xlfn.XLOOKUP(C71,CCD!B:B,CCD!O:O,_xlfn.XLOOKUP(C71,'COMP-SEINFRA'!A:A,'COMP-SEINFRA'!G:G,_xlfn.XLOOKUP(C71,'CP-CODEVASF'!A:A,'CP-CODEVASF'!D:D))),2) -> 3660.45 | H71: =TRUNC(G71*(1+$E$14),2) -> 4609.23 | I71: =TRUNC('ORC1'!I71*('ORC10'!F71/'ORC1'!F71),2) -> 46092.3
A72: 8.2 | B72: SINAPI | C72: 101878 | D72: =_xlfn.XLOOKUP(C72,CCD!B:B,CCD!C:C,_xlfn.XLOOKUP(C72,'COMP-SEINFRA'!A:A,'COMP-SEINFRA'!C:C,_xlfn.XLOOKUP(C72,'CP-CODEVASF'!A:A,'CP-CODEVASF'!B:B))) -> QUADRO DE DISTRIBUIÇÃO DE ENERGIA EM CHAPA DE AÇO GALVANIZADO, DE SOBREPOR, COM BARRAMENTO TRIFÁSICO, PARA 18 DISJUNTORES DIN 100A - FORNECIMENTO E INSTALAÇÃO. AF_07/2025 | E72: =_xlfn.XLOOKUP(C72,CCD!B:B,CCD!D:D,_xlfn.XLOOKUP(C72,'COMP-SEINFRA'!A:A,'COMP-SEINFRA'!D:D,_xlfn.XLOOKUP(C72,'CP-CODEVASF'!A:A,'CP-CODEVASF'!C:C))) -> UN | F72: ='ORC1'!F72*10 -> 20 | G72: =TRUNC(_xlfn.XLOOKUP(C72,CCD!B:B,CCD!O:O,_xlfn.XLOOKUP(C72,'COMP-SEINFRA'!A:A,'COMP-SEINFRA'!G:G,_xlfn.XLOOKUP(C72,'CP-CODEVASF'!A:A,'CP-CODEVASF'!D:D))),2) -> 401.59 | H72: 505.68 | I72: =TRUNC('ORC1'!I72*('ORC10'!F72/'ORC1'!F72),2) -> 10113.6
A73: 8.3 | B73: SINAPI | C73: 91927 | D73: =_xlfn.XLOOKUP(C73,CCD!B:B,CCD!C:C,_xlfn.XLOOKUP(C73,'COMP-SEINFRA'!A:A,'COMP-SEINFRA'!C:C,_xlfn.XLOOKUP(C73,'CP-CODEVASF'!A:A,'CP-CODEVASF'!B:B))) -> CABO DE COBRE FLEXÍVEL ISOLADO, 2,5 MM², ANTI-CHAMA 0,6/1,0 KV, PARA CIRCUITOS TERMINAIS - FORNECIMENTO E INSTALAÇÃO. AF_03/2023 | E73: =_xlfn.XLOOKUP(C73,CCD!B:B,CCD!D:D,_xlfn.XLOOKUP(C73,'COMP-SEINFRA'!A:A,'COMP-SEINFRA'!D:D,_xlfn.XLOOKUP(C73,'CP-CODEVASF'!A:A,'CP-CODEVASF'!C:C))) -> M | F73: ='ORC1'!F73*10 -> 58 | G73: =TRUNC(_xlfn.XLOOKUP(C73,CCD!B:B,CCD!O:O,_xlfn.XLOOKUP(C73,'COMP-SEINFRA'!A:A,'COMP-SEINFRA'!G:G,_xlfn.XLOOKUP(C73,'CP-CODEVASF'!A:A,'CP-CODEVASF'!D:D))),2) -> 5.32 | H73: 6.69 | I73: =TRUNC('ORC1'!I73*('ORC10'!F73/'ORC1'!F73),2) -> 388
A74: 8.4 | B74: SINAPI | C74: 91929 | D74: =_xlfn.XLOOKUP(C74,CCD!B:B,CCD!C:C,_xlfn.XLOOKUP(C74,'COMP-SEINFRA'!A:A,'COMP-SEINFRA'!C:C,_xlfn.XLOOKUP(C74,'CP-CODEVASF'!A:A,'CP-CODEVASF'!B:B))) -> CABO DE COBRE FLEXÍVEL ISOLADO, 4 MM², ANTI-CHAMA 0,6/1,0 KV, PARA CIRCUITOS TERMINAIS - FORNECIMENTO E INSTALAÇÃO. AF_03/2023 | E74: =_xlfn.XLOOKUP(C74,CCD!B:B,CCD!D:D,_xlfn.XLOOKUP(C74,'COMP-SEINFRA'!A:A,'COMP-SEINFRA'!D:D,_xlfn.XLOOKUP(C74,'CP-CODEVASF'!A:A,'CP-CODEVASF'!C:C))) -> M | F74: ='ORC1'!F74*10 -> 2842.8 | G74: =TRUNC(_xlfn.XLOOKUP(C74,CCD!B:B,CCD!O:O,_xlfn.XLOOKUP(C74,'COMP-SEINFRA'!A:A,'COMP-SEINFRA'!G:G,_xlfn.XLOOKUP(C74,'CP-CODEVASF'!A:A,'CP-CODEVASF'!D:D))),2) -> 7.89 | H74: 9.93 | I74: =TRUNC('ORC1'!I74*('ORC10'!F74/'ORC1'!F74),2) -> 28229
A75: 8.5 | B75: SINAPI | C75: 91924 | D75: =_xlfn.XLOOKUP(C75,CCD!B:B,CCD!C:C,_xlfn.XLOOKUP(C75,'COMP-SEINFRA'!A:A,'COMP-SEINFRA'!C:C,_xlfn.XLOOKUP(C75,'CP-CODEVASF'!A:A,'CP-CODEVASF'!B:B))) -> CABO DE COBRE FLEXÍVEL ISOLADO, 1,5 MM², ANTI-CHAMA 450/750 V, PARA CIRCUITOS TERMINAIS - FORNECIMENTO E INSTALAÇÃO. AF_03/2023 | E75: =_xlfn.XLOOKUP(C75,CCD!B:B,CCD!D:D,_xlfn.XLOOKUP(C75,'COMP-SEINFRA'!A:A,'COMP-SEINFRA'!D:D,_xlfn.XLOOKUP(C75,'CP-CODEVASF'!A:A,'CP-CODEVASF'!C:C))) -> M | F75: ='ORC1'!F75*10 -> 2253 | G75: =TRUNC(_xlfn.XLOOKUP(C75,CCD!B:B,CCD!O:O,_xlfn.XLOOKUP(C75,'COMP-SEINFRA'!A:A,'COMP-SEINFRA'!G:G,_xlfn.XLOOKUP(C75,'CP-CODEVASF'!A:A,'CP-CODEVASF'!D:D))),2) -> 3.23 | H75: 4.06 | I75: =TRUNC('ORC1'!I75*('ORC10'!F75/'ORC1'!F75),2) -> 9147.1
A76: 8.6 | B76: SINAPI | C76: 91926 | D76: =_xlfn.XLOOKUP(C76,CCD!B:B,CCD!C:C,_xlfn.XLOOKUP(C76,'COMP-SEINFRA'!A:A,'COMP-SEINFRA'!C:C,_xlfn.XLOOKUP(C76,'CP-CODEVASF'!A:A,'CP-CODEVASF'!B:B))) -> CABO DE COBRE FLEXÍVEL ISOLADO, 2,5 MM², ANTI-CHAMA 450/750 V, PARA CIRCUITOS TERMINAIS - FORNECIMENTO E INSTALAÇÃO. AF_03/2023 | E76: =_xlfn.XLOOKUP(C76,CCD!B:B,CCD!D:D,_xlfn.XLOOKUP(C76,'COMP-SEINFRA'!A:A,'COMP-SEINFRA'!D:D,_xlfn.XLOOKUP(C76,'CP-CODEVASF'!A:A,'CP-CODEVASF'!C:C))) -> M | F76: ='ORC1'!F76*10 -> 4093 | G76: =TRUNC(_xlfn.XLOOKUP(C76,CCD!B:B,CCD!O:O,_xlfn.XLOOKUP(C76,'COMP-SEINFRA'!A:A,'COMP-SEINFRA'!G:G,_xlfn.XLOOKUP(C76,'CP-CODEVASF'!A:A,'CP-CODEVASF'!D:D))),2) -> 4.72 | H76: 5.94 | I76: =TRUNC('ORC1'!I76*('ORC10'!F76/'ORC1'!F76),2) -> 24312.4
A77: 8.7 | B77: SINAPI | C77: 91932 | D77: =_xlfn.XLOOKUP(C77,CCD!B:B,CCD!C:C,_xlfn.XLOOKUP(C77,'COMP-SEINFRA'!A:A,'COMP-SEINFRA'!C:C,_xlfn.XLOOKUP(C77,'CP-CODEVASF'!A:A,'CP-CODEVASF'!B:B))) -> CABO DE COBRE FLEXÍVEL ISOLADO, 10 MM², ANTI-CHAMA 450/750 V, PARA CIRCUITOS TERMINAIS - FORNECIMENTO E INSTALAÇÃO. AF_03/2023 | E77: =_xlfn.XLOOKUP(C77,CCD!B:B,CCD!D:D,_xlfn.XLOOKUP(C77,'COMP-SEINFRA'!A:A,'COMP-SEINFRA'!D:D,_xlfn.XLOOKUP(C77,'CP-CODEVASF'!A:A,'CP-CODEVASF'!C:C))) -> M | F77: ='ORC1'!F77*10 -> 865.8 | G77: =TRUNC(_xlfn.XLOOKUP(C77,CCD!B:B,CCD!O:O,_xlfn.XLOOKUP(C77,'COMP-SEINFRA'!A:A,'COMP-SEINFRA'!G:G,_xlfn.XLOOKUP(C77,'CP-CODEVASF'!A:A,'CP-CODEVASF'!D:D))),2) -> 18.58 | H77: 23.39 | I77: =TRUNC('ORC1'!I77*('ORC10'!F77/'ORC1'!F77),2) -> 20251
A78: 8.8 | B78: SINAPI | C78: 91864 | D78: =_xlfn.XLOOKUP(C78,CCD!B:B,CCD!C:C,_xlfn.XLOOKUP(C78,'COMP-SEINFRA'!A:A,'COMP-SEINFRA'!C:C,_xlfn.XLOOKUP(C78,'CP-CODEVASF'!A:A,'CP-CODEVASF'!B:B))) -> ELETRODUTO RÍGIDO ROSCÁVEL, PVC, DN 32 MM (1"), PARA CIRCUITOS TERMINAIS, INSTALADO EM FORRO - FORNECIMENTO E INSTALAÇÃO. AF_03/2023 | E78: =_xlfn.XLOOKUP(C78,CCD!B:B,CCD!D:D,_xlfn.XLOOKUP(C78,'COMP-SEINFRA'!A:A,'COMP-SEINFRA'!D:D,_xlfn.XLOOKUP(C78,'CP-CODEVASF'!A:A,'CP-CODEVASF'!C:C))) -> M | F78: ='ORC1'!F78*10 -> 188 | G78: =TRUNC(_xlfn.XLOOKUP(C78,CCD!B:B,CCD!O:O,_xlfn.XLOOKUP(C78,'COMP-SEINFRA'!A:A,'COMP-SEINFRA'!G:G,_xlfn.XLOOKUP(C78,'CP-CODEVASF'!A:A,'CP-CODEVASF'!D:D))),2) -> 15.12 | H78: 19.03 | I78: =TRUNC('ORC1'!I78*('ORC10'!F78/'ORC1'!F78),2) -> 3577.6
A79: 8.9 | B79: SINAPI | C79: 91863 | D79: =_xlfn.XLOOKUP(C79,CCD!B:B,CCD!C:C,_xlfn.XLOOKUP(C79,'COMP-SEINFRA'!A:A,'COMP-SEINFRA'!C:C,_xlfn.XLOOKUP(C79,'CP-CODEVASF'!A:A,'CP-CODEVASF'!B:B))) -> ELETRODUTO RÍGIDO ROSCÁVEL, PVC, DN 25 MM (3/4"), PARA CIRCUITOS TERMINAIS, INSTALADO EM FORRO - FORNECIMENTO E INSTALAÇÃO. AF_03/2023 | E79: =_xlfn.XLOOKUP(C79,CCD!B:B,CCD!D:D,_xlfn.XLOOKUP(C79,'COMP-SEINFRA'!A:A,'COMP-SEINFRA'!D:D,_xlfn.XLOOKUP(C79,'CP-CODEVASF'!A:A,'CP-CODEVASF'!C:C))) -> M | F79: ='ORC1'!F79*10 -> 2117 | G79: =TRUNC(_xlfn.XLOOKUP(C79,CCD!B:B,CCD!O:O,_xlfn.XLOOKUP(C79,'COMP-SEINFRA'!A:A,'COMP-SEINFRA'!G:G,_xlfn.XLOOKUP(C79,'CP-CODEVASF'!A:A,'CP-CODEVASF'!D:D))),2) -> 11.23 | H79: 14.14 | I79: =TRUNC('ORC1'!I79*('ORC10'!F79/'ORC1'!F79),2) -> 29934.3
A80: 8.10 | B80: SINAPI | C80: 91841 | D80: =_xlfn.XLOOKUP(C80,CCD!B:B,CCD!C:C,_xlfn.XLOOKUP(C80,'COMP-SEINFRA'!A:A,'COMP-SEINFRA'!C:C,_xlfn.XLOOKUP(C80,'CP-CODEVASF'!A:A,'CP-CODEVASF'!B:B))) -> ELETRODUTO FLEXÍVEL LISO, PEAD, DN 40 MM (1 1/4"), PARA CIRCUITOS TERMINAIS, INSTALADO EM FORRO - FORNECIMENTO E INSTALAÇÃO. AF_03/2023 | E80: =_xlfn.XLOOKUP(C80,CCD!B:B,CCD!D:D,_xlfn.XLOOKUP(C80,'COMP-SEINFRA'!A:A,'COMP-SEINFRA'!D:D,_xlfn.XLOOKUP(C80,'CP-CODEVASF'!A:A,'CP-CODEVASF'!C:C))) -> M | F80: ='ORC1'!F80*10 -> 273 | G80: =TRUNC(_xlfn.XLOOKUP(C80,CCD!B:B,CCD!O:O,_xlfn.XLOOKUP(C80,'COMP-SEINFRA'!A:A,'COMP-SEINFRA'!G:G,_xlfn.XLOOKUP(C80,'CP-CODEVASF'!A:A,'CP-CODEVASF'!D:D))),2) -> 23.15 | H80: 29.15 | I80: =TRUNC('ORC1'!I80*('ORC10'!F80/'ORC1'!F80),2) -> 7957.9
A81: 8.11 | B81: SINAPI | C81: 97881 | D81: =_xlfn.XLOOKUP(C81,CCD!B:B,CCD!C:C,_xlfn.XLOOKUP(C81,'COMP-SEINFRA'!A:A,'COMP-SEINFRA'!C:C,_xlfn.XLOOKUP(C81,'CP-CODEVASF'!A:A,'CP-CODEVASF'!B:B))) -> CAIXA ENTERRADA ELÉTRICA RETANGULAR, EM CONCRETO PRÉ-MOLDADO, FUNDO COM BRITA, DIMENSÕES INTERNAS: 0,3X0,3X0,3 M. AF_12/2020 | E81: =_xlfn.XLOOKUP(C81,CCD!B:B,CCD!D:D,_xlfn.XLOOKUP(C81,'COMP-SEINFRA'!A:A,'COMP-SEINFRA'!D:D,_xlfn.XLOOKUP(C81,'CP-CODEVASF'!A:A,'CP-CODEVASF'!C:C))) -> UN | F81: ='ORC1'!F81*10 -> 40 | G81: =TRUNC(_xlfn.XLOOKUP(C81,CCD!B:B,CCD!O:O,_xlfn.XLOOKUP(C81,'COMP-SEINFRA'!A:A,'COMP-SEINFRA'!G:G,_xlfn.XLOOKUP(C81,'CP-CODEVASF'!A:A,'CP-CODEVASF'!D:D))),2) -> 164.89 | H81: 207.62 | I81: =TRUNC('ORC1'!I81*('ORC10'!F81/'ORC1'!F81),2) -> 8304.8
A82: 8.12 | B82: SEINFRA | C82: C1160 | D82: =_xlfn.XLOOKUP(C82,CCD!B:B,CCD!C:C,_xlfn.XLOOKUP(C82,'COMP-SEINFRA'!A:A,'COMP-SEINFRA'!C:C,_xlfn.XLOOKUP(C82,'CP-CODEVASF'!A:A,'CP-CODEVASF'!B:B))) -> DUTO PERFURADO - ELETROCALHA DE CHAPA DE AÇO (50X100)mm | E82: =_xlfn.XLOOKUP(C82,CCD!B:B,CCD!D:D,_xlfn.XLOOKUP(C82,'COMP-SEINFRA'!A:A,'COMP-SEINFRA'!D:D,_xlfn.XLOOKUP(C82,'CP-CODEVASF'!A:A,'CP-CODEVASF'!C:C))) -> M | F82: ='ORC1'!F82*10 -> 226.3 | G82: =TRUNC(_xlfn.XLOOKUP(C82,CCD!B:B,CCD!O:O,_xlfn.XLOOKUP(C82,'COMP-SEINFRA'!A:A,'COMP-SEINFRA'!G:G,_xlfn.XLOOKUP(C82,'CP-CODEVASF'!A:A,'CP-CODEVASF'!D:D))),2) -> 81.17 | H82: 102.2 | I82: =TRUNC('ORC1'!I82*('ORC10'!F82/'ORC1'!F82),2) -> 23127.8
A83: 8.13 | B83: SINAPI | C83: 96563 | D83: =_xlfn.XLOOKUP(C83,CCD!B:B,CCD!C:C,_xlfn.XLOOKUP(C83,'COMP-SEINFRA'!A:A,'COMP-SEINFRA'!C:C,_xlfn.XLOOKUP(C83,'CP-CODEVASF'!A:A,'CP-CODEVASF'!B:B))) -> SUPORTE PARA ELETROCALHA LISA OU PERFURADA EM AÇO GALVANIZADO, LARGURA 800 MM, EM PERFILADO COM COMPRIMENTO DE 85 CM FIXADO EM LAJE, POR METRO DE ELETROCALHA FIXADA. AF_09/2023 | E83: =_xlfn.XLOOKUP(C83,CCD!B:B,CCD!D:D,_xlfn.XLOOKUP(C83,'COMP-SEINFRA'!A:A,'COMP-SEINFRA'!D:D,_xlfn.XLOOKUP(C83,'CP-CODEVASF'!A:A,'CP-CODEVASF'!C:C))) -> M | F83: ='ORC1'!F83*10 -> 160 | G83: =TRUNC(_xlfn.XLOOKUP(C83,CCD!B:B,CCD!O:O,_xlfn.XLOOKUP(C83,'COMP-SEINFRA'!A:A,'COMP-SEINFRA'!G:G,_xlfn.XLOOKUP(C83,'CP-CODEVASF'!A:A,'CP-CODEVASF'!D:D))),2) -> 65.89 | H83: 82.96 | I83: =TRUNC('ORC1'!I83*('ORC10'!F83/'ORC1'!F83),2) -> 13273.6
A84: 8.14 | B84: SINAPI | C84: 91953 | D84: =_xlfn.XLOOKUP(C84,CCD!B:B,CCD!C:C,_xlfn.XLOOKUP(C84,'COMP-SEINFRA'!A:A,'COMP-SEINFRA'!C:C,_xlfn.XLOOKUP(C84,'CP-CODEVASF'!A:A,'CP-CODEVASF'!B:B))) -> INTERRUPTOR SIMPLES (1 MÓDULO), 10A/250V, INCLUINDO SUPORTE E PLACA - FORNECIMENTO E INSTALAÇÃO. AF_03/2023 | E84: =_xlfn.XLOOKUP(C84,CCD!B:B,CCD!D:D,_xlfn.XLOOKUP(C84,'COMP-SEINFRA'!A:A,'COMP-SEINFRA'!D:D,_xlfn.XLOOKUP(C84,'CP-CODEVASF'!A:A,'CP-CODEVASF'!C:C))) -> UN | F84: ='ORC1'!F84*10 -> 80 | G84: =TRUNC(_xlfn.XLOOKUP(C84,CCD!B:B,CCD!O:O,_xlfn.XLOOKUP(C84,'COMP-SEINFRA'!A:A,'COMP-SEINFRA'!G:G,_xlfn.XLOOKUP(C84,'CP-CODEVASF'!A:A,'CP-CODEVASF'!D:D))),2) -> 29.74 | H84: 37.44 | I84: =TRUNC('ORC1'!I84*('ORC10'!F84/'ORC1'!F84),2) -> 2995.2
A85: 8.15 | B85: SINAPI | C85: 91959 | D85: =_xlfn.XLOOKUP(C85,CCD!B:B,CCD!C:C,_xlfn.XLOOKUP(C85,'COMP-SEINFRA'!A:A,'COMP-SEINFRA'!C:C,_xlfn.XLOOKUP(C85,'CP-CODEVASF'!A:A,'CP-CODEVASF'!B:B))) -> INTERRUPTOR SIMPLES (2 MÓDULOS), 10A/250V, INCLUINDO SUPORTE E PLACA - FORNECIMENTO E INSTALAÇÃO. AF_03/2023 | E85: =_xlfn.XLOOKUP(C85,CCD!B:B,CCD!D:D,_xlfn.XLOOKUP(C85,'COMP-SEINFRA'!A:A,'COMP-SEINFRA'!D:D,_xlfn.XLOOKUP(C85,'CP-CODEVASF'!A:A,'CP-CODEVASF'!C:C))) -> UN | F85: ='ORC1'!F85*10 -> 10 | G85: =TRUNC(_xlfn.XLOOKUP(C85,CCD!B:B,CCD!O:O,_xlfn.XLOOKUP(C85,'COMP-SEINFRA'!A:A,'COMP-SEINFRA'!G:G,_xlfn.XLOOKUP(C85,'CP-CODEVASF'!A:A,'CP-CODEVASF'!D:D))),2) -> 45.29 | H85: 57.02 | I85: =TRUNC('ORC1'!I85*('ORC10'!F85/'ORC1'!F85),2) -> 570.2
A86: 8.16 | B86: SINAPI | C86: 91996 | D86: =_xlfn.XLOOKUP(C86,CCD!B:B,CCD!C:C,_xlfn.XLOOKUP(C86,'COMP-SEINFRA'!A:A,'COMP-SEINFRA'!C:C,_xlfn.XLOOKUP(C86,'CP-CODEVASF'!A:A,'CP-CODEVASF'!B:B))) -> TOMADA MÉDIA DE EMBUTIR (1 MÓDULO), 2P+T 10 A, INCLUINDO SUPORTE E PLACA - FORNECIMENTO E INSTALAÇÃO. AF_03/2023 | E86: =_xlfn.XLOOKUP(C86,CCD!B:B,CCD!D:D,_xlfn.XLOOKUP(C86,'COMP-SEINFRA'!A:A,'COMP-SEINFRA'!D:D,_xlfn.XLOOKUP(C86,'CP-CODEVASF'!A:A,'CP-CODEVASF'!C:C))) -> UN | F86: ='ORC1'!F86*10 -> 100 | G86: =TRUNC(_xlfn.XLOOKUP(C86,CCD!B:B,CCD!O:O,_xlfn.XLOOKUP(C86,'COMP-SEINFRA'!A:A,'COMP-SEINFRA'!G:G,_xlfn.XLOOKUP(C86,'CP-CODEVASF'!A:A,'CP-CODEVASF'!D:D))),2) -> 35.08 | H86: 44.17 | I86: =TRUNC('ORC1'!I86*('ORC10'!F86/'ORC1'!F86),2) -> 4417
A87: 8.17 | B87: SINAPI | C87: 93653 | D87: =_xlfn.XLOOKUP(C87,CCD!B:B,CCD!C:C,_xlfn.XLOOKUP(C87,'COMP-SEINFRA'!A:A,'COMP-SEINFRA'!C:C,_xlfn.XLOOKUP(C87,'CP-CODEVASF'!A:A,'CP-CODEVASF'!B:B))) -> DISJUNTOR MONOPOLAR TIPO DIN, CORRENTE NOMINAL DE 10A - FORNECIMENTO E INSTALAÇÃO. AF_07/2025 | E87: =_xlfn.XLOOKUP(C87,CCD!B:B,CCD!D:D,_xlfn.XLOOKUP(C87,'COMP-SEINFRA'!A:A,'COMP-SEINFRA'!D:D,_xlfn.XLOOKUP(C87,'CP-CODEVASF'!A:A,'CP-CODEVASF'!C:C))) -> UN | F87: ='ORC1'!F87*10 -> 170 | G87: =TRUNC(_xlfn.XLOOKUP(C87,CCD!B:B,CCD!O:O,_xlfn.XLOOKUP(C87,'COMP-SEINFRA'!A:A,'COMP-SEINFRA'!G:G,_xlfn.XLOOKUP(C87,'CP-CODEVASF'!A:A,'CP-CODEVASF'!D:D))),2) -> 11.94 | H87: 15.03 | I87: =TRUNC('ORC1'!I87*('ORC10'!F87/'ORC1'!F87),2) -> 2555.1
A88: 8.18 | B88: SINAPI | C88: 93654 | D88: =_xlfn.XLOOKUP(C88,CCD!B:B,CCD!C:C,_xlfn.XLOOKUP(C88,'COMP-SEINFRA'!A:A,'COMP-SEINFRA'!C:C,_xlfn.XLOOKUP(C88,'CP-CODEVASF'!A:A,'CP-CODEVASF'!B:B))) -> DISJUNTOR MONOPOLAR TIPO DIN, CORRENTE NOMINAL DE 16A - FORNECIMENTO E INSTALAÇÃO. AF_07/2025 | E88: =_xlfn.XLOOKUP(C88,CCD!B:B,CCD!D:D,_xlfn.XLOOKUP(C88,'COMP-SEINFRA'!A:A,'COMP-SEINFRA'!D:D,_xlfn.XLOOKUP(C88,'CP-CODEVASF'!A:A,'CP-CODEVASF'!C:C))) -> UN | F88: ='ORC1'!F88*10 -> 60 | G88: =TRUNC(_xlfn.XLOOKUP(C88,CCD!B:B,CCD!O:O,_xlfn.XLOOKUP(C88,'COMP-SEINFRA'!A:A,'COMP-SEINFRA'!G:G,_xlfn.XLOOKUP(C88,'CP-CODEVASF'!A:A,'CP-CODEVASF'!D:D))),2) -> 11.94 | H88: 15.03 | I88: =TRUNC('ORC1'!I88*('ORC10'!F88/'ORC1'!F88),2) -> 901.8
A89: 8.19 | B89: SINAPI | C89: 93667 | D89: =_xlfn.XLOOKUP(C89,CCD!B:B,CCD!C:C,_xlfn.XLOOKUP(C89,'COMP-SEINFRA'!A:A,'COMP-SEINFRA'!C:C,_xlfn.XLOOKUP(C89,'CP-CODEVASF'!A:A,'CP-CODEVASF'!B:B))) -> DISJUNTOR TRIPOLAR TIPO DIN, CORRENTE NOMINAL DE 10A - FORNECIMENTO E INSTALAÇÃO. AF_07/2025 | E89: =_xlfn.XLOOKUP(C89,CCD!B:B,CCD!D:D,_xlfn.XLOOKUP(C89,'COMP-SEINFRA'!A:A,'COMP-SEINFRA'!D:D,_xlfn.XLOOKUP(C89,'CP-CODEVASF'!A:A,'CP-CODEVASF'!C:C))) -> UN | F89: ='ORC1'!F89*10 -> 10 | G89: =TRUNC(_xlfn.XLOOKUP(C89,CCD!B:B,CCD!O:O,_xlfn.XLOOKUP(C89,'COMP-SEINFRA'!A:A,'COMP-SEINFRA'!G:G,_xlfn.XLOOKUP(C89,'CP-CODEVASF'!A:A,'CP-CODEVASF'!D:D))),2) -> 72.34 | H89: 91.09 | I89: =TRUNC('ORC1'!I89*('ORC10'!F89/'ORC1'!F89),2) -> 910.9
A90: 8.20 | B90: CODEVASF | C90: ='CP-CODEVASF'!A24 -> COMP-24 | D90: =_xlfn.XLOOKUP(C90,CCD!B:B,CCD!C:C,_xlfn.XLOOKUP(C90,'COMP-SEINFRA'!A:A,'COMP-SEINFRA'!C:C,_xlfn.XLOOKUP(C90,'CP-CODEVASF'!A:A,'CP-CODEVASF'!B:B))) -> DISJUNTOR TRIPOLAR TIPO DIN, CORRENTE NOMINAL DE 63A - FORNECIMENTO E INSTALAÇÃO | E90: =_xlfn.XLOOKUP(C90,CCD!B:B,CCD!D:D,_xlfn.XLOOKUP(C90,'COMP-SEINFRA'!A:A,'COMP-SEINFRA'!D:D,_xlfn.XLOOKUP(C90,'CP-CODEVASF'!A:A,'CP-CODEVASF'!C:C))) -> UN | F90: ='ORC1'!F90*10 -> 10 | G90: =TRUNC(_xlfn.XLOOKUP(C90,CCD!B:B,CCD!O:O,_xlfn.XLOOKUP(C90,'COMP-SEINFRA'!A:A,'COMP-SEINFRA'!G:G,_xlfn.XLOOKUP(C90,'CP-CODEVASF'!A:A,'CP-CODEVASF'!D:D))),2) -> 106.36 | H90: 133.92 | I90: =TRUNC('ORC1'!I90*('ORC10'!F90/'ORC1'!F90),2) -> 1339.2
A91: 8.21 | B91: CODEVASF | C91: ='CP-CODEVASF'!A31 -> COMP-30 | D91: =_xlfn.XLOOKUP(C91,CCD!B:B,CCD!C:C,_xlfn.XLOOKUP(C91,'COMP-SEINFRA'!A:A,'COMP-SEINFRA'!C:C,_xlfn.XLOOKUP(C91,'CP-CODEVASF'!A:A,'CP-CODEVASF'!B:B))) -> DISPOSITIVO DR BIPOLAR DE 25 A/30 MA - FORNECIMENTO E INSTALAÇÃO | E91: =_xlfn.XLOOKUP(C91,CCD!B:B,CCD!D:D,_xlfn.XLOOKUP(C91,'COMP-SEINFRA'!A:A,'COMP-SEINFRA'!D:D,_xlfn.XLOOKUP(C91,'CP-CODEVASF'!A:A,'CP-CODEVASF'!C:C))) -> UN | F91: ='ORC1'!F91*10 -> 20 | G91: =TRUNC(_xlfn.XLOOKUP(C91,CCD!B:B,CCD!O:O,_xlfn.XLOOKUP(C91,'COMP-SEINFRA'!A:A,'COMP-SEINFRA'!G:G,_xlfn.XLOOKUP(C91,'CP-CODEVASF'!A:A,'CP-CODEVASF'!D:D))),2) -> 178.14 | H91: 224.31 | I91: =TRUNC('ORC1'!I91*('ORC10'!F91/'ORC1'!F91),2) -> 4486.2
A92: 8.22 | B92: CODEVASF | C92: ='CP-CODEVASF'!A32 -> COMP-31 | D92: =_xlfn.XLOOKUP(C92,CCD!B:B,CCD!C:C,_xlfn.XLOOKUP(C92,'COMP-SEINFRA'!A:A,'COMP-SEINFRA'!C:C,_xlfn.XLOOKUP(C92,'CP-CODEVASF'!A:A,'CP-CODEVASF'!B:B))) -> DISPOSITIVO DPS CLASSE II, 1 POLO, 275 V, 20 KA - FORNECIMENTO E INSTALAÇÃO | E92: =_xlfn.XLOOKUP(C92,CCD!B:B,CCD!D:D,_xlfn.XLOOKUP(C92,'COMP-SEINFRA'!A:A,'COMP-SEINFRA'!D:D,_xlfn.XLOOKUP(C92,'CP-CODEVASF'!A:A,'CP-CODEVASF'!C:C))) -> UN | F92: ='ORC1'!F92*10 -> 80 | G92: =TRUNC(_xlfn.XLOOKUP(C92,CCD!B:B,CCD!O:O,_xlfn.XLOOKUP(C92,'COMP-SEINFRA'!A:A,'COMP-SEINFRA'!G:G,_xlfn.XLOOKUP(C92,'CP-CODEVASF'!A:A,'CP-CODEVASF'!D:D))),2) -> 105.54 | H92: 132.89 | I92: =TRUNC('ORC1'!I92*('ORC10'!F92/'ORC1'!F92),2) -> 10631.2
A93: 8.23 | B93: CODEVASF | C93: ='CP-CODEVASF'!A3 -> COMP-01 | D93: =_xlfn.XLOOKUP(C93,CCD!B:B,CCD!C:C,_xlfn.XLOOKUP(C93,'COMP-SEINFRA'!A:A,'COMP-SEINFRA'!C:C,_xlfn.XLOOKUP(C93,'CP-CODEVASF'!A:A,'CP-CODEVASF'!B:B))) -> LUMINÁRIA PRISMÁTICA PENDENTE, COM 1 LÂMPADA LED DE 20W | E93: =_xlfn.XLOOKUP(C93,CCD!B:B,CCD!D:D,_xlfn.XLOOKUP(C93,'COMP-SEINFRA'!A:A,'COMP-SEINFRA'!D:D,_xlfn.XLOOKUP(C93,'CP-CODEVASF'!A:A,'CP-CODEVASF'!C:C))) -> UN | F93: ='ORC1'!F93*10 -> 260 | G93: =TRUNC(_xlfn.XLOOKUP(C93,CCD!B:B,CCD!O:O,_xlfn.XLOOKUP(C93,'COMP-SEINFRA'!A:A,'COMP-SEINFRA'!G:G,_xlfn.XLOOKUP(C93,'CP-CODEVASF'!A:A,'CP-CODEVASF'!D:D))),2) -> 120.49 | H93: 151.72 | I93: =TRUNC('ORC1'!I93*('ORC10'!F93/'ORC1'!F93),2) -> 39447.2
A94: 8.24 | B94: SINAPI | C94: 97607 | D94: =_xlfn.XLOOKUP(C94,CCD!B:B,CCD!C:C,_xlfn.XLOOKUP(C94,'COMP-SEINFRA'!A:A,'COMP-SEINFRA'!C:C,_xlfn.XLOOKUP(C94,'CP-CODEVASF'!A:A,'CP-CODEVASF'!B:B))) -> LUMINÁRIA ARANDELA TIPO TARTARUGA, DE SOBREPOR, COM 1 LÂMPADA LED DE 6 W, SEM REATOR - FORNECIMENTO E INSTALAÇÃO. AF_09/2024 | E94: =_xlfn.XLOOKUP(C94,CCD!B:B,CCD!D:D,_xlfn.XLOOKUP(C94,'COMP-SEINFRA'!A:A,'COMP-SEINFRA'!D:D,_xlfn.XLOOKUP(C94,'CP-CODEVASF'!A:A,'CP-CODEVASF'!C:C))) -> UN | F94: ='ORC1'!F94*10 -> 60 | G94: =TRUNC(_xlfn.XLOOKUP(C94,CCD!B:B,CCD!O:O,_xlfn.XLOOKUP(C94,'COMP-SEINFRA'!A:A,'COMP-SEINFRA'!G:G,_xlfn.XLOOKUP(C94,'CP-CODEVASF'!A:A,'CP-CODEVASF'!D:D))),2) -> 105.36 | H94: 132.66 | I94: =TRUNC('ORC1'!I94*('ORC10'!F94/'ORC1'!F94),2) -> 7959.6
A95: 8.25 | B95: SINAPI | C95: 95801 | D95: =_xlfn.XLOOKUP(C95,CCD!B:B,CCD!C:C,_xlfn.XLOOKUP(C95,'COMP-SEINFRA'!A:A,'COMP-SEINFRA'!C:C,_xlfn.XLOOKUP(C95,'CP-CODEVASF'!A:A,'CP-CODEVASF'!B:B))) -> CONDULETE DE ALUMÍNIO, TIPO X, PARA ELETRODUTO DE AÇO GALVANIZADO DN 20 MM (3/4''), APARENTE - FORNECIMENTO E INSTALAÇÃO. AF_10/2022 | E95: =_xlfn.XLOOKUP(C95,CCD!B:B,CCD!D:D,_xlfn.XLOOKUP(C95,'COMP-SEINFRA'!A:A,'COMP-SEINFRA'!D:D,_xlfn.XLOOKUP(C95,'CP-CODEVASF'!A:A,'CP-CODEVASF'!C:C))) -> UN | F95: ='ORC1'!F95*10 -> 200 | G95: =TRUNC(_xlfn.XLOOKUP(C95,CCD!B:B,CCD!O:O,_xlfn.XLOOKUP(C95,'COMP-SEINFRA'!A:A,'COMP-SEINFRA'!G:G,_xlfn.XLOOKUP(C95,'CP-CODEVASF'!A:A,'CP-CODEVASF'!D:D))),2) -> 41.5 | H95: 52.25 | I95: =TRUNC('ORC1'!I95*('ORC10'!F95/'ORC1'!F95),2) -> 10450
A96: 8.26 | B96: SINAPI | C96: 95802 | D96: =_xlfn.XLOOKUP(C96,CCD!B:B,CCD!C:C,_xlfn.XLOOKUP(C96,'COMP-SEINFRA'!A:A,'COMP-SEINFRA'!C:C,_xlfn.XLOOKUP(C96,'CP-CODEVASF'!A:A,'CP-CODEVASF'!B:B))) -> CONDULETE DE ALUMÍNIO, TIPO X, PARA ELETRODUTO DE AÇO GALVANIZADO DN 25 MM (1''), APARENTE - FORNECIMENTO E INSTALAÇÃO. AF_10/2022 | E96: =_xlfn.XLOOKUP(C96,CCD!B:B,CCD!D:D,_xlfn.XLOOKUP(C96,'COMP-SEINFRA'!A:A,'COMP-SEINFRA'!D:D,_xlfn.XLOOKUP(C96,'CP-CODEVASF'!A:A,'CP-CODEVASF'!C:C))) -> UN | F96: ='ORC1'!F96*10 -> 80 | G96: =TRUNC(_xlfn.XLOOKUP(C96,CCD!B:B,CCD!O:O,_xlfn.XLOOKUP(C96,'COMP-SEINFRA'!A:A,'COMP-SEINFRA'!G:G,_xlfn.XLOOKUP(C96,'CP-CODEVASF'!A:A,'CP-CODEVASF'!D:D))),2) -> 51.36 | H96: 64.67 | I96: =TRUNC('ORC1'!I96*('ORC10'!F96/'ORC1'!F96),2) -> 5173.6
A97: 9 | D97: INSTALAÇÕES SANITÁRIAS | I97: =TRUNC(SUM(I98:I114),2) -> 160853.9
A98: 9.1 | B98: SINAPI | C98: 89711 | D98: =_xlfn.XLOOKUP(C98,CCD!B:B,CCD!C:C,_xlfn.XLOOKUP(C98,'COMP-SEINFRA'!A:A,'COMP-SEINFRA'!C:C,_xlfn.XLOOKUP(C98,'CP-CODEVASF'!A:A,'CP-CODEVASF'!B:B))) -> TUBO PVC, SERIE NORMAL, ESGOTO PREDIAL, DN 40 MM, FORNECIDO E INSTALADO EM RAMAL DE DESCARGA OU RAMAL DE ESGOTO SANITÁRIO. AF_08/2022 | E98: =_xlfn.XLOOKUP(C98,CCD!B:B,CCD!D:D,_xlfn.XLOOKUP(C98,'COMP-SEINFRA'!A:A,'COMP-SEINFRA'!D:D,_xlfn.XLOOKUP(C98,'CP-CODEVASF'!A:A,'CP-CODEVASF'!C:C))) -> M | F98: ='ORC1'!F98*10 -> 102.2 | G98: =TRUNC(_xlfn.XLOOKUP(C98,CCD!B:B,CCD!O:O,_xlfn.XLOOKUP(C98,'COMP-SEINFRA'!A:A,'COMP-SEINFRA'!G:G,_xlfn.XLOOKUP(C98,'CP-CODEVASF'!A:A,'CP-CODEVASF'!D:D))),2) -> 21.55 | H98: =TRUNC(G98*(1+$E$14),2) -> 27.13 | I98: =TRUNC('ORC1'!I98*('ORC10'!F98/'ORC1'!F98),2) -> 2772.6
A99: 9.2 | B99: SINAPI | C99: 89712 | D99: =_xlfn.XLOOKUP(C99,CCD!B:B,CCD!C:C,_xlfn.XLOOKUP(C99,'COMP-SEINFRA'!A:A,'COMP-SEINFRA'!C:C,_xlfn.XLOOKUP(C99,'CP-CODEVASF'!A:A,'CP-CODEVASF'!B:B))) -> TUBO PVC, SERIE NORMAL, ESGOTO PREDIAL, DN 50 MM, FORNECIDO E INSTALADO EM RAMAL DE DESCARGA OU RAMAL DE ESGOTO SANITÁRIO. AF_08/2022 | E99: =_xlfn.XLOOKUP(C99,CCD!B:B,CCD!D:D,_xlfn.XLOOKUP(C99,'COMP-SEINFRA'!A:A,'COMP-SEINFRA'!D:D,_xlfn.XLOOKUP(C99,'CP-CODEVASF'!A:A,'CP-CODEVASF'!C:C))) -> M | F99: ='ORC1'!F99*10 -> 261.2 | G99: =TRUNC(_xlfn.XLOOKUP(C99,CCD!B:B,CCD!O:O,_xlfn.XLOOKUP(C99,'COMP-SEINFRA'!A:A,'COMP-SEINFRA'!G:G,_xlfn.XLOOKUP(C99,'CP-CODEVASF'!A:A,'CP-CODEVASF'!D:D))),2) -> 27.3 | H99: 34.37 | I99: =TRUNC('ORC1'!I99*('ORC10'!F99/'ORC1'!F99),2) -> 8977.4
A100: 9.3 | B100: SINAPI | C100: 89713 | D100: =_xlfn.XLOOKUP(C100,CCD!B:B,CCD!C:C,_xlfn.XLOOKUP(C100,'COMP-SEINFRA'!A:A,'COMP-SEINFRA'!C:C,_xlfn.XLOOKUP(C100,'CP-CODEVASF'!A:A,'CP-CODEVASF'!B:B))) -> TUBO PVC, SERIE NORMAL, ESGOTO PREDIAL, DN 75 MM, FORNECIDO E INSTALADO EM RAMAL DE DESCARGA OU RAMAL DE ESGOTO SANITÁRIO. AF_08/2022 | E100: =_xlfn.XLOOKUP(C100,CCD!B:B,CCD!D:D,_xlfn.XLOOKUP(C100,'COMP-SEINFRA'!A:A,'COMP-SEINFRA'!D:D,_xlfn.XLOOKUP(C100,'CP-CODEVASF'!A:A,'CP-CODEVASF'!C:C))) -> M | F100: ='ORC1'!F100*10 -> 35.7 | G100: =TRUNC(_xlfn.XLOOKUP(C100,CCD!B:B,CCD!O:O,_xlfn.XLOOKUP(C100,'COMP-SEINFRA'!A:A,'COMP-SEINFRA'!G:G,_xlfn.XLOOKUP(C100,'CP-CODEVASF'!A:A,'CP-CODEVASF'!D:D))),2) -> 34.03 | H100: 42.85 | I100: =TRUNC('ORC1'!I100*('ORC10'!F100/'ORC1'!F100),2) -> 1529.7
A101: 9.4 | B101: SINAPI | C101: 89714 | D101: =_xlfn.XLOOKUP(C101,CCD!B:B,CCD!C:C,_xlfn.XLOOKUP(C101,'COMP-SEINFRA'!A:A,'COMP-SEINFRA'!C:C,_xlfn.XLOOKUP(C101,'CP-CODEVASF'!A:A,'CP-CODEVASF'!B:B))) -> TUBO PVC, SERIE NORMAL, ESGOTO PREDIAL, DN 100 MM, FORNECIDO E INSTALADO EM RAMAL DE DESCARGA OU RAMAL DE ESGOTO SANITÁRIO. AF_08/2022 | E101: =_xlfn.XLOOKUP(C101,CCD!B:B,CCD!D:D,_xlfn.XLOOKUP(C101,'COMP-SEINFRA'!A:A,'COMP-SEINFRA'!D:D,_xlfn.XLOOKUP(C101,'CP-CODEVASF'!A:A,'CP-CODEVASF'!C:C))) -> M | F101: ='ORC1'!F101*10 -> 394.3 | G101: =TRUNC(_xlfn.XLOOKUP(C101,CCD!B:B,CCD!O:O,_xlfn.XLOOKUP(C101,'COMP-SEINFRA'!A:A,'COMP-SEINFRA'!G:G,_xlfn.XLOOKUP(C101,'CP-CODEVASF'!A:A,'CP-CODEVASF'!D:D))),2) -> 38.04 | H101: 47.89 | I101: =TRUNC('ORC1'!I101*('ORC10'!F101/'ORC1'!F101),2) -> 18883
A102: 9.5 | B102: SINAPI | C102: 97902 | D102: =_xlfn.XLOOKUP(C102,CCD!B:B,CCD!C:C,_xlfn.XLOOKUP(C102,'COMP-SEINFRA'!A:A,'COMP-SEINFRA'!C:C,_xlfn.XLOOKUP(C102,'CP-CODEVASF'!A:A,'CP-CODEVASF'!B:B))) -> CAIXA ENTERRADA HIDRÁULICA RETANGULAR EM ALVENARIA COM TIJOLOS CERÂMICOS MACIÇOS, DIMENSÕES INTERNAS: 0,6X0,6X0,6 M PARA REDE DE ESGOTO. AF_12/2020 | E102: =_xlfn.XLOOKUP(C102,CCD!B:B,CCD!D:D,_xlfn.XLOOKUP(C102,'COMP-SEINFRA'!A:A,'COMP-SEINFRA'!D:D,_xlfn.XLOOKUP(C102,'CP-CODEVASF'!A:A,'CP-CODEVASF'!C:C))) -> UN | F102: ='ORC1'!F102*10 -> 60 | G102: =TRUNC(_xlfn.XLOOKUP(C102,CCD!B:B,CCD!O:O,_xlfn.XLOOKUP(C102,'COMP-SEINFRA'!A:A,'COMP-SEINFRA'!G:G,_xlfn.XLOOKUP(C102,'CP-CODEVASF'!A:A,'CP-CODEVASF'!D:D))),2) -> 566.42 | H102: 713.23 | I102: =TRUNC('ORC1'!I102*('ORC10'!F102/'ORC1'!F102),2) -> 42793.8
A103: 9.6 | B103: SINAPI | C103: 89495 | D103: =_xlfn.XLOOKUP(C103,CCD!B:B,CCD!C:C,_xlfn.XLOOKUP(C103,'COMP-SEINFRA'!A:A,'COMP-SEINFRA'!C:C,_xlfn.XLOOKUP(C103,'CP-CODEVASF'!A:A,'CP-CODEVASF'!B:B))) -> RALO SIFONADO, PVC, DN 100 X 40 MM, JUNTA SOLDÁVEL, FORNECIDO E INSTALADO EM RAMAIS DE ENCAMINHAMENTO DE ÁGUA PLUVIAL. AF_06/2022 | E103: =_xlfn.XLOOKUP(C103,CCD!B:B,CCD!D:D,_xlfn.XLOOKUP(C103,'COMP-SEINFRA'!A:A,'COMP-SEINFRA'!D:D,_xlfn.XLOOKUP(C103,'CP-CODEVASF'!A:A,'CP-CODEVASF'!C:C))) -> UN | F103: ='ORC1'!F103*10 -> 60 | G103: =TRUNC(_xlfn.XLOOKUP(C103,CCD!B:B,CCD!O:O,_xlfn.XLOOKUP(C103,'COMP-SEINFRA'!A:A,'COMP-SEINFRA'!G:G,_xlfn.XLOOKUP(C103,'CP-CODEVASF'!A:A,'CP-CODEVASF'!D:D))),2) -> 21.3 | H103: 26.82 | I103: =TRUNC('ORC1'!I103*('ORC10'!F103/'ORC1'!F103),2) -> 1609.2
A104: 9.7 | B104: SINAPI | C104: 89707 | D104: =_xlfn.XLOOKUP(C104,CCD!B:B,CCD!C:C,_xlfn.XLOOKUP(C104,'COMP-SEINFRA'!A:A,'COMP-SEINFRA'!C:C,_xlfn.XLOOKUP(C104,'CP-CODEVASF'!A:A,'CP-CODEVASF'!B:B))) -> CAIXA SIFONADA, PVC, DN 100 X 100 X 50 MM, JUNTA ELÁSTICA, FORNECIDA E INSTALADA EM RAMAL DE DESCARGA OU EM RAMAL DE ESGOTO SANITÁRIO. AF_08/2022 | E104: =_xlfn.XLOOKUP(C104,CCD!B:B,CCD!D:D,_xlfn.XLOOKUP(C104,'COMP-SEINFRA'!A:A,'COMP-SEINFRA'!D:D,_xlfn.XLOOKUP(C104,'CP-CODEVASF'!A:A,'CP-CODEVASF'!C:C))) -> UN | F104: ='ORC1'!F104*10 -> 80 | G104: =TRUNC(_xlfn.XLOOKUP(C104,CCD!B:B,CCD!O:O,_xlfn.XLOOKUP(C104,'COMP-SEINFRA'!A:A,'COMP-SEINFRA'!G:G,_xlfn.XLOOKUP(C104,'CP-CODEVASF'!A:A,'CP-CODEVASF'!D:D))),2) -> 54.63 | H104: 68.79 | I104: =TRUNC('ORC1'!I104*('ORC10'!F104/'ORC1'!F104),2) -> 5503.2
A105: 9.8 | B105: SINAPI | C105: 86883 | D105: =_xlfn.XLOOKUP(C105,CCD!B:B,CCD!C:C,_xlfn.XLOOKUP(C105,'COMP-SEINFRA'!A:A,'COMP-SEINFRA'!C:C,_xlfn.XLOOKUP(C105,'CP-CODEVASF'!A:A,'CP-CODEVASF'!B:B))) -> SIFÃO DO TIPO FLEXÍVEL EM PVC 1 X 1.1/2 - FORNECIMENTO E INSTALAÇÃO. AF_01/2020 | E105: =_xlfn.XLOOKUP(C105,CCD!B:B,CCD!D:D,_xlfn.XLOOKUP(C105,'COMP-SEINFRA'!A:A,'COMP-SEINFRA'!D:D,_xlfn.XLOOKUP(C105,'CP-CODEVASF'!A:A,'CP-CODEVASF'!C:C))) -> UN | F105: ='ORC1'!F105*10 -> 80 | G105: =TRUNC(_xlfn.XLOOKUP(C105,CCD!B:B,CCD!O:O,_xlfn.XLOOKUP(C105,'COMP-SEINFRA'!A:A,'COMP-SEINFRA'!G:G,_xlfn.XLOOKUP(C105,'CP-CODEVASF'!A:A,'CP-CODEVASF'!D:D))),2) -> 11.82 | H105: 14.88 | I105: =TRUNC('ORC1'!I105*('ORC10'!F105/'ORC1'!F105),2) -> 1190.4
A106: 9.9 | B106: SINAPI | C106: 86877 | D106: =_xlfn.XLOOKUP(C106,CCD!B:B,CCD!C:C,_xlfn.XLOOKUP(C106,'COMP-SEINFRA'!A:A,'COMP-SEINFRA'!C:C,_xlfn.XLOOKUP(C106,'CP-CODEVASF'!A:A,'CP-CODEVASF'!B:B))) -> VÁLVULA EM METAL CROMADO 1.1/2" X 1.1/2" PARA TANQUE OU LAVATÓRIO, COM OU SEM LADRÃO - FORNECIMENTO E INSTALAÇÃO. AF_01/2020 | E106: =_xlfn.XLOOKUP(C106,CCD!B:B,CCD!D:D,_xlfn.XLOOKUP(C106,'COMP-SEINFRA'!A:A,'COMP-SEINFRA'!D:D,_xlfn.XLOOKUP(C106,'CP-CODEVASF'!A:A,'CP-CODEVASF'!C:C))) -> UN | F106: ='ORC1'!F106*10 -> 40 | G106: =TRUNC(_xlfn.XLOOKUP(C106,CCD!B:B,CCD!O:O,_xlfn.XLOOKUP(C106,'COMP-SEINFRA'!A:A,'COMP-SEINFRA'!G:G,_xlfn.XLOOKUP(C106,'CP-CODEVASF'!A:A,'CP-CODEVASF'!D:D))),2) -> 80.54 | H106: 101.41 | I106: =TRUNC('ORC1'!I106*('ORC10'!F106/'ORC1'!F106),2) -> 4056.4
A107: 9.10 | B107: SINAPI | C107: 86878 | D107: =_xlfn.XLOOKUP(C107,CCD!B:B,CCD!C:C,_xlfn.XLOOKUP(C107,'COMP-SEINFRA'!A:A,'COMP-SEINFRA'!C:C,_xlfn.XLOOKUP(C107,'CP-CODEVASF'!A:A,'CP-CODEVASF'!B:B))) -> VÁLVULA EM METAL CROMADO TIPO AMERICANA 3.1/2" X 1.1/2" PARA PIA - FORNECIMENTO E INSTALAÇÃO. AF_01/2020 | E107: =_xlfn.XLOOKUP(C107,CCD!B:B,CCD!D:D,_xlfn.XLOOKUP(C107,'COMP-SEINFRA'!A:A,'COMP-SEINFRA'!D:D,_xlfn.XLOOKUP(C107,'CP-CODEVASF'!A:A,'CP-CODEVASF'!C:C))) -> UN | F107: ='ORC1'!F107*10 -> 30 | G107: =TRUNC(_xlfn.XLOOKUP(C107,CCD!B:B,CCD!O:O,_xlfn.XLOOKUP(C107,'COMP-SEINFRA'!A:A,'COMP-SEINFRA'!G:G,_xlfn.XLOOKUP(C107,'CP-CODEVASF'!A:A,'CP-CODEVASF'!D:D))),2) -> 86.9 | H107: 109.42 | I107: =TRUNC('ORC1'!I107*('ORC10'!F107/'ORC1'!F107),2) -> 3282.6
A108: 9.11 | B108: SEINFRA | C108: C2832 | D108: =_xlfn.XLOOKUP(C108,CCD!B:B,CCD!C:C,_xlfn.XLOOKUP(C108,'COMP-SEINFRA'!A:A,'COMP-SEINFRA'!C:C,_xlfn.XLOOKUP(C108,'CP-CODEVASF'!A:A,'CP-CODEVASF'!B:B))) -> FOSSA SÉPTICA E SUMIDOURO EM ALVENARIA | E108: =_xlfn.XLOOKUP(C108,CCD!B:B,CCD!D:D,_xlfn.XLOOKUP(C108,'COMP-SEINFRA'!A:A,'COMP-SEINFRA'!D:D,_xlfn.XLOOKUP(C108,'CP-CODEVASF'!A:A,'CP-CODEVASF'!C:C))) -> UN | F108: ='ORC1'!F108*10 -> 10 | G108: =TRUNC(_xlfn.XLOOKUP(C108,CCD!B:B,CCD!O:O,_xlfn.XLOOKUP(C108,'COMP-SEINFRA'!A:A,'COMP-SEINFRA'!G:G,_xlfn.XLOOKUP(C108,'CP-CODEVASF'!A:A,'CP-CODEVASF'!D:D))),2) -> 4989.48 | H108: 6282.75 | I108: =TRUNC('ORC1'!I108*('ORC10'!F108/'ORC1'!F108),2) -> 62827.5
A109: 9.12 | B109: SINAPI | C109: 89728 | D109: =_xlfn.XLOOKUP(C109,CCD!B:B,CCD!C:C,_xlfn.XLOOKUP(C109,'COMP-SEINFRA'!A:A,'COMP-SEINFRA'!C:C,_xlfn.XLOOKUP(C109,'CP-CODEVASF'!A:A,'CP-CODEVASF'!B:B))) -> CURVA CURTA 90 GRAUS, PVC, SERIE NORMAL, ESGOTO PREDIAL, DN 40 MM, JUNTA SOLDÁVEL, FORNECIDO E INSTALADO EM RAMAL DE DESCARGA OU RAMAL DE ESGOTO SANITÁRIO. AF_08/2022 | E109: =_xlfn.XLOOKUP(C109,CCD!B:B,CCD!D:D,_xlfn.XLOOKUP(C109,'COMP-SEINFRA'!A:A,'COMP-SEINFRA'!D:D,_xlfn.XLOOKUP(C109,'CP-CODEVASF'!A:A,'CP-CODEVASF'!C:C))) -> UN | F109: ='ORC1'!F109*10 -> 120 | G109: =TRUNC(_xlfn.XLOOKUP(C109,CCD!B:B,CCD!O:O,_xlfn.XLOOKUP(C109,'COMP-SEINFRA'!A:A,'COMP-SEINFRA'!G:G,_xlfn.XLOOKUP(C109,'CP-CODEVASF'!A:A,'CP-CODEVASF'!D:D))),2) -> 13.14 | H109: 16.54 | I109: =TRUNC('ORC1'!I109*('ORC10'!F109/'ORC1'!F109),2) -> 1984.8
A110: 9.13 | B110: SINAPI | C110: 89731 | D110: =_xlfn.XLOOKUP(C110,CCD!B:B,CCD!C:C,_xlfn.XLOOKUP(C110,'COMP-SEINFRA'!A:A,'COMP-SEINFRA'!C:C,_xlfn.XLOOKUP(C110,'CP-CODEVASF'!A:A,'CP-CODEVASF'!B:B))) -> JOELHO 90 GRAUS, PVC, SERIE NORMAL, ESGOTO PREDIAL, DN 50 MM, JUNTA ELÁSTICA, FORNECIDO E INSTALADO EM RAMAL DE DESCARGA OU RAMAL DE ESGOTO SANITÁRIO. AF_08/2022 | E110: =_xlfn.XLOOKUP(C110,CCD!B:B,CCD!D:D,_xlfn.XLOOKUP(C110,'COMP-SEINFRA'!A:A,'COMP-SEINFRA'!D:D,_xlfn.XLOOKUP(C110,'CP-CODEVASF'!A:A,'CP-CODEVASF'!C:C))) -> UN | F110: ='ORC1'!F110*10 -> 90 | G110: =TRUNC(_xlfn.XLOOKUP(C110,CCD!B:B,CCD!O:O,_xlfn.XLOOKUP(C110,'COMP-SEINFRA'!A:A,'COMP-SEINFRA'!G:G,_xlfn.XLOOKUP(C110,'CP-CODEVASF'!A:A,'CP-CODEVASF'!D:D))),2) -> 15.92 | H110: 20.04 | I110: =TRUNC('ORC1'!I110*('ORC10'!F110/'ORC1'!F110),2) -> 1803.6
A111: 9.14 | B111: SINAPI | C111: 89748 | D111: =_xlfn.XLOOKUP(C111,CCD!B:B,CCD!C:C,_xlfn.XLOOKUP(C111,'COMP-SEINFRA'!A:A,'COMP-SEINFRA'!C:C,_xlfn.XLOOKUP(C111,'CP-CODEVASF'!A:A,'CP-CODEVASF'!B:B))) -> CURVA CURTA 90 GRAUS, PVC, SERIE NORMAL, ESGOTO PREDIAL, DN 100 MM, JUNTA ELÁSTICA, FORNECIDO E INSTALADO EM RAMAL DE DESCARGA OU RAMAL DE ESGOTO SANITÁRIO. AF_08/2022 | E111: =_xlfn.XLOOKUP(C111,CCD!B:B,CCD!D:D,_xlfn.XLOOKUP(C111,'COMP-SEINFRA'!A:A,'COMP-SEINFRA'!D:D,_xlfn.XLOOKUP(C111,'CP-CODEVASF'!A:A,'CP-CODEVASF'!C:C))) -> UN | F111: ='ORC1'!F111*10 -> 20 | G111: =TRUNC(_xlfn.XLOOKUP(C111,CCD!B:B,CCD!O:O,_xlfn.XLOOKUP(C111,'COMP-SEINFRA'!A:A,'COMP-SEINFRA'!G:G,_xlfn.XLOOKUP(C111,'CP-CODEVASF'!A:A,'CP-CODEVASF'!D:D))),2) -> 44.32 | H111: 55.8 | I111: =TRUNC('ORC1'!I111*('ORC10'!F111/'ORC1'!F111),2) -> 1116
A112: 9.15 | B112: SINAPI | C112: 89827 | D112: =_xlfn.XLOOKUP(C112,CCD!B:B,CCD!C:C,_xlfn.XLOOKUP(C112,'COMP-SEINFRA'!A:A,'COMP-SEINFRA'!C:C,_xlfn.XLOOKUP(C112,'CP-CODEVASF'!A:A,'CP-CODEVASF'!B:B))) -> JUNÇÃO SIMPLES, PVC, SERIE NORMAL, ESGOTO PREDIAL, DN 50 X 50 MM, JUNTA ELÁSTICA, FORNECIDO E INSTALADO EM PRUMADA DE ESGOTO SANITÁRIO OU VENTILAÇÃO. AF_08/2022 | E112: =_xlfn.XLOOKUP(C112,CCD!B:B,CCD!D:D,_xlfn.XLOOKUP(C112,'COMP-SEINFRA'!A:A,'COMP-SEINFRA'!D:D,_xlfn.XLOOKUP(C112,'CP-CODEVASF'!A:A,'CP-CODEVASF'!C:C))) -> UN | F112: ='ORC1'!F112*10 -> 10 | G112: =TRUNC(_xlfn.XLOOKUP(C112,CCD!B:B,CCD!O:O,_xlfn.XLOOKUP(C112,'COMP-SEINFRA'!A:A,'COMP-SEINFRA'!G:G,_xlfn.XLOOKUP(C112,'CP-CODEVASF'!A:A,'CP-CODEVASF'!D:D))),2) -> 21.12 | H112: 26.59 | I112: =TRUNC('ORC1'!I112*('ORC10'!F112/'ORC1'!F112),2) -> 265.9
A113: 9.16 | B113: CODEVASF | C113: ='CP-CODEVASF'!A33 -> COMP-32 | D113: =_xlfn.XLOOKUP(C113,CCD!B:B,CCD!C:C,_xlfn.XLOOKUP(C113,'COMP-SEINFRA'!A:A,'COMP-SEINFRA'!C:C,_xlfn.XLOOKUP(C113,'CP-CODEVASF'!A:A,'CP-CODEVASF'!B:B))) -> JUNCAO SIMPLES DE REDUCAO, PVC, DN 100 X 50 MM, PARA ESGOTO PREDIAL - FORNECIMENTO E INSTALAÇÃO | E113: =_xlfn.XLOOKUP(C113,CCD!B:B,CCD!D:D,_xlfn.XLOOKUP(C113,'COMP-SEINFRA'!A:A,'COMP-SEINFRA'!D:D,_xlfn.XLOOKUP(C113,'CP-CODEVASF'!A:A,'CP-CODEVASF'!C:C))) -> UN | F113: ='ORC1'!F113*10 -> 20 | G113: =TRUNC(_xlfn.XLOOKUP(C113,CCD!B:B,CCD!O:O,_xlfn.XLOOKUP(C113,'COMP-SEINFRA'!A:A,'COMP-SEINFRA'!G:G,_xlfn.XLOOKUP(C113,'CP-CODEVASF'!A:A,'CP-CODEVASF'!D:D))),2) -> 46.7 | H113: 58.8 | I113: =TRUNC('ORC1'!I113*('ORC10'!F113/'ORC1'!F113),2) -> 1176
A114: 9.17 | B114: SINAPI | C114: 104344 | D114: =_xlfn.XLOOKUP(C114,CCD!B:B,CCD!C:C,_xlfn.XLOOKUP(C114,'COMP-SEINFRA'!A:A,'COMP-SEINFRA'!C:C,_xlfn.XLOOKUP(C114,'CP-CODEVASF'!A:A,'CP-CODEVASF'!B:B))) -> TE, PVC, SÉRIE NORMAL, ESGOTO PREDIAL, DN 100 X 50 MM, JUNTA ELÁSTICA, FORNECIDO E INSTALADO EM RAMAL DE DESCARGA OU RAMAL DE ESGOTO SANITÁRIO. AF_08/2022 | E114: =_xlfn.XLOOKUP(C114,CCD!B:B,CCD!D:D,_xlfn.XLOOKUP(C114,'COMP-SEINFRA'!A:A,'COMP-SEINFRA'!D:D,_xlfn.XLOOKUP(C114,'CP-CODEVASF'!A:A,'CP-CODEVASF'!C:C))) -> UN | F114: ='ORC1'!F114*10 -> 20 | G114: =TRUNC(_xlfn.XLOOKUP(C114,CCD!B:B,CCD!O:O,_xlfn.XLOOKUP(C114,'COMP-SEINFRA'!A:A,'COMP-SEINFRA'!G:G,_xlfn.XLOOKUP(C114,'CP-CODEVASF'!A:A,'CP-CODEVASF'!D:D))),2) -> 42.96 | H114: 54.09 | I114: =TRUNC('ORC1'!I114*('ORC10'!F114/'ORC1'!F114),2) -> 1081.8
A115: 10 | D115: INSTALAÇÕES HIDRÁULICAS | I115: =TRUNC(SUM(I116:I127),2) -> 424082.8
A116: 10.1 | B116: SINAPI | C116: 89357 | D116: =_xlfn.XLOOKUP(C116,CCD!B:B,CCD!C:C,_xlfn.XLOOKUP(C116,'COMP-SEINFRA'!A:A,'COMP-SEINFRA'!C:C,_xlfn.XLOOKUP(C116,'CP-CODEVASF'!A:A,'CP-CODEVASF'!B:B))) -> TUBO, PVC, SOLDÁVEL, DE 32MM, INSTALADO EM RAMAL OU SUB-RAMAL DE ÁGUA - FORNECIMENTO E INSTALAÇÃO. AF_06/2022 | E116: =_xlfn.XLOOKUP(C116,CCD!B:B,CCD!D:D,_xlfn.XLOOKUP(C116,'COMP-SEINFRA'!A:A,'COMP-SEINFRA'!D:D,_xlfn.XLOOKUP(C116,'CP-CODEVASF'!A:A,'CP-CODEVASF'!C:C))) -> M | F116: ='ORC1'!F116*10 -> 289.5 | G116: =TRUNC(_xlfn.XLOOKUP(C116,CCD!B:B,CCD!O:O,_xlfn.XLOOKUP(C116,'COMP-SEINFRA'!A:A,'COMP-SEINFRA'!G:G,_xlfn.XLOOKUP(C116,'CP-CODEVASF'!A:A,'CP-CODEVASF'!D:D))),2) -> 32.56 | H116: =TRUNC(G116*(1+$E$14),2) -> 40.99 | I116: =TRUNC('ORC1'!I116*('ORC10'!F116/'ORC1'!F116),2) -> 11866.6
A117: 10.2 | B117: SINAPI | C117: 89356 | D117: =_xlfn.XLOOKUP(C117,CCD!B:B,CCD!C:C,_xlfn.XLOOKUP(C117,'COMP-SEINFRA'!A:A,'COMP-SEINFRA'!C:C,_xlfn.XLOOKUP(C117,'CP-CODEVASF'!A:A,'CP-CODEVASF'!B:B))) -> TUBO, PVC, SOLDÁVEL, DE 25MM, INSTALADO EM RAMAL OU SUB-RAMAL DE ÁGUA - FORNECIMENTO E INSTALAÇÃO. AF_06/2022 | E117: =_xlfn.XLOOKUP(C117,CCD!B:B,CCD!D:D,_xlfn.XLOOKUP(C117,'COMP-SEINFRA'!A:A,'COMP-SEINFRA'!D:D,_xlfn.XLOOKUP(C117,'CP-CODEVASF'!A:A,'CP-CODEVASF'!C:C))) -> M | F117: ='ORC1'!F117*10 -> 284.2 | G117: =TRUNC(_xlfn.XLOOKUP(C117,CCD!B:B,CCD!O:O,_xlfn.XLOOKUP(C117,'COMP-SEINFRA'!A:A,'COMP-SEINFRA'!G:G,_xlfn.XLOOKUP(C117,'CP-CODEVASF'!A:A,'CP-CODEVASF'!D:D))),2) -> 23.64 | H117: 29.76 | I117: =TRUNC('ORC1'!I117*('ORC10'!F117/'ORC1'!F117),2) -> 8457.7
A118: 10.3 | B118: SINAPI | C118: 89449 | D118: =_xlfn.XLOOKUP(C118,CCD!B:B,CCD!C:C,_xlfn.XLOOKUP(C118,'COMP-SEINFRA'!A:A,'COMP-SEINFRA'!C:C,_xlfn.XLOOKUP(C118,'CP-CODEVASF'!A:A,'CP-CODEVASF'!B:B))) -> TUBO, PVC, SOLDÁVEL, DE 50MM, INSTALADO EM PRUMADA DE ÁGUA - FORNECIMENTO E INSTALAÇÃO. AF_06/2022 | E118: =_xlfn.XLOOKUP(C118,CCD!B:B,CCD!D:D,_xlfn.XLOOKUP(C118,'COMP-SEINFRA'!A:A,'COMP-SEINFRA'!D:D,_xlfn.XLOOKUP(C118,'CP-CODEVASF'!A:A,'CP-CODEVASF'!C:C))) -> M | F118: ='ORC1'!F118*10 -> 165.1 | G118: =TRUNC(_xlfn.XLOOKUP(C118,CCD!B:B,CCD!O:O,_xlfn.XLOOKUP(C118,'COMP-SEINFRA'!A:A,'COMP-SEINFRA'!G:G,_xlfn.XLOOKUP(C118,'CP-CODEVASF'!A:A,'CP-CODEVASF'!D:D))),2) -> 18.55 | H118: 23.35 | I118: =TRUNC('ORC1'!I118*('ORC10'!F118/'ORC1'!F118),2) -> 3855
A119: 10.4 | B119: SINAPI | C119: 94495 | D119: =_xlfn.XLOOKUP(C119,CCD!B:B,CCD!C:C,_xlfn.XLOOKUP(C119,'COMP-SEINFRA'!A:A,'COMP-SEINFRA'!C:C,_xlfn.XLOOKUP(C119,'CP-CODEVASF'!A:A,'CP-CODEVASF'!B:B))) -> REGISTRO DE GAVETA BRUTO, LATÃO, ROSCÁVEL, 1" - FORNECIMENTO E INSTALAÇÃO. AF_08/2021 | E119: =_xlfn.XLOOKUP(C119,CCD!B:B,CCD!D:D,_xlfn.XLOOKUP(C119,'COMP-SEINFRA'!A:A,'COMP-SEINFRA'!D:D,_xlfn.XLOOKUP(C119,'CP-CODEVASF'!A:A,'CP-CODEVASF'!C:C))) -> UN | F119: ='ORC1'!F119*10 -> 20 | G119: =TRUNC(_xlfn.XLOOKUP(C119,CCD!B:B,CCD!O:O,_xlfn.XLOOKUP(C119,'COMP-SEINFRA'!A:A,'COMP-SEINFRA'!G:G,_xlfn.XLOOKUP(C119,'CP-CODEVASF'!A:A,'CP-CODEVASF'!D:D))),2) -> 64.86 | H119: 81.67 | I119: =TRUNC('ORC1'!I119*('ORC10'!F119/'ORC1'!F119),2) -> 1633.4
A120: 10.5 | B120: SINAPI | C120: 89985 | D120: =_xlfn.XLOOKUP(C120,CCD!B:B,CCD!C:C,_xlfn.XLOOKUP(C120,'COMP-SEINFRA'!A:A,'COMP-SEINFRA'!C:C,_xlfn.XLOOKUP(C120,'CP-CODEVASF'!A:A,'CP-CODEVASF'!B:B))) -> REGISTRO DE PRESSÃO BRUTO, LATÃO, ROSCÁVEL, 3/4", COM ACABAMENTO E CANOPLA CROMADOS - FORNECIMENTO E INSTALAÇÃO. AF_08/2021 | E120: =_xlfn.XLOOKUP(C120,CCD!B:B,CCD!D:D,_xlfn.XLOOKUP(C120,'COMP-SEINFRA'!A:A,'COMP-SEINFRA'!D:D,_xlfn.XLOOKUP(C120,'CP-CODEVASF'!A:A,'CP-CODEVASF'!C:C))) -> UN | F120: ='ORC1'!F120*10 -> 20 | G120: =TRUNC(_xlfn.XLOOKUP(C120,CCD!B:B,CCD!O:O,_xlfn.XLOOKUP(C120,'COMP-SEINFRA'!A:A,'COMP-SEINFRA'!G:G,_xlfn.XLOOKUP(C120,'CP-CODEVASF'!A:A,'CP-CODEVASF'!D:D))),2) -> 94.66 | H120: 119.19 | I120: =TRUNC('ORC1'!I120*('ORC10'!F120/'ORC1'!F120),2) -> 2383.8
A121: 10.6 | B121: SINAPI | C121: 89987 | D121: =_xlfn.XLOOKUP(C121,CCD!B:B,CCD!C:C,_xlfn.XLOOKUP(C121,'COMP-SEINFRA'!A:A,'COMP-SEINFRA'!C:C,_xlfn.XLOOKUP(C121,'CP-CODEVASF'!A:A,'CP-CODEVASF'!B:B))) -> REGISTRO DE GAVETA BRUTO, LATÃO, ROSCÁVEL, 3/4", COM ACABAMENTO E CANOPLA CROMADOS - FORNECIMENTO E INSTALAÇÃO. AF_08/2021 | E121: =_xlfn.XLOOKUP(C121,CCD!B:B,CCD!D:D,_xlfn.XLOOKUP(C121,'COMP-SEINFRA'!A:A,'COMP-SEINFRA'!D:D,_xlfn.XLOOKUP(C121,'CP-CODEVASF'!A:A,'CP-CODEVASF'!C:C))) -> UN | F121: ='ORC1'!F121*10 -> 80 | G121: =TRUNC(_xlfn.XLOOKUP(C121,CCD!B:B,CCD!O:O,_xlfn.XLOOKUP(C121,'COMP-SEINFRA'!A:A,'COMP-SEINFRA'!G:G,_xlfn.XLOOKUP(C121,'CP-CODEVASF'!A:A,'CP-CODEVASF'!D:D))),2) -> 99.69 | H121: 125.52 | I121: =TRUNC('ORC1'!I121*('ORC10'!F121/'ORC1'!F121),2) -> 10041.6
A122: 10.7 | B122: SINAPI | C122: 86910 | D122: =_xlfn.XLOOKUP(C122,CCD!B:B,CCD!C:C,_xlfn.XLOOKUP(C122,'COMP-SEINFRA'!A:A,'COMP-SEINFRA'!C:C,_xlfn.XLOOKUP(C122,'CP-CODEVASF'!A:A,'CP-CODEVASF'!B:B))) -> TORNEIRA CROMADA TUBO MÓVEL, DE PAREDE, 1/2" OU 3/4", PARA PIA DE COZINHA, PADRÃO MÉDIO - FORNECIMENTO E INSTALAÇÃO. AF_01/2020 | E122: =_xlfn.XLOOKUP(C122,CCD!B:B,CCD!D:D,_xlfn.XLOOKUP(C122,'COMP-SEINFRA'!A:A,'COMP-SEINFRA'!D:D,_xlfn.XLOOKUP(C122,'CP-CODEVASF'!A:A,'CP-CODEVASF'!C:C))) -> UN | F122: ='ORC1'!F122*10 -> 40 | G122: =TRUNC(_xlfn.XLOOKUP(C122,CCD!B:B,CCD!O:O,_xlfn.XLOOKUP(C122,'COMP-SEINFRA'!A:A,'COMP-SEINFRA'!G:G,_xlfn.XLOOKUP(C122,'CP-CODEVASF'!A:A,'CP-CODEVASF'!D:D))),2) -> 125.21 | H122: 157.66 | I122: =TRUNC('ORC1'!I122*('ORC10'!F122/'ORC1'!F122),2) -> 6306.4
A123: 10.8 | B123: SINAPI | C123: 86888 | D123: =_xlfn.XLOOKUP(C123,CCD!B:B,CCD!C:C,_xlfn.XLOOKUP(C123,'COMP-SEINFRA'!A:A,'COMP-SEINFRA'!C:C,_xlfn.XLOOKUP(C123,'CP-CODEVASF'!A:A,'CP-CODEVASF'!B:B))) -> VASO SANITÁRIO SIFONADO COM CAIXA ACOPLADA LOUÇA BRANCA - FORNECIMENTO E INSTALAÇÃO. AF_01/2020 | E123: =_xlfn.XLOOKUP(C123,CCD!B:B,CCD!D:D,_xlfn.XLOOKUP(C123,'COMP-SEINFRA'!A:A,'COMP-SEINFRA'!D:D,_xlfn.XLOOKUP(C123,'CP-CODEVASF'!A:A,'CP-CODEVASF'!C:C))) -> UN | F123: ='ORC1'!F123*10 -> 20 | G123: =TRUNC(_xlfn.XLOOKUP(C123,CCD!B:B,CCD!O:O,_xlfn.XLOOKUP(C123,'COMP-SEINFRA'!A:A,'COMP-SEINFRA'!G:G,_xlfn.XLOOKUP(C123,'CP-CODEVASF'!A:A,'CP-CODEVASF'!D:D))),2) -> 550.26 | H123: 692.88 | I123: =TRUNC('ORC1'!I123*('ORC10'!F123/'ORC1'!F123),2) -> 13857.6
A124: 10.9 | B124: CODEVASF | C124: ='CP-CODEVASF'!A23 -> COMP-23 | D124: =_xlfn.XLOOKUP(C124,CCD!B:B,CCD!C:C,_xlfn.XLOOKUP(C124,'COMP-SEINFRA'!A:A,'COMP-SEINFRA'!C:C,_xlfn.XLOOKUP(C124,'CP-CODEVASF'!A:A,'CP-CODEVASF'!B:B))) -> CHUVEIRO PLASTICO SIMPLES - FORNECIDO E INSTALADO | E124: =_xlfn.XLOOKUP(C124,CCD!B:B,CCD!D:D,_xlfn.XLOOKUP(C124,'COMP-SEINFRA'!A:A,'COMP-SEINFRA'!D:D,_xlfn.XLOOKUP(C124,'CP-CODEVASF'!A:A,'CP-CODEVASF'!C:C))) -> UN | F124: ='ORC1'!F124*10 -> 20 | G124: =TRUNC(_xlfn.XLOOKUP(C124,CCD!B:B,CCD!O:O,_xlfn.XLOOKUP(C124,'COMP-SEINFRA'!A:A,'COMP-SEINFRA'!G:G,_xlfn.XLOOKUP(C124,'CP-CODEVASF'!A:A,'CP-CODEVASF'!D:D))),2) -> 25.55 | H124: 32.17 | I124: =TRUNC('ORC1'!I124*('ORC10'!F124/'ORC1'!F124),2) -> 643.4
A125: 10.10 | B125: SEINFRA | C125: C3648 | D125: =_xlfn.XLOOKUP(C125,CCD!B:B,CCD!C:C,_xlfn.XLOOKUP(C125,'COMP-SEINFRA'!A:A,'COMP-SEINFRA'!C:C,_xlfn.XLOOKUP(C125,'CP-CODEVASF'!A:A,'CP-CODEVASF'!B:B))) -> RESERVATÓRIO PRÉ MOLDADO ELEVADO CILÍNDRICO D=2,0M, CAP.=12,0M3, H=9,0M COMPLETO E CISTERNA CAP.=4,5 M3 | E125: =_xlfn.XLOOKUP(C125,CCD!B:B,CCD!D:D,_xlfn.XLOOKUP(C125,'COMP-SEINFRA'!A:A,'COMP-SEINFRA'!D:D,_xlfn.XLOOKUP(C125,'CP-CODEVASF'!A:A,'CP-CODEVASF'!C:C))) -> UN | F125: ='ORC1'!F125*10 -> 10 | G125: =TRUNC(_xlfn.XLOOKUP(C125,CCD!B:B,CCD!O:O,_xlfn.XLOOKUP(C125,'COMP-SEINFRA'!A:A,'COMP-SEINFRA'!G:G,_xlfn.XLOOKUP(C125,'CP-CODEVASF'!A:A,'CP-CODEVASF'!D:D))),2) -> 24049.25 | H125: 30282.81 | I125: =TRUNC('ORC1'!I125*('ORC10'!F125/'ORC1'!F125),2) -> 302828.1
A126: 10.11 | B126: SINAPI | C126: 86943 | D126: =_xlfn.XLOOKUP(C126,CCD!B:B,CCD!C:C,_xlfn.XLOOKUP(C126,'COMP-SEINFRA'!A:A,'COMP-SEINFRA'!C:C,_xlfn.XLOOKUP(C126,'CP-CODEVASF'!A:A,'CP-CODEVASF'!B:B))) -> LAVATÓRIO LOUÇA BRANCA SUSPENSO, 29,5 X 39CM OU EQUIVALENTE, PADRÃO POPULAR, INCLUSO SIFÃO FLEXÍVEL EM PVC, VÁLVULA E ENGATE FLEXÍVEL 30CM EM PLÁSTICO E TORNEIRA CROMADA DE MESA, PADRÃO POPULAR - FORNECIMENTO E INSTALAÇÃO. AF_01/2020 | E126: =_xlfn.XLOOKUP(C126,CCD!B:B,CCD!D:D,_xlfn.XLOOKUP(C126,'COMP-SEINFRA'!A:A,'COMP-SEINFRA'!D:D,_xlfn.XLOOKUP(C126,'CP-CODEVASF'!A:A,'CP-CODEVASF'!C:C))) -> UN | F126: ='ORC1'!F126*10 -> 30 | G126: =TRUNC(_xlfn.XLOOKUP(C126,CCD!B:B,CCD!O:O,_xlfn.XLOOKUP(C126,'COMP-SEINFRA'!A:A,'COMP-SEINFRA'!G:G,_xlfn.XLOOKUP(C126,'CP-CODEVASF'!A:A,'CP-CODEVASF'!D:D))),2) -> 274.81 | H126: 346.04 | I126: =TRUNC('ORC1'!I126*('ORC10'!F126/'ORC1'!F126),2) -> 10381.2
A127: 10.12 | B127: SINAPI | C127: 93441 | D127: =_xlfn.XLOOKUP(C127,CCD!B:B,CCD!C:C,_xlfn.XLOOKUP(C127,'COMP-SEINFRA'!A:A,'COMP-SEINFRA'!C:C,_xlfn.XLOOKUP(C127,'CP-CODEVASF'!A:A,'CP-CODEVASF'!B:B))) -> BANCADA GRANITO CINZA 150 X 60 CM, COM CUBA DE EMBUTIR DE AÇO, VÁLVULA AMERICANA EM METAL, SIFÃO FLEXÍVEL EM PVC, ENGATE FLEXÍVEL 30 CM, TORNEIRA CROMADA LONGA, DE PAREDE, 1/2" OU 3/4", P/ COZINHA, PADRÃO POPULAR - FORNEC. E INSTALAÇÃO. AF_01/2020 | E127: =_xlfn.XLOOKUP(C127,CCD!B:B,CCD!D:D,_xlfn.XLOOKUP(C127,'COMP-SEINFRA'!A:A,'COMP-SEINFRA'!D:D,_xlfn.XLOOKUP(C127,'CP-CODEVASF'!A:A,'CP-CODEVASF'!C:C))) -> UN | F127: ='ORC1'!F127*10 -> 40 | G127: =TRUNC(_xlfn.XLOOKUP(C127,CCD!B:B,CCD!O:O,_xlfn.XLOOKUP(C127,'COMP-SEINFRA'!A:A,'COMP-SEINFRA'!G:G,_xlfn.XLOOKUP(C127,'CP-CODEVASF'!A:A,'CP-CODEVASF'!D:D))),2) -> 1028.99 | H127: 1295.7 | I127: =TRUNC('ORC1'!I127*('ORC10'!F127/'ORC1'!F127),2) -> 51828
A128: 11 | D128: INSTALAÇÕES MECÂNICAS | I128: =SUM(I129:I129) -> 223018
A129: 11.1 | B129: SINAPI | C129: 103263 | D129: =_xlfn.XLOOKUP(C129,CCD!B:B,CCD!C:C,_xlfn.XLOOKUP(C129,'COMP-SEINFRA'!A:A,'COMP-SEINFRA'!C:C,_xlfn.XLOOKUP(C129,'CP-CODEVASF'!A:A,'CP-CODEVASF'!B:B))) -> AR CONDICIONADO SPLIT INVERTER, PISO TETO, 48000 BTU/H, CICLO FRIO - FORNECIMENTO E INSTALAÇÃO. AF_11/2021_PE | E129: =_xlfn.XLOOKUP(C129,CCD!B:B,CCD!D:D,_xlfn.XLOOKUP(C129,'COMP-SEINFRA'!A:A,'COMP-SEINFRA'!D:D,_xlfn.XLOOKUP(C129,'CP-CODEVASF'!A:A,'CP-CODEVASF'!C:C))) -> UN | F129: ='ORC1'!F129*10 -> 10 | G129: =TRUNC(_xlfn.XLOOKUP(C129,CCD!B:B,CCD!O:O,_xlfn.XLOOKUP(C129,'COMP-SEINFRA'!A:A,'COMP-SEINFRA'!G:G,_xlfn.XLOOKUP(C129,'CP-CODEVASF'!A:A,'CP-CODEVASF'!D:D))),2) -> 17711.09 | H129: =TRUNC(G129*(1+$E$14),2) -> 22301.8 | I129: =TRUNC('ORC1'!I129*('ORC10'!F129/'ORC1'!F129),2) -> 223018
A130: 12 | D130: EQUIPAMENTOS | I130: =TRUNC(SUM(I131:I150),2) -> 3616480.5
A131: 12.1 | B131: CODEVASF | C131: ='CP-CODEVASF'!A14 -> COMP-14 | D131: =_xlfn.XLOOKUP(C131,CCD!B:B,CCD!C:C,_xlfn.XLOOKUP(C131,'COMP-SEINFRA'!A:A,'COMP-SEINFRA'!C:C,_xlfn.XLOOKUP(C131,'CP-CODEVASF'!A:A,'CP-CODEVASF'!B:B))) -> TANQUE DE RESFRIAMENTO 1000L | E131: =_xlfn.XLOOKUP(C131,CCD!B:B,CCD!D:D,_xlfn.XLOOKUP(C131,'COMP-SEINFRA'!A:A,'COMP-SEINFRA'!D:D,_xlfn.XLOOKUP(C131,'CP-CODEVASF'!A:A,'CP-CODEVASF'!C:C))) -> UN | F131: ='ORC1'!F131*10 -> 10 | G131: =TRUNC(_xlfn.XLOOKUP(C131,CCD!B:B,CCD!O:O,_xlfn.XLOOKUP(C131,'COMP-SEINFRA'!A:A,'COMP-SEINFRA'!G:G,_xlfn.XLOOKUP(C131,'CP-CODEVASF'!A:A,'CP-CODEVASF'!D:D))),2) -> 24092.98 | H131: =TRUNC(G131*(1+$E$16),2) -> 28024.95 | I131: =TRUNC('ORC1'!I131*('ORC10'!F131/'ORC1'!F131),2) -> 280249.5
A132: 12.2 | B132: CODEVASF | C132: ='CP-CODEVASF'!A15 -> COMP-15 | D132: =_xlfn.XLOOKUP(C132,CCD!B:B,CCD!C:C,_xlfn.XLOOKUP(C132,'COMP-SEINFRA'!A:A,'COMP-SEINFRA'!C:C,_xlfn.XLOOKUP(C132,'CP-CODEVASF'!A:A,'CP-CODEVASF'!B:B))) -> PASTEURIZADOR LENTO 1000L | E132: =_xlfn.XLOOKUP(C132,CCD!B:B,CCD!D:D,_xlfn.XLOOKUP(C132,'COMP-SEINFRA'!A:A,'COMP-SEINFRA'!D:D,_xlfn.XLOOKUP(C132,'CP-CODEVASF'!A:A,'CP-CODEVASF'!C:C))) -> UN | F132: ='ORC1'!F132*10 -> 10 | G132: =TRUNC(_xlfn.XLOOKUP(C132,CCD!B:B,CCD!O:O,_xlfn.XLOOKUP(C132,'COMP-SEINFRA'!A:A,'COMP-SEINFRA'!G:G,_xlfn.XLOOKUP(C132,'CP-CODEVASF'!A:A,'CP-CODEVASF'!D:D))),2) -> 48227.33 | H132: 56098.03 | I132: =TRUNC('ORC1'!I132*('ORC10'!F132/'ORC1'!F132),2) -> 560980.3
A133: 12.3 | B133: CODEVASF | C133: ='CP-CODEVASF'!A20 -> COMP-20 | D133: =_xlfn.XLOOKUP(C133,CCD!B:B,CCD!C:C,_xlfn.XLOOKUP(C133,'COMP-SEINFRA'!A:A,'COMP-SEINFRA'!C:C,_xlfn.XLOOKUP(C133,'CP-CODEVASF'!A:A,'CP-CODEVASF'!B:B))) -> TANQUE INOX 500L PARA FABRICAÇÃO DE QUEIJOS | E133: =_xlfn.XLOOKUP(C133,CCD!B:B,CCD!D:D,_xlfn.XLOOKUP(C133,'COMP-SEINFRA'!A:A,'COMP-SEINFRA'!D:D,_xlfn.XLOOKUP(C133,'CP-CODEVASF'!A:A,'CP-CODEVASF'!C:C))) -> UN | F133: ='ORC1'!F133*10 -> 20 | G133: =TRUNC(_xlfn.XLOOKUP(C133,CCD!B:B,CCD!O:O,_xlfn.XLOOKUP(C133,'COMP-SEINFRA'!A:A,'COMP-SEINFRA'!G:G,_xlfn.XLOOKUP(C133,'CP-CODEVASF'!A:A,'CP-CODEVASF'!D:D))),2) -> 17026.93 | H133: 19805.72 | I133: =TRUNC('ORC1'!I133*('ORC10'!F133/'ORC1'!F133),2) -> 396114.4
A134: 12.4 | B134: CODEVASF | C134: ='CP-CODEVASF'!A4 -> COMP-02 | D134: =_xlfn.XLOOKUP(C134,CCD!B:B,CCD!C:C,_xlfn.XLOOKUP(C134,'COMP-SEINFRA'!A:A,'COMP-SEINFRA'!C:C,_xlfn.XLOOKUP(C134,'CP-CODEVASF'!A:A,'CP-CODEVASF'!B:B))) -> MESA INOX DE APOIO | E134: =_xlfn.XLOOKUP(C134,CCD!B:B,CCD!D:D,_xlfn.XLOOKUP(C134,'COMP-SEINFRA'!A:A,'COMP-SEINFRA'!D:D,_xlfn.XLOOKUP(C134,'CP-CODEVASF'!A:A,'CP-CODEVASF'!C:C))) -> UN | F134: ='ORC1'!F134*10 -> 20 | G134: =TRUNC(_xlfn.XLOOKUP(C134,CCD!B:B,CCD!O:O,_xlfn.XLOOKUP(C134,'COMP-SEINFRA'!A:A,'COMP-SEINFRA'!G:G,_xlfn.XLOOKUP(C134,'CP-CODEVASF'!A:A,'CP-CODEVASF'!D:D))),2) -> 3751.91 | H134: 4364.22 | I134: =TRUNC('ORC1'!I134*('ORC10'!F134/'ORC1'!F134),2) -> 87284.4
A135: 12.5 | B135: CODEVASF | C135: ='CP-CODEVASF'!A16 -> COMP-16 | D135: =_xlfn.XLOOKUP(C135,CCD!B:B,CCD!C:C,_xlfn.XLOOKUP(C135,'COMP-SEINFRA'!A:A,'COMP-SEINFRA'!C:C,_xlfn.XLOOKUP(C135,'CP-CODEVASF'!A:A,'CP-CODEVASF'!B:B))) -> PRENSA PNEUMÁTICA 4 COLUNAS/10 FORMAS REDONDAS 1KG | E135: =_xlfn.XLOOKUP(C135,CCD!B:B,CCD!D:D,_xlfn.XLOOKUP(C135,'COMP-SEINFRA'!A:A,'COMP-SEINFRA'!D:D,_xlfn.XLOOKUP(C135,'CP-CODEVASF'!A:A,'CP-CODEVASF'!C:C))) -> UN | F135: ='ORC1'!F135*10 -> 20 | G135: =TRUNC(_xlfn.XLOOKUP(C135,CCD!B:B,CCD!O:O,_xlfn.XLOOKUP(C135,'COMP-SEINFRA'!A:A,'COMP-SEINFRA'!G:G,_xlfn.XLOOKUP(C135,'CP-CODEVASF'!A:A,'CP-CODEVASF'!D:D))),2) -> 10082.66 | H135: =TRUNC(G135*(1+$E$16),2) -> 11728.15 | I135: =TRUNC('ORC1'!I135*('ORC10'!F135/'ORC1'!F135),2) -> 234563
A136: 12.6 | B136: CODEVASF | C136: COMP-17 | D136: =_xlfn.XLOOKUP(C136,CCD!B:B,CCD!C:C,_xlfn.XLOOKUP(C136,'COMP-SEINFRA'!A:A,'COMP-SEINFRA'!C:C,_xlfn.XLOOKUP(C136,'CP-CODEVASF'!A:A,'CP-CODEVASF'!B:B))) -> ENVASADORA PNEUMÁTICA PARA LÍQUIDOS E PASTOSOS | E136: =_xlfn.XLOOKUP(C136,CCD!B:B,CCD!D:D,_xlfn.XLOOKUP(C136,'COMP-SEINFRA'!A:A,'COMP-SEINFRA'!D:D,_xlfn.XLOOKUP(C136,'CP-CODEVASF'!A:A,'CP-CODEVASF'!C:C))) -> UN | F136: ='ORC1'!F136*10 -> 10 | G136: =TRUNC(_xlfn.XLOOKUP(C136,CCD!B:B,CCD!O:O,_xlfn.XLOOKUP(C136,'COMP-SEINFRA'!A:A,'COMP-SEINFRA'!G:G,_xlfn.XLOOKUP(C136,'CP-CODEVASF'!A:A,'CP-CODEVASF'!D:D))),2) -> 7656.15 | H136: 8905.63 | I136: =TRUNC('ORC1'!I136*('ORC10'!F136/'ORC1'!F136),2) -> 89056.3
A137: 12.7 | B137: CODEVASF | C137: ='CP-CODEVASF'!A27 -> COMP-27 | D137: =_xlfn.XLOOKUP(C137,CCD!B:B,CCD!C:C,_xlfn.XLOOKUP(C137,'COMP-SEINFRA'!A:A,'COMP-SEINFRA'!C:C,_xlfn.XLOOKUP(C137,'CP-CODEVASF'!A:A,'CP-CODEVASF'!B:B))) -> IOGURTEIRA INOX 500L | E137: =_xlfn.XLOOKUP(C137,CCD!B:B,CCD!D:D,_xlfn.XLOOKUP(C137,'COMP-SEINFRA'!A:A,'COMP-SEINFRA'!D:D,_xlfn.XLOOKUP(C137,'CP-CODEVASF'!A:A,'CP-CODEVASF'!C:C))) -> UN | F137: ='ORC1'!F137*10 -> 10 | G137: =TRUNC(_xlfn.XLOOKUP(C137,CCD!B:B,CCD!O:O,_xlfn.XLOOKUP(C137,'COMP-SEINFRA'!A:A,'COMP-SEINFRA'!G:G,_xlfn.XLOOKUP(C137,'CP-CODEVASF'!A:A,'CP-CODEVASF'!D:D))),2) -> 28595 | H137: 33261.7 | I137: =TRUNC('ORC1'!I137*('ORC10'!F137/'ORC1'!F137),2) -> 332617
A138: 12.8 | B138: CODEVASF | C138: ='CP-CODEVASF'!A18 -> COMP-18 | D138: =_xlfn.XLOOKUP(C138,CCD!B:B,CCD!C:C,_xlfn.XLOOKUP(C138,'COMP-SEINFRA'!A:A,'COMP-SEINFRA'!C:C,_xlfn.XLOOKUP(C138,'CP-CODEVASF'!A:A,'CP-CODEVASF'!B:B))) -> DESNATADEIRA ELÉTRICA 275L/H | E138: =_xlfn.XLOOKUP(C138,CCD!B:B,CCD!D:D,_xlfn.XLOOKUP(C138,'COMP-SEINFRA'!A:A,'COMP-SEINFRA'!D:D,_xlfn.XLOOKUP(C138,'CP-CODEVASF'!A:A,'CP-CODEVASF'!C:C))) -> UN | F138: ='ORC1'!F138*10 -> 10 | G138: =TRUNC(_xlfn.XLOOKUP(C138,CCD!B:B,CCD!O:O,_xlfn.XLOOKUP(C138,'COMP-SEINFRA'!A:A,'COMP-SEINFRA'!G:G,_xlfn.XLOOKUP(C138,'CP-CODEVASF'!A:A,'CP-CODEVASF'!D:D))),2) -> 20165 | H138: 23455.92 | I138: =TRUNC('ORC1'!I138*('ORC10'!F138/'ORC1'!F138),2) -> 234559.2
A139: 12.9 | B139: CODEVASF | C139: ='CP-CODEVASF'!A25 -> COMP-25 | D139: =_xlfn.XLOOKUP(C139,CCD!B:B,CCD!C:C,_xlfn.XLOOKUP(C139,'COMP-SEINFRA'!A:A,'COMP-SEINFRA'!C:C,_xlfn.XLOOKUP(C139,'CP-CODEVASF'!A:A,'CP-CODEVASF'!B:B))) -> TACHO PARA DOCE 100L | E139: =_xlfn.XLOOKUP(C139,CCD!B:B,CCD!D:D,_xlfn.XLOOKUP(C139,'COMP-SEINFRA'!A:A,'COMP-SEINFRA'!D:D,_xlfn.XLOOKUP(C139,'CP-CODEVASF'!A:A,'CP-CODEVASF'!C:C))) -> UN | F139: ='ORC1'!F139*10 -> 10 | G139: =TRUNC(_xlfn.XLOOKUP(C139,CCD!B:B,CCD!O:O,_xlfn.XLOOKUP(C139,'COMP-SEINFRA'!A:A,'COMP-SEINFRA'!G:G,_xlfn.XLOOKUP(C139,'CP-CODEVASF'!A:A,'CP-CODEVASF'!D:D))),2) -> 28790.93 | H139: 33489.6 | I139: =TRUNC('ORC1'!I139*('ORC10'!F139/'ORC1'!F139),2) -> 334896
A140: 12.10 | B140: CODEVASF | C140: ='CP-CODEVASF'!A26 -> COMP-26 | D140: =_xlfn.XLOOKUP(C140,CCD!B:B,CCD!C:C,_xlfn.XLOOKUP(C140,'COMP-SEINFRA'!A:A,'COMP-SEINFRA'!C:C,_xlfn.XLOOKUP(C140,'CP-CODEVASF'!A:A,'CP-CODEVASF'!B:B))) -> BATEDEIRA PARA MANTEIGA 20KG | E140: =_xlfn.XLOOKUP(C140,CCD!B:B,CCD!D:D,_xlfn.XLOOKUP(C140,'COMP-SEINFRA'!A:A,'COMP-SEINFRA'!D:D,_xlfn.XLOOKUP(C140,'CP-CODEVASF'!A:A,'CP-CODEVASF'!C:C))) -> UN | F140: ='ORC1'!F140*10 -> 10 | G140: =TRUNC(_xlfn.XLOOKUP(C140,CCD!B:B,CCD!O:O,_xlfn.XLOOKUP(C140,'COMP-SEINFRA'!A:A,'COMP-SEINFRA'!G:G,_xlfn.XLOOKUP(C140,'CP-CODEVASF'!A:A,'CP-CODEVASF'!D:D))),2) -> 20344.94 | H140: 23665.23 | I140: =TRUNC('ORC1'!I140*('ORC10'!F140/'ORC1'!F140),2) -> 236652.3
A141: 12.11 | B141: CODEVASF | C141: ='CP-CODEVASF'!A5 -> COMP-03 | D141: =_xlfn.XLOOKUP(C141,CCD!B:B,CCD!C:C,_xlfn.XLOOKUP(C141,'COMP-SEINFRA'!A:A,'COMP-SEINFRA'!C:C,_xlfn.XLOOKUP(C141,'CP-CODEVASF'!A:A,'CP-CODEVASF'!B:B))) -> SELADORA MANUAL PARA POTES | E141: =_xlfn.XLOOKUP(C141,CCD!B:B,CCD!D:D,_xlfn.XLOOKUP(C141,'COMP-SEINFRA'!A:A,'COMP-SEINFRA'!D:D,_xlfn.XLOOKUP(C141,'CP-CODEVASF'!A:A,'CP-CODEVASF'!C:C))) -> UN | F141: ='ORC1'!F141*10 -> 20 | G141: =TRUNC(_xlfn.XLOOKUP(C141,CCD!B:B,CCD!O:O,_xlfn.XLOOKUP(C141,'COMP-SEINFRA'!A:A,'COMP-SEINFRA'!G:G,_xlfn.XLOOKUP(C141,'CP-CODEVASF'!A:A,'CP-CODEVASF'!D:D))),2) -> 2672.97 | H141: 3109.19 | I141: =TRUNC('ORC1'!I141*('ORC10'!F141/'ORC1'!F141),2) -> 62183.8
A142: 12.12 | B142: CODEVASF | C142: ='CP-CODEVASF'!A19 -> COMP-19 | D142: =_xlfn.XLOOKUP(C142,CCD!B:B,CCD!C:C,_xlfn.XLOOKUP(C142,'COMP-SEINFRA'!A:A,'COMP-SEINFRA'!C:C,_xlfn.XLOOKUP(C142,'CP-CODEVASF'!A:A,'CP-CODEVASF'!B:B))) -> TANQUE PARA SALGA 400L | E142: =_xlfn.XLOOKUP(C142,CCD!B:B,CCD!D:D,_xlfn.XLOOKUP(C142,'COMP-SEINFRA'!A:A,'COMP-SEINFRA'!D:D,_xlfn.XLOOKUP(C142,'CP-CODEVASF'!A:A,'CP-CODEVASF'!C:C))) -> UN | F142: ='ORC1'!F142*10 -> 10 | G142: =TRUNC(_xlfn.XLOOKUP(C142,CCD!B:B,CCD!O:O,_xlfn.XLOOKUP(C142,'COMP-SEINFRA'!A:A,'COMP-SEINFRA'!G:G,_xlfn.XLOOKUP(C142,'CP-CODEVASF'!A:A,'CP-CODEVASF'!D:D))),2) -> 3616.66 | H142: 4206.89 | I142: =TRUNC('ORC1'!I142*('ORC10'!F142/'ORC1'!F142),2) -> 42068.9
A143: 12.13 | B143: CODEVASF | C143: COMP-11 | D143: =_xlfn.XLOOKUP(C143,CCD!B:B,CCD!C:C,_xlfn.XLOOKUP(C143,'COMP-SEINFRA'!A:A,'COMP-SEINFRA'!C:C,_xlfn.XLOOKUP(C143,'CP-CODEVASF'!A:A,'CP-CODEVASF'!B:B))) -> ESTANTE EM AÇO INOX PARA SECAGEM/MATURAÇÃO DE QUEIJOS | E143: =_xlfn.XLOOKUP(C143,CCD!B:B,CCD!D:D,_xlfn.XLOOKUP(C143,'COMP-SEINFRA'!A:A,'COMP-SEINFRA'!D:D,_xlfn.XLOOKUP(C143,'CP-CODEVASF'!A:A,'CP-CODEVASF'!C:C))) -> UN | F143: ='ORC1'!F143*10 -> 60 | G143: =TRUNC(_xlfn.XLOOKUP(C143,CCD!B:B,CCD!O:O,_xlfn.XLOOKUP(C143,'COMP-SEINFRA'!A:A,'COMP-SEINFRA'!G:G,_xlfn.XLOOKUP(C143,'CP-CODEVASF'!A:A,'CP-CODEVASF'!D:D))),2) -> 4382.24 | H143: 5097.42 | I143: =TRUNC('ORC1'!I143*('ORC10'!F143/'ORC1'!F143),2) -> 305845.2
A144: 12.14 | B144: CODEVASF | C144: ='CP-CODEVASF'!A6 -> COMP-04 | D144: =_xlfn.XLOOKUP(C144,CCD!B:B,CCD!C:C,_xlfn.XLOOKUP(C144,'COMP-SEINFRA'!A:A,'COMP-SEINFRA'!C:C,_xlfn.XLOOKUP(C144,'CP-CODEVASF'!A:A,'CP-CODEVASF'!B:B))) -> SELADORA A VÁCUO DE BANCADA | E144: =_xlfn.XLOOKUP(C144,CCD!B:B,CCD!D:D,_xlfn.XLOOKUP(C144,'COMP-SEINFRA'!A:A,'COMP-SEINFRA'!D:D,_xlfn.XLOOKUP(C144,'CP-CODEVASF'!A:A,'CP-CODEVASF'!C:C))) -> UN | F144: ='ORC1'!F144*10 -> 20 | G144: =TRUNC(_xlfn.XLOOKUP(C144,CCD!B:B,CCD!O:O,_xlfn.XLOOKUP(C144,'COMP-SEINFRA'!A:A,'COMP-SEINFRA'!G:G,_xlfn.XLOOKUP(C144,'CP-CODEVASF'!A:A,'CP-CODEVASF'!D:D))),2) -> 5457.82 | H144: 6348.53 | I144: =TRUNC('ORC1'!I144*('ORC10'!F144/'ORC1'!F144),2) -> 126970.6
A145: 12.15 | B145: CODEVASF | C145: ='CP-CODEVASF'!A7 -> COMP-05 | D145: =_xlfn.XLOOKUP(C145,CCD!B:B,CCD!C:C,_xlfn.XLOOKUP(C145,'COMP-SEINFRA'!A:A,'COMP-SEINFRA'!C:C,_xlfn.XLOOKUP(C145,'CP-CODEVASF'!A:A,'CP-CODEVASF'!B:B))) -> LAVA DE BOTAS MANUAL | E145: =_xlfn.XLOOKUP(C145,CCD!B:B,CCD!D:D,_xlfn.XLOOKUP(C145,'COMP-SEINFRA'!A:A,'COMP-SEINFRA'!D:D,_xlfn.XLOOKUP(C145,'CP-CODEVASF'!A:A,'CP-CODEVASF'!C:C))) -> UN | F145: ='ORC1'!F145*10 -> 10 | G145: =TRUNC(_xlfn.XLOOKUP(C145,CCD!B:B,CCD!O:O,_xlfn.XLOOKUP(C145,'COMP-SEINFRA'!A:A,'COMP-SEINFRA'!G:G,_xlfn.XLOOKUP(C145,'CP-CODEVASF'!A:A,'CP-CODEVASF'!D:D))),2) -> 5321.75 | H145: 6190.25 | I145: =TRUNC('ORC1'!I145*('ORC10'!F145/'ORC1'!F145),2) -> 61902.5
A146: 12.16 | B146: CODEVASF | C146: ='CP-CODEVASF'!A8 -> COMP-06 | D146: =_xlfn.XLOOKUP(C146,CCD!B:B,CCD!C:C,_xlfn.XLOOKUP(C146,'COMP-SEINFRA'!A:A,'COMP-SEINFRA'!C:C,_xlfn.XLOOKUP(C146,'CP-CODEVASF'!A:A,'CP-CODEVASF'!B:B))) -> ANALISADOR DE LEITE ULTRASSÔNICO | E146: =_xlfn.XLOOKUP(C146,CCD!B:B,CCD!D:D,_xlfn.XLOOKUP(C146,'COMP-SEINFRA'!A:A,'COMP-SEINFRA'!D:D,_xlfn.XLOOKUP(C146,'CP-CODEVASF'!A:A,'CP-CODEVASF'!C:C))) -> UN | F146: ='ORC1'!F146*10 -> 10 | G146: =TRUNC(_xlfn.XLOOKUP(C146,CCD!B:B,CCD!O:O,_xlfn.XLOOKUP(C146,'COMP-SEINFRA'!A:A,'COMP-SEINFRA'!G:G,_xlfn.XLOOKUP(C146,'CP-CODEVASF'!A:A,'CP-CODEVASF'!D:D))),2) -> 5769.28 | H146: 6710.82 | I146: =TRUNC('ORC1'!I146*('ORC10'!F146/'ORC1'!F146),2) -> 67108.2
A147: 12.17 | B147: CODEVASF | C147: ='CP-CODEVASF'!A9 -> COMP-07 | D147: =_xlfn.XLOOKUP(C147,CCD!B:B,CCD!C:C,_xlfn.XLOOKUP(C147,'COMP-SEINFRA'!A:A,'COMP-SEINFRA'!C:C,_xlfn.XLOOKUP(C147,'CP-CODEVASF'!A:A,'CP-CODEVASF'!B:B))) -> LAVADORA E SECADORA DE ROUPAS INVERTER 11KG | E147: =_xlfn.XLOOKUP(C147,CCD!B:B,CCD!D:D,_xlfn.XLOOKUP(C147,'COMP-SEINFRA'!A:A,'COMP-SEINFRA'!D:D,_xlfn.XLOOKUP(C147,'CP-CODEVASF'!A:A,'CP-CODEVASF'!C:C))) -> UN | F147: ='ORC1'!F147*10 -> 10 | G147: =TRUNC(_xlfn.XLOOKUP(C147,CCD!B:B,CCD!O:O,_xlfn.XLOOKUP(C147,'COMP-SEINFRA'!A:A,'COMP-SEINFRA'!G:G,_xlfn.XLOOKUP(C147,'CP-CODEVASF'!A:A,'CP-CODEVASF'!D:D))),2) -> 3610.51 | H147: 4199.74 | I147: =TRUNC('ORC1'!I147*('ORC10'!F147/'ORC1'!F147),2) -> 41997.4
A148: 12.18 | B148: CODEVASF | C148: ='CP-CODEVASF'!A10 -> COMP-08 | D148: =_xlfn.XLOOKUP(C148,CCD!B:B,CCD!C:C,_xlfn.XLOOKUP(C148,'COMP-SEINFRA'!A:A,'COMP-SEINFRA'!C:C,_xlfn.XLOOKUP(C148,'CP-CODEVASF'!A:A,'CP-CODEVASF'!B:B))) -> ARMÁRIO TIPO ROUPEIRO | E148: =_xlfn.XLOOKUP(C148,CCD!B:B,CCD!D:D,_xlfn.XLOOKUP(C148,'COMP-SEINFRA'!A:A,'COMP-SEINFRA'!D:D,_xlfn.XLOOKUP(C148,'CP-CODEVASF'!A:A,'CP-CODEVASF'!C:C))) -> UN | F148: ='ORC1'!F148*10 -> 40 | G148: =TRUNC(_xlfn.XLOOKUP(C148,CCD!B:B,CCD!O:O,_xlfn.XLOOKUP(C148,'COMP-SEINFRA'!A:A,'COMP-SEINFRA'!G:G,_xlfn.XLOOKUP(C148,'CP-CODEVASF'!A:A,'CP-CODEVASF'!D:D))),2) -> 1283.09 | H148: 1492.49 | I148: =TRUNC('ORC1'!I148*('ORC10'!F148/'ORC1'!F148),2) -> 59699.6
A149: 12.19 | B149: CODEVASF | C149: ='CP-CODEVASF'!A28 -> COMP-28 | D149: =_xlfn.XLOOKUP(C149,CCD!B:B,CCD!C:C,_xlfn.XLOOKUP(C149,'COMP-SEINFRA'!A:A,'COMP-SEINFRA'!C:C,_xlfn.XLOOKUP(C149,'CP-CODEVASF'!A:A,'CP-CODEVASF'!B:B))) -> COMPRESSOR 2HP 50L | E149: =_xlfn.XLOOKUP(C149,CCD!B:B,CCD!D:D,_xlfn.XLOOKUP(C149,'COMP-SEINFRA'!A:A,'COMP-SEINFRA'!D:D,_xlfn.XLOOKUP(C149,'CP-CODEVASF'!A:A,'CP-CODEVASF'!C:C))) -> UN | F149: ='ORC1'!F149*10 -> 10 | G149: =TRUNC(_xlfn.XLOOKUP(C149,CCD!B:B,CCD!O:O,_xlfn.XLOOKUP(C149,'COMP-SEINFRA'!A:A,'COMP-SEINFRA'!G:G,_xlfn.XLOOKUP(C149,'CP-CODEVASF'!A:A,'CP-CODEVASF'!D:D))),2) -> 2147.93 | H149: 2498.47 | I149: =TRUNC('ORC1'!I149*('ORC10'!F149/'ORC1'!F149),2) -> 24984.7
A150: 12.20 | B150: CODEVASF | C150: ='COMP-CDF'!A184 -> COMP-34 | D150: =_xlfn.XLOOKUP(C150,CCD!B:B,CCD!C:C,_xlfn.XLOOKUP(C150,'COMP-SEINFRA'!A:A,'COMP-SEINFRA'!C:C,_xlfn.XLOOKUP(C150,'CP-CODEVASF'!A:A,'CP-CODEVASF'!B:B))) -> FORMA PARA QUEIJO COALHO REDONDO DE 1KG | E150: =_xlfn.XLOOKUP(C150,CCD!B:B,CCD!D:D,_xlfn.XLOOKUP(C150,'COMP-SEINFRA'!A:A,'COMP-SEINFRA'!D:D,_xlfn.XLOOKUP(C150,'CP-CODEVASF'!A:A,'CP-CODEVASF'!C:C))) -> UN | F150: ='ORC1'!F150*10 -> 1120 | G150: =TRUNC(_xlfn.XLOOKUP(C150,CCD!B:B,CCD!O:O,_xlfn.XLOOKUP(C150,'COMP-SEINFRA'!A:A,'COMP-SEINFRA'!G:G,_xlfn.XLOOKUP(C150,'CP-CODEVASF'!A:A,'CP-CODEVASF'!D:D))),2) -> 28.21 | H150: 32.81 | I150: =TRUNC('ORC1'!I150*('ORC10'!F150/'ORC1'!F150),2) -> 36747.2
A151: 13 | D151: LIMPEZA FINAL DA OBRA | I151: =TRUNC(SUM(I152),2) -> 13395.2
A152: 13.1 | B152: SINAPI | C152: 99803 | D152: =_xlfn.XLOOKUP(C152,CCD!B:B,CCD!C:C,_xlfn.XLOOKUP(C152,'COMP-SEINFRA'!A:A,'COMP-SEINFRA'!C:C,_xlfn.XLOOKUP(C152,'CP-CODEVASF'!A:A,'CP-CODEVASF'!B:B))) -> LIMPEZA DE PISO CERÂMICO OU PORCELANATO COM PANO ÚMIDO. AF_04/2019 | E152: =_xlfn.XLOOKUP(C152,CCD!B:B,CCD!D:D,_xlfn.XLOOKUP(C152,'COMP-SEINFRA'!A:A,'COMP-SEINFRA'!D:D,_xlfn.XLOOKUP(C152,'CP-CODEVASF'!A:A,'CP-CODEVASF'!C:C))) -> M2 | F152: ='ORC1'!F152*10 -> 5035.8 | G152: =TRUNC(_xlfn.XLOOKUP(C152,CCD!B:B,CCD!O:O,_xlfn.XLOOKUP(C152,'COMP-SEINFRA'!A:A,'COMP-SEINFRA'!G:G,_xlfn.XLOOKUP(C152,'CP-CODEVASF'!A:A,'CP-CODEVASF'!D:D))),2) -> 2.12 | H152: =TRUNC(G152*(1+$E$14),2) -> 2.66 | I152: =TRUNC('ORC1'!I152*('ORC10'!F152/'ORC1'!F152),2) -> 13395.2
A153: 14 | D153: PROJETO EXECUTIVO | I153: =TRUNC(SUM(I154:I155),2) -> 186473.3 | J153: =I153/$I$156 -> 0.01885365307
A154: 14.1 | B154: CODEVASF | C154: COMP-29-0 | D154: PROJETO EXECUTIVO PADRÃO EXCETO SONDAGEM, LEVANTAMENTO TOPOGRÁFICO E IMPLANTAÇÃO. | E154: =_xlfn.XLOOKUP(C154,CCD!B:B,CCD!D:D,_xlfn.XLOOKUP(C154,'COMP-SEINFRA'!A:A,'COMP-SEINFRA'!D:D,_xlfn.XLOOKUP(C154,'CP-CODEVASF'!A:A,'CP-CODEVASF'!C:C))) -> UN | F154: ='ORC1'!F154*10 -> 10 | G154: =TRUNC(_xlfn.XLOOKUP(C154,CCD!B:B,CCD!O:O,_xlfn.XLOOKUP(C154,'COMP-SEINFRA'!A:A,'COMP-SEINFRA'!G:G,_xlfn.XLOOKUP(C154,'CP-CODEVASF'!A:A,'CP-CODEVASF'!D:D))),2) -> 5937.9 | H154: =TRUNC(G154*(1+$E$14),2) -> 7477 | I154: =TRUNC('ORC1'!I154*('ORC10'!F154/'ORC1'!F154),2) -> 74770
A155: 1.6 | B155: CODEVASF | C155: COMP-29 | D155: SONDAGEM, LEVANTAMENTO TOPOGRÁFICO E IMPLANTAÇÃO | E155: =_xlfn.XLOOKUP(C155,CCD!B:B,CCD!D:D,_xlfn.XLOOKUP(C155,'COMP-SEINFRA'!A:A,'COMP-SEINFRA'!D:D,_xlfn.XLOOKUP(C155,'CP-CODEVASF'!A:A,'CP-CODEVASF'!C:C))) -> UN | F155: ='ORC1'!F155*10 -> 10 | G155: =TRUNC(_xlfn.XLOOKUP(C155,CCD!B:B,CCD!O:O,_xlfn.XLOOKUP(C155,'COMP-SEINFRA'!A:A,'COMP-SEINFRA'!G:G,_xlfn.XLOOKUP(C155,'CP-CODEVASF'!A:A,'CP-CODEVASF'!D:D))),2) -> 8870.98 | H155: 11170.33 | I155: =TRUNC('ORC1'!I155*('ORC10'!F155/'ORC1'!F155),2) -> 111703.3
A156: TOTAL GERAL C/ BDI INCLUSO (R$) | I156: =TRUNC(SUM(I24+I31+I35+I41+I58+I60+I63+I70+I97+I115+I128+I130+I151+I153),2) -> 9890566
A158: FORTALEZA/CE, OUTUBRO DE 2025.
A834: ='ORC10'!A158 -> FORTALEZA/CE, OUTUBRO DE 2025.

Sheet ORC1
D3: MINISTÉRIO DA INTEGRAÇÃO E DO DESENVOLVIMENTO REGIONAL - MIDR
D4: COMPANHIA DE DESENVOLVIMENTO DOS VALES DO SÃO FRANCISCO E DO PARNAÍBA
D5: 14ª SUPERINTENDÊNCIA REGIONAL
A8: FONTES DE PREÇOS UTILIZADAS:
A9: SINAPI/CE: | C9: 08/2025 | D9: DESONERADO
A10: SEINFRA/CE: | C10: 28.1 | D10: DESONERADO
A11: SICRO/CE: | C11: 04/2025
A12: PESQUISA DE MERCADO: | C12: 03/2025
A14: ENCARGOS SOCIAIS | D14: BDI DE SERVIÇOS: | E14: ='BDI - SRV'!C26 -> 0.2592
A15: HORISTA | B15: MENSALISTA
A16: =ES!C49 -> 0.9217 | B16: =ES!D49 -> 0.535 | D16: BDI DE MATERIAIS: | E16: ='BDI - EQP'!C26 -> 0.1632
D18: DATA BASE DO ORÇAMENTO: | E18: 10/2025
A20: CONTRATAÇÃO DE SERVIÇOS DE ENGENHARIA, POR MEIO DO SISTEMA DE REGISTRO DE PREÇOS – SRP, PARA IMPLANTAÇÃO DE AGROINDÚSTRIAS DE LÁCTEOS EM COMUNIDADES RURAIS, NO ESTADO DO CEARÁ.
A22: ORÇAMENTO SINTÉTICO - CUSTO POR UNIDADE
A23: ITEM | B23: FONTE | C23: CÓDIGO | D23: DESCRIÇÃO DOS SERVIÇOS | E23: UNID. | F23: QUANT. | G23: PREÇO UNIT. S/ BDI (R$) | H23: PREÇO UNIT. C/ BDI (R$) | I23: PREÇO TOTAL (R$)
A24: 1 | D24: SERVIÇOS PRELIMINARES | I24: =TRUNC(SUM(I25:I30),2) -> 78101.18
A25: 1.1 | B25: SINAPI | C25: 103689 | D25: =_xlfn.XLOOKUP(C25,CCD!B:B,CCD!C:C,_xlfn.XLOOKUP(C25,'COMP-SEINFRA'!A:A,'COMP-SEINFRA'!C:C,_xlfn.XLOOKUP(C25,'CP-CODEVASF'!A:A,'CP-CODEVASF'!B:B))) -> FORNECIMENTO E INSTALAÇÃO DE PLACA DE OBRA COM CHAPA GALVANIZADA E ESTRUTURA DE MADEIRA. AF_03/2022_PS | E25: =_xlfn.XLOOKUP(C25,CCD!B:B,CCD!D:D,_xlfn.XLOOKUP(C25,'COMP-SEINFRA'!A:A,'COMP-SEINFRA'!D:D,_xlfn.XLOOKUP(C25,'CP-CODEVASF'!A:A,'CP-CODEVASF'!C:C))) -> M2 | F25: =ROUND('MEMÓRIA DE CÁLCULO'!M11,2) -> 6 | G25: =TRUNC(_xlfn.XLOOKUP(C25,CCD!B:B,CCD!O:O,_xlfn.XLOOKUP(C25,'COMP-SEINFRA'!A:A,'COMP-SEINFRA'!G:G,_xlfn.XLOOKUP(C25,'CP-CODEVASF'!A:A,'CP-CODEVASF'!D:D))),2) -> 464.51 | H25: =TRUNC(G25*(1+$E$14),2) -> 584.91 | I25: =TRUNC(H25*F25,2) -> 3509.46
A26: 1.2 | B26: CODEVASF | C26: ='CP-CODEVASF'!A12 -> COMP-12 | D26: =_xlfn.XLOOKUP(C26,CCD!B:B,CCD!C:C,_xlfn.XLOOKUP(C26,'COMP-SEINFRA'!A:A,'COMP-SEINFRA'!C:C,_xlfn.XLOOKUP(C26,'CP-CODEVASF'!A:A,'CP-CODEVASF'!B:B))) -> ADMISTRAÇÃO LOCAL | E26: =_xlfn.XLOOKUP(C26,CCD!B:B,CCD!D:D,_xlfn.XLOOKUP(C26,'COMP-SEINFRA'!A:A,'COMP-SEINFRA'!D:D,_xlfn.XLOOKUP(C26,'CP-CODEVASF'!A:A,'CP-CODEVASF'!C:C))) -> UN | F26: =ROUND('MEMÓRIA DE CÁLCULO'!M17,2) -> 1 | G26: =TRUNC(_xlfn.XLOOKUP(C26,CCD!B:B,CCD!O:O,_xlfn.XLOOKUP(C26,'COMP-SEINFRA'!A:A,'COMP-SEINFRA'!G:G,_xlfn.XLOOKUP(C26,'CP-CODEVASF'!A:A,'CP-CODEVASF'!D:D))),2) -> 46580.4 | H26: 58654.03 | I26: 58654.03 | J26: =I26/I156 -> 0.05930300652
A27: 1.3 | B27: CODEVASF | C27: ='CP-CODEVASF'!A13 -> COMP-13 | D27: =_xlfn.XLOOKUP(C27,CCD!B:B,CCD!C:C,_xlfn.XLOOKUP(C27,'COMP-SEINFRA'!A:A,'COMP-SEINFRA'!C:C,_xlfn.XLOOKUP(C27,'CP-CODEVASF'!A:A,'CP-CODEVASF'!B:B))) -> MOBILIZAÇÃO E DESMOBILIZAÇÃO | E27: =_xlfn.XLOOKUP(C27,CCD!B:B,CCD!D:D,_xlfn.XLOOKUP(C27,'COMP-SEINFRA'!A:A,'COMP-SEINFRA'!D:D,_xlfn.XLOOKUP(C27,'CP-CODEVASF'!A:A,'CP-CODEVASF'!C:C))) -> UN | F27: =ROUND('MEMÓRIA DE CÁLCULO'!M23,2) -> 1 | G27: =TRUNC(_xlfn.XLOOKUP(C27,CCD!B:B,CCD!O:O,_xlfn.XLOOKUP(C27,'COMP-SEINFRA'!A:A,'COMP-SEINFRA'!G:G,_xlfn.XLOOKUP(C27,'CP-CODEVASF'!A:A,'CP-CODEVASF'!D:D))),2) -> 3030.53 | H27: 3816.04 | I27: 3816.04
A28: 1.4 | B28: SICRO | C28: B8952 | D28: Residencial (2,45% do CMCC - SINAPI) | E28: m² x mês | F28: =ROUND('MEMÓRIA DE CÁLCULO'!M29,2) -> 100 | G28: =TRUNC(_xlfn.XLOOKUP(C28,'CG-SICRO'!B:B,'CG-SICRO'!F:F),2) -> 48.26 | H28: 60.76 | I28: 6076
A29: 1.5 | B29: SINAPI | C29: 105009 | D29: =_xlfn.XLOOKUP(C29,CCD!B:B,CCD!C:C,_xlfn.XLOOKUP(C29,'COMP-SEINFRA'!A:A,'COMP-SEINFRA'!C:C,_xlfn.XLOOKUP(C29,'CP-CODEVASF'!A:A,'CP-CODEVASF'!B:B))) -> LOCAÇÃO CONVENCIONAL DE OBRA, UTILIZANDO GABARITO DE TÁBUAS CORRIDAS PONTALETADAS A CADA 1,50M - 2 UTILIZAÇÕES. AF_03/2024 | E29: =_xlfn.XLOOKUP(C29,CCD!B:B,CCD!D:D,_xlfn.XLOOKUP(C29,'COMP-SEINFRA'!A:A,'COMP-SEINFRA'!D:D,_xlfn.XLOOKUP(C29,'CP-CODEVASF'!A:A,'CP-CODEVASF'!C:C))) -> M | F29: =ROUND('MEMÓRIA DE CÁLCULO'!M35,2) -> 55 | G29: =TRUNC(_xlfn.XLOOKUP(C29,CCD!B:B,CCD!O:O,_xlfn.XLOOKUP(C29,'COMP-SEINFRA'!A:A,'COMP-SEINFRA'!G:G,_xlfn.XLOOKUP(C29,'CP-CODEVASF'!A:A,'CP-CODEVASF'!D:D))),2) -> 81.19 | H29: 102.23 | I29: 5622.65
A30: 1.6 | B30: SINAPI | C30: 98525 | D30: =_xlfn.XLOOKUP(C30,CCD!B:B,CCD!C:C,_xlfn.XLOOKUP(C30,'COMP-SEINFRA'!A:A,'COMP-SEINFRA'!C:C,_xlfn.XLOOKUP(C30,'CP-CODEVASF'!A:A,'CP-CODEVASF'!B:B))) -> LIMPEZA MECANIZADA DE CAMADA VEGETAL, VEGETAÇÃO E PEQUENAS ÁRVORES (DIÂMETRO DE TRONCO MENOR QUE 0,20 M), COM TRATOR DE ESTEIRAS. AF_03/2024 | E30: =_xlfn.XLOOKUP(C30,CCD!B:B,CCD!D:D,_xlfn.XLOOKUP(C30,'COMP-SEINFRA'!A:A,'COMP-SEINFRA'!D:D,_xlfn.XLOOKUP(C30,'CP-CODEVASF'!A:A,'CP-CODEVASF'!C:C))) -> M2 | F30: =ROUND('MEMÓRIA DE CÁLCULO'!M42,2) -> 503.58 | G30: =TRUNC(_xlfn.XLOOKUP(C30,CCD!B:B,CCD!O:O,_xlfn.XLOOKUP(C30,'COMP-SEINFRA'!A:A,'COMP-SEINFRA'!G:G,_xlfn.XLOOKUP(C30,'CP-CODEVASF'!A:A,'CP-CODEVASF'!D:D))),2) -> 0.67 | H30: 0.84 | I30: 423
A31: 2 | D31: MOVIMENTAÇÃO DE TERRA / CONTENÇÃO | I31: =TRUNC(SUM(I32:I34),2) -> 5234.74
A32: 2.1 | B32: SINAPI | C32: 100576 | D32: =_xlfn.XLOOKUP(C32,CCD!B:B,CCD!C:C,_xlfn.XLOOKUP(C32,'COMP-SEINFRA'!A:A,'COMP-SEINFRA'!C:C,_xlfn.XLOOKUP(C32,'CP-CODEVASF'!A:A,'CP-CODEVASF'!B:B))) -> REGULARIZAÇÃO E COMPACTAÇÃO DE SUBLEITO DE SOLO PREDOMINANTEMENTE ARGILOSO, PARA OBRAS DE CONSTRUÇÃO DE PAVIMENTOS. AF_09/2024 | E32: =_xlfn.XLOOKUP(C32,CCD!B:B,CCD!D:D,_xlfn.XLOOKUP(C32,'COMP-SEINFRA'!A:A,'COMP-SEINFRA'!D:D,_xlfn.XLOOKUP(C32,'CP-CODEVASF'!A:A,'CP-CODEVASF'!C:C))) -> M2 | F32: =ROUND('MEMÓRIA DE CÁLCULO'!M48,2) -> 503.58 | G32: =TRUNC(_xlfn.XLOOKUP(C32,CCD!B:B,CCD!O:O,_xlfn.XLOOKUP(C32,'COMP-SEINFRA'!A:A,'COMP-SEINFRA'!G:G,_xlfn.XLOOKUP(C32,'CP-CODEVASF'!A:A,'CP-CODEVASF'!D:D))),2) -> 3.01 | H32: =TRUNC(G32*(1+$E$14),2) -> 3.79 | I32: =TRUNC(H32*F32,2) -> 1908.56
A33: 2.2 | B33: SINAPI | C33: 93358 | D33: =_xlfn.XLOOKUP(C33,CCD!B:B,CCD!C:C,_xlfn.XLOOKUP(C33,'COMP-SEINFRA'!A:A,'COMP-SEINFRA'!C:C,_xlfn.XLOOKUP(C33,'CP-CODEVASF'!A:A,'CP-CODEVASF'!B:B))) -> ESCAVAÇÃO MANUAL DE VALA. AF_09/2024 | E33: =_xlfn.XLOOKUP(C33,CCD!B:B,CCD!D:D,_xlfn.XLOOKUP(C33,'COMP-SEINFRA'!A:A,'COMP-SEINFRA'!D:D,_xlfn.XLOOKUP(C33,'CP-CODEVASF'!A:A,'CP-CODEVASF'!C:C))) -> M3 | F33: =ROUND('MEMÓRIA DE CÁLCULO'!M54,2) -> 4.31 | G33: =TRUNC(_xlfn.XLOOKUP(C33,CCD!B:B,CCD!O:O,_xlfn.XLOOKUP(C33,'COMP-SEINFRA'!A:A,'COMP-SEINFRA'!G:G,_xlfn.XLOOKUP(C33,'CP-CODEVASF'!A:A,'CP-CODEVASF'!D:D))),2) -> 86.74 | H33: =TRUNC(G33*(1+$E$14),2) -> 109.22 | I33: =TRUNC(H33*F33,2) -> 470.73
A34: 2.3 | B34: SINAPI | C34: 94342 | D34: =_xlfn.XLOOKUP(C34,CCD!B:B,CCD!C:C,_xlfn.XLOOKUP(C34,'COMP-SEINFRA'!A:A,'COMP-SEINFRA'!C:C,_xlfn.XLOOKUP(C34,'CP-CODEVASF'!A:A,'CP-CODEVASF'!B:B))) -> ATERRO MANUAL DE VALAS COM AREIA PARA ATERRO. AF_08/2023 | E34: =_xlfn.XLOOKUP(C34,CCD!B:B,CCD!D:D,_xlfn.XLOOKUP(C34,'COMP-SEINFRA'!A:A,'COMP-SEINFRA'!D:D,_xlfn.XLOOKUP(C34,'CP-CODEVASF'!A:A,'CP-CODEVASF'!C:C))) -> M3 | F34: =ROUND('MEMÓRIA DE CÁLCULO'!M61,2) -> 19.9 | G34: =TRUNC(_xlfn.XLOOKUP(C34,CCD!B:B,CCD!O:O,_xlfn.XLOOKUP(C34,'COMP-SEINFRA'!A:A,'COMP-SEINFRA'!G:G,_xlfn.XLOOKUP(C34,'CP-CODEVASF'!A:A,'CP-CODEVASF'!D:D))),2) -> 113.96 | H34: =TRUNC(G34*(1+$E$14),2) -> 143.49 | I34: =TRUNC(H34*F34,2) -> 2855.45
A35: 3 | D35: PAVIMENTAÇÃO / PISO | I35: =TRUNC(SUM(I36:I40),2) -> 72415.12
A36: 3.1 | B36: SINAPI | C36: 101172 | D36: =_xlfn.XLOOKUP(C36,CCD!B:B,CCD!C:C,_xlfn.XLOOKUP(C36,'COMP-SEINFRA'!A:A,'COMP-SEINFRA'!C:C,_xlfn.XLOOKUP(C36,'CP-CODEVASF'!A:A,'CP-CODEVASF'!B:B))) -> EXECUÇÃO DE PAVIMENTO EM PEDRAS POLIÉDRICAS, REJUNTAMENTO COM ARGAMASSA TRAÇO 1:3 (CIMENTO E AREIA). AF_05/2020 | E36: =_xlfn.XLOOKUP(C36,CCD!B:B,CCD!D:D,_xlfn.XLOOKUP(C36,'COMP-SEINFRA'!A:A,'COMP-SEINFRA'!D:D,_xlfn.XLOOKUP(C36,'CP-CODEVASF'!A:A,'CP-CODEVASF'!C:C))) -> M2 | F36: =ROUND('MEMÓRIA DE CÁLCULO'!M73,2) -> 322.8 | G36: =TRUNC(_xlfn.XLOOKUP(C36,CCD!B:B,CCD!O:O,_xlfn.XLOOKUP(C36,'COMP-SEINFRA'!A:A,'COMP-SEINFRA'!G:G,_xlfn.XLOOKUP(C36,'CP-CODEVASF'!A:A,'CP-CODEVASF'!D:D))),2) -> 79.4 | H36: =TRUNC(G36*(1+$E$14),2) -> 99.98 | I36: =TRUNC(H36*F36,2) -> 32273.54
A37: 3.2 | B37: SINAPI | C37: 94273 | D37: =_xlfn.XLOOKUP(C37,CCD!B:B,CCD!C:C,_xlfn.XLOOKUP(C37,'COMP-SEINFRA'!A:A,'COMP-SEINFRA'!C:C,_xlfn.XLOOKUP(C37,'CP-CODEVASF'!A:A,'CP-CODEVASF'!B:B))) -> ASSENTAMENTO DE GUIA (MEIO-FIO) EM TRECHO RETO, CONFECCIONADA EM CONCRETO PRÉ-FABRICADO, DIMENSÕES 100X15X13X30 CM (COMPRIMENTO X BASE INFERIOR X BASE SUPERIOR X ALTURA). AF_01/2024 | E37: =_xlfn.XLOOKUP(C37,CCD!B:B,CCD!D:D,_xlfn.XLOOKUP(C37,'COMP-SEINFRA'!A:A,'COMP-SEINFRA'!D:D,_xlfn.XLOOKUP(C37,'CP-CODEVASF'!A:A,'CP-CODEVASF'!C:C))) -> M | F37: =ROUND('MEMÓRIA DE CÁLCULO'!M81,2) -> 89.8 | G37: =TRUNC(_xlfn.XLOOKUP(C37,CCD!B:B,CCD!O:O,_xlfn.XLOOKUP(C37,'COMP-SEINFRA'!A:A,'COMP-SEINFRA'!G:G,_xlfn.XLOOKUP(C37,'CP-CODEVASF'!A:A,'CP-CODEVASF'!D:D))),2) -> 43.56 | H37: =TRUNC(G37*(1+$E$14),2) -> 54.85 | I37: =TRUNC(H37*F37,2) -> 4925.53
A38: 3.3 | B38: SINAPI | C38: 97087 | D38: =_xlfn.XLOOKUP(C38,CCD!B:B,CCD!C:C,_xlfn.XLOOKUP(C38,'COMP-SEINFRA'!A:A,'COMP-SEINFRA'!C:C,_xlfn.XLOOKUP(C38,'CP-CODEVASF'!A:A,'CP-CODEVASF'!B:B))) -> CAMADA SEPARADORA PARA EXECUÇÃO DE RADIER, PISO DE CONCRETO OU LAJE SOBRE SOLO, EM LONA PLÁSTICA. AF_09/2021 | E38: =_xlfn.XLOOKUP(C38,CCD!B:B,CCD!D:D,_xlfn.XLOOKUP(C38,'COMP-SEINFRA'!A:A,'COMP-SEINFRA'!D:D,_xlfn.XLOOKUP(C38,'CP-CODEVASF'!A:A,'CP-CODEVASF'!C:C))) -> M2 | F38: =ROUND('MEMÓRIA DE CÁLCULO'!M88,2) -> 100.1 | G38: =TRUNC(_xlfn.XLOOKUP(C38,CCD!B:B,CCD!O:O,_xlfn.XLOOKUP(C38,'COMP-SEINFRA'!A:A,'COMP-SEINFRA'!G:G,_xlfn.XLOOKUP(C38,'CP-CODEVASF'!A:A,'CP-CODEVASF'!D:D))),2) -> 2.13 | H38: =TRUNC(G38*(1+$E$14),2) -> 2.68 | I38: =TRUNC(H38*F38,2) -> 268.26
A39: 3.4 | B39: SINAPI | C39: 94994 | D39: =_xlfn.XLOOKUP(C39,CCD!B:B,CCD!C:C,_xlfn.XLOOKUP(C39,'COMP-SEINFRA'!A:A,'COMP-SEINFRA'!C:C,_xlfn.XLOOKUP(C39,'CP-CODEVASF'!A:A,'CP-CODEVASF'!B:B))) -> EXECUÇÃO DE PASSEIO (CALÇADA) OU PISO DE CONCRETO COM CONCRETO MOLDADO IN LOCO, FEITO EM OBRA, ACABAMENTO CONVENCIONAL, ESPESSURA 8 CM, ARMADO. AF_08/2022 | E39: =_xlfn.XLOOKUP(C39,CCD!B:B,CCD!D:D,_xlfn.XLOOKUP(C39,'COMP-SEINFRA'!A:A,'COMP-SEINFRA'!D:D,_xlfn.XLOOKUP(C39,'CP-CODEVASF'!A:A,'CP-CODEVASF'!C:C))) -> M2 | F39: =ROUND('MEMÓRIA DE CÁLCULO'!M104,2) -> 112.66 | G39: =TRUNC(_xlfn.XLOOKUP(C39,CCD!B:B,CCD!O:O,_xlfn.XLOOKUP(C39,'COMP-SEINFRA'!A:A,'COMP-SEINFRA'!G:G,_xlfn.XLOOKUP(C39,'CP-CODEVASF'!A:A,'CP-CODEVASF'!D:D))),2) -> 94.05 | H39: =TRUNC(G39*(1+$E$14),2) -> 118.42 | I39: =TRUNC(H39*F39,2) -> 13341.19
A40: 3.5 | B40: SINAPI | C40: 103917 | D40: =_xlfn.XLOOKUP(C40,CCD!B:B,CCD!C:C,_xlfn.XLOOKUP(C40,'COMP-SEINFRA'!A:A,'COMP-SEINFRA'!C:C,_xlfn.XLOOKUP(C40,'CP-CODEVASF'!A:A,'CP-CODEVASF'!B:B))) -> EXECUÇÃO DE PISO INDUSTRIAL DE CONCRETO ARMADO, FCK = 20 MPA, ESPESSURA DE 20,0 CM. AF_04/2022 | E40: =_xlfn.XLOOKUP(C40,CCD!B:B,CCD!D:D,_xlfn.XLOOKUP(C40,'COMP-SEINFRA'!A:A,'COMP-SEINFRA'!D:D,_xlfn.XLOOKUP(C40,'CP-CODEVASF'!A:A,'CP-CODEVASF'!C:C))) -> M2 | F40: =ROUND('MEMÓRIA DE CÁLCULO'!M120,2) -> 89.68 | G40: =TRUNC(_xlfn.XLOOKUP(C40,CCD!B:B,CCD!O:O,_xlfn.XLOOKUP(C40,'COMP-SEINFRA'!A:A,'COMP-SEINFRA'!G:G,_xlfn.XLOOKUP(C40,'CP-CODEVASF'!A:A,'CP-CODEVASF'!D:D))),2) -> 191.34 | H40: =TRUNC(G40*(1+$E$14),2) -> 240.93 | I40: =TRUNC(H40*F40,2) -> 21606.6
A41: 4 | D41: COBERTURA | I41: =TRUNC(I42+I48+I54,2) -> 113303.05
A42: 4.1 | D42: FUNDAÇÃO - BLOCOS | I42: =TRUNC(SUM(I43:I47),2) -> 6548.27
A43: 4.1.1 | B43: SINAPI | C43: 93358 | D43: =_xlfn.XLOOKUP(C43,CCD!B:B,CCD!C:C,_xlfn.XLOOKUP(C43,'COMP-SEINFRA'!A:A,'COMP-SEINFRA'!C:C,_xlfn.XLOOKUP(C43,'CP-CODEVASF'!A:A,'CP-CODEVASF'!B:B))) -> ESCAVAÇÃO MANUAL DE VALA. AF_09/2024 | E43: =_xlfn.XLOOKUP(C43,CCD!B:B,CCD!D:D,_xlfn.XLOOKUP(C43,'COMP-SEINFRA'!A:A,'COMP-SEINFRA'!D:D,_xlfn.XLOOKUP(C43,'CP-CODEVASF'!A:A,'CP-CODEVASF'!C:C))) -> M3 | F43: =ROUND('MEMÓRIA DE CÁLCULO'!M129,2) -> 2.5 | G43: =TRUNC(_xlfn.XLOOKUP(C43,CCD!B:B,CCD!O:O,_xlfn.XLOOKUP(C43,'COMP-SEINFRA'!A:A,'COMP-SEINFRA'!G:G,_xlfn.XLOOKUP(C43,'CP-CODEVASF'!A:A,'CP-CODEVASF'!D:D))),2) -> 86.74 | H43: =TRUNC(G43*(1+$E$14),2) -> 109.22 | I43: =TRUNC(H43*F43,2) -> 273.05
A44: 4.1.2 | B44: SINAPI | C44: 101616 | D44: =_xlfn.XLOOKUP(C44,CCD!B:B,CCD!C:C,_xlfn.XLOOKUP(C44,'COMP-SEINFRA'!A:A,'COMP-SEINFRA'!C:C,_xlfn.XLOOKUP(C44,'CP-CODEVASF'!A:A,'CP-CODEVASF'!B:B))) -> PREPARO DE FUNDO DE VALA COM LARGURA MENOR QUE 1,5 M (ACERTO DO SOLO NATURAL). AF_08/2020 | E44: =_xlfn.XLOOKUP(C44,CCD!B:B,CCD!D:D,_xlfn.XLOOKUP(C44,'COMP-SEINFRA'!A:A,'COMP-SEINFRA'!D:D,_xlfn.XLOOKUP(C44,'CP-CODEVASF'!A:A,'CP-CODEVASF'!C:C))) -> M2 | F44: =ROUND('MEMÓRIA DE CÁLCULO'!M135,2) -> 5 | G44: =TRUNC(_xlfn.XLOOKUP(C44,CCD!B:B,CCD!O:O,_xlfn.XLOOKUP(C44,'COMP-SEINFRA'!A:A,'COMP-SEINFRA'!G:G,_xlfn.XLOOKUP(C44,'CP-CODEVASF'!A:A,'CP-CODEVASF'!D:D))),2) -> 6.48 | H44: =TRUNC(G44*(1+$E$14),2) -> 8.15 | I44: =TRUNC(H44*F44,2) -> 40.75
A45: 4.1.3 | B45: SINAPI | C45: 96546 | D45: =_xlfn.XLOOKUP(C45,CCD!B:B,CCD!C:C,_xlfn.XLOOKUP(C45,'COMP-SEINFRA'!A:A,'COMP-SEINFRA'!C:C,_xlfn.XLOOKUP(C45,'CP-CODEVASF'!A:A,'CP-CODEVASF'!B:B))) -> ARMAÇÃO DE BLOCO UTILIZANDO AÇO CA-50 DE 10 MM - MONTAGEM. AF_01/2024 | E45: =_xlfn.XLOOKUP(C45,CCD!B:B,CCD!D:D,_xlfn.XLOOKUP(C45,'COMP-SEINFRA'!A:A,'COMP-SEINFRA'!D:D,_xlfn.XLOOKUP(C45,'CP-CODEVASF'!A:A,'CP-CODEVASF'!C:C))) -> KG | F45: =ROUND('MEMÓRIA DE CÁLCULO'!M141,2) -> 142.12 | G45: =TRUNC(_xlfn.XLOOKUP(C45,CCD!B:B,CCD!O:O,_xlfn.XLOOKUP(C45,'COMP-SEINFRA'!A:A,'COMP-SEINFRA'!G:G,_xlfn.XLOOKUP(C45,'CP-CODEVASF'!A:A,'CP-CODEVASF'!D:D))),2) -> 13.08 | H45: =TRUNC(G45*(1+$E$14),2) -> 16.47 | I45: =TRUNC(H45*F45,2) -> 2340.71
A46: 4.1.4 | B46: SINAPI | C46: 96543 | D46: =_xlfn.XLOOKUP(C46,CCD!B:B,CCD!C:C,_xlfn.XLOOKUP(C46,'COMP-SEINFRA'!A:A,'COMP-SEINFRA'!C:C,_xlfn.XLOOKUP(C46,'CP-CODEVASF'!A:A,'CP-CODEVASF'!B:B))) -> ARMAÇÃO DE BLOCO UTILIZANDO AÇO CA-60 DE 5 MM - MONTAGEM. AF_01/2024 | E46: =_xlfn.XLOOKUP(C46,CCD!B:B,CCD!D:D,_xlfn.XLOOKUP(C46,'COMP-SEINFRA'!A:A,'COMP-SEINFRA'!D:D,_xlfn.XLOOKUP(C46,'CP-CODEVASF'!A:A,'CP-CODEVASF'!C:C))) -> KG | F46: =ROUND('MEMÓRIA DE CÁLCULO'!M147,2) -> 94.62 | G46: =TRUNC(_xlfn.XLOOKUP(C46,CCD!B:B,CCD!O:O,_xlfn.XLOOKUP(C46,'COMP-SEINFRA'!A:A,'COMP-SEINFRA'!G:G,_xlfn.XLOOKUP(C46,'CP-CODEVASF'!A:A,'CP-CODEVASF'!D:D))),2) -> 19.13 | H46: =TRUNC(G46*(1+$E$14),2) -> 24.08 | I46: =TRUNC(H46*F46,2) -> 2278.44
A47: 4.1.5 | B47: SINAPI | C47: 94965 | D47: =_xlfn.XLOOKUP(C47,CCD!B:B,CCD!C:C,_xlfn.XLOOKUP(C47,'COMP-SEINFRA'!A:A,'COMP-SEINFRA'!C:C,_xlfn.XLOOKUP(C47,'CP-CODEVASF'!A:A,'CP-CODEVASF'!B:B))) -> CONCRETO FCK = 25MPA, TRAÇO 1:2,3:2,7 (EM MASSA SECA DE CIMENTO/ AREIA MÉDIA/ BRITA 1) - PREPARO MECÂNICO COM BETONEIRA 400 L. AF_05/2021 | E47: =_xlfn.XLOOKUP(C47,CCD!B:B,CCD!D:D,_xlfn.XLOOKUP(C47,'COMP-SEINFRA'!A:A,'COMP-SEINFRA'!D:D,_xlfn.XLOOKUP(C47,'CP-CODEVASF'!A:A,'CP-CODEVASF'!C:C))) -> M3 | F47: =ROUND('MEMÓRIA DE CÁLCULO'!M153,2) -> 2.5 | G47: =TRUNC(_xlfn.XLOOKUP(C47,CCD!B:B,CCD!O:O,_xlfn.XLOOKUP(C47,'COMP-SEINFRA'!A:A,'COMP-SEINFRA'!G:G,_xlfn.XLOOKUP(C47,'CP-CODEVASF'!A:A,'CP-CODEVASF'!D:D))),2) -> 513.13 | H47: =TRUNC(G47*(1+$E$14),2) -> 646.13 | I47: =TRUNC(H47*F47,2) -> 1615.32
A48: 4.2 | D48: FUNDAÇÃO - VIGAS BALDRAMES | I48: =TRUNC(SUM(I49:I53),2) -> 7822.47
A49: 4.2.1 | B49: SINAPI | C49: 93358 | D49: =_xlfn.XLOOKUP(C49,CCD!B:B,CCD!C:C,_xlfn.XLOOKUP(C49,'COMP-SEINFRA'!A:A,'COMP-SEINFRA'!C:C,_xlfn.XLOOKUP(C49,'CP-CODEVASF'!A:A,'CP-CODEVASF'!B:B))) -> ESCAVAÇÃO MANUAL DE VALA. AF_09/2024 | E49: =_xlfn.XLOOKUP(C49,CCD!B:B,CCD!D:D,_xlfn.XLOOKUP(C49,'COMP-SEINFRA'!A:A,'COMP-SEINFRA'!D:D,_xlfn.XLOOKUP(C49,'CP-CODEVASF'!A:A,'CP-CODEVASF'!C:C))) -> M3 | F49: =ROUND('MEMÓRIA DE CÁLCULO'!M160,2) -> 5.31 | G49: =TRUNC(_xlfn.XLOOKUP(C49,CCD!B:B,CCD!O:O,_xlfn.XLOOKUP(C49,'COMP-SEINFRA'!A:A,'COMP-SEINFRA'!G:G,_xlfn.XLOOKUP(C49,'CP-CODEVASF'!A:A,'CP-CODEVASF'!D:D))),2) -> 86.74 | H49: =TRUNC(G49*(1+$E$14),2) -> 109.22 | I49: =TRUNC(H49*F49,2) -> 579.95
A50: 4.2.2 | B50: SINAPI | C50: 101616 | D50: =_xlfn.XLOOKUP(C50,CCD!B:B,CCD!C:C,_xlfn.XLOOKUP(C50,'COMP-SEINFRA'!A:A,'COMP-SEINFRA'!C:C,_xlfn.XLOOKUP(C50,'CP-CODEVASF'!A:A,'CP-CODEVASF'!B:B))) -> PREPARO DE FUNDO DE VALA COM LARGURA MENOR QUE 1,5 M (ACERTO DO SOLO NATURAL). AF_08/2020 | E50: =_xlfn.XLOOKUP(C50,CCD!B:B,CCD!D:D,_xlfn.XLOOKUP(C50,'COMP-SEINFRA'!A:A,'COMP-SEINFRA'!D:D,_xlfn.XLOOKUP(C50,'CP-CODEVASF'!A:A,'CP-CODEVASF'!C:C))) -> M2 | F50: =ROUND('MEMÓRIA DE CÁLCULO'!M169,2) -> 13.28 | G50: =TRUNC(_xlfn.XLOOKUP(C50,CCD!B:B,CCD!O:O,_xlfn.XLOOKUP(C50,'COMP-SEINFRA'!A:A,'COMP-SEINFRA'!G:G,_xlfn.XLOOKUP(C50,'CP-CODEVASF'!A:A,'CP-CODEVASF'!D:D))),2) -> 6.48 | H50: =TRUNC(G50*(1+$E$14),2) -> 8.15 | I50: =TRUNC(H50*F50,2) -> 108.23
A51: 4.2.3 | B51: SINAPI | C51: 104918 | D51: =_xlfn.XLOOKUP(C51,CCD!B:B,CCD!C:C,_xlfn.XLOOKUP(C51,'COMP-SEINFRA'!A:A,'COMP-SEINFRA'!C:C,_xlfn.XLOOKUP(C51,'CP-CODEVASF'!A:A,'CP-CODEVASF'!B:B))) -> ARMAÇÃO DE SAPATA ISOLADA, VIGA BALDRAME E SAPATA CORRIDA UTILIZANDO AÇO CA-50 DE 8 MM - MONTAGEM. AF_01/2024 | E51: =_xlfn.XLOOKUP(C51,CCD!B:B,CCD!D:D,_xlfn.XLOOKUP(C51,'COMP-SEINFRA'!A:A,'COMP-SEINFRA'!D:D,_xlfn.XLOOKUP(C51,'CP-CODEVASF'!A:A,'CP-CODEVASF'!C:C))) -> KG | F51: =ROUND('MEMÓRIA DE CÁLCULO'!M178,2) -> 146.04 | G51: =TRUNC(_xlfn.XLOOKUP(C51,CCD!B:B,CCD!O:O,_xlfn.XLOOKUP(C51,'COMP-SEINFRA'!A:A,'COMP-SEINFRA'!G:G,_xlfn.XLOOKUP(C51,'CP-CODEVASF'!A:A,'CP-CODEVASF'!D:D))),2) -> 13.31 | H51: =TRUNC(G51*(1+$E$14),2) -> 16.75 | I51: =TRUNC(H51*F51,2) -> 2446.17
A52: 4.2.4 | B52: SINAPI | C52: 104916 | D52: =_xlfn.XLOOKUP(C52,CCD!B:B,CCD!C:C,_xlfn.XLOOKUP(C52,'COMP-SEINFRA'!A:A,'COMP-SEINFRA'!C:C,_xlfn.XLOOKUP(C52,'CP-CODEVASF'!A:A,'CP-CODEVASF'!B:B))) -> ARMAÇÃO DE SAPATA ISOLADA, VIGA BALDRAME E SAPATA CORRIDA UTILIZANDO AÇO CA-60 DE 5 MM - MONTAGEM. AF_01/2024 | E52: =_xlfn.XLOOKUP(C52,CCD!B:B,CCD!D:D,_xlfn.XLOOKUP(C52,'COMP-SEINFRA'!A:A,'COMP-SEINFRA'!D:D,_xlfn.XLOOKUP(C52,'CP-CODEVASF'!A:A,'CP-CODEVASF'!C:C))) -> KG | F52: =ROUND('MEMÓRIA DE CÁLCULO'!M184,2) -> 62.89 | G52: =TRUNC(_xlfn.XLOOKUP(C52,CCD!B:B,CCD!O:O,_xlfn.XLOOKUP(C52,'COMP-SEINFRA'!A:A,'COMP-SEINFRA'!G:G,_xlfn.XLOOKUP(C52,'CP-CODEVASF'!A:A,'CP-CODEVASF'!D:D))),2) -> 15.88 | H52: =TRUNC(G52*(1+$E$14),2) -> 19.99 | I52: =TRUNC(H52*F52,2) -> 1257.17
A53: 4.2.5 | B53: SINAPI | C53: 94965 | D53: =_xlfn.XLOOKUP(C53,CCD!B:B,CCD!C:C,_xlfn.XLOOKUP(C53,'COMP-SEINFRA'!A:A,'COMP-SEINFRA'!C:C,_xlfn.XLOOKUP(C53,'CP-CODEVASF'!A:A,'CP-CODEVASF'!B:B))) -> CONCRETO FCK = 25MPA, TRAÇO 1:2,3:2,7 (EM MASSA SECA DE CIMENTO/ AREIA MÉDIA/ BRITA 1) - PREPARO MECÂNICO COM BETONEIRA 400 L. AF_05/2021 | E53: =_xlfn.XLOOKUP(C53,CCD!B:B,CCD!D:D,_xlfn.XLOOKUP(C53,'COMP-SEINFRA'!A:A,'COMP-SEINFRA'!D:D,_xlfn.XLOOKUP(C53,'CP-CODEVASF'!A:A,'CP-CODEVASF'!C:C))) -> M3 | F53: =ROUND('MEMÓRIA DE CÁLCULO'!M190,2) -> 5.31 | G53: =TRUNC(_xlfn.XLOOKUP(C53,CCD!B:B,CCD!O:O,_xlfn.XLOOKUP(C53,'COMP-SEINFRA'!A:A,'COMP-SEINFRA'!G:G,_xlfn.XLOOKUP(C53,'CP-CODEVASF'!A:A,'CP-CODEVASF'!D:D))),2) -> 513.13 | H53: =TRUNC(G53*(1+$E$14),2) -> 646.13 | I53: =TRUNC(H53*F53,2) -> 3430.95
A54: 4.3 | D54: ESTRUTURA METÁLICA | I54: =TRUNC(SUM(I55:I57),2) -> 98932.31
A55: 4.3.1 | B55: SEINFRA | C55: C1353 | D55: =_xlfn.XLOOKUP(C55,CCD!B:B,CCD!C:C,_xlfn.XLOOKUP(C55,'COMP-SEINFRA'!A:A,'COMP-SEINFRA'!C:C,_xlfn.XLOOKUP(C55,'CP-CODEVASF'!A:A,'CP-CODEVASF'!B:B))) -> ESTRUTURA METÁLICA TRELIÇADA EM AÇO, EM MARQUISES | E55: =_xlfn.XLOOKUP(C55,CCD!B:B,CCD!D:D,_xlfn.XLOOKUP(C55,'COMP-SEINFRA'!A:A,'COMP-SEINFRA'!D:D,_xlfn.XLOOKUP(C55,'CP-CODEVASF'!A:A,'CP-CODEVASF'!C:C))) -> M2 | F55: =ROUND('MEMÓRIA DE CÁLCULO'!M200,2) -> 174.21 | G55: =TRUNC(_xlfn.XLOOKUP(C55,CCD!B:B,CCD!O:O,_xlfn.XLOOKUP(C55,'COMP-SEINFRA'!A:A,'COMP-SEINFRA'!G:G,_xlfn.XLOOKUP(C55,'CP-CODEVASF'!A:A,'CP-CODEVASF'!D:D))),2) -> 269.61 | H55: =TRUNC(G55*(1+$E$14),2) -> 339.49 | I55: =TRUNC(H55*F55,2) -> 59142.55
A56: 4.3.2 | B56: SINAPI | C56: 94216 | D56: =_xlfn.XLOOKUP(C56,CCD!B:B,CCD!C:C,_xlfn.XLOOKUP(C56,'COMP-SEINFRA'!A:A,'COMP-SEINFRA'!C:C,_xlfn.XLOOKUP(C56,'CP-CODEVASF'!A:A,'CP-CODEVASF'!B:B))) -> TELHAMENTO COM TELHA METÁLICA TERMOACÚSTICA E = 30 MM, COM ATÉ 2 ÁGUAS, INCLUSO IÇAMENTO. AF_07/2019 | E56: =_xlfn.XLOOKUP(C56,CCD!B:B,CCD!D:D,_xlfn.XLOOKUP(C56,'COMP-SEINFRA'!A:A,'COMP-SEINFRA'!D:D,_xlfn.XLOOKUP(C56,'CP-CODEVASF'!A:A,'CP-CODEVASF'!C:C))) -> M2 | F56: =ROUND('MEMÓRIA DE CÁLCULO'!M215,2) -> 153.26 | G56: =TRUNC(_xlfn.XLOOKUP(C56,CCD!B:B,CCD!O:O,_xlfn.XLOOKUP(C56,'COMP-SEINFRA'!A:A,'COMP-SEINFRA'!G:G,_xlfn.XLOOKUP(C56,'CP-CODEVASF'!A:A,'CP-CODEVASF'!D:D))),2) -> 196.64 | H56: =TRUNC(G56*(1+$E$14),2) -> 247.6 | I56: =TRUNC(H56*F56,2) -> 37947.17
A57: 4.3.3 | B57: SEINFRA | C57: C2479 | D57: =_xlfn.XLOOKUP(C57,CCD!B:B,CCD!C:C,_xlfn.XLOOKUP(C57,'COMP-SEINFRA'!A:A,'COMP-SEINFRA'!C:C,_xlfn.XLOOKUP(C57,'CP-CODEVASF'!A:A,'CP-CODEVASF'!B:B))) -> TOLDO COM ESTRUTURA METÁLICA | E57: =_xlfn.XLOOKUP(C57,CCD!B:B,CCD!D:D,_xlfn.XLOOKUP(C57,'COMP-SEINFRA'!A:A,'COMP-SEINFRA'!D:D,_xlfn.XLOOKUP(C57,'CP-CODEVASF'!A:A,'CP-CODEVASF'!C:C))) -> M2 | F57: =ROUND('MEMÓRIA DE CÁLCULO'!M223,2) -> 5.45 | G57: =TRUNC(_xlfn.XLOOKUP(C57,CCD!B:B,CCD!O:O,_xlfn.XLOOKUP(C57,'COMP-SEINFRA'!A:A,'COMP-SEINFRA'!G:G,_xlfn.XLOOKUP(C57,'CP-CODEVASF'!A:A,'CP-CODEVASF'!D:D))),2) -> 268.5 | H57: =TRUNC(G57*(1+$E$14),2) -> 338.09 | I57: =TRUNC(H57*F57,2) -> 1842.59
A58: 5 | D58: PAREDES / PAINÉIS / VEDAÇÃO | I58: =TRUNC(SUM(I59:I59),2) -> 180303.03
A59: 5.1 | B59: CODEVASF | C59: ='CP-CODEVASF'!A21 -> COMP-21 | D59: =_xlfn.XLOOKUP(C59,CCD!B:B,CCD!C:C,_xlfn.XLOOKUP(C59,'COMP-SEINFRA'!A:A,'COMP-SEINFRA'!C:C,_xlfn.XLOOKUP(C59,'CP-CODEVASF'!A:A,'CP-CODEVASF'!B:B))) -> FORNECIMENTO E INSTALAÇÃO DE ISOPAINEL EPS 100 MM | E59: =_xlfn.XLOOKUP(C59,CCD!B:B,CCD!D:D,_xlfn.XLOOKUP(C59,'COMP-SEINFRA'!A:A,'COMP-SEINFRA'!D:D,_xlfn.XLOOKUP(C59,'CP-CODEVASF'!A:A,'CP-CODEVASF'!C:C))) -> M2 | F59: =ROUND('MEMÓRIA DE CÁLCULO'!M234,2) -> 450.06 | G59: =TRUNC(_xlfn.XLOOKUP(C59,CCD!B:B,CCD!O:O,_xlfn.XLOOKUP(C59,'COMP-SEINFRA'!A:A,'COMP-SEINFRA'!G:G,_xlfn.XLOOKUP(C59,'CP-CODEVASF'!A:A,'CP-CODEVASF'!D:D))),2) -> 318.16 | H59: =TRUNC(G59*(1+$E$14),2) -> 400.62 | I59: =TRUNC(H59*F59,2) -> 180303.03
A60: 6 | D60: PINTURA | I60: =TRUNC(SUM(I61:I62),2) -> 7621.17
A61: 6.1 | B61: SEINFRA | C61: C2040 | D61: =_xlfn.XLOOKUP(C61,CCD!B:B,CCD!C:C,_xlfn.XLOOKUP(C61,'COMP-SEINFRA'!A:A,'COMP-SEINFRA'!C:C,_xlfn.XLOOKUP(C61,'CP-CODEVASF'!A:A,'CP-CODEVASF'!B:B))) -> PINTURA C/ PRIMER EPOXI EM ESTRUTURA DE AÇO CARBONO 25 MICRA C/REVÓLVER | E61: =_xlfn.XLOOKUP(C61,CCD!B:B,CCD!D:D,_xlfn.XLOOKUP(C61,'COMP-SEINFRA'!A:A,'COMP-SEINFRA'!D:D,_xlfn.XLOOKUP(C61,'CP-CODEVASF'!A:A,'CP-CODEVASF'!C:C))) -> M2 | F61: =ROUND('MEMÓRIA DE CÁLCULO'!M260,2) -> 179.66 | G61: =TRUNC(_xlfn.XLOOKUP(C61,CCD!B:B,CCD!O:O,_xlfn.XLOOKUP(C61,'COMP-SEINFRA'!A:A,'COMP-SEINFRA'!G:G,_xlfn.XLOOKUP(C61,'CP-CODEVASF'!A:A,'CP-CODEVASF'!D:D))),2) -> 12.38 | H61: =TRUNC(G61*(1+$E$14),2) -> 15.58 | I61: =TRUNC(H61*F61,2) -> 2799.1
A62: 6.2 | B62: SEINFRA | C62: C2473 | D62: =_xlfn.XLOOKUP(C62,CCD!B:B,CCD!C:C,_xlfn.XLOOKUP(C62,'COMP-SEINFRA'!A:A,'COMP-SEINFRA'!C:C,_xlfn.XLOOKUP(C62,'CP-CODEVASF'!A:A,'CP-CODEVASF'!B:B))) -> PINTURA C/ TINTA EPOXI EM ESTRUTURA DE AÇO CARBONO 50 MICRA C/REVÓLVER | E62: =_xlfn.XLOOKUP(C62,CCD!B:B,CCD!D:D,_xlfn.XLOOKUP(C62,'COMP-SEINFRA'!A:A,'COMP-SEINFRA'!D:D,_xlfn.XLOOKUP(C62,'CP-CODEVASF'!A:A,'CP-CODEVASF'!C:C))) -> M2 | F62: =ROUND('MEMÓRIA DE CÁLCULO'!M282,2) -> 179.66 | G62: =TRUNC(_xlfn.XLOOKUP(C62,CCD!B:B,CCD!O:O,_xlfn.XLOOKUP(C62,'COMP-SEINFRA'!A:A,'COMP-SEINFRA'!G:G,_xlfn.XLOOKUP(C62,'CP-CODEVASF'!A:A,'CP-CODEVASF'!D:D))),2) -> 21.32 | H62: =TRUNC(G62*(1+$E$14),2) -> 26.84 | I62: =TRUNC(H62*F62,2) -> 4822.07
A63: 7 | D63: ESQUADRIAS | I63: =TRUNC(SUM(I64:I69),2) -> 37993.28
A64: 7.1 | B64: SINAPI | C64: 91341 | D64: =_xlfn.XLOOKUP(C64,CCD!B:B,CCD!C:C,_xlfn.XLOOKUP(C64,'COMP-SEINFRA'!A:A,'COMP-SEINFRA'!C:C,_xlfn.XLOOKUP(C64,'CP-CODEVASF'!A:A,'CP-CODEVASF'!B:B))) -> PORTA EM ALUMÍNIO DE ABRIR TIPO VENEZIANA COM GUARNIÇÃO, FIXAÇÃO COM PARAFUSOS - FORNECIMENTO E INSTALAÇÃO. AF_12/2019 | E64: =_xlfn.XLOOKUP(C64,CCD!B:B,CCD!D:D,_xlfn.XLOOKUP(C64,'COMP-SEINFRA'!A:A,'COMP-SEINFRA'!D:D,_xlfn.XLOOKUP(C64,'CP-CODEVASF'!A:A,'CP-CODEVASF'!C:C))) -> M2 | F64: =ROUND('MEMÓRIA DE CÁLCULO'!M305,2) -> 20.79 | G64: =TRUNC(_xlfn.XLOOKUP(C64,CCD!B:B,CCD!O:O,_xlfn.XLOOKUP(C64,'COMP-SEINFRA'!A:A,'COMP-SEINFRA'!G:G,_xlfn.XLOOKUP(C64,'CP-CODEVASF'!A:A,'CP-CODEVASF'!D:D))),2) -> 652.2 | H64: =TRUNC(G64*(1+$E$14),2) -> 821.25 | I64: =TRUNC(H64*F64,2) -> 17073.78
A65: 7.2 | B65: SEINFRA | C65: C4514 | D65: =_xlfn.XLOOKUP(C65,CCD!B:B,CCD!C:C,_xlfn.XLOOKUP(C65,'COMP-SEINFRA'!A:A,'COMP-SEINFRA'!C:C,_xlfn.XLOOKUP(C65,'CP-CODEVASF'!A:A,'CP-CODEVASF'!B:B))) -> PORTA EM ALUMÍNIO ANODIZADO NATURAL/FOSCO, DE CORRER, SEM BANDEIROLA E/OU PEITORIL, SEM VIDRO - FORNECIMENTO E MONTAGEM | E65: =_xlfn.XLOOKUP(C65,CCD!B:B,CCD!D:D,_xlfn.XLOOKUP(C65,'COMP-SEINFRA'!A:A,'COMP-SEINFRA'!D:D,_xlfn.XLOOKUP(C65,'CP-CODEVASF'!A:A,'CP-CODEVASF'!C:C))) -> M2 | F65: =ROUND('MEMÓRIA DE CÁLCULO'!M312,2) -> 10.08 | G65: =TRUNC(_xlfn.XLOOKUP(C65,CCD!B:B,CCD!O:O,_xlfn.XLOOKUP(C65,'COMP-SEINFRA'!A:A,'COMP-SEINFRA'!G:G,_xlfn.XLOOKUP(C65,'CP-CODEVASF'!A:A,'CP-CODEVASF'!D:D))),2) -> 404.39 | H65: 509.2 | I65: 5132.73
A66: 7.3 | B66: SEINFRA | C66: C3737 | D66: =_xlfn.XLOOKUP(C66,CCD!B:B,CCD!C:C,_xlfn.XLOOKUP(C66,'COMP-SEINFRA'!A:A,'COMP-SEINFRA'!C:C,_xlfn.XLOOKUP(C66,'CP-CODEVASF'!A:A,'CP-CODEVASF'!B:B))) -> PORTA FRIGORÍFICA TERMO-ISOLANTE DE ACIONAMENTO MANUAL C/AQUECIMENTO. 2100X1000X150MM -( FORNECIMENTO | E66: =_xlfn.XLOOKUP(C66,CCD!B:B,CCD!D:D,_xlfn.XLOOKUP(C66,'COMP-SEINFRA'!A:A,'COMP-SEINFRA'!D:D,_xlfn.XLOOKUP(C66,'CP-CODEVASF'!A:A,'CP-CODEVASF'!C:C))) -> UN | F66: =ROUND('MEMÓRIA DE CÁLCULO'!M319,2) -> 1 | G66: =TRUNC(_xlfn.XLOOKUP(C66,CCD!B:B,CCD!O:O,_xlfn.XLOOKUP(C66,'COMP-SEINFRA'!A:A,'COMP-SEINFRA'!G:G,_xlfn.XLOOKUP(C66,'CP-CODEVASF'!A:A,'CP-CODEVASF'!D:D))),2) -> 3352.31 | H66: 4221.22 | I66: 4221.22
A67: 7.4 | B67: SINAPI | C67: 94570 | D67: =_xlfn.XLOOKUP(C67,CCD!B:B,CCD!C:C,_xlfn.XLOOKUP(C67,'COMP-SEINFRA'!A:A,'COMP-SEINFRA'!C:C,_xlfn.XLOOKUP(C67,'CP-CODEVASF'!A:A,'CP-CODEVASF'!B:B))) -> JANELA DE ALUMÍNIO DE CORRER COM 2 FOLHAS PARA VIDROS (VIDROS INCLUSOS), BATENTE/ REQUADRO 6 A 14 CM, ACABAMENTO COM ACETATO OU BRILHANTE, FIXAÇÃO COM PARAFUSO, SEM GUARNIÇÃO/ ALIZAR, DIMENSÕES 100X120 CM, VEDAÇÃO COM SILICONE, EXCLUSIVE CONTRAMARCO - FORNECIMENTO E INSTALAÇÃO. AF_11/2024 | E67: =_xlfn.XLOOKUP(C67,CCD!B:B,CCD!D:D,_xlfn.XLOOKUP(C67,'COMP-SEINFRA'!A:A,'COMP-SEINFRA'!D:D,_xlfn.XLOOKUP(C67,'CP-CODEVASF'!A:A,'CP-CODEVASF'!C:C))) -> M2 | F67: =ROUND('MEMÓRIA DE CÁLCULO'!M325,2) -> 2.8 | G67: =TRUNC(_xlfn.XLOOKUP(C67,CCD!B:B,CCD!O:O,_xlfn.XLOOKUP(C67,'COMP-SEINFRA'!A:A,'COMP-SEINFRA'!G:G,_xlfn.XLOOKUP(C67,'CP-CODEVASF'!A:A,'CP-CODEVASF'!D:D))),2) -> 401.12 | H67: 505.09 | I67: 1414.25
A68: 7.5 | B68: SINAPI | C68: 100674 | D68: =_xlfn.XLOOKUP(C68,CCD!B:B,CCD!C:C,_xlfn.XLOOKUP(C68,'COMP-SEINFRA'!A:A,'COMP-SEINFRA'!C:C,_xlfn.XLOOKUP(C68,'CP-CODEVASF'!A:A,'CP-CODEVASF'!B:B))) -> CAIXILHO FIXO DE ALUMÍNIO PARA VIDRO (VIDRO INCLUSO), BATENTE/ REQUADRO DE 4 A 14 CM, SEM GUARNIÇÃO/ ALIZAR, FIXAÇÃO COM PARAFUSOS, VEDAÇÃO COM SILICONE, EXCLUSIVE CONTRAMARCO - FORNECIMENTO E INSTALAÇÃO. AF_11/2024 | E68: =_xlfn.XLOOKUP(C68,CCD!B:B,CCD!D:D,_xlfn.XLOOKUP(C68,'COMP-SEINFRA'!A:A,'COMP-SEINFRA'!D:D,_xlfn.XLOOKUP(C68,'CP-CODEVASF'!A:A,'CP-CODEVASF'!C:C))) -> M2 | F68: =ROUND('MEMÓRIA DE CÁLCULO'!M331,2) -> 8 | G68: =TRUNC(_xlfn.XLOOKUP(C68,CCD!B:B,CCD!O:O,_xlfn.XLOOKUP(C68,'COMP-SEINFRA'!A:A,'COMP-SEINFRA'!G:G,_xlfn.XLOOKUP(C68,'CP-CODEVASF'!A:A,'CP-CODEVASF'!D:D))),2) -> 871.67 | H68: 1097.6 | I68: 8780.8
A69: 7.6 | B69: SINAPI | C69: 94569 | D69: =_xlfn.XLOOKUP(C69,CCD!B:B,CCD!C:C,_xlfn.XLOOKUP(C69,'COMP-SEINFRA'!A:A,'COMP-SEINFRA'!C:C,_xlfn.XLOOKUP(C69,'CP-CODEVASF'!A:A,'CP-CODEVASF'!B:B))) -> JANELA DE ALUMÍNIO TIPO MAXIM-AR, BATENTE/ REQUADRO 3 A 14 CM, VIDRO INCLUSO, FIXAÇÃO COM PARAFUSO, SEM GUARNIÇÃO/ ALIZAR, DIMENSÕES 60X80 (A X L) CM, SEM ACABAMENTO, VEDAÇÃO COM SILICONE, EXCLUSIVE CONTRAMARCO - FORNECIMENTO E INSTALAÇÃO. AF_11/2024 | E69: =_xlfn.XLOOKUP(C69,CCD!B:B,CCD!D:D,_xlfn.XLOOKUP(C69,'COMP-SEINFRA'!A:A,'COMP-SEINFRA'!D:D,_xlfn.XLOOKUP(C69,'CP-CODEVASF'!A:A,'CP-CODEVASF'!C:C))) -> M2 | F69: =ROUND('MEMÓRIA DE CÁLCULO'!M337,2) -> 1.44 | G69: =TRUNC(_xlfn.XLOOKUP(C69,CCD!B:B,CCD!O:O,_xlfn.XLOOKUP(C69,'COMP-SEINFRA'!A:A,'COMP-SEINFRA'!G:G,_xlfn.XLOOKUP(C69,'CP-CODEVASF'!A:A,'CP-CODEVASF'!D:D))),2) -> 755.83 | H69: 951.74 | I69: 1370.5
A70: 8 | D70: INSTALAÇÕES ELÉTRICAS | I70: =TRUNC(SUM(I71:I96),2) -> 31654.66
A71: 8.1 | B71: SINAPI | C71: COMP-33 | D71: =_xlfn.XLOOKUP(C71,CCD!B:B,CCD!C:C,_xlfn.XLOOKUP(C71,'COMP-SEINFRA'!A:A,'COMP-SEINFRA'!C:C,_xlfn.XLOOKUP(C71,'CP-CODEVASF'!A:A,'CP-CODEVASF'!B:B))) -> ENTRADA DE ENERGIA COM POSTE E ASSENTAMENTO | E71: =_xlfn.XLOOKUP(C71,CCD!B:B,CCD!D:D,_xlfn.XLOOKUP(C71,'COMP-SEINFRA'!A:A,'COMP-SEINFRA'!D:D,_xlfn.XLOOKUP(C71,'CP-CODEVASF'!A:A,'CP-CODEVASF'!C:C))) -> UN | F71: =ROUND('MEMÓRIA DE CÁLCULO'!M344,2) -> 1 | G71: =TRUNC(_xlfn.XLOOKUP(C71,CCD!B:B,CCD!O:O,_xlfn.XLOOKUP(C71,'COMP-SEINFRA'!A:A,'COMP-SEINFRA'!G:G,_xlfn.XLOOKUP(C71,'CP-CODEVASF'!A:A,'CP-CODEVASF'!D:D))),2) -> 3660.45 | H71: =TRUNC(G71*(1+$E$14),2) -> 4609.23 | I71: =TRUNC(H71*F71,2) -> 4609.23
A72: 8.2 | B72: SINAPI | C72: 101878 | D72: =_xlfn.XLOOKUP(C72,CCD!B:B,CCD!C:C,_xlfn.XLOOKUP(C72,'COMP-SEINFRA'!A:A,'COMP-SEINFRA'!C:C,_xlfn.XLOOKUP(C72,'CP-CODEVASF'!A:A,'CP-CODEVASF'!B:B))) -> QUADRO DE DISTRIBUIÇÃO DE ENERGIA EM CHAPA DE AÇO GALVANIZADO, DE SOBREPOR, COM BARRAMENTO TRIFÁSICO, PARA 18 DISJUNTORES DIN 100A - FORNECIMENTO E INSTALAÇÃO. AF_07/2025 | E72: =_xlfn.XLOOKUP(C72,CCD!B:B,CCD!D:D,_xlfn.XLOOKUP(C72,'COMP-SEINFRA'!A:A,'COMP-SEINFRA'!D:D,_xlfn.XLOOKUP(C72,'CP-CODEVASF'!A:A,'CP-CODEVASF'!C:C))) -> UN | F72: =ROUND('MEMÓRIA DE CÁLCULO'!M350,2) -> 2 | G72: =TRUNC(_xlfn.XLOOKUP(C72,CCD!B:B,CCD!O:O,_xlfn.XLOOKUP(C72,'COMP-SEINFRA'!A:A,'COMP-SEINFRA'!G:G,_xlfn.XLOOKUP(C72,'CP-CODEVASF'!A:A,'CP-CODEVASF'!D:D))),2) -> 401.59 | H72: 505.68 | I72: 1011.36
A73: 8.3 | B73: SINAPI | C73: 91927 | D73: =_xlfn.XLOOKUP(C73,CCD!B:B,CCD!C:C,_xlfn.XLOOKUP(C73,'COMP-SEINFRA'!A:A,'COMP-SEINFRA'!C:C,_xlfn.XLOOKUP(C73,'CP-CODEVASF'!A:A,'CP-CODEVASF'!B:B))) -> CABO DE COBRE FLEXÍVEL ISOLADO, 2,5 MM², ANTI-CHAMA 0,6/1,0 KV, PARA CIRCUITOS TERMINAIS - FORNECIMENTO E INSTALAÇÃO. AF_03/2023 | E73: =_xlfn.XLOOKUP(C73,CCD!B:B,CCD!D:D,_xlfn.XLOOKUP(C73,'COMP-SEINFRA'!A:A,'COMP-SEINFRA'!D:D,_xlfn.XLOOKUP(C73,'CP-CODEVASF'!A:A,'CP-CODEVASF'!C:C))) -> M | F73: =ROUND('MEMÓRIA DE CÁLCULO'!M356,2) -> 5.8 | G73: =TRUNC(_xlfn.XLOOKUP(C73,CCD!B:B,CCD!O:O,_xlfn.XLOOKUP(C73,'COMP-SEINFRA'!A:A,'COMP-SEINFRA'!G:G,_xlfn.XLOOKUP(C73,'CP-CODEVASF'!A:A,'CP-CODEVASF'!D:D))),2) -> 5.32 | H73: 6.69 | I73: 38.8
A74: 8.4 | B74: SINAPI | C74: 91929 | D74: =_xlfn.XLOOKUP(C74,CCD!B:B,CCD!C:C,_xlfn.XLOOKUP(C74,'COMP-SEINFRA'!A:A,'COMP-SEINFRA'!C:C,_xlfn.XLOOKUP(C74,'CP-CODEVASF'!A:A,'CP-CODEVASF'!B:B))) -> CABO DE COBRE FLEXÍVEL ISOLADO, 4 MM², ANTI-CHAMA 0,6/1,0 KV, PARA CIRCUITOS TERMINAIS - FORNECIMENTO E INSTALAÇÃO. AF_03/2023 | E74: =_xlfn.XLOOKUP(C74,CCD!B:B,CCD!D:D,_xlfn.XLOOKUP(C74,'COMP-SEINFRA'!A:A,'COMP-SEINFRA'!D:D,_xlfn.XLOOKUP(C74,'CP-CODEVASF'!A:A,'CP-CODEVASF'!C:C))) -> M | F74: =ROUND('MEMÓRIA DE CÁLCULO'!M362,2) -> 284.28 | G74: =TRUNC(_xlfn.XLOOKUP(C74,CCD!B:B,CCD!O:O,_xlfn.XLOOKUP(C74,'COMP-SEINFRA'!A:A,'COMP-SEINFRA'!G:G,_xlfn.XLOOKUP(C74,'CP-CODEVASF'!A:A,'CP-CODEVASF'!D:D))),2) -> 7.89 | H74: 9.93 | I74: 2822.9
A75: 8.5 | B75: SINAPI | C75: 91924 | D75: =_xlfn.XLOOKUP(C75,CCD!B:B,CCD!C:C,_xlfn.XLOOKUP(C75,'COMP-SEINFRA'!A:A,'COMP-SEINFRA'!C:C,_xlfn.XLOOKUP(C75,'CP-CODEVASF'!A:A,'CP-CODEVASF'!B:B))) -> CABO DE COBRE FLEXÍVEL ISOLADO, 1,5 MM², ANTI-CHAMA 450/750 V, PARA CIRCUITOS TERMINAIS - FORNECIMENTO E INSTALAÇÃO. AF_03/2023 | E75: =_xlfn.XLOOKUP(C75,CCD!B:B,CCD!D:D,_xlfn.XLOOKUP(C75,'COMP-SEINFRA'!A:A,'COMP-SEINFRA'!D:D,_xlfn.XLOOKUP(C75,'CP-CODEVASF'!A:A,'CP-CODEVASF'!C:C))) -> M | F75: =ROUND('MEMÓRIA DE CÁLCULO'!M368,2) -> 225.3 | G75: =TRUNC(_xlfn.XLOOKUP(C75,CCD!B:B,CCD!O:O,_xlfn.XLOOKUP(C75,'COMP-SEINFRA'!A:A,'COMP-SEINFRA'!G:G,_xlfn.XLOOKUP(C75,'CP-CODEVASF'!A:A,'CP-CODEVASF'!D:D))),2) -> 3.23 | H75: 4.06 | I75: 914.71
A76: 8.6 | B76: SINAPI | C76: 91926 | D76: =_xlfn.XLOOKUP(C76,CCD!B:B,CCD!C:C,_xlfn.XLOOKUP(C76,'COMP-SEINFRA'!A:A,'COMP-SEINFRA'!C:C,_xlfn.XLOOKUP(C76,'CP-CODEVASF'!A:A,'CP-CODEVASF'!B:B))) -> CABO DE COBRE FLEXÍVEL ISOLADO, 2,5 MM², ANTI-CHAMA 450/750 V, PARA CIRCUITOS TERMINAIS - FORNECIMENTO E INSTALAÇÃO. AF_03/2023 | E76: =_xlfn.XLOOKUP(C76,CCD!B:B,CCD!D:D,_xlfn.XLOOKUP(C76,'COMP-SEINFRA'!A:A,'COMP-SEINFRA'!D:D,_xlfn.XLOOKUP(C76,'CP-CODEVASF'!A:A,'CP-CODEVASF'!C:C))) -> M | F76: =ROUND('MEMÓRIA DE CÁLCULO'!M374,2) -> 409.3 | G76: =TRUNC(_xlfn.XLOOKUP(C76,CCD!B:B,CCD!O:O,_xlfn.XLOOKUP(C76,'COMP-SEINFRA'!A:A,'COMP-SEINFRA'!G:G,_xlfn.XLOOKUP(C76,'CP-CODEVASF'!A:A,'CP-CODEVASF'!D:D))),2) -> 4.72 | H76: 5.94 | I76: 2431.24
A77: 8.7 | B77: SINAPI | C77: 91932 | D77: =_xlfn.XLOOKUP(C77,CCD!B:B,CCD!C:C,_xlfn.XLOOKUP(C77,'COMP-SEINFRA'!A:A,'COMP-SEINFRA'!C:C,_xlfn.XLOOKUP(C77,'CP-CODEVASF'!A:A,'CP-CODEVASF'!B:B))) -> CABO DE COBRE FLEXÍVEL ISOLADO, 10 MM², ANTI-CHAMA 450/750 V, PARA CIRCUITOS TERMINAIS - FORNECIMENTO E INSTALAÇÃO. AF_03/2023 | E77: =_xlfn.XLOOKUP(C77,CCD!B:B,CCD!D:D,_xlfn.XLOOKUP(C77,'COMP-SEINFRA'!A:A,'COMP-SEINFRA'!D:D,_xlfn.XLOOKUP(C77,'CP-CODEVASF'!A:A,'CP-CODEVASF'!C:C))) -> M | F77: =ROUND('MEMÓRIA DE CÁLCULO'!M380,2) -> 86.58 | G77: =TRUNC(_xlfn.XLOOKUP(C77,CCD!B:B,CCD!O:O,_xlfn.XLOOKUP(C77,'COMP-SEINFRA'!A:A,'COMP-SEINFRA'!G:G,_xlfn.XLOOKUP(C77,'CP-CODEVASF'!A:A,'CP-CODEVASF'!D:D))),2) -> 18.58 | H77: 23.39 | I77: 2025.1
A78: 8.8 | B78: SINAPI | C78: 91864 | D78: =_xlfn.XLOOKUP(C78,CCD!B:B,CCD!C:C,_xlfn.XLOOKUP(C78,'COMP-SEINFRA'!A:A,'COMP-SEINFRA'!C:C,_xlfn.XLOOKUP(C78,'CP-CODEVASF'!A:A,'CP-CODEVASF'!B:B))) -> ELETRODUTO RÍGIDO ROSCÁVEL, PVC, DN 32 MM (1"), PARA CIRCUITOS TERMINAIS, INSTALADO EM FORRO - FORNECIMENTO E INSTALAÇÃO. AF_03/2023 | E78: =_xlfn.XLOOKUP(C78,CCD!B:B,CCD!D:D,_xlfn.XLOOKUP(C78,'COMP-SEINFRA'!A:A,'COMP-SEINFRA'!D:D,_xlfn.XLOOKUP(C78,'CP-CODEVASF'!A:A,'CP-CODEVASF'!C:C))) -> M | F78: =ROUND('MEMÓRIA DE CÁLCULO'!M386,2) -> 18.8 | G78: =TRUNC(_xlfn.XLOOKUP(C78,CCD!B:B,CCD!O:O,_xlfn.XLOOKUP(C78,'COMP-SEINFRA'!A:A,'COMP-SEINFRA'!G:G,_xlfn.XLOOKUP(C78,'CP-CODEVASF'!A:A,'CP-CODEVASF'!D:D))),2) -> 15.12 | H78: 19.03 | I78: 357.76
A79: 8.9 | B79: SINAPI | C79: 91863 | D79: =_xlfn.XLOOKUP(C79,CCD!B:B,CCD!C:C,_xlfn.XLOOKUP(C79,'COMP-SEINFRA'!A:A,'COMP-SEINFRA'!C:C,_xlfn.XLOOKUP(C79,'CP-CODEVASF'!A:A,'CP-CODEVASF'!B:B))) -> ELETRODUTO RÍGIDO ROSCÁVEL, PVC, DN 25 MM (3/4"), PARA CIRCUITOS TERMINAIS, INSTALADO EM FORRO - FORNECIMENTO E INSTALAÇÃO. AF_03/2023 | E79: =_xlfn.XLOOKUP(C79,CCD!B:B,CCD!D:D,_xlfn.XLOOKUP(C79,'COMP-SEINFRA'!A:A,'COMP-SEINFRA'!D:D,_xlfn.XLOOKUP(C79,'CP-CODEVASF'!A:A,'CP-CODEVASF'!C:C))) -> M | F79: =ROUND('MEMÓRIA DE CÁLCULO'!M392,2) -> 211.7 | G79: =TRUNC(_xlfn.XLOOKUP(C79,CCD!B:B,CCD!O:O,_xlfn.XLOOKUP(C79,'COMP-SEINFRA'!A:A,'COMP-SEINFRA'!G:G,_xlfn.XLOOKUP(C79,'CP-CODEVASF'!A:A,'CP-CODEVASF'!D:D))),2) -> 11.23 | H79: 14.14 | I79: 2993.43
A80: 8.10 | B80: SINAPI | C80: 91841 | D80: =_xlfn.XLOOKUP(C80,CCD!B:B,CCD!C:C,_xlfn.XLOOKUP(C80,'COMP-SEINFRA'!A:A,'COMP-SEINFRA'!C:C,_xlfn.XLOOKUP(C80,'CP-CODEVASF'!A:A,'CP-CODEVASF'!B:B))) -> ELETRODUTO FLEXÍVEL LISO, PEAD, DN 40 MM (1 1/4"), PARA CIRCUITOS TERMINAIS, INSTALADO EM FORRO - FORNECIMENTO E INSTALAÇÃO. AF_03/2023 | E80: =_xlfn.XLOOKUP(C80,CCD!B:B,CCD!D:D,_xlfn.XLOOKUP(C80,'COMP-SEINFRA'!A:A,'COMP-SEINFRA'!D:D,_xlfn.XLOOKUP(C80,'CP-CODEVASF'!A:A,'CP-CODEVASF'!C:C))) -> M | F80: =ROUND('MEMÓRIA DE CÁLCULO'!M398,2) -> 27.3 | G80: =TRUNC(_xlfn.XLOOKUP(C80,CCD!B:B,CCD!O:O,_xlfn.XLOOKUP(C80,'COMP-SEINFRA'!A:A,'COMP-SEINFRA'!G:G,_xlfn.XLOOKUP(C80,'CP-CODEVASF'!A:A,'CP-CODEVASF'!D:D))),2) -> 23.15 | H80: 29.15 | I80: 795.79
A81: 8.11 | B81: SINAPI | C81: 97881 | D81: =_xlfn.XLOOKUP(C81,CCD!B:B,CCD!C:C,_xlfn.XLOOKUP(C81,'COMP-SEINFRA'!A:A,'COMP-SEINFRA'!C:C,_xlfn.XLOOKUP(C81,'CP-CODEVASF'!A:A,'CP-CODEVASF'!B:B))) -> CAIXA ENTERRADA ELÉTRICA RETANGULAR, EM CONCRETO PRÉ-MOLDADO, FUNDO COM BRITA, DIMENSÕES INTERNAS: 0,3X0,3X0,3 M. AF_12/2020 | E81: =_xlfn.XLOOKUP(C81,CCD!B:B,CCD!D:D,_xlfn.XLOOKUP(C81,'COMP-SEINFRA'!A:A,'COMP-SEINFRA'!D:D,_xlfn.XLOOKUP(C81,'CP-CODEVASF'!A:A,'CP-CODEVASF'!C:C))) -> UN | F81: =ROUND('MEMÓRIA DE CÁLCULO'!M404,2) -> 4 | G81: =TRUNC(_xlfn.XLOOKUP(C81,CCD!B:B,CCD!O:O,_xlfn.XLOOKUP(C81,'COMP-SEINFRA'!A:A,'COMP-SEINFRA'!G:G,_xlfn.XLOOKUP(C81,'CP-CODEVASF'!A:A,'CP-CODEVASF'!D:D))),2) -> 164.89 | H81: 207.62 | I81: 830.48
A82: 8.12 | B82: SEINFRA | C82: C1160 | D82: =_xlfn.XLOOKUP(C82,CCD!B:B,CCD!C:C,_xlfn.XLOOKUP(C82,'COMP-SEINFRA'!A:A,'COMP-SEINFRA'!C:C,_xlfn.XLOOKUP(C82,'CP-CODEVASF'!A:A,'CP-CODEVASF'!B:B))) -> DUTO PERFURADO - ELETROCALHA DE CHAPA DE AÇO (50X100)mm | E82: =_xlfn.XLOOKUP(C82,CCD!B:B,CCD!D:D,_xlfn.XLOOKUP(C82,'COMP-SEINFRA'!A:A,'COMP-SEINFRA'!D:D,_xlfn.XLOOKUP(C82,'CP-CODEVASF'!A:A,'CP-CODEVASF'!C:C))) -> M | F82: =ROUND('MEMÓRIA DE CÁLCULO'!M410,2) -> 22.63 | G82: =TRUNC(_xlfn.XLOOKUP(C82,CCD!B:B,CCD!O:O,_xlfn.XLOOKUP(C82,'COMP-SEINFRA'!A:A,'COMP-SEINFRA'!G:G,_xlfn.XLOOKUP(C82,'CP-CODEVASF'!A:A,'CP-CODEVASF'!D:D))),2) -> 81.17 | H82: 102.2 | I82: 2312.78
A83: 8.13 | B83: SINAPI | C83: 96563 | D83: =_xlfn.XLOOKUP(C83,CCD!B:B,CCD!C:C,_xlfn.XLOOKUP(C83,'COMP-SEINFRA'!A:A,'COMP-SEINFRA'!C:C,_xlfn.XLOOKUP(C83,'CP-CODEVASF'!A:A,'CP-CODEVASF'!B:B))) -> SUPORTE PARA ELETROCALHA LISA OU PERFURADA EM AÇO GALVANIZADO, LARGURA 800 MM, EM PERFILADO COM COMPRIMENTO DE 85 CM FIXADO EM LAJE, POR METRO DE ELETROCALHA FIXADA. AF_09/2023 | E83: =_xlfn.XLOOKUP(C83,CCD!B:B,CCD!D:D,_xlfn.XLOOKUP(C83,'COMP-SEINFRA'!A:A,'COMP-SEINFRA'!D:D,_xlfn.XLOOKUP(C83,'CP-CODEVASF'!A:A,'CP-CODEVASF'!C:C))) -> M | F83: =ROUND('MEMÓRIA DE CÁLCULO'!M416,2) -> 16 | G83: =TRUNC(_xlfn.XLOOKUP(C83,CCD!B:B,CCD!O:O,_xlfn.XLOOKUP(C83,'COMP-SEINFRA'!A:A,'COMP-SEINFRA'!G:G,_xlfn.XLOOKUP(C83,'CP-CODEVASF'!A:A,'CP-CODEVASF'!D:D))),2) -> 65.89 | H83: 82.96 | I83: 1327.36
A84: 8.14 | B84: SINAPI | C84: 91953 | D84: =_xlfn.XLOOKUP(C84,CCD!B:B,CCD!C:C,_xlfn.XLOOKUP(C84,'COMP-SEINFRA'!A:A,'COMP-SEINFRA'!C:C,_xlfn.XLOOKUP(C84,'CP-CODEVASF'!A:A,'CP-CODEVASF'!B:B))) -> INTERRUPTOR SIMPLES (1 MÓDULO), 10A/250V, INCLUINDO SUPORTE E PLACA - FORNECIMENTO E INSTALAÇÃO. AF_03/2023 | E84: =_xlfn.XLOOKUP(C84,CCD!B:B,CCD!D:D,_xlfn.XLOOKUP(C84,'COMP-SEINFRA'!A:A,'COMP-SEINFRA'!D:D,_xlfn.XLOOKUP(C84,'CP-CODEVASF'!A:A,'CP-CODEVASF'!C:C))) -> UN | F84: =ROUND('MEMÓRIA DE CÁLCULO'!M422,2) -> 8 | G84: =TRUNC(_xlfn.XLOOKUP(C84,CCD!B:B,CCD!O:O,_xlfn.XLOOKUP(C84,'COMP-SEINFRA'!A:A,'COMP-SEINFRA'!G:G,_xlfn.XLOOKUP(C84,'CP-CODEVASF'!A:A,'CP-CODEVASF'!D:D))),2) -> 29.74 | H84: 37.44 | I84: 299.52
A85: 8.15 | B85: SINAPI | C85: 91959 | D85: =_xlfn.XLOOKUP(C85,CCD!B:B,CCD!C:C,_xlfn.XLOOKUP(C85,'COMP-SEINFRA'!A:A,'COMP-SEINFRA'!C:C,_xlfn.XLOOKUP(C85,'CP-CODEVASF'!A:A,'CP-CODEVASF'!B:B))) -> INTERRUPTOR SIMPLES (2 MÓDULOS), 10A/250V, INCLUINDO SUPORTE E PLACA - FORNECIMENTO E INSTALAÇÃO. AF_03/2023 | E85: =_xlfn.XLOOKUP(C85,CCD!B:B,CCD!D:D,_xlfn.XLOOKUP(C85,'COMP-SEINFRA'!A:A,'COMP-SEINFRA'!D:D,_xlfn.XLOOKUP(C85,'CP-CODEVASF'!A:A,'CP-CODEVASF'!C:C))) -> UN | F85: =ROUND('MEMÓRIA DE CÁLCULO'!M428,2) -> 1 | G85: =TRUNC(_xlfn.XLOOKUP(C85,CCD!B:B,CCD!O:O,_xlfn.XLOOKUP(C85,'COMP-SEINFRA'!A:A,'COMP-SEINFRA'!G:G,_xlfn.XLOOKUP(C85,'CP-CODEVASF'!A:A,'CP-CODEVASF'!D:D))),2) -> 45.29 | H85: 57.02 | I85: 57.02
A86: 8.16 | B86: SINAPI | C86: 91996 | D86: =_xlfn.XLOOKUP(C86,CCD!B:B,CCD!C:C,_xlfn.XLOOKUP(C86,'COMP-SEINFRA'!A:A,'COMP-SEINFRA'!C:C,_xlfn.XLOOKUP(C86,'CP-CODEVASF'!A:A,'CP-CODEVASF'!B:B))) -> TOMADA MÉDIA DE EMBUTIR (1 MÓDULO), 2P+T 10 A, INCLUINDO SUPORTE E PLACA - FORNECIMENTO E INSTALAÇÃO. AF_03/2023 | E86: =_xlfn.XLOOKUP(C86,CCD!B:B,CCD!D:D,_xlfn.XLOOKUP(C86,'COMP-SEINFRA'!A:A,'COMP-SEINFRA'!D:D,_xlfn.XLOOKUP(C86,'CP-CODEVASF'!A:A,'CP-CODEVASF'!C:C))) -> UN | F86: =ROUND('MEMÓRIA DE CÁLCULO'!M434,2) -> 10 | G86: =TRUNC(_xlfn.XLOOKUP(C86,CCD!B:B,CCD!O:O,_xlfn.XLOOKUP(C86,'COMP-SEINFRA'!A:A,'COMP-SEINFRA'!G:G,_xlfn.XLOOKUP(C86,'CP-CODEVASF'!A:A,'CP-CODEVASF'!D:D))),2) -> 35.08 | H86: 44.17 | I86: 441.7
A87: 8.17 | B87: SINAPI | C87: 93653 | D87: =_xlfn.XLOOKUP(C87,CCD!B:B,CCD!C:C,_xlfn.XLOOKUP(C87,'COMP-SEINFRA'!A:A,'COMP-SEINFRA'!C:C,_xlfn.XLOOKUP(C87,'CP-CODEVASF'!A:A,'CP-CODEVASF'!B:B))) -> DISJUNTOR MONOPOLAR TIPO DIN, CORRENTE NOMINAL DE 10A - FORNECIMENTO E INSTALAÇÃO. AF_07/2025 | E87: =_xlfn.XLOOKUP(C87,CCD!B:B,CCD!D:D,_xlfn.XLOOKUP(C87,'COMP-SEINFRA'!A:A,'COMP-SEINFRA'!D:D,_xlfn.XLOOKUP(C87,'CP-CODEVASF'!A:A,'CP-CODEVASF'!C:C))) -> UN | F87: =ROUND('MEMÓRIA DE CÁLCULO'!M440,2) -> 17 | G87: =TRUNC(_xlfn.XLOOKUP(C87,CCD!B:B,CCD!O:O,_xlfn.XLOOKUP(C87,'COMP-SEINFRA'!A:A,'COMP-SEINFRA'!G:G,_xlfn.XLOOKUP(C87,'CP-CODEVASF'!A:A,'CP-CODEVASF'!D:D))),2) -> 11.94 | H87: 15.03 | I87: 255.51
A88: 8.18 | B88: SINAPI | C88: 93654 | D88: =_xlfn.XLOOKUP(C88,CCD!B:B,CCD!C:C,_xlfn.XLOOKUP(C88,'COMP-SEINFRA'!A:A,'COMP-SEINFRA'!C:C,_xlfn.XLOOKUP(C88,'CP-CODEVASF'!A:A,'CP-CODEVASF'!B:B))) -> DISJUNTOR MONOPOLAR TIPO DIN, CORRENTE NOMINAL DE 16A - FORNECIMENTO E INSTALAÇÃO. AF_07/2025 | E88: =_xlfn.XLOOKUP(C88,CCD!B:B,CCD!D:D,_xlfn.XLOOKUP(C88,'COMP-SEINFRA'!A:A,'COMP-SEINFRA'!D:D,_xlfn.XLOOKUP(C88,'CP-CODEVASF'!A:A,'CP-CODEVASF'!C:C))) -> UN | F88: =ROUND('MEMÓRIA DE CÁLCULO'!M446,2) -> 6 | G88: =TRUNC(_xlfn.XLOOKUP(C88,CCD!B:B,CCD!O:O,_xlfn.XLOOKUP(C88,'COMP-SEINFRA'!A:A,'COMP-SEINFRA'!G:G,_xlfn.XLOOKUP(C88,'CP-CODEVASF'!A:A,'CP-CODEVASF'!D:D))),2) -> 11.94 | H88: 15.03 | I88: 90.18
A89: 8.19 | B89: SINAPI | C89: 93667 | D89: =_xlfn.XLOOKUP(C89,CCD!B:B,CCD!C:C,_xlfn.XLOOKUP(C89,'COMP-SEINFRA'!A:A,'COMP-SEINFRA'!C:C,_xlfn.XLOOKUP(C89,'CP-CODEVASF'!A:A,'CP-CODEVASF'!B:B))) -> DISJUNTOR TRIPOLAR TIPO DIN, CORRENTE NOMINAL DE 10A - FORNECIMENTO E INSTALAÇÃO. AF_07/2025 | E89: =_xlfn.XLOOKUP(C89,CCD!B:B,CCD!D:D,_xlfn.XLOOKUP(C89,'COMP-SEINFRA'!A:A,'COMP-SEINFRA'!D:D,_xlfn.XLOOKUP(C89,'CP-CODEVASF'!A:A,'CP-CODEVASF'!C:C))) -> UN | F89: =ROUND('MEMÓRIA DE CÁLCULO'!M452,2) -> 1 | G89: =TRUNC(_xlfn.XLOOKUP(C89,CCD!B:B,CCD!O:O,_xlfn.XLOOKUP(C89,'COMP-SEINFRA'!A:A,'COMP-SEINFRA'!G:G,_xlfn.XLOOKUP(C89,'CP-CODEVASF'!A:A,'CP-CODEVASF'!D:D))),2) -> 72.34 | H89: 91.09 | I89: 91.09
A90: 8.20 | B90: CODEVASF | C90: ='CP-CODEVASF'!A24 -> COMP-24 | D90: =_xlfn.XLOOKUP(C90,CCD!B:B,CCD!C:C,_xlfn.XLOOKUP(C90,'COMP-SEINFRA'!A:A,'COMP-SEINFRA'!C:C,_xlfn.XLOOKUP(C90,'CP-CODEVASF'!A:A,'CP-CODEVASF'!B:B))) -> DISJUNTOR TRIPOLAR TIPO DIN, CORRENTE NOMINAL DE 63A - FORNECIMENTO E INSTALAÇÃO | E90: =_xlfn.XLOOKUP(C90,CCD!B:B,CCD!D:D,_xlfn.XLOOKUP(C90,'COMP-SEINFRA'!A:A,'COMP-SEINFRA'!D:D,_xlfn.XLOOKUP(C90,'CP-CODEVASF'!A:A,'CP-CODEVASF'!C:C))) -> UN | F90: =ROUND('MEMÓRIA DE CÁLCULO'!M458,2) -> 1 | G90: =TRUNC(_xlfn.XLOOKUP(C90,CCD!B:B,CCD!O:O,_xlfn.XLOOKUP(C90,'COMP-SEINFRA'!A:A,'COMP-SEINFRA'!G:G,_xlfn.XLOOKUP(C90,'CP-CODEVASF'!A:A,'CP-CODEVASF'!D:D))),2) -> 106.36 | H90: 133.92 | I90: 133.92
A91: 8.21 | B91: CODEVASF | C91: ='CP-CODEVASF'!A31 -> COMP-30 | D91: =_xlfn.XLOOKUP(C91,CCD!B:B,CCD!C:C,_xlfn.XLOOKUP(C91,'COMP-SEINFRA'!A:A,'COMP-SEINFRA'!C:C,_xlfn.XLOOKUP(C91,'CP-CODEVASF'!A:A,'CP-CODEVASF'!B:B))) -> DISPOSITIVO DR BIPOLAR DE 25 A/30 MA - FORNECIMENTO E INSTALAÇÃO | E91: =_xlfn.XLOOKUP(C91,CCD!B:B,CCD!D:D,_xlfn.XLOOKUP(C91,'COMP-SEINFRA'!A:A,'COMP-SEINFRA'!D:D,_xlfn.XLOOKUP(C91,'CP-CODEVASF'!A:A,'CP-CODEVASF'!C:C))) -> UN | F91: =ROUND('MEMÓRIA DE CÁLCULO'!M464,2) -> 2 | G91: =TRUNC(_xlfn.XLOOKUP(C91,CCD!B:B,CCD!O:O,_xlfn.XLOOKUP(C91,'COMP-SEINFRA'!A:A,'COMP-SEINFRA'!G:G,_xlfn.XLOOKUP(C91,'CP-CODEVASF'!A:A,'CP-CODEVASF'!D:D))),2) -> 178.14 | H91: 224.31 | I91: 448.62
A92: 8.22 | B92: CODEVASF | C92: ='CP-CODEVASF'!A32 -> COMP-31 | D92: =_xlfn.XLOOKUP(C92,CCD!B:B,CCD!C:C,_xlfn.XLOOKUP(C92,'COMP-SEINFRA'!A:A,'COMP-SEINFRA'!C:C,_xlfn.XLOOKUP(C92,'CP-CODEVASF'!A:A,'CP-CODEVASF'!B:B))) -> DISPOSITIVO DPS CLASSE II, 1 POLO, 275 V, 20 KA - FORNECIMENTO E INSTALAÇÃO | E92: =_xlfn.XLOOKUP(C92,CCD!B:B,CCD!D:D,_xlfn.XLOOKUP(C92,'COMP-SEINFRA'!A:A,'COMP-SEINFRA'!D:D,_xlfn.XLOOKUP(C92,'CP-CODEVASF'!A:A,'CP-CODEVASF'!C:C))) -> UN | F92: =ROUND('MEMÓRIA DE CÁLCULO'!M470,2) -> 8 | G92: =TRUNC(_xlfn.XLOOKUP(C92,CCD!B:B,CCD!O:O,_xlfn.XLOOKUP(C92,'COMP-SEINFRA'!A:A,'COMP-SEINFRA'!G:G,_xlfn.XLOOKUP(C92,'CP-CODEVASF'!A:A,'CP-CODEVASF'!D:D))),2) -> 105.54 | H92: 132.89 | I92: 1063.12
A93: 8.23 | B93: CODEVASF | C93: ='CP-CODEVASF'!A3 -> COMP-01 | D93: =_xlfn.XLOOKUP(C93,CCD!B:B,CCD!C:C,_xlfn.XLOOKUP(C93,'COMP-SEINFRA'!A:A,'COMP-SEINFRA'!C:C,_xlfn.XLOOKUP(C93,'CP-CODEVASF'!A:A,'CP-CODEVASF'!B:B))) -> LUMINÁRIA PRISMÁTICA PENDENTE, COM 1 LÂMPADA LED DE 20W | E93: =_xlfn.XLOOKUP(C93,CCD!B:B,CCD!D:D,_xlfn.XLOOKUP(C93,'COMP-SEINFRA'!A:A,'COMP-SEINFRA'!D:D,_xlfn.XLOOKUP(C93,'CP-CODEVASF'!A:A,'CP-CODEVASF'!C:C))) -> UN | F93: =ROUND('MEMÓRIA DE CÁLCULO'!M476,2) -> 26 | G93: =TRUNC(_xlfn.XLOOKUP(C93,CCD!B:B,CCD!O:O,_xlfn.XLOOKUP(C93,'COMP-SEINFRA'!A:A,'COMP-SEINFRA'!G:G,_xlfn.XLOOKUP(C93,'CP-CODEVASF'!A:A,'CP-CODEVASF'!D:D))),2) -> 120.49 | H93: 151.72 | I93: 3944.72
A94: 8.24 | B94: SINAPI | C94: 97607 | D94: =_xlfn.XLOOKUP(C94,CCD!B:B,CCD!C:C,_xlfn.XLOOKUP(C94,'COMP-SEINFRA'!A:A,'COMP-SEINFRA'!C:C,_xlfn.XLOOKUP(C94,'CP-CODEVASF'!A:A,'CP-CODEVASF'!B:B))) -> LUMINÁRIA ARANDELA TIPO TARTARUGA, DE SOBREPOR, COM 1 LÂMPADA LED DE 6 W, SEM REATOR - FORNECIMENTO E INSTALAÇÃO. AF_09/2024 | E94: =_xlfn.XLOOKUP(C94,CCD!B:B,CCD!D:D,_xlfn.XLOOKUP(C94,'COMP-SEINFRA'!A:A,'COMP-SEINFRA'!D:D,_xlfn.XLOOKUP(C94,'CP-CODEVASF'!A:A,'CP-CODEVASF'!C:C))) -> UN | F94: =ROUND('MEMÓRIA DE CÁLCULO'!M482,2) -> 6 | G94: =TRUNC(_xlfn.XLOOKUP(C94,CCD!B:B,CCD!O:O,_xlfn.XLOOKUP(C94,'COMP-SEINFRA'!A:A,'COMP-SEINFRA'!G:G,_xlfn.XLOOKUP(C94,'CP-CODEVASF'!A:A,'CP-CODEVASF'!D:D))),2) -> 105.36 | H94: 132.66 | I94: 795.96
A95: 8.25 | B95: SINAPI | C95: 95801 | D95: =_xlfn.XLOOKUP(C95,CCD!B:B,CCD!C:C,_xlfn.XLOOKUP(C95,'COMP-SEINFRA'!A:A,'COMP-SEINFRA'!C:C,_xlfn.XLOOKUP(C95,'CP-CODEVASF'!A:A,'CP-CODEVASF'!B:B))) -> CONDULETE DE ALUMÍNIO, TIPO X, PARA ELETRODUTO DE AÇO GALVANIZADO DN 20 MM (3/4''), APARENTE - FORNECIMENTO E INSTALAÇÃO. AF_10/2022 | E95: =_xlfn.XLOOKUP(C95,CCD!B:B,CCD!D:D,_xlfn.XLOOKUP(C95,'COMP-SEINFRA'!A:A,'COMP-SEINFRA'!D:D,_xlfn.XLOOKUP(C95,'CP-CODEVASF'!A:A,'CP-CODEVASF'!C:C))) -> UN | F95: =ROUND('MEMÓRIA DE CÁLCULO'!M488,2) -> 20 | G95: =TRUNC(_xlfn.XLOOKUP(C95,CCD!B:B,CCD!O:O,_xlfn.XLOOKUP(C95,'COMP-SEINFRA'!A:A,'COMP-SEINFRA'!G:G,_xlfn.XLOOKUP(C95,'CP-CODEVASF'!A:A,'CP-CODEVASF'!D:D))),2) -> 41.5 | H95: 52.25 | I95: 1045
A96: 8.26 | B96: SINAPI | C96: 95802 | D96: =_xlfn.XLOOKUP(C96,CCD!B:B,CCD!C:C,_xlfn.XLOOKUP(C96,'COMP-SEINFRA'!A:A,'COMP-SEINFRA'!C:C,_xlfn.XLOOKUP(C96,'CP-CODEVASF'!A:A,'CP-CODEVASF'!B:B))) -> CONDULETE DE ALUMÍNIO, TIPO X, PARA ELETRODUTO DE AÇO GALVANIZADO DN 25 MM (1''), APARENTE - FORNECIMENTO E INSTALAÇÃO. AF_10/2022 | E96: =_xlfn.XLOOKUP(C96,CCD!B:B,CCD!D:D,_xlfn.XLOOKUP(C96,'COMP-SEINFRA'!A:A,'COMP-SEINFRA'!D:D,_xlfn.XLOOKUP(C96,'CP-CODEVASF'!A:A,'CP-CODEVASF'!C:C))) -> UN | F96: =ROUND('MEMÓRIA DE CÁLCULO'!M494,2) -> 8 | G96: =TRUNC(_xlfn.XLOOKUP(C96,CCD!B:B,CCD!O:O,_xlfn.XLOOKUP(C96,'COMP-SEINFRA'!A:A,'COMP-SEINFRA'!G:G,_xlfn.XLOOKUP(C96,'CP-CODEVASF'!A:A,'CP-CODEVASF'!D:D))),2) -> 51.36 | H96: 64.67 | I96: 517.36
A97: 9 | D97: INSTALAÇÕES SANITÁRIAS | I97: =TRUNC(SUM(I98:I114),2) -> 16085.39
A98: 9.1 | B98: SINAPI | C98: 89711 | D98: =_xlfn.XLOOKUP(C98,CCD!B:B,CCD!C:C,_xlfn.XLOOKUP(C98,'COMP-SEINFRA'!A:A,'COMP-SEINFRA'!C:C,_xlfn.XLOOKUP(C98,'CP-CODEVASF'!A:A,'CP-CODEVASF'!B:B))) -> TUBO PVC, SERIE NORMAL, ESGOTO PREDIAL, DN 40 MM, FORNECIDO E INSTALADO EM RAMAL DE DESCARGA OU RAMAL DE ESGOTO SANITÁRIO. AF_08/2022 | E98: =_xlfn.XLOOKUP(C98,CCD!B:B,CCD!D:D,_xlfn.XLOOKUP(C98,'COMP-SEINFRA'!A:A,'COMP-SEINFRA'!D:D,_xlfn.XLOOKUP(C98,'CP-CODEVASF'!A:A,'CP-CODEVASF'!C:C))) -> M | F98: =ROUND('MEMÓRIA DE CÁLCULO'!M501,2) -> 10.22 | G98: =TRUNC(_xlfn.XLOOKUP(C98,CCD!B:B,CCD!O:O,_xlfn.XLOOKUP(C98,'COMP-SEINFRA'!A:A,'COMP-SEINFRA'!G:G,_xlfn.XLOOKUP(C98,'CP-CODEVASF'!A:A,'CP-CODEVASF'!D:D))),2) -> 21.55 | H98: =TRUNC(G98*(1+$E$14),2) -> 27.13 | I98: =TRUNC(H98*F98,2) -> 277.26
A99: 9.2 | B99: SINAPI | C99: 89712 | D99: =_xlfn.XLOOKUP(C99,CCD!B:B,CCD!C:C,_xlfn.XLOOKUP(C99,'COMP-SEINFRA'!A:A,'COMP-SEINFRA'!C:C,_xlfn.XLOOKUP(C99,'CP-CODEVASF'!A:A,'CP-CODEVASF'!B:B))) -> TUBO PVC, SERIE NORMAL, ESGOTO PREDIAL, DN 50 MM, FORNECIDO E INSTALADO EM RAMAL DE DESCARGA OU RAMAL DE ESGOTO SANITÁRIO. AF_08/2022 | E99: =_xlfn.XLOOKUP(C99,CCD!B:B,CCD!D:D,_xlfn.XLOOKUP(C99,'COMP-SEINFRA'!A:A,'COMP-SEINFRA'!D:D,_xlfn.XLOOKUP(C99,'CP-CODEVASF'!A:A,'CP-CODEVASF'!C:C))) -> M | F99: =ROUND('MEMÓRIA DE CÁLCULO'!M507,2) -> 26.12 | G99: =TRUNC(_xlfn.XLOOKUP(C99,CCD!B:B,CCD!O:O,_xlfn.XLOOKUP(C99,'COMP-SEINFRA'!A:A,'COMP-SEINFRA'!G:G,_xlfn.XLOOKUP(C99,'CP-CODEVASF'!A:A,'CP-CODEVASF'!D:D))),2) -> 27.3 | H99: 34.37 | I99: 897.74
A100: 9.3 | B100: SINAPI | C100: 89713 | D100: =_xlfn.XLOOKUP(C100,CCD!B:B,CCD!C:C,_xlfn.XLOOKUP(C100,'COMP-SEINFRA'!A:A,'COMP-SEINFRA'!C:C,_xlfn.XLOOKUP(C100,'CP-CODEVASF'!A:A,'CP-CODEVASF'!B:B))) -> TUBO PVC, SERIE NORMAL, ESGOTO PREDIAL, DN 75 MM, FORNECIDO E INSTALADO EM RAMAL DE DESCARGA OU RAMAL DE ESGOTO SANITÁRIO. AF_08/2022 | E100: =_xlfn.XLOOKUP(C100,CCD!B:B,CCD!D:D,_xlfn.XLOOKUP(C100,'COMP-SEINFRA'!A:A,'COMP-SEINFRA'!D:D,_xlfn.XLOOKUP(C100,'CP-CODEVASF'!A:A,'CP-CODEVASF'!C:C))) -> M | F100: =ROUND('MEMÓRIA DE CÁLCULO'!M513,2) -> 3.57 | G100: =TRUNC(_xlfn.XLOOKUP(C100,CCD!B:B,CCD!O:O,_xlfn.XLOOKUP(C100,'COMP-SEINFRA'!A:A,'COMP-SEINFRA'!G:G,_xlfn.XLOOKUP(C100,'CP-CODEVASF'!A:A,'CP-CODEVASF'!D:D))),2) -> 34.03 | H100: 42.85 | I100: 152.97
A101: 9.4 | B101: SINAPI | C101: 89714 | D101: =_xlfn.XLOOKUP(C101,CCD!B:B,CCD!C:C,_xlfn.XLOOKUP(C101,'COMP-SEINFRA'!A:A,'COMP-SEINFRA'!C:C,_xlfn.XLOOKUP(C101,'CP-CODEVASF'!A:A,'CP-CODEVASF'!B:B))) -> TUBO PVC, SERIE NORMAL, ESGOTO PREDIAL, DN 100 MM, FORNECIDO E INSTALADO EM RAMAL DE DESCARGA OU RAMAL DE ESGOTO SANITÁRIO. AF_08/2022 | E101: =_xlfn.XLOOKUP(C101,CCD!B:B,CCD!D:D,_xlfn.XLOOKUP(C101,'COMP-SEINFRA'!A:A,'COMP-SEINFRA'!D:D,_xlfn.XLOOKUP(C101,'CP-CODEVASF'!A:A,'CP-CODEVASF'!C:C))) -> M | F101: =ROUND('MEMÓRIA DE CÁLCULO'!M519,2) -> 39.43 | G101: =TRUNC(_xlfn.XLOOKUP(C101,CCD!B:B,CCD!O:O,_xlfn.XLOOKUP(C101,'COMP-SEINFRA'!A:A,'COMP-SEINFRA'!G:G,_xlfn.XLOOKUP(C101,'CP-CODEVASF'!A:A,'CP-CODEVASF'!D:D))),2) -> 38.04 | H101: 47.89 | I101: 1888.3
A102: 9.5 | B102: SINAPI | C102: 97902 | D102: =_xlfn.XLOOKUP(C102,CCD!B:B,CCD!C:C,_xlfn.XLOOKUP(C102,'COMP-SEINFRA'!A:A,'COMP-SEINFRA'!C:C,_xlfn.XLOOKUP(C102,'CP-CODEVASF'!A:A,'CP-CODEVASF'!B:B))) -> CAIXA ENTERRADA HIDRÁULICA RETANGULAR EM ALVENARIA COM TIJOLOS CERÂMICOS MACIÇOS, DIMENSÕES INTERNAS: 0,6X0,6X0,6 M PARA REDE DE ESGOTO. AF_12/2020 | E102: =_xlfn.XLOOKUP(C102,CCD!B:B,CCD!D:D,_xlfn.XLOOKUP(C102,'COMP-SEINFRA'!A:A,'COMP-SEINFRA'!D:D,_xlfn.XLOOKUP(C102,'CP-CODEVASF'!A:A,'CP-CODEVASF'!C:C))) -> UN | F102: =ROUND('MEMÓRIA DE CÁLCULO'!M525,2) -> 6 | G102: =TRUNC(_xlfn.XLOOKUP(C102,CCD!B:B,CCD!O:O,_xlfn.XLOOKUP(C102,'COMP-SEINFRA'!A:A,'COMP-SEINFRA'!G:G,_xlfn.XLOOKUP(C102,'CP-CODEVASF'!A:A,'CP-CODEVASF'!D:D))),2) -> 566.42 | H102: 713.23 | I102: 4279.38
A103: 9.6 | B103: SINAPI | C103: 89495 | D103: =_xlfn.XLOOKUP(C103,CCD!B:B,CCD!C:C,_xlfn.XLOOKUP(C103,'COMP-SEINFRA'!A:A,'COMP-SEINFRA'!C:C,_xlfn.XLOOKUP(C103,'CP-CODEVASF'!A:A,'CP-CODEVASF'!B:B))) -> RALO SIFONADO, PVC, DN 100 X 40 MM, JUNTA SOLDÁVEL, FORNECIDO E INSTALADO EM RAMAIS DE ENCAMINHAMENTO DE ÁGUA PLUVIAL. AF_06/2022 | E103: =_xlfn.XLOOKUP(C103,CCD!B:B,CCD!D:D,_xlfn.XLOOKUP(C103,'COMP-SEINFRA'!A:A,'COMP-SEINFRA'!D:D,_xlfn.XLOOKUP(C103,'CP-CODEVASF'!A:A,'CP-CODEVASF'!C:C))) -> UN | F103: =ROUND('MEMÓRIA DE CÁLCULO'!M531,2) -> 6 | G103: =TRUNC(_xlfn.XLOOKUP(C103,CCD!B:B,CCD!O:O,_xlfn.XLOOKUP(C103,'COMP-SEINFRA'!A:A,'COMP-SEINFRA'!G:G,_xlfn.XLOOKUP(C103,'CP-CODEVASF'!A:A,'CP-CODEVASF'!D:D))),2) -> 21.3 | H103: 26.82 | I103: 160.92
A104: 9.7 | B104: SINAPI | C104: 89707 | D104: =_xlfn.XLOOKUP(C104,CCD!B:B,CCD!C:C,_xlfn.XLOOKUP(C104,'COMP-SEINFRA'!A:A,'COMP-SEINFRA'!C:C,_xlfn.XLOOKUP(C104,'CP-CODEVASF'!A:A,'CP-CODEVASF'!B:B))) -> CAIXA SIFONADA, PVC, DN 100 X 100 X 50 MM, JUNTA ELÁSTICA, FORNECIDA E INSTALADA EM RAMAL DE DESCARGA OU EM RAMAL DE ESGOTO SANITÁRIO. AF_08/2022 | E104: =_xlfn.XLOOKUP(C104,CCD!B:B,CCD!D:D,_xlfn.XLOOKUP(C104,'COMP-SEINFRA'!A:A,'COMP-SEINFRA'!D:D,_xlfn.XLOOKUP(C104,'CP-CODEVASF'!A:A,'CP-CODEVASF'!C:C))) -> UN | F104: =ROUND('MEMÓRIA DE CÁLCULO'!M537,2) -> 8 | G104: =TRUNC(_xlfn.XLOOKUP(C104,CCD!B:B,CCD!O:O,_xlfn.XLOOKUP(C104,'COMP-SEINFRA'!A:A,'COMP-SEINFRA'!G:G,_xlfn.XLOOKUP(C104,'CP-CODEVASF'!A:A,'CP-CODEVASF'!D:D))),2) -> 54.63 | H104: 68.79 | I104: 550.32
A105: 9.8 | B105: SINAPI | C105: 86883 | D105: =_xlfn.XLOOKUP(C105,CCD!B:B,CCD!C:C,_xlfn.XLOOKUP(C105,'COMP-SEINFRA'!A:A,'COMP-SEINFRA'!C:C,_xlfn.XLOOKUP(C105,'CP-CODEVASF'!A:A,'CP-CODEVASF'!B:B))) -> SIFÃO DO TIPO FLEXÍVEL EM PVC 1 X 1.1/2 - FORNECIMENTO E INSTALAÇÃO. AF_01/2020 | E105: =_xlfn.XLOOKUP(C105,CCD!B:B,CCD!D:D,_xlfn.XLOOKUP(C105,'COMP-SEINFRA'!A:A,'COMP-SEINFRA'!D:D,_xlfn.XLOOKUP(C105,'CP-CODEVASF'!A:A,'CP-CODEVASF'!C:C))) -> UN | F105: =ROUND('MEMÓRIA DE CÁLCULO'!M543,2) -> 8 | G105: =TRUNC(_xlfn.XLOOKUP(C105,CCD!B:B,CCD!O:O,_xlfn.XLOOKUP(C105,'COMP-SEINFRA'!A:A,'COMP-SEINFRA'!G:G,_xlfn.XLOOKUP(C105,'CP-CODEVASF'!A:A,'CP-CODEVASF'!D:D))),2) -> 11.82 | H105: 14.88 | I105: 119.04
A106: 9.9 | B106: SINAPI | C106: 86877 | D106: =_xlfn.XLOOKUP(C106,CCD!B:B,CCD!C:C,_xlfn.XLOOKUP(C106,'COMP-SEINFRA'!A:A,'COMP-SEINFRA'!C:C,_xlfn.XLOOKUP(C106,'CP-CODEVASF'!A:A,'CP-CODEVASF'!B:B))) -> VÁLVULA EM METAL CROMADO 1.1/2" X 1.1/2" PARA TANQUE OU LAVATÓRIO, COM OU SEM LADRÃO - FORNECIMENTO E INSTALAÇÃO. AF_01/2020 | E106: =_xlfn.XLOOKUP(C106,CCD!B:B,CCD!D:D,_xlfn.XLOOKUP(C106,'COMP-SEINFRA'!A:A,'COMP-SEINFRA'!D:D,_xlfn.XLOOKUP(C106,'CP-CODEVASF'!A:A,'CP-CODEVASF'!C:C))) -> UN | F106: =ROUND('MEMÓRIA DE CÁLCULO'!M549,2) -> 4 | G106: =TRUNC(_xlfn.XLOOKUP(C106,CCD!B:B,CCD!O:O,_xlfn.XLOOKUP(C106,'COMP-SEINFRA'!A:A,'COMP-SEINFRA'!G:G,_xlfn.XLOOKUP(C106,'CP-CODEVASF'!A:A,'CP-CODEVASF'!D:D))),2) -> 80.54 | H106: 101.41 | I106: 405.64
A107: 9.10 | B107: SINAPI | C107: 86878 | D107: =_xlfn.XLOOKUP(C107,CCD!B:B,CCD!C:C,_xlfn.XLOOKUP(C107,'COMP-SEINFRA'!A:A,'COMP-SEINFRA'!C:C,_xlfn.XLOOKUP(C107,'CP-CODEVASF'!A:A,'CP-CODEVASF'!B:B))) -> VÁLVULA EM METAL CROMADO TIPO AMERICANA 3.1/2" X 1.1/2" PARA PIA - FORNECIMENTO E INSTALAÇÃO. AF_01/2020 | E107: =_xlfn.XLOOKUP(C107,CCD!B:B,CCD!D:D,_xlfn.XLOOKUP(C107,'COMP-SEINFRA'!A:A,'COMP-SEINFRA'!D:D,_xlfn.XLOOKUP(C107,'CP-CODEVASF'!A:A,'CP-CODEVASF'!C:C))) -> UN | F107: =ROUND('MEMÓRIA DE CÁLCULO'!M555,2) -> 3 | G107: =TRUNC(_xlfn.XLOOKUP(C107,CCD!B:B,CCD!O:O,_xlfn.XLOOKUP(C107,'COMP-SEINFRA'!A:A,'COMP-SEINFRA'!G:G,_xlfn.XLOOKUP(C107,'CP-CODEVASF'!A:A,'CP-CODEVASF'!D:D))),2) -> 86.9 | H107: 109.42 | I107: 328.26
A108: 9.11 | B108: SEINFRA | C108: C2832 | D108: =_xlfn.XLOOKUP(C108,CCD!B:B,CCD!C:C,_xlfn.XLOOKUP(C108,'COMP-SEINFRA'!A:A,'COMP-SEINFRA'!C:C,_xlfn.XLOOKUP(C108,'CP-CODEVASF'!A:A,'CP-CODEVASF'!B:B))) -> FOSSA SÉPTICA E SUMIDOURO EM ALVENARIA | E108: =_xlfn.XLOOKUP(C108,CCD!B:B,CCD!D:D,_xlfn.XLOOKUP(C108,'COMP-SEINFRA'!A:A,'COMP-SEINFRA'!D:D,_xlfn.XLOOKUP(C108,'CP-CODEVASF'!A:A,'CP-CODEVASF'!C:C))) -> UN | F108: =ROUND('MEMÓRIA DE CÁLCULO'!M561,2) -> 1 | G108: =TRUNC(_xlfn.XLOOKUP(C108,CCD!B:B,CCD!O:O,_xlfn.XLOOKUP(C108,'COMP-SEINFRA'!A:A,'COMP-SEINFRA'!G:G,_xlfn.XLOOKUP(C108,'CP-CODEVASF'!A:A,'CP-CODEVASF'!D:D))),2) -> 4989.48 | H108: 6282.75 | I108: 6282.75
A109: 9.12 | B109: SINAPI | C109: 89728 | D109: =_xlfn.XLOOKUP(C109,CCD!B:B,CCD!C:C,_xlfn.XLOOKUP(C109,'COMP-SEINFRA'!A:A,'COMP-SEINFRA'!C:C,_xlfn.XLOOKUP(C109,'CP-CODEVASF'!A:A,'CP-CODEVASF'!B:B))) -> CURVA CURTA 90 GRAUS, PVC, SERIE NORMAL, ESGOTO PREDIAL, DN 40 MM, JUNTA SOLDÁVEL, FORNECIDO E INSTALADO EM RAMAL DE DESCARGA OU RAMAL DE ESGOTO SANITÁRIO. AF_08/2022 | E109: =_xlfn.XLOOKUP(C109,CCD!B:B,CCD!D:D,_xlfn.XLOOKUP(C109,'COMP-SEINFRA'!A:A,'COMP-SEINFRA'!D:D,_xlfn.XLOOKUP(C109,'CP-CODEVASF'!A:A,'CP-CODEVASF'!C:C))) -> UN | F109: =ROUND('MEMÓRIA DE CÁLCULO'!M567,2) -> 12 | G109: =TRUNC(_xlfn.XLOOKUP(C109,CCD!B:B,CCD!O:O,_xlfn.XLOOKUP(C109,'COMP-SEINFRA'!A:A,'COMP-SEINFRA'!G:G,_xlfn.XLOOKUP(C109,'CP-CODEVASF'!A:A,'CP-CODEVASF'!D:D))),2) -> 13.14 | H109: 16.54 | I109: 198.48
A110: 9.13 | B110: SINAPI | C110: 89731 | D110: =_xlfn.XLOOKUP(C110,CCD!B:B,CCD!C:C,_xlfn.XLOOKUP(C110,'COMP-SEINFRA'!A:A,'COMP-SEINFRA'!C:C,_xlfn.XLOOKUP(C110,'CP-CODEVASF'!A:A,'CP-CODEVASF'!B:B))) -> JOELHO 90 GRAUS, PVC, SERIE NORMAL, ESGOTO PREDIAL, DN 50 MM, JUNTA ELÁSTICA, FORNECIDO E INSTALADO EM RAMAL DE DESCARGA OU RAMAL DE ESGOTO SANITÁRIO. AF_08/2022 | E110: =_xlfn.XLOOKUP(C110,CCD!B:B,CCD!D:D,_xlfn.XLOOKUP(C110,'COMP-SEINFRA'!A:A,'COMP-SEINFRA'!D:D,_xlfn.XLOOKUP(C110,'CP-CODEVASF'!A:A,'CP-CODEVASF'!C:C))) -> UN | F110: =ROUND('MEMÓRIA DE CÁLCULO'!M573,2) -> 9 | G110: =TRUNC(_xlfn.XLOOKUP(C110,CCD!B:B,CCD!O:O,_xlfn.XLOOKUP(C110,'COMP-SEINFRA'!A:A,'COMP-SEINFRA'!G:G,_xlfn.XLOOKUP(C110,'CP-CODEVASF'!A:A,'CP-CODEVASF'!D:D))),2) -> 15.92 | H110: 20.04 | I110: 180.36
A111: 9.14 | B111: SINAPI | C111: 89748 | D111: =_xlfn.XLOOKUP(C111,CCD!B:B,CCD!C:C,_xlfn.XLOOKUP(C111,'COMP-SEINFRA'!A:A,'COMP-SEINFRA'!C:C,_xlfn.XLOOKUP(C111,'CP-CODEVASF'!A:A,'CP-CODEVASF'!B:B))) -> CURVA CURTA 90 GRAUS, PVC, SERIE NORMAL, ESGOTO PREDIAL, DN 100 MM, JUNTA ELÁSTICA, FORNECIDO E INSTALADO EM RAMAL DE DESCARGA OU RAMAL DE ESGOTO SANITÁRIO. AF_08/2022 | E111: =_xlfn.XLOOKUP(C111,CCD!B:B,CCD!D:D,_xlfn.XLOOKUP(C111,'COMP-SEINFRA'!A:A,'COMP-SEINFRA'!D:D,_xlfn.XLOOKUP(C111,'CP-CODEVASF'!A:A,'CP-CODEVASF'!C:C))) -> UN | F111: =ROUND('MEMÓRIA DE CÁLCULO'!M579,2) -> 2 | G111: =TRUNC(_xlfn.XLOOKUP(C111,CCD!B:B,CCD!O:O,_xlfn.XLOOKUP(C111,'COMP-SEINFRA'!A:A,'COMP-SEINFRA'!G:G,_xlfn.XLOOKUP(C111,'CP-CODEVASF'!A:A,'CP-CODEVASF'!D:D))),2) -> 44.32 | H111: 55.8 | I111: 111.6
A112: 9.15 | B112: SINAPI | C112: 89827 | D112: =_xlfn.XLOOKUP(C112,CCD!B:B,CCD!C:C,_xlfn.XLOOKUP(C112,'COMP-SEINFRA'!A:A,'COMP-SEINFRA'!C:C,_xlfn.XLOOKUP(C112,'CP-CODEVASF'!A:A,'CP-CODEVASF'!B:B))) -> JUNÇÃO SIMPLES, PVC, SERIE NORMAL, ESGOTO PREDIAL, DN 50 X 50 MM, JUNTA ELÁSTICA, FORNECIDO E INSTALADO EM PRUMADA DE ESGOTO SANITÁRIO OU VENTILAÇÃO. AF_08/2022 | E112: =_xlfn.XLOOKUP(C112,CCD!B:B,CCD!D:D,_xlfn.XLOOKUP(C112,'COMP-SEINFRA'!A:A,'COMP-SEINFRA'!D:D,_xlfn.XLOOKUP(C112,'CP-CODEVASF'!A:A,'CP-CODEVASF'!C:C))) -> UN | F112: =ROUND('MEMÓRIA DE CÁLCULO'!M585,2) -> 1 | G112: =TRUNC(_xlfn.XLOOKUP(C112,CCD!B:B,CCD!O:O,_xlfn.XLOOKUP(C112,'COMP-SEINFRA'!A:A,'COMP-SEINFRA'!G:G,_xlfn.XLOOKUP(C112,'CP-CODEVASF'!A:A,'CP-CODEVASF'!D:D))),2) -> 21.12 | H112: 26.59 | I112: 26.59
A113: 9.16 | B113: CODEVASF | C113: ='CP-CODEVASF'!A33 -> COMP-32 | D113: =_xlfn.XLOOKUP(C113,CCD!B:B,CCD!C:C,_xlfn.XLOOKUP(C113,'COMP-SEINFRA'!A:A,'COMP-SEINFRA'!C:C,_xlfn.XLOOKUP(C113,'CP-CODEVASF'!A:A,'CP-CODEVASF'!B:B))) -> JUNCAO SIMPLES DE REDUCAO, PVC, DN 100 X 50 MM, PARA ESGOTO PREDIAL - FORNECIMENTO E INSTALAÇÃO | E113: =_xlfn.XLOOKUP(C113,CCD!B:B,CCD!D:D,_xlfn.XLOOKUP(C113,'COMP-SEINFRA'!A:A,'COMP-SEINFRA'!D:D,_xlfn.XLOOKUP(C113,'CP-CODEVASF'!A:A,'CP-CODEVASF'!C:C))) -> UN | F113: =ROUND('MEMÓRIA DE CÁLCULO'!M591,2) -> 2 | G113: =TRUNC(_xlfn.XLOOKUP(C113,CCD!B:B,CCD!O:O,_xlfn.XLOOKUP(C113,'COMP-SEINFRA'!A:A,'COMP-SEINFRA'!G:G,_xlfn.XLOOKUP(C113,'CP-CODEVASF'!A:A,'CP-CODEVASF'!D:D))),2) -> 46.7 | H113: 58.8 | I113: 117.6
A114: 9.17 | B114: SINAPI | C114: 104344 | D114: =_xlfn.XLOOKUP(C114,CCD!B:B,CCD!C:C,_xlfn.XLOOKUP(C114,'COMP-SEINFRA'!A:A,'COMP-SEINFRA'!C:C,_xlfn.XLOOKUP(C114,'CP-CODEVASF'!A:A,'CP-CODEVASF'!B:B))) -> TE, PVC, SÉRIE NORMAL, ESGOTO PREDIAL, DN 100 X 50 MM, JUNTA ELÁSTICA, FORNECIDO E INSTALADO EM RAMAL DE DESCARGA OU RAMAL DE ESGOTO SANITÁRIO. AF_08/2022 | E114: =_xlfn.XLOOKUP(C114,CCD!B:B,CCD!D:D,_xlfn.XLOOKUP(C114,'COMP-SEINFRA'!A:A,'COMP-SEINFRA'!D:D,_xlfn.XLOOKUP(C114,'CP-CODEVASF'!A:A,'CP-CODEVASF'!C:C))) -> UN | F114: =ROUND('MEMÓRIA DE CÁLCULO'!M597,2) -> 2 | G114: =TRUNC(_xlfn.XLOOKUP(C114,CCD!B:B,CCD!O:O,_xlfn.XLOOKUP(C114,'COMP-SEINFRA'!A:A,'COMP-SEINFRA'!G:G,_xlfn.XLOOKUP(C114,'CP-CODEVASF'!A:A,'CP-CODEVASF'!D:D))),2) -> 42.96 | H114: 54.09 | I114: 108.18
A115: 10 | D115: INSTALAÇÕES HIDRÁULICAS | I115: =TRUNC(SUM(I116:I127),2) -> 42408.28
A116: 10.1 | B116: SINAPI | C116: 89357 | D116: =_xlfn.XLOOKUP(C116,CCD!B:B,CCD!C:C,_xlfn.XLOOKUP(C116,'COMP-SEINFRA'!A:A,'COMP-SEINFRA'!C:C,_xlfn.XLOOKUP(C116,'CP-CODEVASF'!A:A,'CP-CODEVASF'!B:B))) -> TUBO, PVC, SOLDÁVEL, DE 32MM, INSTALADO EM RAMAL OU SUB-RAMAL DE ÁGUA - FORNECIMENTO E INSTALAÇÃO. AF_06/2022 | E116: =_xlfn.XLOOKUP(C116,CCD!B:B,CCD!D:D,_xlfn.XLOOKUP(C116,'COMP-SEINFRA'!A:A,'COMP-SEINFRA'!D:D,_xlfn.XLOOKUP(C116,'CP-CODEVASF'!A:A,'CP-CODEVASF'!C:C))) -> M | F116: =ROUND('MEMÓRIA DE CÁLCULO'!M604,2) -> 28.95 | G116: =TRUNC(_xlfn.XLOOKUP(C116,CCD!B:B,CCD!O:O,_xlfn.XLOOKUP(C116,'COMP-SEINFRA'!A:A,'COMP-SEINFRA'!G:G,_xlfn.XLOOKUP(C116,'CP-CODEVASF'!A:A,'CP-CODEVASF'!D:D))),2) -> 32.56 | H116: =TRUNC(G116*(1+$E$14),2) -> 40.99 | I116: =TRUNC(H116*F116,2) -> 1186.66
A117: 10.2 | B117: SINAPI | C117: 89356 | D117: =_xlfn.XLOOKUP(C117,CCD!B:B,CCD!C:C,_xlfn.XLOOKUP(C117,'COMP-SEINFRA'!A:A,'COMP-SEINFRA'!C:C,_xlfn.XLOOKUP(C117,'CP-CODEVASF'!A:A,'CP-CODEVASF'!B:B))) -> TUBO, PVC, SOLDÁVEL, DE 25MM, INSTALADO EM RAMAL OU SUB-RAMAL DE ÁGUA - FORNECIMENTO E INSTALAÇÃO. AF_06/2022 | E117: =_xlfn.XLOOKUP(C117,CCD!B:B,CCD!D:D,_xlfn.XLOOKUP(C117,'COMP-SEINFRA'!A:A,'COMP-SEINFRA'!D:D,_xlfn.XLOOKUP(C117,'CP-CODEVASF'!A:A,'CP-CODEVASF'!C:C))) -> M | F117: =ROUND('MEMÓRIA DE CÁLCULO'!M610,2) -> 28.42 | G117: =TRUNC(_xlfn.XLOOKUP(C117,CCD!B:B,CCD!O:O,_xlfn.XLOOKUP(C117,'COMP-SEINFRA'!A:A,'COMP-SEINFRA'!G:G,_xlfn.XLOOKUP(C117,'CP-CODEVASF'!A:A,'CP-CODEVASF'!D:D))),2) -> 23.64 | H117: 29.76 | I117: 845.77
A118: 10.3 | B118: SINAPI | C118: 89449 | D118: =_xlfn.XLOOKUP(C118,CCD!B:B,CCD!C:C,_xlfn.XLOOKUP(C118,'COMP-SEINFRA'!A:A,'COMP-SEINFRA'!C:C,_xlfn.XLOOKUP(C118,'CP-CODEVASF'!A:A,'CP-CODEVASF'!B:B))) -> TUBO, PVC, SOLDÁVEL, DE 50MM, INSTALADO EM PRUMADA DE ÁGUA - FORNECIMENTO E INSTALAÇÃO. AF_06/2022 | E118: =_xlfn.XLOOKUP(C118,CCD!B:B,CCD!D:D,_xlfn.XLOOKUP(C118,'COMP-SEINFRA'!A:A,'COMP-SEINFRA'!D:D,_xlfn.XLOOKUP(C118,'CP-CODEVASF'!A:A,'CP-CODEVASF'!C:C))) -> M | F118: =ROUND('MEMÓRIA DE CÁLCULO'!M616,2) -> 16.51 | G118: =TRUNC(_xlfn.XLOOKUP(C118,CCD!B:B,CCD!O:O,_xlfn.XLOOKUP(C118,'COMP-SEINFRA'!A:A,'COMP-SEINFRA'!G:G,_xlfn.XLOOKUP(C118,'CP-CODEVASF'!A:A,'CP-CODEVASF'!D:D))),2) -> 18.55 | H118: 23.35 | I118: 385.5
A119: 10.4 | B119: SINAPI | C119: 94495 | D119: =_xlfn.XLOOKUP(C119,CCD!B:B,CCD!C:C,_xlfn.XLOOKUP(C119,'COMP-SEINFRA'!A:A,'COMP-SEINFRA'!C:C,_xlfn.XLOOKUP(C119,'CP-CODEVASF'!A:A,'CP-CODEVASF'!B:B))) -> REGISTRO DE GAVETA BRUTO, LATÃO, ROSCÁVEL, 1" - FORNECIMENTO E INSTALAÇÃO. AF_08/2021 | E119: =_xlfn.XLOOKUP(C119,CCD!B:B,CCD!D:D,_xlfn.XLOOKUP(C119,'COMP-SEINFRA'!A:A,'COMP-SEINFRA'!D:D,_xlfn.XLOOKUP(C119,'CP-CODEVASF'!A:A,'CP-CODEVASF'!C:C))) -> UN | F119: =ROUND('MEMÓRIA DE CÁLCULO'!M622,2) -> 2 | G119: =TRUNC(_xlfn.XLOOKUP(C119,CCD!B:B,CCD!O:O,_xlfn.XLOOKUP(C119,'COMP-SEINFRA'!A:A,'COMP-SEINFRA'!G:G,_xlfn.XLOOKUP(C119,'CP-CODEVASF'!A:A,'CP-CODEVASF'!D:D))),2) -> 64.86 | H119: 81.67 | I119: 163.34
A120: 10.5 | B120: SINAPI | C120: 89985 | D120: =_xlfn.XLOOKUP(C120,CCD!B:B,CCD!C:C,_xlfn.XLOOKUP(C120,'COMP-SEINFRA'!A:A,'COMP-SEINFRA'!C:C,_xlfn.XLOOKUP(C120,'CP-CODEVASF'!A:A,'CP-CODEVASF'!B:B))) -> REGISTRO DE PRESSÃO BRUTO, LATÃO, ROSCÁVEL, 3/4", COM ACABAMENTO E CANOPLA CROMADOS - FORNECIMENTO E INSTALAÇÃO. AF_08/2021 | E120: =_xlfn.XLOOKUP(C120,CCD!B:B,CCD!D:D,_xlfn.XLOOKUP(C120,'COMP-SEINFRA'!A:A,'COMP-SEINFRA'!D:D,_xlfn.XLOOKUP(C120,'CP-CODEVASF'!A:A,'CP-CODEVASF'!C:C))) -> UN | F120: =ROUND('MEMÓRIA DE CÁLCULO'!M628,2) -> 2 | G120: =TRUNC(_xlfn.XLOOKUP(C120,CCD!B:B,CCD!O:O,_xlfn.XLOOKUP(C120,'COMP-SEINFRA'!A:A,'COMP-SEINFRA'!G:G,_xlfn.XLOOKUP(C120,'CP-CODEVASF'!A:A,'CP-CODEVASF'!D:D))),2) -> 94.66 | H120: 119.19 | I120: 238.38
A121: 10.6 | B121: SINAPI | C121: 89987 | D121: =_xlfn.XLOOKUP(C121,CCD!B:B,CCD!C:C,_xlfn.XLOOKUP(C121,'COMP-SEINFRA'!A:A,'COMP-SEINFRA'!C:C,_xlfn.XLOOKUP(C121,'CP-CODEVASF'!A:A,'CP-CODEVASF'!B:B))) -> REGISTRO DE GAVETA BRUTO, LATÃO, ROSCÁVEL, 3/4", COM ACABAMENTO E CANOPLA CROMADOS - FORNECIMENTO E INSTALAÇÃO. AF_08/2021 | E121: =_xlfn.XLOOKUP(C121,CCD!B:B,CCD!D:D,_xlfn.XLOOKUP(C121,'COMP-SEINFRA'!A:A,'COMP-SEINFRA'!D:D,_xlfn.XLOOKUP(C121,'CP-CODEVASF'!A:A,'CP-CODEVASF'!C:C))) -> UN | F121: =ROUND('MEMÓRIA DE CÁLCULO'!M634,2) -> 8 | G121: =TRUNC(_xlfn.XLOOKUP(C121,CCD!B:B,CCD!O:O,_xlfn.XLOOKUP(C121,'COMP-SEINFRA'!A:A,'COMP-SEINFRA'!G:G,_xlfn.XLOOKUP(C121,'CP-CODEVASF'!A:A,'CP-CODEVASF'!D:D))),2) -> 99.69 | H121: 125.52 | I121: 1004.16
A122: 10.7 | B122: SINAPI | C122: 86910 | D122: =_xlfn.XLOOKUP(C122,CCD!B:B,CCD!C:C,_xlfn.XLOOKUP(C122,'COMP-SEINFRA'!A:A,'COMP-SEINFRA'!C:C,_xlfn.XLOOKUP(C122,'CP-CODEVASF'!A:A,'CP-CODEVASF'!B:B))) -> TORNEIRA CROMADA TUBO MÓVEL, DE PAREDE, 1/2" OU 3/4", PARA PIA DE COZINHA, PADRÃO MÉDIO - FORNECIMENTO E INSTALAÇÃO. AF_01/2020 | E122: =_xlfn.XLOOKUP(C122,CCD!B:B,CCD!D:D,_xlfn.XLOOKUP(C122,'COMP-SEINFRA'!A:A,'COMP-SEINFRA'!D:D,_xlfn.XLOOKUP(C122,'CP-CODEVASF'!A:A,'CP-CODEVASF'!C:C))) -> UN | F122: =ROUND('MEMÓRIA DE CÁLCULO'!M640,2) -> 4 | G122: =TRUNC(_xlfn.XLOOKUP(C122,CCD!B:B,CCD!O:O,_xlfn.XLOOKUP(C122,'COMP-SEINFRA'!A:A,'COMP-SEINFRA'!G:G,_xlfn.XLOOKUP(C122,'CP-CODEVASF'!A:A,'CP-CODEVASF'!D:D))),2) -> 125.21 | H122: 157.66 | I122: 630.64
A123: 10.8 | B123: SINAPI | C123: 86888 | D123: =_xlfn.XLOOKUP(C123,CCD!B:B,CCD!C:C,_xlfn.XLOOKUP(C123,'COMP-SEINFRA'!A:A,'COMP-SEINFRA'!C:C,_xlfn.XLOOKUP(C123,'CP-CODEVASF'!A:A,'CP-CODEVASF'!B:B))) -> VASO SANITÁRIO SIFONADO COM CAIXA ACOPLADA LOUÇA BRANCA - FORNECIMENTO E INSTALAÇÃO. AF_01/2020 | E123: =_xlfn.XLOOKUP(C123,CCD!B:B,CCD!D:D,_xlfn.XLOOKUP(C123,'COMP-SEINFRA'!A:A,'COMP-SEINFRA'!D:D,_xlfn.XLOOKUP(C123,'CP-CODEVASF'!A:A,'CP-CODEVASF'!C:C))) -> UN | F123: =ROUND('MEMÓRIA DE CÁLCULO'!M646,2) -> 2 | G123: =TRUNC(_xlfn.XLOOKUP(C123,CCD!B:B,CCD!O:O,_xlfn.XLOOKUP(C123,'COMP-SEINFRA'!A:A,'COMP-SEINFRA'!G:G,_xlfn.XLOOKUP(C123,'CP-CODEVASF'!A:A,'CP-CODEVASF'!D:D))),2) -> 550.26 | H123: 692.88 | I123: 1385.76
A124: 10.9 | B124: CODEVASF | C124: ='CP-CODEVASF'!A23 -> COMP-23 | D124: =_xlfn.XLOOKUP(C124,CCD!B:B,CCD!C:C,_xlfn.XLOOKUP(C124,'COMP-SEINFRA'!A:A,'COMP-SEINFRA'!C:C,_xlfn.XLOOKUP(C124,'CP-CODEVASF'!A:A,'CP-CODEVASF'!B:B))) -> CHUVEIRO PLASTICO SIMPLES - FORNECIDO E INSTALADO | E124: =_xlfn.XLOOKUP(C124,CCD!B:B,CCD!D:D,_xlfn.XLOOKUP(C124,'COMP-SEINFRA'!A:A,'COMP-SEINFRA'!D:D,_xlfn.XLOOKUP(C124,'CP-CODEVASF'!A:A,'CP-CODEVASF'!C:C))) -> UN | F124: =ROUND('MEMÓRIA DE CÁLCULO'!M652,2) -> 2 | G124: =TRUNC(_xlfn.XLOOKUP(C124,CCD!B:B,CCD!O:O,_xlfn.XLOOKUP(C124,'COMP-SEINFRA'!A:A,'COMP-SEINFRA'!G:G,_xlfn.XLOOKUP(C124,'CP-CODEVASF'!A:A,'CP-CODEVASF'!D:D))),2) -> 25.55 | H124: 32.17 | I124: 64.34
A125: 10.10 | B125: SEINFRA | C125: C3648 | D125: =_xlfn.XLOOKUP(C125,CCD!B:B,CCD!C:C,_xlfn.XLOOKUP(C125,'COMP-SEINFRA'!A:A,'COMP-SEINFRA'!C:C,_xlfn.XLOOKUP(C125,'CP-CODEVASF'!A:A,'CP-CODEVASF'!B:B))) -> RESERVATÓRIO PRÉ MOLDADO ELEVADO CILÍNDRICO D=2,0M, CAP.=12,0M3, H=9,0M COMPLETO E CISTERNA CAP.=4,5 M3 | E125: =_xlfn.XLOOKUP(C125,CCD!B:B,CCD!D:D,_xlfn.XLOOKUP(C125,'COMP-SEINFRA'!A:A,'COMP-SEINFRA'!D:D,_xlfn.XLOOKUP(C125,'CP-CODEVASF'!A:A,'CP-CODEVASF'!C:C))) -> UN | F125: =ROUND('MEMÓRIA DE CÁLCULO'!M658,2) -> 1 | G125: =TRUNC(_xlfn.XLOOKUP(C125,CCD!B:B,CCD!O:O,_xlfn.XLOOKUP(C125,'COMP-SEINFRA'!A:A,'COMP-SEINFRA'!G:G,_xlfn.XLOOKUP(C125,'CP-CODEVASF'!A:A,'CP-CODEVASF'!D:D))),2) -> 24049.25 | H125: 30282.81 | I125: 30282.81
A126: 10.11 | B126: SINAPI | C126: 86943 | D126: =_xlfn.XLOOKUP(C126,CCD!B:B,CCD!C:C,_xlfn.XLOOKUP(C126,'COMP-SEINFRA'!A:A,'COMP-SEINFRA'!C:C,_xlfn.XLOOKUP(C126,'CP-CODEVASF'!A:A,'CP-CODEVASF'!B:B))) -> LAVATÓRIO LOUÇA BRANCA SUSPENSO, 29,5 X 39CM OU EQUIVALENTE, PADRÃO POPULAR, INCLUSO SIFÃO FLEXÍVEL EM PVC, VÁLVULA E ENGATE FLEXÍVEL 30CM EM PLÁSTICO E TORNEIRA CROMADA DE MESA, PADRÃO POPULAR - FORNECIMENTO E INSTALAÇÃO. AF_01/2020 | E126: =_xlfn.XLOOKUP(C126,CCD!B:B,CCD!D:D,_xlfn.XLOOKUP(C126,'COMP-SEINFRA'!A:A,'COMP-SEINFRA'!D:D,_xlfn.XLOOKUP(C126,'CP-CODEVASF'!A:A,'CP-CODEVASF'!C:C))) -> UN | F126: =ROUND('MEMÓRIA DE CÁLCULO'!M664,2) -> 3 | G126: =TRUNC(_xlfn.XLOOKUP(C126,CCD!B:B,CCD!O:O,_xlfn.XLOOKUP(C126,'COMP-SEINFRA'!A:A,'COMP-SEINFRA'!G:G,_xlfn.XLOOKUP(C126,'CP-CODEVASF'!A:A,'CP-CODEVASF'!D:D))),2) -> 274.81 | H126: 346.04 | I126: 1038.12
A127: 10.12 | B127: SINAPI | C127: 93441 | D127: =_xlfn.XLOOKUP(C127,CCD!B:B,CCD!C:C,_xlfn.XLOOKUP(C127,'COMP-SEINFRA'!A:A,'COMP-SEINFRA'!C:C,_xlfn.XLOOKUP(C127,'CP-CODEVASF'!A:A,'CP-CODEVASF'!B:B))) -> BANCADA GRANITO CINZA 150 X 60 CM, COM CUBA DE EMBUTIR DE AÇO, VÁLVULA AMERICANA EM METAL, SIFÃO FLEXÍVEL EM PVC, ENGATE FLEXÍVEL 30 CM, TORNEIRA CROMADA LONGA, DE PAREDE, 1/2" OU 3/4", P/ COZINHA, PADRÃO POPULAR - FORNEC. E INSTALAÇÃO. AF_01/2020 | E127: =_xlfn.XLOOKUP(C127,CCD!B:B,CCD!D:D,_xlfn.XLOOKUP(C127,'COMP-SEINFRA'!A:A,'COMP-SEINFRA'!D:D,_xlfn.XLOOKUP(C127,'CP-CODEVASF'!A:A,'CP-CODEVASF'!C:C))) -> UN | F127: =ROUND('MEMÓRIA DE CÁLCULO'!M670,2) -> 4 | G127: =TRUNC(_xlfn.XLOOKUP(C127,CCD!B:B,CCD!O:O,_xlfn.XLOOKUP(C127,'COMP-SEINFRA'!A:A,'COMP-SEINFRA'!G:G,_xlfn.XLOOKUP(C127,'CP-CODEVASF'!A:A,'CP-CODEVASF'!D:D))),2) -> 1028.99 | H127: 1295.7 | I127: 5182.8
A128: 11 | D128: INSTALAÇÕES MECÂNICAS | I128: =TRUNC(SUM(I129:I129),2) -> 22301.8
A129: 11.1 | B129: SINAPI | C129: 103263 | D129: =_xlfn.XLOOKUP(C129,CCD!B:B,CCD!C:C,_xlfn.XLOOKUP(C129,'COMP-SEINFRA'!A:A,'COMP-SEINFRA'!C:C,_xlfn.XLOOKUP(C129,'CP-CODEVASF'!A:A,'CP-CODEVASF'!B:B))) -> AR CONDICIONADO SPLIT INVERTER, PISO TETO, 48000 BTU/H, CICLO FRIO - FORNECIMENTO E INSTALAÇÃO. AF_11/2021_PE | E129: =_xlfn.XLOOKUP(C129,CCD!B:B,CCD!D:D,_xlfn.XLOOKUP(C129,'COMP-SEINFRA'!A:A,'COMP-SEINFRA'!D:D,_xlfn.XLOOKUP(C129,'CP-CODEVASF'!A:A,'CP-CODEVASF'!C:C))) -> UN | F129: =ROUND('MEMÓRIA DE CÁLCULO'!M677,2) -> 1 | G129: =TRUNC(_xlfn.XLOOKUP(C129,CCD!B:B,CCD!O:O,_xlfn.XLOOKUP(C129,'COMP-SEINFRA'!A:A,'COMP-SEINFRA'!G:G,_xlfn.XLOOKUP(C129,'CP-CODEVASF'!A:A,'CP-CODEVASF'!D:D))),2) -> 17711.09 | H129: =TRUNC(G129*(1+$E$14),2) -> 22301.8 | I129: =TRUNC(H129*F129,2) -> 22301.8
A130: 12 | D130: EQUIPAMENTOS | I130: =TRUNC(SUM(I131:I150),2) -> 361648.05 | J130: Elétrico ou a vapor
A131: 12.1 | B131: CODEVASF | C131: ='CP-CODEVASF'!A14 -> COMP-14 | D131: =_xlfn.XLOOKUP(C131,CCD!B:B,CCD!C:C,_xlfn.XLOOKUP(C131,'COMP-SEINFRA'!A:A,'COMP-SEINFRA'!C:C,_xlfn.XLOOKUP(C131,'CP-CODEVASF'!A:A,'CP-CODEVASF'!B:B))) -> TANQUE DE RESFRIAMENTO 1000L | E131: =_xlfn.XLOOKUP(C131,CCD!B:B,CCD!D:D,_xlfn.XLOOKUP(C131,'COMP-SEINFRA'!A:A,'COMP-SEINFRA'!D:D,_xlfn.XLOOKUP(C131,'CP-CODEVASF'!A:A,'CP-CODEVASF'!C:C))) -> UN | F131: =ROUND('MEMÓRIA DE CÁLCULO'!M684,2) -> 1 | G131: =TRUNC(_xlfn.XLOOKUP(C131,CCD!B:B,CCD!O:O,_xlfn.XLOOKUP(C131,'COMP-SEINFRA'!A:A,'COMP-SEINFRA'!G:G,_xlfn.XLOOKUP(C131,'CP-CODEVASF'!A:A,'CP-CODEVASF'!D:D))),2) -> 24092.98 | H131: =TRUNC(G131*(1+$E$16),2) -> 28024.95 | I131: =TRUNC(H131*F131,2) -> 28024.95
A132: 12.2 | B132: CODEVASF | C132: ='CP-CODEVASF'!A15 -> COMP-15 | D132: =_xlfn.XLOOKUP(C132,CCD!B:B,CCD!C:C,_xlfn.XLOOKUP(C132,'COMP-SEINFRA'!A:A,'COMP-SEINFRA'!C:C,_xlfn.XLOOKUP(C132,'CP-CODEVASF'!A:A,'CP-CODEVASF'!B:B))) -> PASTEURIZADOR LENTO 1000L | E132: =_xlfn.XLOOKUP(C132,CCD!B:B,CCD!D:D,_xlfn.XLOOKUP(C132,'COMP-SEINFRA'!A:A,'COMP-SEINFRA'!D:D,_xlfn.XLOOKUP(C132,'CP-CODEVASF'!A:A,'CP-CODEVASF'!C:C))) -> UN | F132: =ROUND('MEMÓRIA DE CÁLCULO'!M690,2) -> 1 | G132: =TRUNC(_xlfn.XLOOKUP(C132,CCD!B:B,CCD!O:O,_xlfn.XLOOKUP(C132,'COMP-SEINFRA'!A:A,'COMP-SEINFRA'!G:G,_xlfn.XLOOKUP(C132,'CP-CODEVASF'!A:A,'CP-CODEVASF'!D:D))),2) -> 48227.33 | H132: 56098.03 | I132: 56098.03
A133: 12.3 | B133: CODEVASF | C133: ='CP-CODEVASF'!A20 -> COMP-20 | D133: =_xlfn.XLOOKUP(C133,CCD!B:B,CCD!C:C,_xlfn.XLOOKUP(C133,'COMP-SEINFRA'!A:A,'COMP-SEINFRA'!C:C,_xlfn.XLOOKUP(C133,'CP-CODEVASF'!A:A,'CP-CODEVASF'!B:B))) -> TANQUE INOX 500L PARA FABRICAÇÃO DE QUEIJOS | E133: =_xlfn.XLOOKUP(C133,CCD!B:B,CCD!D:D,_xlfn.XLOOKUP(C133,'COMP-SEINFRA'!A:A,'COMP-SEINFRA'!D:D,_xlfn.XLOOKUP(C133,'CP-CODEVASF'!A:A,'CP-CODEVASF'!C:C))) -> UN | F133: =ROUND('MEMÓRIA DE CÁLCULO'!M696,2) -> 2 | G133: =TRUNC(_xlfn.XLOOKUP(C133,CCD!B:B,CCD!O:O,_xlfn.XLOOKUP(C133,'COMP-SEINFRA'!A:A,'COMP-SEINFRA'!G:G,_xlfn.XLOOKUP(C133,'CP-CODEVASF'!A:A,'CP-CODEVASF'!D:D))),2) -> 17026.93 | H133: 19805.72 | I133: 39611.44
A134: 12.4 | B134: CODEVASF | C134: ='CP-CODEVASF'!A4 -> COMP-02 | D134: =_xlfn.XLOOKUP(C134,CCD!B:B,CCD!C:C,_xlfn.XLOOKUP(C134,'COMP-SEINFRA'!A:A,'COMP-SEINFRA'!C:C,_xlfn.XLOOKUP(C134,'CP-CODEVASF'!A:A,'CP-CODEVASF'!B:B))) -> MESA INOX DE APOIO | E134: =_xlfn.XLOOKUP(C134,CCD!B:B,CCD!D:D,_xlfn.XLOOKUP(C134,'COMP-SEINFRA'!A:A,'COMP-SEINFRA'!D:D,_xlfn.XLOOKUP(C134,'CP-CODEVASF'!A:A,'CP-CODEVASF'!C:C))) -> UN | F134: =ROUND('MEMÓRIA DE CÁLCULO'!M702,2) -> 2 | G134: =TRUNC(_xlfn.XLOOKUP(C134,CCD!B:B,CCD!O:O,_xlfn.XLOOKUP(C134,'COMP-SEINFRA'!A:A,'COMP-SEINFRA'!G:G,_xlfn.XLOOKUP(C134,'CP-CODEVASF'!A:A,'CP-CODEVASF'!D:D))),2) -> 3751.91 | H134: 4364.22 | I134: 8728.44
A135: 12.5 | B135: CODEVASF | C135: ='CP-CODEVASF'!A16 -> COMP-16 | D135: =_xlfn.XLOOKUP(C135,CCD!B:B,CCD!C:C,_xlfn.XLOOKUP(C135,'COMP-SEINFRA'!A:A,'COMP-SEINFRA'!C:C,_xlfn.XLOOKUP(C135,'CP-CODEVASF'!A:A,'CP-CODEVASF'!B:B))) -> PRENSA PNEUMÁTICA 4 COLUNAS/10 FORMAS REDONDAS 1KG | E135: =_xlfn.XLOOKUP(C135,CCD!B:B,CCD!D:D,_xlfn.XLOOKUP(C135,'COMP-SEINFRA'!A:A,'COMP-SEINFRA'!D:D,_xlfn.XLOOKUP(C135,'CP-CODEVASF'!A:A,'CP-CODEVASF'!C:C))) -> UN | F135: =ROUND('MEMÓRIA DE CÁLCULO'!M708,2) -> 2 | G135: =TRUNC(_xlfn.XLOOKUP(C135,CCD!B:B,CCD!O:O,_xlfn.XLOOKUP(C135,'COMP-SEINFRA'!A:A,'COMP-SEINFRA'!G:G,_xlfn.XLOOKUP(C135,'CP-CODEVASF'!A:A,'CP-CODEVASF'!D:D))),2) -> 10082.66 | H135: =TRUNC(G135*(1+$E$16),2) -> 11728.15 | I135: =TRUNC(H135*F135,2) -> 23456.3
A136: 12.6 | B136: CODEVASF | C136: COMP-17 | D136: =_xlfn.XLOOKUP(C136,CCD!B:B,CCD!C:C,_xlfn.XLOOKUP(C136,'COMP-SEINFRA'!A:A,'COMP-SEINFRA'!C:C,_xlfn.XLOOKUP(C136,'CP-CODEVASF'!A:A,'CP-CODEVASF'!B:B))) -> ENVASADORA PNEUMÁTICA PARA LÍQUIDOS E PASTOSOS | E136: =_xlfn.XLOOKUP(C136,CCD!B:B,CCD!D:D,_xlfn.XLOOKUP(C136,'COMP-SEINFRA'!A:A,'COMP-SEINFRA'!D:D,_xlfn.XLOOKUP(C136,'CP-CODEVASF'!A:A,'CP-CODEVASF'!C:C))) -> UN | F136: =ROUND('MEMÓRIA DE CÁLCULO'!M714,2) -> 1 | G136: =TRUNC(_xlfn.XLOOKUP(C136,CCD!B:B,CCD!O:O,_xlfn.XLOOKUP(C136,'COMP-SEINFRA'!A:A,'COMP-SEINFRA'!G:G,_xlfn.XLOOKUP(C136,'CP-CODEVASF'!A:A,'CP-CODEVASF'!D:D))),2) -> 7656.15 | H136: 8905.63 | I136: 8905.63
A137: 12.7 | B137: CODEVASF | C137: ='CP-CODEVASF'!A27 -> COMP-27 | D137: =_xlfn.XLOOKUP(C137,CCD!B:B,CCD!C:C,_xlfn.XLOOKUP(C137,'COMP-SEINFRA'!A:A,'COMP-SEINFRA'!C:C,_xlfn.XLOOKUP(C137,'CP-CODEVASF'!A:A,'CP-CODEVASF'!B:B))) -> IOGURTEIRA INOX 500L | E137: =_xlfn.XLOOKUP(C137,CCD!B:B,CCD!D:D,_xlfn.XLOOKUP(C137,'COMP-SEINFRA'!A:A,'COMP-SEINFRA'!D:D,_xlfn.XLOOKUP(C137,'CP-CODEVASF'!A:A,'CP-CODEVASF'!C:C))) -> UN | F137: =ROUND('MEMÓRIA DE CÁLCULO'!M720,2) -> 1 | G137: =TRUNC(_xlfn.XLOOKUP(C137,CCD!B:B,CCD!O:O,_xlfn.XLOOKUP(C137,'COMP-SEINFRA'!A:A,'COMP-SEINFRA'!G:G,_xlfn.XLOOKUP(C137,'CP-CODEVASF'!A:A,'CP-CODEVASF'!D:D))),2) -> 28595 | H137: 33261.7 | I137: 33261.7
A138: 12.8 | B138: CODEVASF | C138: ='CP-CODEVASF'!A18 -> COMP-18 | D138: =_xlfn.XLOOKUP(C138,CCD!B:B,CCD!C:C,_xlfn.XLOOKUP(C138,'COMP-SEINFRA'!A:A,'COMP-SEINFRA'!C:C,_xlfn.XLOOKUP(C138,'CP-CODEVASF'!A:A,'CP-CODEVASF'!B:B))) -> DESNATADEIRA ELÉTRICA 275L/H | E138: =_xlfn.XLOOKUP(C138,CCD!B:B,CCD!D:D,_xlfn.XLOOKUP(C138,'COMP-SEINFRA'!A:A,'COMP-SEINFRA'!D:D,_xlfn.XLOOKUP(C138,'CP-CODEVASF'!A:A,'CP-CODEVASF'!C:C))) -> UN | F138: =ROUND('MEMÓRIA DE CÁLCULO'!M726,2) -> 1 | G138: =TRUNC(_xlfn.XLOOKUP(C138,CCD!B:B,CCD!O:O,_xlfn.XLOOKUP(C138,'COMP-SEINFRA'!A:A,'COMP-SEINFRA'!G:G,_xlfn.XLOOKUP(C138,'CP-CODEVASF'!A:A,'CP-CODEVASF'!D:D))),2) -> 20165 | H138: 23455.92 | I138: 23455.92
A139: 12.9 | B139: CODEVASF | C139: ='CP-CODEVASF'!A25 -> COMP-25 | D139: =_xlfn.XLOOKUP(C139,CCD!B:B,CCD!C:C,_xlfn.XLOOKUP(C139,'COMP-SEINFRA'!A:A,'COMP-SEINFRA'!C:C,_xlfn.XLOOKUP(C139,'CP-CODEVASF'!A:A,'CP-CODEVASF'!B:B))) -> TACHO PARA DOCE 100L | E139: =_xlfn.XLOOKUP(C139,CCD!B:B,CCD!D:D,_xlfn.XLOOKUP(C139,'COMP-SEINFRA'!A:A,'COMP-SEINFRA'!D:D,_xlfn.XLOOKUP(C139,'CP-CODEVASF'!A:A,'CP-CODEVASF'!C:C))) -> UN | F139: =ROUND('MEMÓRIA DE CÁLCULO'!M732,2) -> 1 | G139: =TRUNC(_xlfn.XLOOKUP(C139,CCD!B:B,CCD!O:O,_xlfn.XLOOKUP(C139,'COMP-SEINFRA'!A:A,'COMP-SEINFRA'!G:G,_xlfn.XLOOKUP(C139,'CP-CODEVASF'!A:A,'CP-CODEVASF'!D:D))),2) -> 28790.93 | H139: 33489.6 | I139: 33489.6
A140: 12.10 | B140: CODEVASF | C140: ='CP-CODEVASF'!A26 -> COMP-26 | D140: =_xlfn.XLOOKUP(C140,CCD!B:B,CCD!C:C,_xlfn.XLOOKUP(C140,'COMP-SEINFRA'!A:A,'COMP-SEINFRA'!C:C,_xlfn.XLOOKUP(C140,'CP-CODEVASF'!A:A,'CP-CODEVASF'!B:B))) -> BATEDEIRA PARA MANTEIGA 20KG | E140: =_xlfn.XLOOKUP(C140,CCD!B:B,CCD!D:D,_xlfn.XLOOKUP(C140,'COMP-SEINFRA'!A:A,'COMP-SEINFRA'!D:D,_xlfn.XLOOKUP(C140,'CP-CODEVASF'!A:A,'CP-CODEVASF'!C:C))) -> UN | F140: =ROUND('MEMÓRIA DE CÁLCULO'!M742,2) -> 1 | G140: =TRUNC(_xlfn.XLOOKUP(C140,CCD!B:B,CCD!O:O,_xlfn.XLOOKUP(C140,'COMP-SEINFRA'!A:A,'COMP-SEINFRA'!G:G,_xlfn.XLOOKUP(C140,'CP-CODEVASF'!A:A,'CP-CODEVASF'!D:D))),2) -> 20344.94 | H140: 23665.23 | I140: 23665.23
A141: 12.11 | B141: CODEVASF | C141: ='CP-CODEVASF'!A5 -> COMP-03 | D141: =_xlfn.XLOOKUP(C141,CCD!B:B,CCD!C:C,_xlfn.XLOOKUP(C141,'COMP-SEINFRA'!A:A,'COMP-SEINFRA'!C:C,_xlfn.XLOOKUP(C141,'CP-CODEVASF'!A:A,'CP-CODEVASF'!B:B))) -> SELADORA MANUAL PARA POTES | E141: =_xlfn.XLOOKUP(C141,CCD!B:B,CCD!D:D,_xlfn.XLOOKUP(C141,'COMP-SEINFRA'!A:A,'COMP-SEINFRA'!D:D,_xlfn.XLOOKUP(C141,'CP-CODEVASF'!A:A,'CP-CODEVASF'!C:C))) -> UN | F141: =ROUND('MEMÓRIA DE CÁLCULO'!M708,2) -> 2 | G141: =TRUNC(_xlfn.XLOOKUP(C141,CCD!B:B,CCD!O:O,_xlfn.XLOOKUP(C141,'COMP-SEINFRA'!A:A,'COMP-SEINFRA'!G:G,_xlfn.XLOOKUP(C141,'CP-CODEVASF'!A:A,'CP-CODEVASF'!D:D))),2) -> 2672.97 | H141: 3109.19 | I141: 6218.38
A142: 12.12 | B142: CODEVASF | C142: ='CP-CODEVASF'!A19 -> COMP-19 | D142: =_xlfn.XLOOKUP(C142,CCD!B:B,CCD!C:C,_xlfn.XLOOKUP(C142,'COMP-SEINFRA'!A:A,'COMP-SEINFRA'!C:C,_xlfn.XLOOKUP(C142,'CP-CODEVASF'!A:A,'CP-CODEVASF'!B:B))) -> TANQUE PARA SALGA 400L | E142: =_xlfn.XLOOKUP(C142,CCD!B:B,CCD!D:D,_xlfn.XLOOKUP(C142,'COMP-SEINFRA'!A:A,'COMP-SEINFRA'!D:D,_xlfn.XLOOKUP(C142,'CP-CODEVASF'!A:A,'CP-CODEVASF'!C:C))) -> UN | F142: =ROUND('MEMÓRIA DE CÁLCULO'!M750,2) -> 1 | G142: =TRUNC(_xlfn.XLOOKUP(C142,CCD!B:B,CCD!O:O,_xlfn.XLOOKUP(C142,'COMP-SEINFRA'!A:A,'COMP-SEINFRA'!G:G,_xlfn.XLOOKUP(C142,'CP-CODEVASF'!A:A,'CP-CODEVASF'!D:D))),2) -> 3616.66 | H142: 4206.89 | I142: 4206.89
A143: 12.13 | B143: CODEVASF | C143: COMP-11 | D143: =_xlfn.XLOOKUP(C143,CCD!B:B,CCD!C:C,_xlfn.XLOOKUP(C143,'COMP-SEINFRA'!A:A,'COMP-SEINFRA'!C:C,_xlfn.XLOOKUP(C143,'CP-CODEVASF'!A:A,'CP-CODEVASF'!B:B))) -> ESTANTE EM AÇO INOX PARA SECAGEM/MATURAÇÃO DE QUEIJOS | E143: =_xlfn.XLOOKUP(C143,CCD!B:B,CCD!D:D,_xlfn.XLOOKUP(C143,'COMP-SEINFRA'!A:A,'COMP-SEINFRA'!D:D,_xlfn.XLOOKUP(C143,'CP-CODEVASF'!A:A,'CP-CODEVASF'!C:C))) -> UN | F143: =ROUND('MEMÓRIA DE CÁLCULO'!M756,2) -> 6 | G143: =TRUNC(_xlfn.XLOOKUP(C143,CCD!B:B,CCD!O:O,_xlfn.XLOOKUP(C143,'COMP-SEINFRA'!A:A,'COMP-SEINFRA'!G:G,_xlfn.XLOOKUP(C143,'CP-CODEVASF'!A:A,'CP-CODEVASF'!D:D))),2) -> 4382.24 | H143: 5097.42 | I143: 30584.52
A144: 12.14 | B144: CODEVASF | C144: ='CP-CODEVASF'!A6 -> COMP-04 | D144: =_xlfn.XLOOKUP(C144,CCD!B:B,CCD!C:C,_xlfn.XLOOKUP(C144,'COMP-SEINFRA'!A:A,'COMP-SEINFRA'!C:C,_xlfn.XLOOKUP(C144,'CP-CODEVASF'!A:A,'CP-CODEVASF'!B:B))) -> SELADORA A VÁCUO DE BANCADA | E144: =_xlfn.XLOOKUP(C144,CCD!B:B,CCD!D:D,_xlfn.XLOOKUP(C144,'COMP-SEINFRA'!A:A,'COMP-SEINFRA'!D:D,_xlfn.XLOOKUP(C144,'CP-CODEVASF'!A:A,'CP-CODEVASF'!C:C))) -> UN | F144: =ROUND('MEMÓRIA DE CÁLCULO'!M762,2) -> 2 | G144: =TRUNC(_xlfn.XLOOKUP(C144,CCD!B:B,CCD!O:O,_xlfn.XLOOKUP(C144,'COMP-SEINFRA'!A:A,'COMP-SEINFRA'!G:G,_xlfn.XLOOKUP(C144,'CP-CODEVASF'!A:A,'CP-CODEVASF'!D:D))),2) -> 5457.82 | H144: 6348.53 | I144: 12697.06
A145: 12.15 | B145: CODEVASF | C145: ='CP-CODEVASF'!A7 -> COMP-05 | D145: =_xlfn.XLOOKUP(C145,CCD!B:B,CCD!C:C,_xlfn.XLOOKUP(C145,'COMP-SEINFRA'!A:A,'COMP-SEINFRA'!C:C,_xlfn.XLOOKUP(C145,'CP-CODEVASF'!A:A,'CP-CODEVASF'!B:B))) -> LAVA DE BOTAS MANUAL | E145: =_xlfn.XLOOKUP(C145,CCD!B:B,CCD!D:D,_xlfn.XLOOKUP(C145,'COMP-SEINFRA'!A:A,'COMP-SEINFRA'!D:D,_xlfn.XLOOKUP(C145,'CP-CODEVASF'!A:A,'CP-CODEVASF'!C:C))) -> UN | F145: =ROUND('MEMÓRIA DE CÁLCULO'!M768,2) -> 1 | G145: =TRUNC(_xlfn.XLOOKUP(C145,CCD!B:B,CCD!O:O,_xlfn.XLOOKUP(C145,'COMP-SEINFRA'!A:A,'COMP-SEINFRA'!G:G,_xlfn.XLOOKUP(C145,'CP-CODEVASF'!A:A,'CP-CODEVASF'!D:D))),2) -> 5321.75 | H145: 6190.25 | I145: 6190.25
A146: 12.16 | B146: CODEVASF | C146: ='CP-CODEVASF'!A8 -> COMP-06 | D146: =_xlfn.XLOOKUP(C146,CCD!B:B,CCD!C:C,_xlfn.XLOOKUP(C146,'COMP-SEINFRA'!A:A,'COMP-SEINFRA'!C:C,_xlfn.XLOOKUP(C146,'CP-CODEVASF'!A:A,'CP-CODEVASF'!B:B))) -> ANALISADOR DE LEITE ULTRASSÔNICO | E146: =_xlfn.XLOOKUP(C146,CCD!B:B,CCD!D:D,_xlfn.XLOOKUP(C146,'COMP-SEINFRA'!A:A,'COMP-SEINFRA'!D:D,_xlfn.XLOOKUP(C146,'CP-CODEVASF'!A:A,'CP-CODEVASF'!C:C))) -> UN | F146: =ROUND('MEMÓRIA DE CÁLCULO'!M774,2) -> 1 | G146: =TRUNC(_xlfn.XLOOKUP(C146,CCD!B:B,CCD!O:O,_xlfn.XLOOKUP(C146,'COMP-SEINFRA'!A:A,'COMP-SEINFRA'!G:G,_xlfn.XLOOKUP(C146,'CP-CODEVASF'!A:A,'CP-CODEVASF'!D:D))),2) -> 5769.28 | H146: 6710.82 | I146: 6710.82
A147: 12.17 | B147: CODEVASF | C147: ='CP-CODEVASF'!A9 -> COMP-07 | D147: =_xlfn.XLOOKUP(C147,CCD!B:B,CCD!C:C,_xlfn.XLOOKUP(C147,'COMP-SEINFRA'!A:A,'COMP-SEINFRA'!C:C,_xlfn.XLOOKUP(C147,'CP-CODEVASF'!A:A,'CP-CODEVASF'!B:B))) -> LAVADORA E SECADORA DE ROUPAS INVERTER 11KG | E147: =_xlfn.XLOOKUP(C147,CCD!B:B,CCD!D:D,_xlfn.XLOOKUP(C147,'COMP-SEINFRA'!A:A,'COMP-SEINFRA'!D:D,_xlfn.XLOOKUP(C147,'CP-CODEVASF'!A:A,'CP-CODEVASF'!C:C))) -> UN | F147: =ROUND('MEMÓRIA DE CÁLCULO'!M780,2) -> 1 | G147: =TRUNC(_xlfn.XLOOKUP(C147,CCD!B:B,CCD!O:O,_xlfn.XLOOKUP(C147,'COMP-SEINFRA'!A:A,'COMP-SEINFRA'!G:G,_xlfn.XLOOKUP(C147,'CP-CODEVASF'!A:A,'CP-CODEVASF'!D:D))),2) -> 3610.51 | H147: 4199.74 | I147: 4199.74
A148: 12.18 | B148: CODEVASF | C148: ='CP-CODEVASF'!A10 -> COMP-08 | D148: =_xlfn.XLOOKUP(C148,CCD!B:B,CCD!C:C,_xlfn.XLOOKUP(C148,'COMP-SEINFRA'!A:A,'COMP-SEINFRA'!C:C,_xlfn.XLOOKUP(C148,'CP-CODEVASF'!A:A,'CP-CODEVASF'!B:B))) -> ARMÁRIO TIPO ROUPEIRO | E148: =_xlfn.XLOOKUP(C148,CCD!B:B,CCD!D:D,_xlfn.XLOOKUP(C148,'COMP-SEINFRA'!A:A,'COMP-SEINFRA'!D:D,_xlfn.XLOOKUP(C148,'CP-CODEVASF'!A:A,'CP-CODEVASF'!C:C))) -> UN | F148: =ROUND('MEMÓRIA DE CÁLCULO'!M786,2) -> 4 | G148: =TRUNC(_xlfn.XLOOKUP(C148,CCD!B:B,CCD!O:O,_xlfn.XLOOKUP(C148,'COMP-SEINFRA'!A:A,'COMP-SEINFRA'!G:G,_xlfn.XLOOKUP(C148,'CP-CODEVASF'!A:A,'CP-CODEVASF'!D:D))),2) -> 1283.09 | H148: 1492.49 | I148: 5969.96
A149: 12.19 | B149: CODEVASF | C149: ='CP-CODEVASF'!A28 -> COMP-28 | D149: =_xlfn.XLOOKUP(C149,CCD!B:B,CCD!C:C,_xlfn.XLOOKUP(C149,'COMP-SEINFRA'!A:A,'COMP-SEINFRA'!C:C,_xlfn.XLOOKUP(C149,'CP-CODEVASF'!A:A,'CP-CODEVASF'!B:B))) -> COMPRESSOR 2HP 50L | E149: =_xlfn.XLOOKUP(C149,CCD!B:B,CCD!D:D,_xlfn.XLOOKUP(C149,'COMP-SEINFRA'!A:A,'COMP-SEINFRA'!D:D,_xlfn.XLOOKUP(C149,'CP-CODEVASF'!A:A,'CP-CODEVASF'!C:C))) -> UN | F149: =ROUND('MEMÓRIA DE CÁLCULO'!M792,2) -> 1 | G149: =TRUNC(_xlfn.XLOOKUP(C149,CCD!B:B,CCD!O:O,_xlfn.XLOOKUP(C149,'COMP-SEINFRA'!A:A,'COMP-SEINFRA'!G:G,_xlfn.XLOOKUP(C149,'CP-CODEVASF'!A:A,'CP-CODEVASF'!D:D))),2) -> 2147.93 | H149: 2498.47 | I149: 2498.47
A150: 12.20 | B150: CODEVASF | C150: ='COMP-CDF'!A184 -> COMP-34 | D150: =_xlfn.XLOOKUP(C150,CCD!B:B,CCD!C:C,_xlfn.XLOOKUP(C150,'COMP-SEINFRA'!A:A,'COMP-SEINFRA'!C:C,_xlfn.XLOOKUP(C150,'CP-CODEVASF'!A:A,'CP-CODEVASF'!B:B))) -> FORMA PARA QUEIJO COALHO REDONDO DE 1KG | E150: =_xlfn.XLOOKUP(C150,CCD!B:B,CCD!D:D,_xlfn.XLOOKUP(C150,'COMP-SEINFRA'!A:A,'COMP-SEINFRA'!D:D,_xlfn.XLOOKUP(C150,'CP-CODEVASF'!A:A,'CP-CODEVASF'!C:C))) -> UN | F150: =ROUND('MEMÓRIA DE CÁLCULO'!M798,2) -> 112 | G150: =TRUNC(_xlfn.XLOOKUP(C150,CCD!B:B,CCD!O:O,_xlfn.XLOOKUP(C150,'COMP-SEINFRA'!A:A,'COMP-SEINFRA'!G:G,_xlfn.XLOOKUP(C150,'CP-CODEVASF'!A:A,'CP-CODEVASF'!D:D))),2) -> 28.21 | H150: 32.81 | I150: =TRUNC(H150*F150,2) -> 3674.72 | J150: Forma+Prensador+Dessorador
A151: 13 | D151: LIMPEZA FINAL DA OBRA | I151: =TRUNC(SUM(I152),2) -> 1339.52
A152: 13.1 | B152: SINAPI | C152: 99803 | D152: =_xlfn.XLOOKUP(C152,CCD!B:B,CCD!C:C,_xlfn.XLOOKUP(C152,'COMP-SEINFRA'!A:A,'COMP-SEINFRA'!C:C,_xlfn.XLOOKUP(C152,'CP-CODEVASF'!A:A,'CP-CODEVASF'!B:B))) -> LIMPEZA DE PISO CERÂMICO OU PORCELANATO COM PANO ÚMIDO. AF_04/2019 | E152: =_xlfn.XLOOKUP(C152,CCD!B:B,CCD!D:D,_xlfn.XLOOKUP(C152,'COMP-SEINFRA'!A:A,'COMP-SEINFRA'!D:D,_xlfn.XLOOKUP(C152,'CP-CODEVASF'!A:A,'CP-CODEVASF'!C:C))) -> M2 | F152: =ROUND('MEMÓRIA DE CÁLCULO'!M805,2) -> 503.58 | G152: =TRUNC(_xlfn.XLOOKUP(C152,CCD!B:B,CCD!O:O,_xlfn.XLOOKUP(C152,'COMP-SEINFRA'!A:A,'COMP-SEINFRA'!G:G,_xlfn.XLOOKUP(C152,'CP-CODEVASF'!A:A,'CP-CODEVASF'!D:D))),2) -> 2.12 | H152: =TRUNC(G152*(1+$E$14),2) -> 2.66 | I152: =TRUNC(H152*F152,2) -> 1339.52
A153: 14 | D153: PROJETO EXECUTIVO | I153: =TRUNC(SUM(I154:I155),2) -> 18647.33 | J153: =I153/$I$156 -> 0.01885365307
A154: 14.1 | B154: CODEVASF | C154: COMP-29-0 | D154: PROJETO EXECUTIVO PADRÃO EXCETO SONDAGEM, LEVANTAMENTO TOPOGRÁFICO E IMPLANTAÇÃO | E154: UN | F154: ='MEMÓRIA DE CÁLCULO'!M817 -> 1 | G154: =TRUNC(_xlfn.XLOOKUP(C154,CCD!B:B,CCD!O:O,_xlfn.XLOOKUP(C154,'COMP-SEINFRA'!A:A,'COMP-SEINFRA'!G:G,_xlfn.XLOOKUP(C154,'CP-CODEVASF'!A:A,'CP-CODEVASF'!D:D))),2) -> 5937.9 | H154: =TRUNC(G154*(1+$E$14),2) -> 7477 | I154: =TRUNC(H154*F154,2) -> 7477 | J154: 0.00755972914
A155: 14.2 | B155: CODEVASF | C155: COMP-29 | D155: SONDAGEM, LEVANTAMENTO TOPOGRÁFICO E IMPLANTAÇÃO | E155: UN | F155: ='MEMÓRIA DE CÁLCULO'!M823 -> 1 | G155: =TRUNC(_xlfn.XLOOKUP(C155,CCD!B:B,CCD!O:O,_xlfn.XLOOKUP(C155,'COMP-SEINFRA'!A:A,'COMP-SEINFRA'!G:G,_xlfn.XLOOKUP(C155,'CP-CODEVASF'!A:A,'CP-CODEVASF'!D:D))),2) -> 8870.98 | H155: 11170.33 | I155: 11170.33 | J155: =I155/$I$156 -> 0.01129392393
A156: TOTAL GERAL C/ BDI INCLUSO (R$) | I156: =TRUNC(SUM(I24+I31+I35+I41+I58+I60+I63+I70+I97+I115+I128+I130+I151+I153),2) -> 989056.6
A158: FORTALEZA/CE, OUTUBRO DE 2025.
A834: ='ORC1'!A158 -> FORTALEZA/CE, OUTUBRO DE 2025.

Sheet Planilha1 (hidden)
A1: CONTRATAÇÃO DE SERVIÇOS DE ENGENHARIA, POR MEIO DO SISTEMA DE REGISTRO DE PREÇOS – SRP, PARA IMPLANTAÇÃO DE AGROINDÚSTRIAS DE LÁCTEOS EM COMUNIDADES RURAIS, NO ESTADO DO CEARÁ.
A3: ORÇAMENTO SINTÉTICO - CUSTO POR UNIDADE
A4: ITEM | B4: FONTE | C4: CÓDIGO | D4: DESCRIÇÃO DOS SERVIÇOS | E4: UNID. | F4: QUANT. | G4: PREÇO UNIT. S/ BDI (R$) | H4: PREÇO UNIT. C/ BDI (R$) | I4: PREÇO TOTAL (R$)
A5: 1 | D5: SERVIÇOS PRELIMINARES | I5: 96591.51
A7: 2 | D7: MOVIMENTAÇÃO DE TERRA / CONTENÇÃO | I7: 5234.74
A9: 3 | D9: PAVIMENTAÇÃO / PISO | I9: 72415.12
A11: 4 | D11: COBERTURA | I11: 113303.05
A13: 4.1 | D13: FUNDAÇÃO - BLOCOS | I13: 6548.27
A15: 4.2 | D15: FUNDAÇÃO - VIGAS BALDRAMES | I15: 7822.47
A17: 4.3 | D17: ESTRUTURA METÁLICA | I17: 98932.31
A19: 5 | D19: PAREDES / PAINÉIS / VEDAÇÃO | I19: 180303.03
A21: 6 | D21: PINTURA | I21: 7621.17
A23: 7 | D23: ESQUADRIAS | I23: 37993.28
A25: 8 | D25: INSTALAÇÕES ELÉTRICAS | I25: 31654.66
A27: 9 | D27: INSTALAÇÕES SANITÁRIAS | I27: 16085.39
A29: 10 | D29: INSTALAÇÕES HIDRÁULICAS | I29: 42408.28
A31: 11 | D31: INSTALAÇÕES MECÂNICAS | I31: 22301.8
A33: 12 | D33: EQUIPAMENTOS | I33: 364212.49
A35: 13 | D35: LIMPEZA FINAL DA OBRA | I35: 1339.52
A37: TOTAL GERAL C/ BDI INCLUSO (R$) | I37: 991464.04

Sheet MEMÓRIA DE CÁLCULO
A2: ='ORC1'!D3 -> MINISTÉRIO DA INTEGRAÇÃO E DO DESENVOLVIMENTO REGIONAL - MIDR
A3: ='ORC1'!D4 -> COMPANHIA DE DESENVOLVIMENTO DOS VALES DO SÃO FRANCISCO E DO PARNAÍBA
A4: ='ORC1'!D5 -> 14ª SUPERINTENDÊNCIA REGIONAL
A6: ='ORC1'!A20 -> CONTRATAÇÃO DE SERVIÇOS DE ENGENHARIA, POR MEIO DO SISTEMA DE REGISTRO DE PREÇOS – SRP, PARA IMPLANTAÇÃO DE AGROINDÚSTRIAS DE LÁCTEOS EM COMUNIDADES RURAIS, NO ESTADO DO CEARÁ.
A8: MEMÓRIA DE CÁLCULO - UNIDADE
A9: =[203]ORÇAMENTO!A19 -> 1 | B9: =[203]ORÇAMENTO!D19 -> SERVIÇOS PRELIMINARES
A10: SUBITEM | B10: DESCRIÇÃO | L10: UNID. | M10: QUANT.
A11: ='ORC1'!A25 -> 1.1 | B11: ='ORC1'!D25 -> FORNECIMENTO E INSTALAÇÃO DE PLACA DE OBRA COM CHAPA GALVANIZADA E ESTRUTURA DE MADEIRA. AF_03/2022_PS | L11: ='ORC1'!E25 -> M2 | M11: =ROUND(M15,2) -> 6
A12: QUANTITATIVO
A13: DESCRIÇÃO | I13: EXTENSÃO | J13: x | K13: ALTURA | L13: = | M13: TOTAL
A14: PLACA DA OBRA | I14: 3 | J14: x | K14: 2 | L14: = | M14: =ROUND(I14*K14,2) -> 6
J15: ● | K15: TOTAL | L15: = | M15: =ROUND(SUM(M14),2) -> 6
A16: SUBITEM | B16: DESCRIÇÃO | L16: UNID. | M16: QUANT.
A17: ='ORC1'!A26 -> 1.2 | B17: ='ORC1'!D26 -> ADMISTRAÇÃO LOCAL | L17: UND | M17: =ROUND(M21,2) -> 1
A18: QUANTITATIVO
A19: DESCRIÇÃO | K19: QUANT. | L19: = | M19: TOTAL
A20: ADMINISTRAÇÃO LOCAL | K20: 1 | L20: = | M20: =K20 -> 1
J21: ● | K21: TOTAL | L21: = | M21: =ROUND(SUM(M20),2) -> 1
A22: SUBITEM | B22: DESCRIÇÃO | L22: UNID. | M22: QUANT.
A23: ='ORC1'!A27 -> 1.3 | B23: ='ORC1'!D27 -> MOBILIZAÇÃO E DESMOBILIZAÇÃO | L23: UND | M23: =ROUND(M27,2) -> 1
A24: QUANTITATIVO
A25: DESCRIÇÃO | K25: QUANT. | L25: = | M25: TOTAL
A26: MOBILIZAÇÃO E DESMOBILIZAÇÃO | K26: 1 | L26: = | M26: =K26 -> 1
J27: ● | K27: TOTAL | L27: = | M27: =ROUND(SUM(M26),2) -> 1
A28: SUBITEM | B28: DESCRIÇÃO | L28: UNID. | M28: QUANT.
A29: ='ORC1'!A28 -> 1.4 | B29: ='ORC1'!D28 -> Residencial (2,45% do CMCC - SINAPI) | L29: M²xMÊS | M29: =ROUND(M33,2) -> 100
A30: QUANTITATIVO
A31: DESCRIÇÃO | I31: M² | J31: x | K31: MÊS | L31: = | M31: TOTAL
A32: CANTEIRO | I32: 33.3309 | K32: 3.0001 | L32: = | M32: =ROUND((I32*K32),2) -> 100
J33: ● | K33: TOTAL | L33: = | M33: =ROUND(SUM(M32),2) -> 100
A34: SUBITEM | B34: DESCRIÇÃO | L34: UNID. | M34: QUANT.
A35: ='ORC1'!A29 -> 1.5 | B35: ='ORC1'!D29 -> LOCAÇÃO CONVENCIONAL DE OBRA, UTILIZANDO GABARITO DE TÁBUAS CORRIDAS PONTALETADAS A CADA 1,50M - 2 UTILIZAÇÕES. AF_03/2024 | L35: ='ORC1'!E29 -> M | M35: =M40 -> 55
A36: QUANTITATIVO
A37: DESCRIÇÃO | I37: EXTENSÃO | J37: X | K37: LADOS | L37: = | M37: TOTAL
A38: LADO 01 | I38: 13.1 | K38: 2 | L38: = | M38: =ROUNDUP(I38*K38,0) -> 27
A39: LADO 02 | I39: 13.8 | K39: 2 | L39: = | M39: =ROUNDUP(I39*K39,0) -> 28
J40: ● | K40: TOTAL | L40: = | M40: =ROUND(SUM(M38:M39),2) -> 55
A41: SUBITEM | B41: DESCRIÇÃO | L41: UNID. | M41: QUANT.
A42: ='ORC1'!A30 -> 1.6 | B42: ='ORC1'!D30 -> LIMPEZA MECANIZADA DE CAMADA VEGETAL, VEGETAÇÃO E PEQUENAS ÁRVORES (DIÂMETRO DE TRONCO MENOR QUE 0,20 M), COM TRATOR DE ESTEIRAS. AF_03/2024 | L42: ='ORC1'!E30 -> M2 | M42: =M45 -> 503.58
A43: DESCRIÇÃO | I43: EXTENSÃO | J43: x | K43: LARGURA | L43: = | M43: TOTAL
A44: LIMPEZA DO TERRENO | I44: 23.1 | J44: x | K44: 21.8 | L44: = | M44: =ROUND(I44*K44,2) -> 503.58
J45: ● | K45: TOTAL | L45: = | M45: =ROUND(SUM(M44),2) -> 503.58
A46: ='ORC1'!A31 -> 2 | B46: ='ORC1'!D31 -> MOVIMENTAÇÃO DE TERRA / CONTENÇÃO
A47: SUBITEM | B47: DESCRIÇÃO | L47: UNID. | M47: QUANT.
A48: ='ORC1'!A32 -> 2.1 | B48: ='ORC1'!D32 -> REGULARIZAÇÃO E COMPACTAÇÃO DE SUBLEITO DE SOLO PREDOMINANTEMENTE ARGILOSO, PARA OBRAS DE CONSTRUÇÃO DE PAVIMENTOS. AF_09/2024 | L48: ='ORC1'!E32 -> M2 | M48: =M51 -> 503.58
A49: QUANTITATIVO
A50: DESCRIÇÃO | I50: EXTENSÃO | J50: x | K50: LARGURA | L50: = | M50: TOTAL
A51: IMPLANTAÇÃO | I51: 23.1 | J51: x | K51: 21.8 | L51: = | M51: =ROUND(I51*K51,2) -> 503.58
J52: ● | K52: TOTAL | L52: = | M52: =ROUND(SUM(M50:M51),2) -> 503.58
A53: SUBITEM | B53: DESCRIÇÃO | L53: UNID. | M53: QUANT.
A54: ='ORC1'!A33 -> 2.2 | B54: ='ORC1'!D33 -> ESCAVAÇÃO MANUAL DE VALA. AF_09/2024 | L54: ='ORC1'!E33 -> M3 | M54: =ROUND(M59,2) -> 4.31
A55: QUANTITATIVO
A56: DESCRIÇÃO | E56: EXTENSÃO | F56: x | G56: LARGURA | H56: x | I56: ALTURA | J56: x | K56: REPETIÇÃO | L56: = | M56: TOTAL
A57: EXTENSÃO 01 | E57: 13.1 | F57: x | G57: 0.2 | H57: x | I57: 0.4 | J57: x | K57: 2 | L57: = | M57: =ROUND(E57*I57*G57*K57,2) -> 2.1
A58: EXTENSÃO 02 | E58: 13.8 | F58: x | G58: 0.2 | H58: x | I58: 0.4 | J58: x | K58: 2 | L58: = | M58: =ROUND(E58*I58*G58*K58,2) -> 2.21
J59: ● | K59: TOTAL | L59: = | M59: =ROUND(SUM(M57:M58),2) -> 4.31
A60: SUBITEM | B60: DESCRIÇÃO | L60: UNID. | M60: QUANT.
A61: ='ORC1'!A34 -> 2.3 | B61: ='ORC1'!D34 -> ATERRO MANUAL DE VALAS COM AREIA PARA ATERRO. AF_08/2023 | L61: ='ORC1'!E34 -> M3 | M61: =ROUND(M70,2) -> 19.9
A62: QUANTITATIVO
A63: DESCRIÇÃO | G63: EXTENSÃO | H63: x | I63: LARGURA | J63: x | K63: ALTURA | L63: = | M63: TOTAL
A64: RADIER EXTERNO - ÁREA 01 | G64: 13.1 | H64: x | I64: 1 | J64: x | K64: 0.02 | L64: = | M64: =ROUND(G64*K64*I64,2) -> 0.26
A65: RADIER EXTERNO - ÁREA 02 | G65: 13.1 | H65: x | I65: 1 | J65: x | K65: 0.02 | L65: = | M65: =ROUND(G65*K65*I65,2) -> 0.26
A66: RADIER EXTERNO - ÁREA 03 | G66: 11.8 | H66: x | I66: 1 | J66: x | K66: 0.02 | L66: = | M66: 0.24
A67: RADIER EXTERNO - ÁREA 04 | G67: 11.8 | H67: x | I67: 1.5 | J67: x | K67: 0.02 | L67: = | M67: 0.35
A68: RADIER EXTERNO - ÁREA 05 | G68: 11.8 | H68: x | I68: 3 | J68: x | K68: 0.02 | L68: = | M68: 0.71
A69: RADIER | G69: 13.8 | H69: x | I69: 13.1 | J69: x | K69: 0.1 | L69: = | M69: =ROUND(G69*K69*I69,2) -> 18.08
J70: ● | K70: TOTAL | L70: = | M70: =ROUND(SUM(M64:M69),2) -> 19.9
A71: ='ORC1'!A35 -> 3 | B71: ='ORC1'!D35 -> PAVIMENTAÇÃO / PISO
A72: SUBITEM | B72: DESCRIÇÃO | L72: UNID. | M72: QUANT.
A73: ='ORC1'!A36 -> 3.1 | B73: ='ORC1'!D36 -> EXECUÇÃO DE PAVIMENTO EM PEDRAS POLIÉDRICAS, REJUNTAMENTO COM ARGAMASSA TRAÇO 1:3 (CIMENTO E AREIA). AF_05/2020 | L73: ='ORC1'!E36 -> M2 | M73: =M79 -> 322.8
A74: QUANTITATIVO
A75: DESCRIÇÃO | G75: EXTENSÃO | H75: x | I75: LARGURA | J75: x | K75: REPETIÇÃO | L75: = | M75: TOTAL
A76: ENTORNO DA EDIFICAÇÃO - ÁREA 01 | G76: 23.1 | H76: x | I76: 4 | J76: x | K76: 2 | L76: = | M76: =ROUND(G76*I76*K76,2) -> 184.8
A77: ENTORNO DA EDIFICAÇÃO - ÁREA 02 | G77: 13.8 | H77: x | I77: 6 | J77: x | K77: 1 | L77: = | M77: =ROUND(G77*I77*K77,2) -> 82.8
A78: ENTORNO DA EDIFICAÇÃO - ÁREA 03 | G78: 13.8 | H78: x | I78: 4 | J78: x | K78: 1 | L78: = | M78: 55.2
J79: ● | K79: TOTAL | L79: = | M79: =ROUND(SUM(M76:M78),2) -> 322.8
A80: SUBITEM | B80: DESCRIÇÃO | L80: UNID. | M80: QUANT.
A81: ='ORC1'!A37 -> 3.2 | B81: ='ORC1'!D37 -> ASSENTAMENTO DE GUIA (MEIO-FIO) EM TRECHO RETO, CONFECCIONADA EM CONCRETO PRÉ-FABRICADO, DIMENSÕES 100X15X13X30 CM (COMPRIMENTO X BASE INFERIOR X BASE SUPERIOR X ALTURA). AF_01/2024 | L81: ='ORC1'!E37 -> M | M81: =M86 -> 89.8
A82: QUANTITATIVO
A83: DESCRIÇÃO | I83: EXTENSÃO | J83: x | K83: REPETIÇÃO | L83: = | M83: TOTAL
A84: PERÍMETRO - EXTENSÃO 01 | I84: 23.1 | J84: x | K84: 2 | L84: = | M84: =ROUND(I84*K84,2) -> 46.2
A85: PERÍMETRO - EXTENSÃO 02 | I85: 21.8 | J85: x | K85: 2 | L85: = | M85: =ROUND(I85*K85,2) -> 43.6
J86: ● | K86: TOTAL | L86: = | M86: =ROUND(SUM(M84:M85),2) -> 89.8
A87: SUBITEM | B87: DESCRIÇÃO | L87: UNID. | M87: QUANT.
A88: ='ORC1'!A38 -> 3.3 | B88: ='ORC1'!D38 -> CAMADA SEPARADORA PARA EXECUÇÃO DE RADIER, PISO DE CONCRETO OU LAJE SOBRE SOLO, EM LONA PLÁSTICA. AF_09/2021 | L88: ='ORC1'!E38 -> M2 | M88: 100.1
A89: QUANTITATIVO
A90: DESCRIÇÃO | I90: EXTENSÃO | J90: x | K90: LARGURA | L90: = | M90: TOTAL
A91: RADIER EXTERNO - ÁREA 01 | I91: 13.1 | J91: x | K91: 1 | L91: = | M91: 13.1
A92: RADIER EXTERNO - ÁREA 02 | I92: 13.1 | J92: x | K92: 1 | L92: = | M92: 13.1
A93: RADIER EXTERNO - ÁREA 03 | I93: 11.8 | J93: x | K93: 1 | L93: = | M93: 11.8
A94: RADIER EXTERNO - ÁREA 04 | I94: 11.8 | J94: x | K94: 1.5 | L94: = | M94: 17.7
A95: RADIER EXTERNO - ÁREA 05 | I95: 11.8 | J95: x | K95: 3 | L95: = | M95: 35.4
A96: QUANTITATIVO
A97: DESCRIÇÃO | K97: ÁREA | L97: = | M97: TOTAL
A98: BASE CASTELO D'ÁGUA | I98: =ROUND(SUM(I99:I124),2) -> 97.48 | K98: =3.14*(1*2) -> 6.28 | L98: = | M98: =ROUND(K98,2) -> 6.28
A99: QUANTITATIVO
A100: DESCRIÇÃO | G100: EXTENSÃO | H100: x | I100: LARGURA | J100: - | K100: ÁREA | L100: = | M100: TOTAL
A101: ENTORNO CASTELO D'ÁGUA | G101: 3 | H101: x | I101: 3 | J101: - | K101: =3.14*(1*2) -> 6.28 | L101: = | M101: =ROUND((G101*I101)-K101,2) -> 2.72
J102: ● | K102: TOTAL | L102: = | M102: =ROUND(SUM(M91:M95)+SUM(M98)+SUM(M101),2) -> 100.1
A103: SUBITEM | B103: DESCRIÇÃO | L103: UNID. | M103: QUANT.
A104: ='ORC1'!A39 -> 3.4 | B104: ='ORC1'!D39 -> EXECUÇÃO DE PASSEIO (CALÇADA) OU PISO DE CONCRETO COM CONCRETO MOLDADO IN LOCO, FEITO EM OBRA, ACABAMENTO CONVENCIONAL, ESPESSURA 8 CM, ARMADO. AF_08/2022 | L104: ='ORC1'!E39 -> M2 | M104: =M118 -> 112.66
A105: QUANTITATIVO
A106: DESCRIÇÃO | I106: EXTENSÃO | J106: x | K106: LARGURA | L106: = | M106: TOTAL
A107: RADIER EXTERNO - ÁREA 01 | I107: 13.1 | J107: x | K107: 1 | L107: = | M107: =ROUND(I107*K107,2) -> 13.1
A108: RADIER EXTERNO - ÁREA 02 | I108: 13.1 | J108: x | K108: 1 | L108: = | M108: =ROUND(I108*K108,2) -> 13.1
A109: RADIER EXTERNO - ÁREA 03 | I109: 11.8 | J109: x | K109: 1 | L109: = | M109: 11.8
A110: RADIER EXTERNO - ÁREA 04 | I110: 11.8 | J110: x | K110: 1.5 | L110: = | M110: 17.7
A111: RADIER EXTERNO - ÁREA 05 | I111: 11.8 | J111: x | K111: 3 | L111: = | M111: 35.4
A112: QUANTITATIVO
A113: DESCRIÇÃO | I113: ÁREA | J113: x | K113: REPETIÇÃO | L113: = | M113: TOTAL
A114: BASE CASTELO D'ÁGUA | I114: =3.14*(1*2) -> 6.28 | J114: x | K114: 3 | L114: = | M114: =ROUND(I114*K114,2) -> 18.84
A115: QUANTITATIVO
A116: DESCRIÇÃO | G116: EXTENSÃO | H116: x | I116: LARGURA | J116: - | K116: ÁREA | L116: = | M116: TOTAL
A117: ENTORNO CASTELO D'ÁGUA | G117: 3 | H117: x | I117: 3 | J117: - | K117: =3.14*(1*2) -> 6.28 | L117: = | M117: =ROUND((G117*I117)-K117,2) -> 2.72
J118: ● | K118: TOTAL | L118: = | M118: =ROUND(SUM(M107:M111)+SUM(M114)+SUM(M117),2) -> 112.66
A119: SUBITEM | B119: DESCRIÇÃO | L119: UNID. | M119: QUANT.
A120: ='ORC1'!A40 -> 3.5 | B120: ='ORC1'!D40 -> EXECUÇÃO DE PISO INDUSTRIAL DE CONCRETO ARMADO, FCK = 20 MPA, ESPESSURA DE 20,0 CM. AF_04/2022 | L120: ='ORC1'!E40 -> M2 | M120: =M125 -> 89.68
A121: QUANTITATIVO
A122: DESCRIÇÃO | I122: EXTENSÃO | J122: x | K122: LARGURA | L122: = | M122: TOTAL
A123: BLOCO 01 - ÁREA 01 | I123: 11.8 | J123: x | K123: 2.7 | L123: = | M123: =ROUND(I123*K123,2) -> 31.86
A124: BLOCO 02 - ÁREA 01 | I124: 11.8 | J124: x | K124: 4.9 | L124: = | M124: =ROUND(I124*K124,2) -> 57.82
J125: ● | K125: TOTAL | L125: = | M125: =ROUND(SUM(M123:M124),2) -> 89.68
A126: ='ORC1'!A41 -> 4 | B126: ='ORC1'!D41 -> COBERTURA
A127: ='ORC1'!A42 -> 4.1 | B127: ='ORC1'!D42 -> FUNDAÇÃO - BLOCOS
A128: SUBITEM | B128: DESCRIÇÃO | L128: UNID. | M128: QUANT.
A129: ='ORC1'!A43 -> 4.1.1 | B129: ='ORC1'!D43 -> ESCAVAÇÃO MANUAL DE VALA. AF_09/2024 | L129: ='ORC1'!E43 -> M3 | M129: =M133 -> 2.5
A130: QUANTITATIVO
A131: DESCRIÇÃO | E131: EXTENSÃO | F131: x | G131: LARGURA | H131: x | I131: ALTURA | J131: x | K131: REPETIÇÃO | L131: = | M131: TOTAL
A132: BLOCOS | E132: 0.5 | F132: x | G132: 0.5 | H132: x | I132: 0.5 | J132: x | K132: 20 | L132: = | M132: =ROUND(E132*G132*I132*K132,2) -> 2.5
J133: ● | K133: TOTAL | L133: = | M133: =ROUND(SUM(M132:M132),2) -> 2.5
A134: SUBITEM | B134: DESCRIÇÃO | L134: UNID. | M134: QUANT.
A135: ='ORC1'!A44 -> 4.1.2 | B135: ='ORC1'!D44 -> PREPARO DE FUNDO DE VALA COM LARGURA MENOR QUE 1,5 M (ACERTO DO SOLO NATURAL). AF_08/2020 | L135: ='ORC1'!E44 -> M2 | M135: =M139 -> 5
A136: QUANTITATIVO
A137: DESCRIÇÃO | G137: EXTENSÃO | H137: x | I137: LARGURA | J137: x | K137: REPETIÇÃO | L137: = | M137: TOTAL
A138: BLOCOS | G138: 0.5 | H138: x | I138: 0.5 | J138: x | K138: 20 | L138: = | M138: =ROUND(G138*I138*K138,2) -> 5
J139: ● | K139: TOTAL | L139: = | M139: =ROUND(SUM(M138:M138),2) -> 5
A140: SUBITEM | B140: DESCRIÇÃO | L140: UNID. | M140: QUANT.
A141: ='ORC1'!A45 -> 4.1.3 | B141: ='ORC1'!D45 -> ARMAÇÃO DE BLOCO UTILIZANDO AÇO CA-50 DE 10 MM - MONTAGEM. AF_01/2024 | L141: ='ORC1'!E45 -> KG | M141: =M145 -> 142.12
A142: QUANTITATIVO
A143: DESCRIÇÃO | K143: QUANT. | L143: = | M143: TOTAL
A144: BLOCOS | K144: =83.6*1.7 -> 142.12 | L144: = | M144: =ROUND(K144,2) -> 142.12
J145: ● | K145: TOTAL | L145: = | M145: =ROUND(SUM(M144:M144),2) -> 142.12
A146: SUBITEM | B146: DESCRIÇÃO | L146: UNID. | M146: QUANT.
A147: ='ORC1'!A46 -> 4.1.4 | B147: ='ORC1'!D46 -> ARMAÇÃO DE BLOCO UTILIZANDO AÇO CA-60 DE 5 MM - MONTAGEM. AF_01/2024 | L147: ='ORC1'!E46 -> KG | M147: =M151 -> 94.62
A148: QUANTITATIVO
A149: DESCRIÇÃO | K149: QUANT. | L149: = | M149: TOTAL
A150: BLOCOS | K150: =55.66*1.7 -> 94.622 | L150: = | M150: =ROUND(K150,2) -> 94.62
J151: ● | K151: TOTAL | L151: = | M151: =ROUND(SUM(M150:M150),2) -> 94.62
A152: SUBITEM | B152: DESCRIÇÃO | L152: UNID. | M152: QUANT.
A153: ='ORC1'!A47 -> 4.1.5 | B153: ='ORC1'!D47 -> CONCRETO FCK = 25MPA, TRAÇO 1:2,3:2,7 (EM MASSA SECA DE CIMENTO/ AREIA MÉDIA/ BRITA 1) - PREPARO MECÂNICO COM BETONEIRA 400 L. AF_05/2021 | L153: ='ORC1'!E47 -> M3 | M153: =M157 -> 2.5
A154: QUANTITATIVO
A155: DESCRIÇÃO | E155: EXTENSÃO | F155: x | G155: LARGURA | H155: x | I155: ALTURA | J155: x | K155: REPETIÇÃO | L155: = | M155: TOTAL
A156: BLOCOS | E156: 0.5 | F156: x | G156: 0.5 | H156: x | I156: 0.5 | J156: x | K156: 20 | L156: = | M156: =ROUND(E156*G156*I156*K156,2) -> 2.5
J157: ● | K157: TOTAL | L157: = | M157: =ROUND(SUM(M156:M156),2) -> 2.5
A158: ='ORC1'!A48 -> 4.2 | B158: ='ORC1'!D48 -> FUNDAÇÃO - VIGAS BALDRAMES
A159: SUBITEM | B159: DESCRIÇÃO | L159: UNID. | M159: QUANT.
A160: ='ORC1'!A49 -> 4.2.1 | B160: ='ORC1'!D49 -> ESCAVAÇÃO MANUAL DE VALA. AF_09/2024 | L160: ='ORC1'!E49 -> M3 | M160: =M167 -> 5.31
A161: QUANTITATIVO
A162: DESCRIÇÃO | E162: EXTENSÃO | F162: x | G162: LARGURA | H162: x | I162: ALTURA | J162: x | K162: REPETIÇÃO | L162: = | M162: TOTAL
A163: BLOCO 01 - EXTENSÃO 01 | E163: 11.8 | F163: x | G163: 0.2 | H163: x | I163: 0.4 | J163: x | K163: 2 | L163: = | M163: =ROUND(E163*G163*I163*K163,2) -> 1.89
A164: BLOCO 01 - EXTENSÃO 02 | E164: 6.9 | F164: x | G164: 0.2 | H164: x | I164: 0.4 | J164: x | K164: 2 | L164: = | M164: =ROUND(E164*G164*I164*K164,2) -> 1.1
A165: BLOCO 02 - EXTENSÃO 01 | E165: 11.8 | F165: x | G165: 0.2 | H165: x | I165: 0.4 | J165: x | K165: 2 | L165: = | M165: 1.89
A166: BLOCO 02 - EXTENSÃO 02 | E166: 2.7 | F166: x | G166: 0.2 | H166: x | I166: 0.4 | J166: x | K166: 2 | L166: = | M166: 0.43
J167: ● | K167: TOTAL | L167: = | M167: =ROUND(SUM(M163:M166),2) -> 5.31
A168: SUBITEM | B168: DESCRIÇÃO | L168: UNID. | M168: QUANT.
A169: ='ORC1'!A50 -> 4.2.2 | B169: ='ORC1'!D50 -> PREPARO DE FUNDO DE VALA COM LARGURA MENOR QUE 1,5 M (ACERTO DO SOLO NATURAL). AF_08/2020 | L169: ='ORC1'!E50 -> M2 | M169: =M176 -> 13.28
A170: QUANTITATIVO
A171: DESCRIÇÃO | G171: EXTENSÃO | H171: x | I171: LARGURA | J171: x | K171: REPETIÇÃO | L171: = | M171: TOTAL
A172: BLOCO 01 - EXTENSÃO 01 | G172: 11.8 | H172: x | I172: 0.2 | J172: x | K172: 2 | L172: = | M172: =ROUND(G172*I172*K172,2) -> 4.72
A173: BLOCO 01 - EXTENSÃO 02 | G173: 6.9 | H173: x | I173: 0.2 | J173: x | K173: 2 | L173: = | M173: =ROUND(G173*I173*K173,2) -> 2.76
A174: BLOCO 02 - EXTENSÃO 01 | G174: 11.8 | H174: x | I174: 0.2 | J174: x | K174: 2 | L174: = | M174: 4.72
A175: BLOCO 02 - EXTENSÃO 02 | G175: 2.7 | H175: x | I175: 0.2 | J175: x | K175: 2 | L175: = | M175: 1.08
J176: ● | K176: TOTAL | L176: = | M176: =ROUND(SUM(M172:M175),2) -> 13.28
A177: SUBITEM | B177: DESCRIÇÃO | L177: UNID. | M177: QUANT.
A178: ='ORC1'!A51 -> 4.2.3 | B178: ='ORC1'!D51 -> ARMAÇÃO DE SAPATA ISOLADA, VIGA BALDRAME E SAPATA CORRIDA UTILIZANDO AÇO CA-50 DE 8 MM - MONTAGEM. AF_01/2024 | L178: ='ORC1'!E51 -> KG | M178: =M182 -> 146.04
A179: QUANTITATIVO
A180: DESCRIÇÃO | K180: QUANT. | L180: = | M180: TOTAL
A181: VIGAS | K181: =121.7*1.2 -> 146.04 | L181: = | M181: =ROUND(K181,2) -> 146.04
J182: ● | K182: TOTAL | L182: = | M182: =ROUND(SUM(M181:M181),2) -> 146.04
A183: SUBITEM | B183: DESCRIÇÃO | L183: UNID. | M183: QUANT.
A184: ='ORC1'!A52 -> 4.2.4 | B184: ='ORC1'!D52 -> ARMAÇÃO DE SAPATA ISOLADA, VIGA BALDRAME E SAPATA CORRIDA UTILIZANDO AÇO CA-60 DE 5 MM - MONTAGEM. AF_01/2024 | L184: ='ORC1'!E52 -> KG | M184: =M188 -> 62.89
A185: FORTALEZA/CE, JULHO DE 2024.
A186: DESCRIÇÃO | K186: QUANT. | L186: = | M186: TOTAL
A187: VIGAS | K187: =52.41*1.2 -> 62.892 | L187: = | M187: =ROUND(K187,2) -> 62.89
J188: ● | K188: TOTAL | L188: = | M188: =ROUND(SUM(M187:M187),2) -> 62.89
A189: SUBITEM | B189: DESCRIÇÃO | L189: UNID. | M189: QUANT.
A190: ='ORC1'!A53 -> 4.2.5 | B190: ='ORC1'!D53 -> CONCRETO FCK = 25MPA, TRAÇO 1:2,3:2,7 (EM MASSA SECA DE CIMENTO/ AREIA MÉDIA/ BRITA 1) - PREPARO MECÂNICO COM BETONEIRA 400 L. AF_05/2021 | L190: ='ORC1'!E53 -> M3 | M190: =M197 -> 5.31
A191: QUANTITATIVO
A192: DESCRIÇÃO | E192: EXTENSÃO | F192: x | G192: LARGURA | H192: x | I192: ALTURA | J192: x | K192: REPETIÇÃO | L192: = | M192: TOTAL
A193: BLOCO 01 - EXTENSÃO 01 | E193: 11.8 | F193: x | G193: 0.2 | H193: x | I193: 0.4 | J193: x | K193: 2 | L193: = | M193: =ROUND(E193*G193*I193*K193,2) -> 1.89
A194: BLOCO 01 - EXTENSÃO 02 | E194: 6.9 | F194: x | G194: 0.2 | H194: x | I194: 0.4 | J194: x | K194: 2 | L194: = | M194: =ROUND(E194*G194*I194*K194,2) -> 1.1
A195: BLOCO 02 - EXTENSÃO 01 | E195: 11.8 | F195: x | G195: 0.2 | H195: x | I195: 0.4 | J195: x | K195: 2 | L195: = | M195: 1.89
A196: BLOCO 02 - EXTENSÃO 02 | E196: 2.7 | F196: x | G196: 0.2 | H196: x | I196: 0.4 | J196: x | K196: 2 | L196: = | M196: 0.43
J197: ● | K197: TOTAL | L197: = | M197: =ROUND(SUM(M193:M196),2) -> 5.31
A198: ='ORC1'!A54 -> 4.3 | B198: ='ORC1'!D54 -> ESTRUTURA METÁLICA
A199: SUBITEM | B199: DESCRIÇÃO | L199: UNID. | M199: QUANT.
A200: ='ORC1'!A55 -> 4.3.1 | B200: ='ORC1'!D55 -> ESTRUTURA METÁLICA TRELIÇADA EM AÇO, EM MARQUISES | L200: ='ORC1'!E55 -> M2 | M200: =M213 -> 174.21
A201: QUANTITATIVO
A202: DESCRIÇÃO | G202: EXTENSÃO | H202: x | I202: LARGURA | J202: x | K202: FATOR | L202: = | M202: TOTAL
A203: BLOCO 01 - ÁREA 01 | G203: 13 | H203: x | I203: 4.15 | J203: x | K203: 1.005 | L203: = | M203: =ROUND(G203*I203*K203,2) -> 54.22
... 620 more rows

Sheet CRONOGRAMA
A2: ='ORC1'!D3 -> MINISTÉRIO DA INTEGRAÇÃO E DO DESENVOLVIMENTO REGIONAL - MIDR
A3: ='ORC1'!D4 -> COMPANHIA DE DESENVOLVIMENTO DOS VALES DO SÃO FRANCISCO E DO PARNAÍBA
A4: ='ORC1'!D5 -> 14ª SUPERINTENDÊNCIA REGIONAL
A6: ='ORC1'!A20 -> CONTRATAÇÃO DE SERVIÇOS DE ENGENHARIA, POR MEIO DO SISTEMA DE REGISTRO DE PREÇOS – SRP, PARA IMPLANTAÇÃO DE AGROINDÚSTRIAS DE LÁCTEOS EM COMUNIDADES RURAIS, NO ESTADO DO CEARÁ.
A8: CRONOGRAMA FÍSICO-FINACEIRO - UNIDADE
A9: ITEM | B9: DESCRIÇÃO | C9: % | D9: DESONERADO | E9: 30 DIAS | G9: 60 DIAS | I9: 90 DIAS
E10: % | F10: VALOR (R$) | G10: % | H10: VALOR (R$) | I10: % | J10: VALOR (R$)
A11: 1 | B11: ='ORC1'!D24 -> SERVIÇOS PRELIMINARES | C11: =D11/$D$28 -> 0.07896532918 | D11: ='ORC1'!I24 -> 78101.18 | E11: 1 | F11: =D11*E11 -> 78101.18 | G11: 0 | H11: =D11*G11 -> 0 | I11: 0 | J11: =D11*I11 -> 0 | K11: =E11+G11+I11 -> 1 | L11: =F11+H11+J11 -> 78101.18
A12: 2 | B12: ='ORC1'!D31 -> MOVIMENTAÇÃO DE TERRA / CONTENÇÃO | C12: =D12/$D$28 -> 0.005292659692 | D12: ='ORC1'!I31 -> 5234.74 | E12: 1 | F12: =D12*E12 -> 5234.74 | G12: 0 | H12: =D12*G12 -> 0 | I12: 0 | J12: =D12*I12 -> 0 | K12: =E12+G12+I12 -> 1 | L12: =F12+H12+J12 -> 5234.74
A13: 3 | B13: ='ORC1'!D35 -> PAVIMENTAÇÃO / PISO | C13: =D13/$D$28 -> 0.07321635587 | D13: ='ORC1'!I35 -> 72415.12 | E13: 0.5 | F13: 36207.56 | G13: 0.5 | H13: 36207.56 | I13: 0 | J13: 0 | K13: 1 | L13: 72415.12
A14: 4 | B14: ='ORC1'!D41 -> COBERTURA | C14: =D14/$D$28 -> 0.1145566897 | D14: ='ORC1'!I41 -> 113303.05 | E14: 0.5 | F14: 56651.525 | G14: 0.5 | H14: 56651.525 | I14: 0 | J14: 0 | K14: 1 | L14: 113303.05
A15: 5 | B15: ='ORC1'!D58 -> PAREDES / PAINÉIS / VEDAÇÃO | C15: 0.1822979898 | D15: ='ORC1'!I58 -> 180303.03 | E15: 0 | F15: 0 | G15: 1 | H15: 180303.03 | I15: 0 | J15: 0 | K15: 1 | L15: 180303.03
A16: 6 | B16: ='ORC1'!D60 -> PINTURA | C16: 0.007705494306 | D16: ='ORC1'!I60 -> 7621.17 | E16: 0 | F16: 0 | G16: 0 | H16: 0 | I16: 1 | J16: 7621.17 | K16: 1 | L16: 7621.17
A17: 7 | B17: ='ORC1'!D63 -> ESQUADRIAS | C17: 0.038413656 | D17: ='ORC1'!I63 -> 37993.28 | E17: 0 | F17: 0 | G17: 0 | H17: 0 | I17: 1 | J17: 37993.28 | K17: 1 | L17: 37993.28
A18: 8 | B18: ='ORC1'!D70 -> INSTALAÇÕES ELÉTRICAS | C18: 0.03200490245 | D18: ='ORC1'!I70 -> 31654.66 | E18: 0 | F18: 0 | G18: 1 | H18: 31654.66 | I18: 0 | J18: 0 | K18: 1 | L18: 31654.66
A19: 9 | B19: ='ORC1'!D97 -> INSTALAÇÕES SANITÁRIAS | C19: 0.01626336653 | D19: ='ORC1'!I97 -> 16085.39 | E19: 0 | F19: 0 | G19: 1 | H19: 16085.39 | I19: 0 | J19: 0 | K19: 1 | L19: 16085.39
A20: 10 | B20: ='ORC1'!D115 -> INSTALAÇÕES HIDRÁULICAS | C20: 0.0428775057 | D20: ='ORC1'!I115 -> 42408.28 | E20: 0 | F20: 0 | G20: 1 | H20: 42408.28 | I20: 0 | J20: 0 | K20: 1 | L20: 42408.28
A21: 11 | B21: ='ORC1'!D128 -> INSTALAÇÕES MECÂNICAS | C21: 0.02254855789 | D21: ='ORC1'!I128 -> 22301.8 | E21: 0 | F21: 0 | G21: 0 | H21: 0 | I21: 1 | J21: 22301.8 | K21: 1 | L21: 22301.8
A22: 12 | B22: ='ORC1'!D130 -> EQUIPAMENTOS | C22: 0.3656494987 | D22: ='ORC1'!I130 -> 361648.05 | E22: 0 | F22: 0 | G22: 0 | H22: 0 | I22: 1 | J22: 361648.05 | K22: 1 | L22: 361648.05
A23: 13 | B23: ='ORC1'!D151 -> LIMPEZA FINAL DA OBRA | C23: =D23/$D$28 -> 0.001354341096 | D23: ='ORC1'!I151 -> 1339.52 | E23: 0 | F23: =D23*E23 -> 0 | G23: 0 | H23: =D23*G23 -> 0 | I23: 1 | J23: =D23*I23 -> 1339.52 | K23: =E23+G23+I23 -> 1 | L23: =F23+H23+J23 -> 1339.52
A24: 13 | B24: PROJETO EXECUTIVO | C24: =D24/$D$28 -> 0.01885365307 | D24: ='ORC1'!I153 -> 18647.33 | E24: 1 | F24: =D24*E24 -> 18647.33 | G24: 0 | H24: =D24*G24 -> 0 | I24: 0 | J24: =D24*I24 -> 0 | K24: =E24+G24+I24 -> 1 | L24: =F24+H24+J24 -> 18647.33
A26: TOTAL GERAL DA OBRA C/ BDI (R$) | E26: =(F26/$D$28) -> 0.1969981647 | F26: =SUM(F11:F24) -> 194842.335 | G26: =(H26/$D$28) -> 0.3673302873 | H26: =SUM(H11:H24) -> 363310.445 | I26: =(J26/$D$28) -> 0.435671548 | J26: =SUM(J11:J24) -> 430903.82 | K26: =E26+G26+I26 -> 1 | L26: =F26+H26+J26 -> 989056.6
A28: TOTAL GERAL DA OBRA C/ BDI (R$) | D28: =SUM(D11:D24) -> 989056.6
A30: ='ORC1'!A158 -> FORTALEZA/CE, OUTUBRO DE 2025.
I89: =ROUND(SUM(I90:I115),2) -> 0
A184: FORTALEZA/CE, JULHO DE 2024.
A860: ='ORC1'!A158 -> FORTALEZA/CE, OUTUBRO DE 2025.

Sheet COMP.01_CINTA (hidden)
A2: ='ORC1'!A10 -> SEINFRA/CE:
A3: ='ORC1'!#REF! -> 
A5: ='ORC1'!#REF! -> 
A6: ='ORC1'!A17 -> 0
A7: ='ORC1'!A19 -> 0
A8: ='ORC1'!#REF! -> 
A9: ='ORC1'!#REF! -> 
A10: ='ORC1'!#REF! -> 
A12: ='ORC1'!#REF! -> 
A13: ='ORC1'!A20 -> CONTRATAÇÃO DE SERVIÇOS DE ENGENHARIA, POR MEIO DO SISTEMA DE REGISTRO DE PREÇOS – SRP, PARA IMPLANTAÇÃO DE AGROINDÚSTRIAS DE LÁCTEOS EM COMUNIDADES RURAIS, NO ESTADO DO CEARÁ.
B14: ='ORC1'!B21 -> 0
B15: ='ORC1'!B22 -> 0
A16: ='ORC1'!#REF! -> 
B17: ='ORC1'!#REF! -> 
B18: ='ORC1'!#REF! -> 
A19: ='ORC1'!#REF! -> 
A21: COMP. 01 | B21: CINTA DE AMARRAÇÃO DE ALVENARIA MOLDADA IN LOCO EM CONCRETO.(13x12)
A22: CÓDIGO | B22: DESCRIÇÃO | C22: UND | D22: COEF. | E22: PREÇO | F22: TOTAL
A23: MAO DE OBRA
A24: I2543 | B24: SERVENTE | C24: H | D24: 0.18 | E24: 15.55 | F24: =D24*E24 -> 2.799
A25: I2391 | B25: PEDREIRO | C25: H | D25: 0.36 | E25: 20.77 | F25: =D25*E25 -> 7.4772
A26: TOTAL MAO DE OBRA | F26: =ROUND(SUM(F24:F25),2) -> 10.28
A27: MATERIAIS
A28: I0965 | B28: DESMOLDANTE PARA FORMAS | C28: L | D28: 0.0035 | E28: 7.35 | F28: =D28*E28 -> 0.025725
A29: 39017 | B29: ESPACADOR / DISTANCIADOR CIRCULAR COM ENTRADA LATERAL, EM PLASTICO, PARA VERGALHAO *4,2 A 12,5* MM, COBRIMENTO 20 MM | C29: UND | D29: 6 | E29: 0.22 | F29: =D29*E29 -> 1.32
A30: C1399 | B30: FORMA PLANA CHAPA COMPENSADA PLASTIFICADA, ESP.= 12mm UTIL. 5X | C30: M2 | D30: 0.2 | E30: 95.91 | F30: =D30*E30 -> 19.182
A31: I0163 | B31: AÇO CA-50 | C31: KG | D31: 0.79 | E31: 9.5 | F31: =D31*E31 -> 7.505
A32: C0842 | B32: CONCRETO P/VIBR., FCK 20 MPa COM AGREGADO ADQUIRIDO | C32: M3 | D32: 0.0154 | E32: 416.73 | F32: =D32*E32 -> 6.417642
A33: TOTAL MATERIAIS | F33: =ROUND(SUM(F28:F32),2) -> 34.45
D35: Total Simples | F35: =ROUND(F26+F33,2) -> 44.73
D36: Encargos | F36: INCLUSOS
D37: BDI | F37: 0
D38: TOTAL GERAL | F38: =F35 -> 44.73
A40: ='ORC1'!A159 -> 0

Sheet CP-CODEVASF
A2: Código | B2: Descrição | C2: Unidade | D2: Custo (R$)
A3: COMP-01 | B3: =_xlfn.XLOOKUP(A3,'COMP-CDF'!A:A,'COMP-CDF'!C:C) -> LUMINÁRIA PRISMÁTICA PENDENTE, COM 1 LÂMPADA LED DE 20W | C3: =_xlfn.XLOOKUP(A3,'COMP-CDF'!A:A,'COMP-CDF'!D:D) -> UN | D3: =_xlfn.XLOOKUP(A3,'COMP-CDF'!A:A,'COMP-CDF'!G:G) -> 120.49
A4: COMP-02 | B4: =_xlfn.XLOOKUP(A4,'COMP-CDF'!A:A,'COMP-CDF'!C:C) -> MESA INOX DE APOIO | C4: =_xlfn.XLOOKUP(A4,'COMP-CDF'!A:A,'COMP-CDF'!D:D) -> UN | D4: =_xlfn.XLOOKUP(A4,'COMP-CDF'!A:A,'COMP-CDF'!G:G) -> 3751.91
A5: COMP-03 | B5: =_xlfn.XLOOKUP(A5,'COMP-CDF'!A:A,'COMP-CDF'!C:C) -> SELADORA MANUAL PARA POTES | C5: =_xlfn.XLOOKUP(A5,'COMP-CDF'!A:A,'COMP-CDF'!D:D) -> UN | D5: =_xlfn.XLOOKUP(A5,'COMP-CDF'!A:A,'COMP-CDF'!G:G) -> 2672.97
A6: COMP-04 | B6: =_xlfn.XLOOKUP(A6,'COMP-CDF'!A:A,'COMP-CDF'!C:C) -> SELADORA A VÁCUO DE BANCADA | C6: =_xlfn.XLOOKUP(A6,'COMP-CDF'!A:A,'COMP-CDF'!D:D) -> UN | D6: =_xlfn.XLOOKUP(A6,'COMP-CDF'!A:A,'COMP-CDF'!G:G) -> 5457.82
A7: COMP-05 | B7: =_xlfn.XLOOKUP(A7,'COMP-CDF'!A:A,'COMP-CDF'!C:C) -> LAVA DE BOTAS MANUAL | C7: =_xlfn.XLOOKUP(A7,'COMP-CDF'!A:A,'COMP-CDF'!D:D) -> UN | D7: =_xlfn.XLOOKUP(A7,'COMP-CDF'!A:A,'COMP-CDF'!G:G) -> 5321.75
A8: COMP-06 | B8: =_xlfn.XLOOKUP(A8,'COMP-CDF'!A:A,'COMP-CDF'!C:C) -> ANALISADOR DE LEITE ULTRASSÔNICO | C8: =_xlfn.XLOOKUP(A8,'COMP-CDF'!A:A,'COMP-CDF'!D:D) -> UN | D8: =_xlfn.XLOOKUP(A8,'COMP-CDF'!A:A,'COMP-CDF'!G:G) -> 5769.28
A9: COMP-07 | B9: =_xlfn.XLOOKUP(A9,'COMP-CDF'!A:A,'COMP-CDF'!C:C) -> LAVADORA E SECADORA DE ROUPAS INVERTER 11KG | C9: =_xlfn.XLOOKUP(A9,'COMP-CDF'!A:A,'COMP-CDF'!D:D) -> UN | D9: =_xlfn.XLOOKUP(A9,'COMP-CDF'!A:A,'COMP-CDF'!G:G) -> 3610.51
A10: COMP-08 | B10: =_xlfn.XLOOKUP(A10,'COMP-CDF'!A:A,'COMP-CDF'!C:C) -> ARMÁRIO TIPO ROUPEIRO | C10: =_xlfn.XLOOKUP(A10,'COMP-CDF'!A:A,'COMP-CDF'!D:D) -> UN | D10: =_xlfn.XLOOKUP(A10,'COMP-CDF'!A:A,'COMP-CDF'!G:G) -> 1283.09
A11: COMP-11 | B11: =_xlfn.XLOOKUP(A11,'COMP-CDF'!A:A,'COMP-CDF'!C:C) -> ESTANTE EM AÇO INOX PARA SECAGEM/MATURAÇÃO DE QUEIJOS | C11: =_xlfn.XLOOKUP(A11,'COMP-CDF'!A:A,'COMP-CDF'!D:D) -> UN | D11: =_xlfn.XLOOKUP(A11,'COMP-CDF'!A:A,'COMP-CDF'!G:G) -> 4382.24
A12: COMP-12 | B12: =_xlfn.XLOOKUP(A12,'COMP-CDF'!A:A,'COMP-CDF'!C:C) -> ADMISTRAÇÃO LOCAL | C12: =_xlfn.XLOOKUP(A12,'COMP-CDF'!A:A,'COMP-CDF'!D:D) -> UN | D12: =_xlfn.XLOOKUP(A12,'COMP-CDF'!A:A,'COMP-CDF'!G:G) -> 46580.4
A13: COMP-13 | B13: =_xlfn.XLOOKUP(A13,'COMP-CDF'!A:A,'COMP-CDF'!C:C) -> MOBILIZAÇÃO E DESMOBILIZAÇÃO | C13: =_xlfn.XLOOKUP(A13,'COMP-CDF'!A:A,'COMP-CDF'!D:D) -> UN | D13: =_xlfn.XLOOKUP(A13,'COMP-CDF'!A:A,'COMP-CDF'!G:G) -> 3030.53
A14: COMP-14 | B14: =_xlfn.XLOOKUP(A14,'COMP-CDF'!A:A,'COMP-CDF'!C:C) -> TANQUE DE RESFRIAMENTO 1000L | C14: =_xlfn.XLOOKUP(A14,'COMP-CDF'!A:A,'COMP-CDF'!D:D) -> UN | D14: =_xlfn.XLOOKUP(A14,'COMP-CDF'!A:A,'COMP-CDF'!G:G) -> 24092.98
A15: COMP-15 | B15: =_xlfn.XLOOKUP(A15,'COMP-CDF'!A:A,'COMP-CDF'!C:C) -> PASTEURIZADOR LENTO 1000L | C15: =_xlfn.XLOOKUP(A15,'COMP-CDF'!A:A,'COMP-CDF'!D:D) -> UN | D15: =_xlfn.XLOOKUP(A15,'COMP-CDF'!A:A,'COMP-CDF'!G:G) -> 48227.33
A16: COMP-16 | B16: =_xlfn.XLOOKUP(A16,'COMP-CDF'!A:A,'COMP-CDF'!C:C) -> PRENSA PNEUMÁTICA 4 COLUNAS/10 FORMAS REDONDAS 1KG | C16: =_xlfn.XLOOKUP(A16,'COMP-CDF'!A:A,'COMP-CDF'!D:D) -> UN | D16: =_xlfn.XLOOKUP(A16,'COMP-CDF'!A:A,'COMP-CDF'!G:G) -> 10082.66
A17: COMP-17 | B17: =_xlfn.XLOOKUP(A17,'COMP-CDF'!A:A,'COMP-CDF'!C:C) -> ENVASADORA PNEUMÁTICA PARA LÍQUIDOS E PASTOSOS | C17: =_xlfn.XLOOKUP(A17,'COMP-CDF'!A:A,'COMP-CDF'!D:D) -> UN | D17: =_xlfn.XLOOKUP(A17,'COMP-CDF'!A:A,'COMP-CDF'!G:G) -> 7656.15
A18: COMP-18 | B18: =_xlfn.XLOOKUP(A18,'COMP-CDF'!A:A,'COMP-CDF'!C:C) -> DESNATADEIRA ELÉTRICA 275L/H | C18: =_xlfn.XLOOKUP(A18,'COMP-CDF'!A:A,'COMP-CDF'!D:D) -> UN | D18: =_xlfn.XLOOKUP(A18,'COMP-CDF'!A:A,'COMP-CDF'!G:G) -> 20165
A19: COMP-19 | B19: =_xlfn.XLOOKUP(A19,'COMP-CDF'!A:A,'COMP-CDF'!C:C) -> TANQUE PARA SALGA 400L | C19: =_xlfn.XLOOKUP(A19,'COMP-CDF'!A:A,'COMP-CDF'!D:D) -> UN | D19: =_xlfn.XLOOKUP(A19,'COMP-CDF'!A:A,'COMP-CDF'!G:G) -> 3616.66
A20: COMP-20 | B20: =_xlfn.XLOOKUP(A20,'COMP-CDF'!A:A,'COMP-CDF'!C:C) -> TANQUE INOX 500L PARA FABRICAÇÃO DE QUEIJOS | C20: =_xlfn.XLOOKUP(A20,'COMP-CDF'!A:A,'COMP-CDF'!D:D) -> UN | D20: =_xlfn.XLOOKUP(A20,'COMP-CDF'!A:A,'COMP-CDF'!G:G) -> 17026.93
A21: COMP-21 | B21: =_xlfn.XLOOKUP(A21,'COMP-CDF'!A:A,'COMP-CDF'!C:C) -> FORNECIMENTO E INSTALAÇÃO DE ISOPAINEL EPS 100 MM | C21: =_xlfn.XLOOKUP(A21,'COMP-CDF'!A:A,'COMP-CDF'!D:D) -> M2 | D21: =_xlfn.XLOOKUP(A21,'COMP-CDF'!A:A,'COMP-CDF'!G:G) -> 318.16
A22: ='COMP-CDF'!A105 -> COMP-22 | B22: =_xlfn.XLOOKUP(A22,'[204]COMP-CDV'!A:A,'[204]COMP-CDV'!C:C) -> LIMPEZA GERAL | C22: =_xlfn.XLOOKUP(A22,'[204]COMP-CDV'!A:A,'[204]COMP-CDV'!D:D) -> M2 | D22: =_xlfn.XLOOKUP(A22,'[204]COMP-CDV'!A:A,'[204]COMP-CDV'!G:G) -> 14.08
A23: ='COMP-CDF'!A109 -> COMP-23 | B23: =_xlfn.XLOOKUP(A23,'[204]COMP-CDV'!A:A,'[204]COMP-CDV'!C:C) -> CHUVEIRO PLASTICO SIMPLES - FORNECIDO E INSTALADO | C23: =_xlfn.XLOOKUP(A23,'[204]COMP-CDV'!A:A,'[204]COMP-CDV'!D:D) -> UN | D23: =_xlfn.XLOOKUP(A23,'[204]COMP-CDV'!A:A,'[204]COMP-CDV'!G:G) -> 25.55
A24: ='COMP-CDF'!A116 -> COMP-24 | B24: =_xlfn.XLOOKUP(A24,'[204]COMP-CDV'!A:A,'[204]COMP-CDV'!C:C) -> DISJUNTOR TRIPOLAR TIPO DIN, CORRENTE NOMINAL DE 63A - FORNECIMENTO E INSTALAÇÃO | C24: =_xlfn.XLOOKUP(A24,'[204]COMP-CDV'!A:A,'[204]COMP-CDV'!D:D) -> UN | D24: =_xlfn.XLOOKUP(A24,'[204]COMP-CDV'!A:A,'[204]COMP-CDV'!G:G) -> 106.36
A25: COMP-25 | B25: =_xlfn.XLOOKUP(A25,'COMP-CDF'!A:A,'COMP-CDF'!C:C) -> TACHO PARA DOCE 100L | C25: =_xlfn.XLOOKUP(A25,'COMP-CDF'!A:A,'COMP-CDF'!D:D) -> UN | D25: =_xlfn.XLOOKUP(A25,'COMP-CDF'!A:A,'COMP-CDF'!G:G) -> 28790.93
A26: COMP-26 | B26: =_xlfn.XLOOKUP(A26,'COMP-CDF'!A:A,'COMP-CDF'!C:C) -> BATEDEIRA PARA MANTEIGA 20KG | C26: =_xlfn.XLOOKUP(A26,'COMP-CDF'!A:A,'COMP-CDF'!D:D) -> UN | D26: =_xlfn.XLOOKUP(A26,'COMP-CDF'!A:A,'COMP-CDF'!G:G) -> 20344.94
A27: COMP-27 | B27: =_xlfn.XLOOKUP(A27,'COMP-CDF'!A:A,'COMP-CDF'!C:C) -> IOGURTEIRA INOX 500L | C27: =_xlfn.XLOOKUP(A27,'COMP-CDF'!A:A,'COMP-CDF'!D:D) -> UN | D27: =_xlfn.XLOOKUP(A27,'COMP-CDF'!A:A,'COMP-CDF'!G:G) -> 28595
A28: COMP-28 | B28: =_xlfn.XLOOKUP(A28,'COMP-CDF'!A:A,'COMP-CDF'!C:C) -> COMPRESSOR 2HP 50L | C28: =_xlfn.XLOOKUP(A28,'COMP-CDF'!A:A,'COMP-CDF'!D:D) -> UN | D28: =_xlfn.XLOOKUP(A28,'COMP-CDF'!A:A,'COMP-CDF'!G:G) -> 2147.93
A29: COMP-29-0 | B29: =_xlfn.XLOOKUP(A29,'COMP-CDF'!A:A,'COMP-CDF'!C:C) -> PROJETO EXECUTIVO PADRÃO EXCETO SONDAGEM, LEVANTAMENTO TOPOGRÁFICO E IMPLANTAÇÃO | C29: =_xlfn.XLOOKUP(A29,'COMP-CDF'!A:A,'COMP-CDF'!D:D) -> UN | D29: =_xlfn.XLOOKUP(A29,'COMP-CDF'!A:A,'COMP-CDF'!G:G) -> 5937.9
A30: COMP-29 | B30: =_xlfn.XLOOKUP(A30,'COMP-CDF'!A:A,'COMP-CDF'!C:C) -> SONDAGEM, LEVANTAMENTO TOPOGRÁFICO E IMPLANTAÇÃO | C30: =_xlfn.XLOOKUP(A30,'COMP-CDF'!A:A,'COMP-CDF'!D:D) -> UN | D30: =_xlfn.XLOOKUP(A30,'COMP-CDF'!A:A,'COMP-CDF'!G:G) -> 8870.98
A31: ='COMP-CDF'!A155 -> COMP-30 | B31: =_xlfn.XLOOKUP(A31,'COMP-CDF'!A:A,'COMP-CDF'!C:C) -> DISPOSITIVO DR BIPOLAR DE 25 A/30 MA - FORNECIMENTO E INSTALAÇÃO | C31: =_xlfn.XLOOKUP(A31,'COMP-CDF'!A:A,'COMP-CDF'!D:D) -> UN | D31: =_xlfn.XLOOKUP(A31,'COMP-CDF'!A:A,'COMP-CDF'!G:G) -> 178.14
A32: ='COMP-CDF'!A162 -> COMP-31 | B32: =_xlfn.XLOOKUP(A32,'COMP-CDF'!A:A,'COMP-CDF'!C:C) -> DISPOSITIVO DPS CLASSE II, 1 POLO, 275 V, 20 KA - FORNECIMENTO E INSTALAÇÃO | C32: =_xlfn.XLOOKUP(A32,'COMP-CDF'!A:A,'COMP-CDF'!D:D) -> UN | D32: =_xlfn.XLOOKUP(A32,'COMP-CDF'!A:A,'COMP-CDF'!G:G) -> 105.54
A33: ='COMP-CDF'!A169 -> COMP-32 | B33: =_xlfn.XLOOKUP(A33,'COMP-CDF'!A:A,'COMP-CDF'!C:C) -> JUNCAO SIMPLES DE REDUCAO, PVC, DN 100 X 50 MM, PARA ESGOTO PREDIAL - FORNECIMENTO E INSTALAÇÃO | C33: =_xlfn.XLOOKUP(A33,'COMP-CDF'!A:A,'COMP-CDF'!D:D) -> UN | D33: =_xlfn.XLOOKUP(A33,'COMP-CDF'!A:A,'COMP-CDF'!G:G) -> 46.7
A34: ='COMP-CDF'!A178 -> COMP-33 | B34: =_xlfn.XLOOKUP(A34,'COMP-CDF'!A:A,'COMP-CDF'!C:C) -> ENTRADA DE ENERGIA COM POSTE E ASSENTAMENTO | C34: =_xlfn.XLOOKUP(A34,'COMP-CDF'!A:A,'COMP-CDF'!D:D) -> UN | D34: =_xlfn.XLOOKUP(A34,'COMP-CDF'!A:A,'COMP-CDF'!G:G) -> 3660.45
A35: ='COMP-CDF'!A184 -> COMP-34 | B35: =_xlfn.XLOOKUP(A35,'COMP-CDF'!A:A,'COMP-CDF'!C:C) -> FORMA PARA QUEIJO COALHO REDONDO DE 1KG | C35: =_xlfn.XLOOKUP(A35,'COMP-CDF'!A:A,'COMP-CDF'!D:D) -> UN | D35: =_xlfn.XLOOKUP(A35,'COMP-CDF'!A:A,'COMP-CDF'!G:G) -> 28.21

Sheet COMP-CDF
A2: ='ORC1'!D3 -> MINISTÉRIO DA INTEGRAÇÃO E DO DESENVOLVIMENTO REGIONAL - MIDR
A3: ='ORC1'!D4 -> COMPANHIA DE DESENVOLVIMENTO DOS VALES DO SÃO FRANCISCO E DO PARNAÍBA
A4: ='ORC1'!D5 -> 14ª SUPERINTENDÊNCIA REGIONAL
A6: ='ORC1'!A20 -> CONTRATAÇÃO DE SERVIÇOS DE ENGENHARIA, POR MEIO DO SISTEMA DE REGISTRO DE PREÇOS – SRP, PARA IMPLANTAÇÃO DE AGROINDÚSTRIAS DE LÁCTEOS EM COMUNIDADES RURAIS, NO ESTADO DO CEARÁ.
A8: COMPOSIÇÕES DE CUSTOS DA 14SR/CODEVASF
D9: NÃO DESONERADO
A10: Código | B10: Fonte | C10: Descrição | D10: NÃO DESONERADO | E10: Coeficiente | F10: Custo Unitário (R$) | G10: Custo Total (R$)
A11: COMP-01 | B11: CODEVASF | C11: LUMINÁRIA PRISMÁTICA PENDENTE, COM 1 LÂMPADA LED DE 20W | D11: UN | G11: =G16 -> 120.49
A12: =Cotações!A10 -> COT-01 | B12: COTAÇÃO | C12: =Cotações!B10 -> LUMINÁRIA PRISMÁTICA PENDENTE | D12: UN | E12: 1 | F12: =Cotações!D16 -> 82 | G12: =ROUND(E12*F12,2) -> 82
A13: =Cotações!A18 -> COT-02 | B13: COTAÇÃO | C13: =Cotações!B18 -> LÂMPADA LED BULBO 20W 6500K | D13: UN | E13: 1 | F13: =Cotações!D24 -> 17.36 | G13: =ROUND(E13*F13,2) -> 17.36
A14: 88247 | B14: SINAPI | C14: =_xlfn.XLOOKUP(A14,CCD!B:B,CCD!C:C,_xlfn.XLOOKUP(A14,ICD!B:B,ICD!C:C)) -> AUXILIAR DE ELETRICISTA COM ENCARGOS COMPLEMENTARES | D14: =_xlfn.XLOOKUP(A14,CCD!B:B,CCD!D:D,_xlfn.XLOOKUP('COMP-CDF'!A14,ICD!B:B,ICD!D:D)) -> H | E14: 0.2299 | F14: =_xlfn.XLOOKUP(A14,CCD!B:B,CCD!O:O,_xlfn.XLOOKUP('COMP-CDF'!A14,ICD!B:B,ICD!K:K)) -> 23.42 | G14: 5.38
A15: 88264 | B15: SINAPI | C15: =_xlfn.XLOOKUP(A15,CCD!B:B,CCD!C:C,_xlfn.XLOOKUP(A15,ICD!B:B,ICD!C:C)) -> ELETRICISTA COM ENCARGOS COMPLEMENTARES | D15: =_xlfn.XLOOKUP(A15,CCD!B:B,CCD!D:D,_xlfn.XLOOKUP('COMP-CDF'!A15,ICD!B:B,ICD!D:D)) -> H | E15: 0.5518 | F15: =_xlfn.XLOOKUP(A15,CCD!B:B,CCD!O:O,_xlfn.XLOOKUP('COMP-CDF'!A15,ICD!B:B,ICD!K:K)) -> 28.54 | G15: 15.75
F16: Total | G16: =TRUNC(SUM(G12:G15),2) -> 120.49
A18: COMP-02 | B18: CODEVASF | C18: =Cotações!B26 -> MESA INOX DE APOIO | D18: UN | G18: =G20 -> 3751.91
A19: =Cotações!A26 -> COT-03 | B19: COTAÇÃO | C19: =Cotações!B26 -> MESA INOX DE APOIO | D19: UN | E19: 1 | F19: =Cotações!D32 -> 3751.91 | G19: =ROUND(E19*F19,2) -> 3751.91
F20: Total | G20: =TRUNC(SUM(G19:G19),2) -> 3751.91
A22: COMP-03 | B22: CODEVASF | C22: =Cotações!B33 -> SELADORA MANUAL PARA POTES | D22: UN | G22: =G24 -> 2672.97
A23: =Cotações!A33 -> COT-04 | B23: COTAÇÃO | C23: =Cotações!B33 -> SELADORA MANUAL PARA POTES | D23: UN | E23: 1 | F23: =Cotações!D39 -> 2672.97 | G23: =ROUND(E23*F23,2) -> 2672.97
F24: Total | G24: =TRUNC(SUM(G23:G23),2) -> 2672.97
A26: COMP-04 | B26: CODEVASF | C26: =Cotações!B41 -> SELADORA A VÁCUO DE BANCADA | D26: UN | G26: =G28 -> 5457.82
A27: =Cotações!A41 -> COT-05 | B27: COTAÇÃO | C27: =Cotações!B41 -> SELADORA A VÁCUO DE BANCADA | D27: UN | E27: 1 | F27: =Cotações!D48 -> 5457.82 | G27: =ROUND(E27*F27,2) -> 5457.82
F28: Total | G28: =TRUNC(SUM(G27:G27),2) -> 5457.82
A30: COMP-05 | B30: CODEVASF | C30: =Cotações!B50 -> LAVA DE BOTAS MANUAL | D30: UN | G30: =G32 -> 5321.75
A31: =Cotações!A50 -> COT-06 | B31: COTAÇÃO | C31: =Cotações!B50 -> LAVA DE BOTAS MANUAL | D31: UN | E31: 1 | F31: =Cotações!D56 -> 5321.75 | G31: =ROUND(E31*F31,2) -> 5321.75
F32: Total | G32: =TRUNC(SUM(G31:G31),2) -> 5321.75
A34: COMP-06 | B34: CODEVASF | C34: =Cotações!B58 -> ANALISADOR DE LEITE ULTRASSÔNICO | D34: UN | G34: =G36 -> 5769.28
A35: =Cotações!A58 -> COT-07 | B35: COTAÇÃO | C35: =Cotações!B58 -> ANALISADOR DE LEITE ULTRASSÔNICO | D35: UM | E35: 1 | F35: =Cotações!D65 -> 5769.28 | G35: =ROUND(E35*F35,2) -> 5769.28
F36: Total | G36: =TRUNC(SUM(G35),2) -> 5769.28
A38: COMP-07 | B38: CODEVASF | C38: =Cotações!B67 -> LAVADORA E SECADORA DE ROUPAS INVERTER 11KG | D38: UN | G38: =G40 -> 3610.51
A39: =Cotações!A67 -> COT-08 | B39: COTAÇÃO | C39: =Cotações!B67 -> LAVADORA E SECADORA DE ROUPAS INVERTER 11KG | D39: UN | E39: 1 | F39: =Cotações!D73 -> 3610.51 | G39: =ROUND(E39*F39,2) -> 3610.51
F40: Total | G40: =TRUNC(SUM(G39:G39),2) -> 3610.51
A42: COMP-08 | B42: CODEVASF | C42: =Cotações!B75 -> ARMÁRIO TIPO ROUPEIRO | D42: UN | G42: =G44 -> 1283.09
A43: =Cotações!A75 -> COT-09 | B43: COTAÇÃO | C43: =Cotações!B75 -> ARMÁRIO TIPO ROUPEIRO | D43: UN | E43: 1 | F43: =Cotações!D81 -> 1283.09 | G43: =ROUND(E43*F43,2) -> 1283.09
F44: Total | G44: =TRUNC(SUM(G43:G43),2) -> 1283.09
A46: COMP-11 | B46: CODEVASF | C46: =Cotações!B83 -> ESTANTE EM AÇO INOX PARA SECAGEM/MATURAÇÃO DE QUEIJOS | D46: UN | G46: =G48 -> 4382.24
A47: =Cotações!A83 -> COT-12 | B47: COTAÇÃO | C47: =Cotações!B83 -> ESTANTE EM AÇO INOX PARA SECAGEM/MATURAÇÃO DE QUEIJOS | D47: UN | E47: 1 | F47: =Cotações!D89 -> 4382.24 | G47: =ROUND(E47*F47,2) -> 4382.24
F48: Total | G48: =TRUNC(SUM(G47:G47),2) -> 4382.24
A50: COMP-12 | B50: CODEVASF | C50: ADMISTRAÇÃO LOCAL | D50: UN | G50: =G58 -> 46580.4
A51: 90777 | B51: SINAPI | C51: =_xlfn.XLOOKUP(A51,CCD!B:B,CCD!C:C,_xlfn.XLOOKUP(A51,ICD!B:B,ICD!C:C)) -> ENGENHEIRO CIVIL DE OBRA JUNIOR COM ENCARGOS COMPLEMENTARES | D51: =_xlfn.XLOOKUP(A51,CCD!B:B,CCD!D:D,_xlfn.XLOOKUP('COMP-CDF'!A51,ICD!B:B,ICD!D:D)) -> H | E51: =3*4*8 -> 96 | F51: =_xlfn.XLOOKUP(A51,CCD!B:B,CCD!O:O,_xlfn.XLOOKUP('COMP-CDF'!A51,ICD!B:B,ICD!K:K)) -> 116.65 | G51: =ROUND(E51*F51,2) -> 11198.4
A52: 101380 | B52: SINAPI | C52: =_xlfn.XLOOKUP(A52,CCD!B:B,CCD!C:C,_xlfn.XLOOKUP(A52,ICD!B:B,ICD!C:C)) -> AJUDANTE ESPECIALIZADO COM ENCARGOS COMPLEMENTARES | D52: MÊS | E52: 3 | F52: =_xlfn.XLOOKUP(A52,CCD!B:B,CCD!O:O,_xlfn.XLOOKUP('COMP-CDF'!A52,ICD!B:B,ICD!K:K)) -> 3989.52 | G52: =ROUND(E52*F52,2) -> 11968.56
A53: 90772 | B53: SINAPI | C53: =_xlfn.XLOOKUP(A53,CCD!B:B,CCD!C:C,_xlfn.XLOOKUP(A53,ICD!B:B,ICD!C:C)) -> AUXILIAR DE ESCRITORIO COM ENCARGOS COMPLEMENTARES | D53: =_xlfn.XLOOKUP(A53,CCD!B:B,CCD!D:D,_xlfn.XLOOKUP('COMP-CDF'!A53,ICD!B:B,ICD!D:D)) -> H | E53: =3*4*8*2 -> 192 | F53: =_xlfn.XLOOKUP(A53,CCD!B:B,CCD!O:O,_xlfn.XLOOKUP('COMP-CDF'!A53,ICD!B:B,ICD!K:K)) -> 17.76 | G53: 3409.92
A54: 90776 | B54: SINAPI | C54: =_xlfn.XLOOKUP(A54,CCD!B:B,CCD!C:C,_xlfn.XLOOKUP(A54,ICD!B:B,ICD!C:C)) -> ENCARREGADO GERAL COM ENCARGOS COMPLEMENTARES | D54: =_xlfn.XLOOKUP(A54,CCD!B:B,CCD!D:D,_xlfn.XLOOKUP('COMP-CDF'!A54,ICD!B:B,ICD!D:D)) -> H | E54: =3*4*8*2 -> 192 | F54: =_xlfn.XLOOKUP(A54,CCD!B:B,CCD!O:O,_xlfn.XLOOKUP('COMP-CDF'!A54,ICD!B:B,ICD!K:K)) -> 26.23 | G54: 5036.16
A55: 100533 | B55: SINAPI | C55: =_xlfn.XLOOKUP(A55,CCD!B:B,CCD!C:C,_xlfn.XLOOKUP(A55,ICD!B:B,ICD!C:C)) -> TECNICO DE EDIFICACOES COM ENCARGOS COMPLEMENTARES | D55: =_xlfn.XLOOKUP(A55,CCD!B:B,CCD!D:D,_xlfn.XLOOKUP('COMP-CDF'!A55,ICD!B:B,ICD!D:D)) -> H | E55: =3*4*8*2 -> 192 | F55: =_xlfn.XLOOKUP(A55,CCD!B:B,CCD!O:O,_xlfn.XLOOKUP('COMP-CDF'!A55,ICD!B:B,ICD!K:K)) -> 39.42 | G55: 7568.64
A56: 100289 | B56: SINAPI | C56: =_xlfn.XLOOKUP(A56,CCD!B:B,CCD!C:C,_xlfn.XLOOKUP(A56,ICD!B:B,ICD!C:C)) -> VIGIA DIURNO COM ENCARGOS COMPLEMENTARES | D56: =_xlfn.XLOOKUP(A56,CCD!B:B,CCD!D:D,_xlfn.XLOOKUP('COMP-CDF'!A56,ICD!B:B,ICD!D:D)) -> H | E56: =3*4*8*2 -> 192 | F56: =_xlfn.XLOOKUP(A56,CCD!B:B,CCD!O:O,_xlfn.XLOOKUP('COMP-CDF'!A56,ICD!B:B,ICD!K:K)) -> 23.39 | G56: 4490.88
A57: 100309 | B57: SINAPI | C57: =_xlfn.XLOOKUP(A57,CCD!B:B,CCD!C:C,_xlfn.XLOOKUP(A57,ICD!B:B,ICD!C:C)) -> TÉCNICO EM SEGURANÇA DO TRABALHO COM ENCARGOS COMPLEMENTARES | D57: =_xlfn.XLOOKUP(A57,CCD!B:B,CCD!D:D,_xlfn.XLOOKUP('COMP-CDF'!A57,ICD!B:B,ICD!D:D)) -> H | E57: =3*4*8 -> 96 | F57: =_xlfn.XLOOKUP(A57,CCD!B:B,CCD!O:O,_xlfn.XLOOKUP('COMP-CDF'!A57,ICD!B:B,ICD!K:K)) -> 30.29 | G57: 2907.84
F58: Total | G58: =TRUNC(SUM(G51:G57),2) -> 46580.4
A60: COMP-13 | B60: CODEVASF | C60: MOBILIZAÇÃO E DESMOBILIZAÇÃO | D60: UN | G60: =G64 -> 3030.53
A61: 89876 | B61: SINAPI | C61: =_xlfn.XLOOKUP(A61,CCD!B:B,CCD!C:C,_xlfn.XLOOKUP(A61,ICD!B:B,ICD!C:C)) -> CAMINHÃO BASCULANTE 14 M3, COM CAVALO MECÂNICO DE CAPACIDADE MÁXIMA DE TRAÇÃO COMBINADO DE 36000 KG, POTÊNCIA 286 CV, INCLUSIVE SEMIREBOQUE COM CAÇAMBA METÁLICA - CHP DIURNO. AF_12/2014 | D61: =_xlfn.XLOOKUP(A61,CCD!B:B,CCD!D:D,_xlfn.XLOOKUP('COMP-CDF'!A61,ICD!B:B,ICD!D:D)) -> CHP | E61: 1 | F61: =_xlfn.XLOOKUP(A61,CCD!B:B,CCD!O:O,_xlfn.XLOOKUP('COMP-CDF'!A61,ICD!B:B,ICD!K:K)) -> 337.29 | G61: =ROUND(E61*F61,2) -> 337.29
A62: I0698 | B62: SEINFRA | C62: =_xlfn.XLOOKUP(A62,'IS-SEINFRA'!A:A,'IS-SEINFRA'!B:B) -> CAMINHÃO TANQUE 8.000 l (CHP) | D62: =_xlfn.XLOOKUP(A62,'IS-SEINFRA'!A:A,'IS-SEINFRA'!C:C) -> H | E62: 2 | F62: =_xlfn.XLOOKUP(A62,'IS-SEINFRA'!A:A,'IS-SEINFRA'!D:D) -> 213.8810693 | G62: =ROUND(E62*F62,2) -> 427.76
A63: 5914640 | B63: SICRO | C63: Transporte com cavalo mecânico com semirreboque com capacidade de 32 t - rodovia pavimentada | D63: tkm | E63: 3906 | F63: 0.58 | G63: 2265.48
F64: Total | G64: =TRUNC(SUM(G61:G63),2) -> 3030.53
A66: COMP-14 | B66: CODEVASF | C66: =Cotações!B91 -> TANQUE DE RESFRIAMENTO 1000L | D66: UN | G66: =G68 -> 24092.98
A67: =Cotações!A91 -> COT-13 | B67: COTAÇÃO | C67: =Cotações!B91 -> TANQUE DE RESFRIAMENTO 1000L | D67: UN | E67: 1 | F67: =Cotações!D97 -> 24092.98 | G67: =ROUND(E67*F67,2) -> 24092.98
F68: Total | G68: =TRUNC(SUM(G67:G67),2) -> 24092.98
A70: COMP-15 | B70: CODEVASF | C70: =Cotações!B99 -> PASTEURIZADOR LENTO 1000L | D70: UN | G70: =G72 -> 48227.33
A71: =Cotações!A99 -> COT-14 | B71: COTAÇÃO | C71: =Cotações!B99 -> PASTEURIZADOR LENTO 1000L | D71: UN | E71: 1 | F71: =Cotações!D104 -> 48227.33 | G71: =ROUND(E71*F71,2) -> 48227.33
F72: Total | G72: =TRUNC(SUM(G71:G71),2) -> 48227.33
A74: COMP-16 | B74: CODEVASF | C74: =Cotações!B106 -> PRENSA PNEUMÁTICA 4 COLUNAS/10 FORMAS REDONDAS 1KG | D74: UN | G74: =G76 -> 10082.66
A75: =Cotações!A106 -> COT-15 | B75: COTAÇÃO | C75: =Cotações!B106 -> PRENSA PNEUMÁTICA 4 COLUNAS/10 FORMAS REDONDAS 1KG | D75: UN | E75: 1 | F75: =Cotações!D111 -> 10082.66 | G75: =ROUND(E75*F75,2) -> 10082.66
F76: Total | G76: =TRUNC(SUM(G75:G75),2) -> 10082.66
A78: COMP-17 | B78: CODEVASF | C78: ENVASADORA PNEUMÁTICA PARA LÍQUIDOS E PASTOSOS | D78: UN | G78: =G80 -> 7656.15
A79: =Cotações!A113 -> COT-16 | B79: COTAÇÃO | C79: =Cotações!B113 -> ENVASADORA PNEUMÁTICA PARA LÍQUIDOS E PASTOSOS | D79: UN | E79: 1 | F79: =Cotações!D119 -> 7656.15 | G79: =ROUND(E79*F79,2) -> 7656.15
F80: Total | G80: =TRUNC(SUM(G79:G79),2) -> 7656.15
A82: COMP-18 | B82: CODEVASF | C82: =Cotações!B121 -> DESNATADEIRA ELÉTRICA 275L/H | D82: UN | G82: =G84 -> 20165
A83: =Cotações!A121 -> COT-17 | B83: COTAÇÃO | C83: =Cotações!B121 -> DESNATADEIRA ELÉTRICA 275L/H | D83: UN | E83: 1 | F83: =Cotações!D126 -> 20165 | G83: =ROUND(E83*F83,2) -> 20165
F84: Total | G84: =TRUNC(SUM(G83:G83),2) -> 20165
A86: COMP-19 | B86: CODEVASF | C86: =Cotações!B128 -> TANQUE PARA SALGA 400L | D86: UN | G86: =G88 -> 3616.66
A87: =Cotações!A128 -> COT-18 | B87: COTAÇÃO | C87: =Cotações!B128 -> TANQUE PARA SALGA 400L | D87: UN | E87: 1 | F87: =Cotações!D130 -> 3616.66 | G87: =ROUND(E87*F87,2) -> 3616.66
F88: Total | G88: =TRUNC(SUM(G87:G87),2) -> 3616.66
A90: COMP-20 | B90: CODEVASF | C90: =Cotações!B136 -> TANQUE INOX 500L PARA FABRICAÇÃO DE QUEIJOS | D90: UN | G90: =G92 -> 17026.93
A91: =Cotações!A136 -> COT-19 | B91: COTAÇÃO | C91: =Cotações!B136 -> TANQUE INOX 500L PARA FABRICAÇÃO DE QUEIJOS | D91: UN | E91: 1 | F91: =Cotações!D141 -> 17026.93 | G91: =ROUND(E91*F91,2) -> 17026.93
F92: Total | G92: =TRUNC(SUM(G91:G91),2) -> 17026.93
A94: COMP-21 | B94: CODEVASF | C94: FORNECIMENTO E INSTALAÇÃO DE ISOPAINEL EPS 100 MM | D94: M2 | G94: =G103 -> 318.16
A95: =Cotações!A143 -> COT-20 | B95: COTAÇÃO | C95: =Cotações!B143 -> ISOPAINEIS EPS 100 MM | D95: M2 | E95: 1.05 | F95: =Cotações!D147 -> 198.2 | G95: =ROUND(E95*F95,2) -> 208.11
A96: =Cotações!A149 -> COT-21 | B96: COTAÇÃO | C96: =Cotações!B149 -> CANT INT 40X40X1000 | D96: M | E96: =1.05*(363/450) -> 0.847 | F96: =Cotações!D154 -> 13.25 | G96: =ROUND(E96*F96,2) -> 11.22 | H96: 363 m
A97: =Cotações!A156 -> COT-22 | B97: COTAÇÃO | C97: =Cotações!B156 -> CANT EXTERNA 40X140X1000 | D97: M | E97: =1.05*(39/450) -> 0.091 | F97: =Cotações!D161 -> 15.26 | G97: 1.39 | H97: 39 m
A98: =Cotações!A163 -> COT-23 | B98: COTAÇÃO | C98: =Cotações!B163 -> PERFIL EM U 40X100X1000 | D98: M | E98: =1.05*(186/450) -> 0.434 | F98: =Cotações!D168 -> 16.58 | G98: 7.2 | H98: 186 m
A99: =Cotações!A207 -> COT-29 | B99: COTAÇÃO | C99: =Cotações!B207 -> REBITE POP ALUMINIO BRANCO 4,0 X 15MM | D99: CT | E99: =1.05*(7/450) -> 0.01633333333 | F99: =Cotações!D212 -> 22.45 | G99: =ROUND(E99*F99,2) -> 0.37 | H99: 7 cartelas de 100 unidades
A100: =Cotações!A214 -> COT-30 | B100: COTAÇÃO | C100: =Cotações!B214 -> MASSA VEDANTE PAINEIS (BRANCO) - 600ML | D100: PC | E100: =1.05*(12/450) -> 0.028 | F100: =Cotações!D218 -> 35.27 | G100: 0.99 | H100: 12 unidades de 600 ml
A102: =Cotações!A193 -> COT-27 | B102: COTAÇÃO | C102: =Cotações!B193 -> MÃO DE OBRA DE INSTALAÇÃO DO ISOPAINEL EPS | D102: M2 | E102: 1 | F102: =Cotações!D196 -> 88.88 | G102: =ROUND(E102*F102,2) -> 88.88
F103: Total | G103: =TRUNC(SUM(G95:G102),2) -> 318.16
A105: COMP-22 | B105: CODEVASF | C105: LIMPEZA GERAL | D105: M2 | G105: =G107 -> 15.35
A106: 88316 | B106: SINAPI | C106: =_xlfn.XLOOKUP(A106,CCD!B:B,CCD!C:C,_xlfn.XLOOKUP(A106,ICD!B:B,ICD!C:C)) -> SERVENTE COM ENCARGOS COMPLEMENTARES | D106: =_xlfn.XLOOKUP(A106,CCD!B:B,CCD!D:D,_xlfn.XLOOKUP('COMP-CDF'!A106,ICD!B:B,ICD!D:D)) -> H | E106: 0.7 | F106: =_xlfn.XLOOKUP(A106,CCD!B:B,CCD!O:O,_xlfn.XLOOKUP('COMP-CDF'!A106,ICD!B:B,ICD!K:K)) -> 21.93 | G106: =ROUND(E106*F106,2) -> 15.35
D107: H | F107: Total | G107: =TRUNC(SUM(G106:G106),2) -> 15.35
A109: COMP-23 | B109: CODEVASF | C109: CHUVEIRO PLASTICO SIMPLES - FORNECIDO E INSTALADO | D109: UN | G109: =G114 -> 30.59
A110: 7608 | B110: SINAPI | C110: =_xlfn.XLOOKUP(A110,CCD!B:B,CCD!C:C,_xlfn.XLOOKUP(A110,ICD!B:B,ICD!C:C)) -> DUCHA / CHUVEIRO PLASTICO SIMPLES, 5", BRANCO, PARA ACOPLAR EM HASTE 1/2", AGUA FRIA | D110: =_xlfn.XLOOKUP(A110,CCD!B:B,CCD!D:D,_xlfn.XLOOKUP('COMP-CDF'!A110,ICD!B:B,ICD!D:D)) -> UN | E110: 1 | F110: =_xlfn.XLOOKUP(A110,CCD!B:B,CCD!O:O,_xlfn.XLOOKUP('COMP-CDF'!A110,ICD!B:B,ICD!K:K)) -> 15.14 | G110: =ROUND(E110*F110,2) -> 15.14
A111: 3146 | B111: SINAPI | C111: =_xlfn.XLOOKUP(A111,CCD!B:B,CCD!C:C,_xlfn.XLOOKUP(A111,ICD!B:B,ICD!C:C)) -> FITA VEDA ROSCA, EM PTFE, ROLO DE 18 MM X 10 M (L X C) | D111: =_xlfn.XLOOKUP(A111,CCD!B:B,CCD!D:D,_xlfn.XLOOKUP('COMP-CDF'!A111,ICD!B:B,ICD!D:D)) -> UN | E111: 0.021 | F111: =_xlfn.XLOOKUP(A111,CCD!B:B,CCD!O:O,_xlfn.XLOOKUP('COMP-CDF'!A111,ICD!B:B,ICD!K:K)) -> 4 | G111: =ROUND(E111*F111,2) -> 0.08
A112: 88267 | B112: SINAPI | C112: =_xlfn.XLOOKUP(A112,CCD!B:B,CCD!C:C,_xlfn.XLOOKUP(A112,ICD!B:B,ICD!C:C)) -> ENCANADOR OU BOMBEIRO HIDRÁULICO COM ENCARGOS COMPLEMENTARES | D112: =_xlfn.XLOOKUP(A112,CCD!B:B,CCD!D:D,_xlfn.XLOOKUP('COMP-CDF'!A112,ICD!B:B,ICD!D:D)) -> H | E112: 0.4467 | F112: =_xlfn.XLOOKUP(A112,CCD!B:B,CCD!O:O,_xlfn.XLOOKUP('COMP-CDF'!A112,ICD!B:B,ICD!K:K)) -> 27.49 | G112: =ROUND(E112*F112,2) -> 12.28
A113: 88316 | B113: SINAPI | C113: =_xlfn.XLOOKUP(A113,CCD!B:B,CCD!C:C,_xlfn.XLOOKUP(A113,ICD!B:B,ICD!C:C)) -> SERVENTE COM ENCARGOS COMPLEMENTARES | D113: =_xlfn.XLOOKUP(A113,CCD!B:B,CCD!D:D,_xlfn.XLOOKUP('COMP-CDF'!A113,ICD!B:B,ICD!D:D)) -> H | E113: 0.1407 | F113: =_xlfn.XLOOKUP(A113,CCD!B:B,CCD!O:O,_xlfn.XLOOKUP('COMP-CDF'!A113,ICD!B:B,ICD!K:K)) -> 21.93 | G113: 3.09
F114: Total | G114: =TRUNC(SUM(G110:G113),2) -> 30.59
A116: COMP-24 | B116: CODEVASF | C116: DISJUNTOR TRIPOLAR TIPO DIN, CORRENTE NOMINAL DE 63A - FORNECIMENTO E INSTALAÇÃO | D116: UN | G116: =G121 -> 118.08
A117: 1570 | B117: SINAPI | C117: =_xlfn.XLOOKUP(A117,CCD!B:B,CCD!C:C,_xlfn.XLOOKUP(A117,ICD!B:B,ICD!C:C)) -> TERMINAL A COMPRESSAO EM COBRE ESTANHADO PARA CABO 2,5 MM2, 1 FURO E 1 COMPRESSAO, PARA PARAFUSO DE FIXACAO M5 | D117: =_xlfn.XLOOKUP(A117,CCD!B:B,CCD!D:D,_xlfn.XLOOKUP('COMP-CDF'!A117,ICD!B:B,ICD!D:D)) -> UN | E117: 3 | F117: 1 | G117: =ROUND(E117*F117,2) -> 3 | H117: SP
A118: 34714 | B118: SINAPI | C118: =_xlfn.XLOOKUP(A118,CCD!B:B,CCD!C:C,_xlfn.XLOOKUP(A118,ICD!B:B,ICD!C:C)) -> DISJUNTOR TERMOMAGNETICO PARA TRILHO DIN (IEC), TRIPOLAR, 63 A | D118: =_xlfn.XLOOKUP(A118,CCD!B:B,CCD!D:D,_xlfn.XLOOKUP('COMP-CDF'!A118,ICD!B:B,ICD!D:D)) -> UN | E118: 1 | F118: =_xlfn.XLOOKUP(A118,CCD!B:B,CCD!O:O,_xlfn.XLOOKUP('COMP-CDF'!A118,ICD!B:B,ICD!K:K)) -> 76.1 | G118: =ROUND(E118*F118,2) -> 76.1
A119: 88247 | B119: SINAPI | C119: =_xlfn.XLOOKUP(A119,CCD!B:B,CCD!C:C,_xlfn.XLOOKUP(A119,ICD!B:B,ICD!C:C)) -> AUXILIAR DE ELETRICISTA COM ENCARGOS COMPLEMENTARES | D119: =_xlfn.XLOOKUP(A119,CCD!B:B,CCD!D:D,_xlfn.XLOOKUP('COMP-CDF'!A119,ICD!B:B,ICD!D:D)) -> H | E119: 0.75 | F119: =_xlfn.XLOOKUP(A119,CCD!B:B,CCD!O:O,_xlfn.XLOOKUP('COMP-CDF'!A119,ICD!B:B,ICD!K:K)) -> 23.42 | G119: =ROUND(E119*F119,2) -> 17.57
A120: 88264 | B120: SINAPI | C120: =_xlfn.XLOOKUP(A120,CCD!B:B,CCD!C:C,_xlfn.XLOOKUP(A120,ICD!B:B,ICD!C:C)) -> ELETRICISTA COM ENCARGOS COMPLEMENTARES | D120: =_xlfn.XLOOKUP(A120,CCD!B:B,CCD!D:D,_xlfn.XLOOKUP('COMP-CDF'!A120,ICD!B:B,ICD!D:D)) -> H | E120: 0.75 | F120: =_xlfn.XLOOKUP(A120,CCD!B:B,CCD!O:O,_xlfn.XLOOKUP('COMP-CDF'!A120,ICD!B:B,ICD!K:K)) -> 28.54 | G120: 21.41
F121: Total | G121: =TRUNC(SUM(G117:G120),2) -> 118.08
A123: COMP-25 | B123: CODEVASF | C123: =Cotações!B170 -> TACHO PARA DOCE 100L | D123: UN | G123: =G125 -> 28790.93
A124: =Cotações!A170 -> COT-24 | B124: COTAÇÃO | C124: =Cotações!B170 -> TACHO PARA DOCE 100L | D124: UN | E124: 1 | F124: =Cotações!D175 -> 28790.93 | G124: =ROUND(E124*F124,2) -> 28790.93
F125: Total | G125: =TRUNC(SUM(G124:G124),2) -> 28790.93
A127: COMP-26 | B127: CODEVASF | C127: =Cotações!B177 -> BATEDEIRA PARA MANTEIGA 20KG | D127: UN | G127: =G129 -> 20344.94
A128: =Cotações!A177 -> COT-25 | B128: COTAÇÃO | C128: =Cotações!B177 -> BATEDEIRA PARA MANTEIGA 20KG | D128: UN | E128: 1 | F128: =Cotações!D183 -> 20344.94 | G128: =ROUND(E128*F128,2) -> 20344.94
F129: Total | G129: =TRUNC(SUM(G128:G128),2) -> 20344.94
A131: COMP-27 | B131: CODEVASF | C131: =Cotações!B185 -> IOGURTEIRA INOX 500L | D131: UN | G131: =G133 -> 28595
A132: COT-26 | B132: COTAÇÃO | C132: =Cotações!A187 -> CIÊNCIA DO LEITE | D132: UN | E132: 1 | F132: =Cotações!D187 -> 28595 | G132: =ROUND(E132*F132,2) -> 28595
F133: Total | G133: =TRUNC(SUM(G132:G132),2) -> 28595
A135: COMP-28 | B135: CODEVASF | C135: =Cotações!B198 -> COMPRESSOR 2HP 50L | D135: UN | G135: =G137 -> 2147.93
A136: COT-28 | B136: COTAÇÃO | C136: =Cotações!B198 -> COMPRESSOR 2HP 50L | D136: UN | E136: 1 | F136: =Cotações!D205 -> 2147.93 | G136: =ROUND(E136*F136,2) -> 2147.93
F137: Total | G137: =TRUNC(SUM(G136:G136),2) -> 2147.93
A139: COMP-29-0 | B139: CODEVASF | C139: PROJETO EXECUTIVO PADRÃO EXCETO SONDAGEM, LEVANTAMENTO TOPOGRÁFICO E IMPLANTAÇÃO | D139: UN | G139: =G142 -> 5937.9
A140: 90778 | B140: SINAPI | C140: =_xlfn.XLOOKUP(A140,CCD!B:B,CCD!C:C,_xlfn.XLOOKUP(A140,ICD!B:B,ICD!C:C)) -> ENGENHEIRO CIVIL DE OBRA PLENO COM ENCARGOS COMPLEMENTARES | D140: =_xlfn.XLOOKUP(A140,CCD!B:B,CCD!D:D,_xlfn.XLOOKUP('COMP-CDF'!A140,ICD!B:B,ICD!D:D)) -> H | E140: 30 | F140: =_xlfn.XLOOKUP(A140,CCD!B:B,CCD!O:O,_xlfn.XLOOKUP('COMP-CDF'!A140,ICD!B:B,ICD!K:K)) -> 126.69 | G140: =ROUND(E140*F140,2) -> 3800.7
A141: 90775 | B141: SINAPI | C141: =_xlfn.XLOOKUP(A141,CCD!B:B,CCD!C:C,_xlfn.XLOOKUP(A141,ICD!B:B,ICD!C:C)) -> DESENHISTA PROJETISTA COM ENCARGOS COMPLEMENTARES | D141: =_xlfn.XLOOKUP(A141,CCD!B:B,CCD!D:D,_xlfn.XLOOKUP('COMP-CDF'!A141,ICD!B:B,ICD!D:D)) -> H | E141: 60 | F141: =_xlfn.XLOOKUP(A141,CCD!B:B,CCD!O:O,_xlfn.XLOOKUP('COMP-CDF'!A141,ICD!B:B,ICD!K:K)) -> 35.62 | G141: =ROUND(E141*F141,2) -> 2137.2
F142: Total | G142: =TRUNC(SUM(G140:G141),2) -> 5937.9
A143: COMP-29 | B143: CODEVASF | C143: SONDAGEM, LEVANTAMENTO TOPOGRÁFICO E IMPLANTAÇÃO | D143: UN | G143: =G153 -> 8870.98
A144: 90778 | B144: SINAPI | C144: =_xlfn.XLOOKUP(A144,CCD!B:B,CCD!C:C,_xlfn.XLOOKUP(A144,ICD!B:B,ICD!C:C)) -> ENGENHEIRO CIVIL DE OBRA PLENO COM ENCARGOS COMPLEMENTARES | D144: =_xlfn.XLOOKUP(A144,CCD!B:B,CCD!D:D,_xlfn.XLOOKUP('COMP-CDF'!A144,ICD!B:B,ICD!D:D)) -> H | E144: 8 | F144: =_xlfn.XLOOKUP(A144,CCD!B:B,CCD!O:O,_xlfn.XLOOKUP('COMP-CDF'!A144,ICD!B:B,ICD!K:K)) -> 126.69 | G144: =ROUND(E144*F144,2) -> 1013.52
A145: 90775 | B145: SINAPI | C145: =_xlfn.XLOOKUP(A145,CCD!B:B,CCD!C:C,_xlfn.XLOOKUP(A145,ICD!B:B,ICD!C:C)) -> DESENHISTA PROJETISTA COM ENCARGOS COMPLEMENTARES | D145: =_xlfn.XLOOKUP(A145,CCD!B:B,CCD!D:D,_xlfn.XLOOKUP('COMP-CDF'!A145,ICD!B:B,ICD!D:D)) -> H | E145: 8 | F145: =_xlfn.XLOOKUP(A145,CCD!B:B,CCD!O:O,_xlfn.XLOOKUP('COMP-CDF'!A145,ICD!B:B,ICD!K:K)) -> 35.62 | G145: =ROUND(E145*F145,2) -> 284.96
A146: 88322 | B146: SINAPI | C146: =_xlfn.XLOOKUP(A146,CCD!B:B,CCD!C:C,_xlfn.XLOOKUP(A146,ICD!B:B,ICD!C:C)) -> TÉCNICO EM SONDAGEM COM ENCARGOS COMPLEMENTARES | D146: =_xlfn.XLOOKUP(A146,CCD!B:B,CCD!D:D,_xlfn.XLOOKUP('COMP-CDF'!A146,ICD!B:B,ICD!D:D)) -> H | E146: 4 | F146: =_xlfn.XLOOKUP(A146,CCD!B:B,CCD!O:O,_xlfn.XLOOKUP('COMP-CDF'!A146,ICD!B:B,ICD!K:K)) -> 57.67 | G146: =ROUND(E146*F146,2) -> 230.68
A147: 90781 | B147: SINAPI | C147: =_xlfn.XLOOKUP(A147,CCD!B:B,CCD!C:C,_xlfn.XLOOKUP(A147,ICD!B:B,ICD!C:C)) -> TOPOGRAFO COM ENCARGOS COMPLEMENTARES | D147: =_xlfn.XLOOKUP(A147,CCD!B:B,CCD!D:D,_xlfn.XLOOKUP('COMP-CDF'!A147,ICD!B:B,ICD!D:D)) -> H | E147: 24 | F147: =_xlfn.XLOOKUP(A147,CCD!B:B,CCD!O:O,_xlfn.XLOOKUP('COMP-CDF'!A147,ICD!B:B,ICD!K:K)) -> 48.85 | G147: =ROUND(E147*F147,2) -> 1172.4
A148: 88253 | B148: SINAPI | C148: =_xlfn.XLOOKUP(A148,CCD!B:B,CCD!C:C,_xlfn.XLOOKUP(A148,ICD!B:B,ICD!C:C)) -> AUXILIAR DE TOPÓGRAFO COM ENCARGOS COMPLEMENTARES | D148: =_xlfn.XLOOKUP(A148,CCD!B:B,CCD!D:D,_xlfn.XLOOKUP('COMP-CDF'!A148,ICD!B:B,ICD!D:D)) -> H | E148: 16 | F148: =_xlfn.XLOOKUP(A148,CCD!B:B,CCD!O:O,_xlfn.XLOOKUP('COMP-CDF'!A148,ICD!B:B,ICD!K:K)) -> 23.24 | G148: 371.84
A149: 5896 | B149: ORSE | C149: VEÍCULO TIPO SEDAN OU PICK0UP CAPACIDADE 0,6 TON | D149: H | E149: 24 | F149: 8.33 | G149: 199.92
A150: 4221 | B150: SINAPI | C150: =_xlfn.XLOOKUP(A150,CCD!B:B,CCD!C:C,_xlfn.XLOOKUP(A150,ICD!B:B,ICD!C:C)) -> OLEO DIESEL COMBUSTIVEL COMUM METROPOLITANO S-10 OU S-500 | D150: =_xlfn.XLOOKUP(A150,CCD!B:B,CCD!D:D,_xlfn.XLOOKUP('COMP-CDF'!A150,ICD!B:B,ICD!D:D)) -> L | E150: 50 | F150: =_xlfn.XLOOKUP(A150,CCD!B:B,CCD!O:O,_xlfn.XLOOKUP('COMP-CDF'!A150,ICD!B:B,ICD!K:K)) -> 6.07 | G150: 303.5
A151: E9553 | B151: SICRO | C151: ESTAÇÃO TOTAL ELETRÔNICA COM ALCANCE MÁXIMO DE 3.000M | D151: H | E151: 24 | F151: 8.09 | G151: 194.16
A152: 32.02.01 | B152: EMBASA | C152: SONDAGEM A PERCUSSÃO | D152: M | E152: 60 | F152: 85 | G152: 5100
F153: Total | G153: =TRUNC(SUM(G144:G152),2) -> 8870.98
A155: COMP-30 | B155: CODEVASF | C155: DISPOSITIVO DR BIPOLAR DE 25 A/30 MA - FORNECIMENTO E INSTALAÇÃO | D155: UN | G155: =G160 -> 178.14
A156: 1570 | B156: SINAPI | C156: =_xlfn.XLOOKUP(A156,CCD!B:B,CCD!C:C,_xlfn.XLOOKUP(A156,ICD!B:B,ICD!C:C)) -> TERMINAL A COMPRESSAO EM COBRE ESTANHADO PARA CABO 2,5 MM2, 1 FURO E 1 COMPRESSAO, PARA PARAFUSO DE FIXACAO M5 | D156: =_xlfn.XLOOKUP(A156,CCD!B:B,CCD!D:D,_xlfn.XLOOKUP('COMP-CDF'!A156,ICD!B:B,ICD!D:D)) -> UN | E156: 2 | F156: 1.04 | G156: =ROUND(E156*F156,2) -> 2.08 | H156: SP
A157: 39445 | B157: SINAPI | C157: =_xlfn.XLOOKUP(A157,CCD!B:B,CCD!C:C,_xlfn.XLOOKUP(A157,ICD!B:B,ICD!C:C)) -> DISPOSITIVO DR, 2 POLOS, SENSIBILIDADE DE 30 MA, CORRENTE DE 25 A, TIPO AC | D157: =_xlfn.XLOOKUP(A157,CCD!B:B,CCD!D:D,_xlfn.XLOOKUP('COMP-CDF'!A157,ICD!B:B,ICD!D:D)) -> UN | E157: 1 | F157: =_xlfn.XLOOKUP(A157,CCD!B:B,CCD!O:O,_xlfn.XLOOKUP('COMP-CDF'!A157,ICD!B:B,ICD!K:K)) -> 139.69 | G157: =ROUND(E157*F157,2) -> 139.69
A158: 88247 | B158: SINAPI | C158: =_xlfn.XLOOKUP(A158,CCD!B:B,CCD!C:C,_xlfn.XLOOKUP(A158,ICD!B:B,ICD!C:C)) -> AUXILIAR DE ELETRICISTA COM ENCARGOS COMPLEMENTARES | D158: =_xlfn.XLOOKUP(A158,CCD!B:B,CCD!D:D,_xlfn.XLOOKUP('COMP-CDF'!A158,ICD!B:B,ICD!D:D)) -> H | E158: 0.7 | F158: =_xlfn.XLOOKUP(A158,CCD!B:B,CCD!O:O,_xlfn.XLOOKUP('COMP-CDF'!A158,ICD!B:B,ICD!K:K)) -> 23.42 | G158: =ROUND(E158*F158,2) -> 16.39
A159: 88264 | B159: SINAPI | C159: =_xlfn.XLOOKUP(A159,CCD!B:B,CCD!C:C,_xlfn.XLOOKUP(A159,ICD!B:B,ICD!C:C)) -> ELETRICISTA COM ENCARGOS COMPLEMENTARES | D159: =_xlfn.XLOOKUP(A159,CCD!B:B,CCD!D:D,_xlfn.XLOOKUP('COMP-CDF'!A159,ICD!B:B,ICD!D:D)) -> H | E159: 0.7 | F159: =_xlfn.XLOOKUP(A159,CCD!B:B,CCD!O:O,_xlfn.XLOOKUP('COMP-CDF'!A159,ICD!B:B,ICD!K:K)) -> 28.54 | G159: 19.98
F160: Total | G160: =TRUNC(SUM(G156:G159),2) -> 178.14
A162: COMP-31 | B162: CODEVASF | C162: DISPOSITIVO DPS CLASSE II, 1 POLO, 275 V, 20 KA - FORNECIMENTO E INSTALAÇÃO | D162: UN | G162: =G167 -> 105.54
A163: 1570 | B163: SINAPI | C163: =_xlfn.XLOOKUP(A163,CCD!B:B,CCD!C:C,_xlfn.XLOOKUP(A163,ICD!B:B,ICD!C:C)) -> TERMINAL A COMPRESSAO EM COBRE ESTANHADO PARA CABO 2,5 MM2, 1 FURO E 1 COMPRESSAO, PARA PARAFUSO DE FIXACAO M5 | D163: =_xlfn.XLOOKUP(A163,CCD!B:B,CCD!D:D,_xlfn.XLOOKUP('COMP-CDF'!A163,ICD!B:B,ICD!D:D)) -> UN | E163: 1 | F163: 1.04 | G163: =ROUND(E163*F163,2) -> 1.04 | H163: SP
A164: 39469 | B164: SINAPI | C164: =_xlfn.XLOOKUP(A164,CCD!B:B,CCD!C:C,_xlfn.XLOOKUP(A164,ICD!B:B,ICD!C:C)) -> DISPOSITIVO DPS CLASSE II, 1 POLO, TENSAO MAXIMA DE 275 V, CORRENTE MAXIMA DE *20* KA (TIPO AC) | D164: =_xlfn.XLOOKUP(A164,CCD!B:B,CCD!D:D,_xlfn.XLOOKUP('COMP-CDF'!A164,ICD!B:B,ICD!D:D)) -> UN | E164: 1 | F164: =_xlfn.XLOOKUP(A164,CCD!B:B,CCD!O:O,_xlfn.XLOOKUP('COMP-CDF'!A164,ICD!B:B,ICD!K:K)) -> 70.73 | G164: =ROUND(E164*F164,2) -> 70.73
A165: 88247 | B165: SINAPI | C165: =_xlfn.XLOOKUP(A165,CCD!B:B,CCD!C:C,_xlfn.XLOOKUP(A165,ICD!B:B,ICD!C:C)) -> AUXILIAR DE ELETRICISTA COM ENCARGOS COMPLEMENTARES | D165: =_xlfn.XLOOKUP(A165,CCD!B:B,CCD!D:D,_xlfn.XLOOKUP('COMP-CDF'!A165,ICD!B:B,ICD!D:D)) -> H | E165: 0.65 | F165: =_xlfn.XLOOKUP(A165,CCD!B:B,CCD!O:O,_xlfn.XLOOKUP('COMP-CDF'!A165,ICD!B:B,ICD!K:K)) -> 23.42 | G165: =ROUND(E165*F165,2) -> 15.22
A166: 88264 | B166: SINAPI | C166: =_xlfn.XLOOKUP(A166,CCD!B:B,CCD!C:C,_xlfn.XLOOKUP(A166,ICD!B:B,ICD!C:C)) -> ELETRICISTA COM ENCARGOS COMPLEMENTARES | D166: =_xlfn.XLOOKUP(A166,CCD!B:B,CCD!D:D,_xlfn.XLOOKUP('COMP-CDF'!A166,ICD!B:B,ICD!D:D)) -> H | E166: 0.65 | F166: =_xlfn.XLOOKUP(A166,CCD!B:B,CCD!O:O,_xlfn.XLOOKUP('COMP-CDF'!A166,ICD!B:B,ICD!K:K)) -> 28.54 | G166: 18.55
F167: Total | G167: =TRUNC(SUM(G163:G166),2) -> 105.54
A169: COMP-32 | B169: CODEVASF | C169: JUNCAO SIMPLES DE REDUCAO, PVC, DN 100 X 50 MM, PARA ESGOTO PREDIAL - FORNECIMENTO E INSTALAÇÃO | D169: UN | G169: =G176 -> 46.7
A170: 297 | B170: SINAPI | C170: =_xlfn.XLOOKUP(A170,CCD!B:B,CCD!C:C,_xlfn.XLOOKUP(A170,ICD!B:B,ICD!C:C)) -> ANEL BORRACHA PARA TUBO ESGOTO PREDIAL, DN 75 MM (NBR 5688) | D170: =_xlfn.XLOOKUP(A170,CCD!B:B,CCD!D:D,_xlfn.XLOOKUP('COMP-CDF'!A170,ICD!B:B,ICD!D:D)) -> UN | E170: 1 | F170: =_xlfn.XLOOKUP(A170,CCD!B:B,CCD!O:O,_xlfn.XLOOKUP('COMP-CDF'!A170,ICD!B:B,ICD!K:K)) -> 3.4 | G170: =ROUND(E170*F170,2) -> 3.4
A171: 301 | B171: SINAPI | C171: =_xlfn.XLOOKUP(A171,CCD!B:B,CCD!C:C,_xlfn.XLOOKUP(A171,ICD!B:B,ICD!C:C)) -> ANEL BORRACHA PARA TUBO ESGOTO PREDIAL, DN 100 MM (NBR 5688) | D171: =_xlfn.XLOOKUP(A171,CCD!B:B,CCD!D:D,_xlfn.XLOOKUP('COMP-CDF'!A171,ICD!B:B,ICD!D:D)) -> UN | E171: 2 | F171: =_xlfn.XLOOKUP(A171,CCD!B:B,CCD!O:O,_xlfn.XLOOKUP('COMP-CDF'!A171,ICD!B:B,ICD!K:K)) -> 4.09 | G171: 8.18
A172: 3659 | B172: SINAPI | C172: =_xlfn.XLOOKUP(A172,CCD!B:B,CCD!C:C,_xlfn.XLOOKUP(A172,ICD!B:B,ICD!C:C)) -> JUNCAO SIMPLES DE REDUCAO, PVC, DN 100 X 50 MM, SERIE NORMAL PARA ESGOTO PREDIAL | D172: =_xlfn.XLOOKUP(A172,CCD!B:B,CCD!D:D,_xlfn.XLOOKUP('COMP-CDF'!A172,ICD!B:B,ICD!D:D)) -> UN | E172: 1 | F172: =_xlfn.XLOOKUP(A172,CCD!B:B,CCD!O:O,_xlfn.XLOOKUP('COMP-CDF'!A172,ICD!B:B,ICD!K:K)) -> 18.82 | G172: =ROUND(E172*F172,2) -> 18.82
A173: 20078 | B173: SINAPI | C173: =_xlfn.XLOOKUP(A173,CCD!B:B,CCD!C:C,_xlfn.XLOOKUP(A173,ICD!B:B,ICD!C:C)) -> PASTA LUBRIFICANTE PARA TUBOS E CONEXOES COM JUNTA ELASTICA, EMBALAGEM DE *400* GR (USO EM PVC, ACO, POLIETILENO E OUTROS) | D173: =_xlfn.XLOOKUP(A173,CCD!B:B,CCD!D:D,_xlfn.XLOOKUP('COMP-CDF'!A173,ICD!B:B,ICD!D:D)) -> UN | E173: 0.1525 | F173: =_xlfn.XLOOKUP(A173,CCD!B:B,CCD!O:O,_xlfn.XLOOKUP('COMP-CDF'!A173,ICD!B:B,ICD!K:K)) -> 26.8 | G173: =ROUND(E173*F173,2) -> 4.09
A174: 88248 | B174: SINAPI | C174: =_xlfn.XLOOKUP(A174,CCD!B:B,CCD!C:C,_xlfn.XLOOKUP(A174,ICD!B:B,ICD!C:C)) -> AUXILIAR DE ENCANADOR OU BOMBEIRO HIDRÁULICO COM ENCARGOS COMPLEMENTARES | D174: =_xlfn.XLOOKUP(A174,CCD!B:B,CCD!D:D,_xlfn.XLOOKUP('COMP-CDF'!A174,ICD!B:B,ICD!D:D)) -> H | E174: 0.2446 | F174: =_xlfn.XLOOKUP(A174,CCD!B:B,CCD!O:O,_xlfn.XLOOKUP('COMP-CDF'!A174,ICD!B:B,ICD!K:K)) -> 22.46 | G174: =ROUND(E174*F174,2) -> 5.49
A175: 88267 | B175: SINAPI | C175: =_xlfn.XLOOKUP(A175,CCD!B:B,CCD!C:C,_xlfn.XLOOKUP(A175,ICD!B:B,ICD!C:C)) -> ENCANADOR OU BOMBEIRO HIDRÁULICO COM ENCARGOS COMPLEMENTARES | D175: =_xlfn.XLOOKUP(A175,CCD!B:B,CCD!D:D,_xlfn.XLOOKUP('COMP-CDF'!A175,ICD!B:B,ICD!D:D)) -> H | E175: 0.2446 | F175: =_xlfn.XLOOKUP(A175,CCD!B:B,CCD!O:O,_xlfn.XLOOKUP('COMP-CDF'!A175,ICD!B:B,ICD!K:K)) -> 27.49 | G175: 6.72
F176: Total | G176: =TRUNC(SUM(G170:G175),2) -> 46.7
A178: COMP-33 | B178: CODEVASF | C178: ENTRADA DE ENERGIA COM POSTE E ASSENTAMENTO | D178: UN | G178: =G182 -> 3660.45
A179: 101507 | B179: SINAPI | C179: =_xlfn.XLOOKUP(A179,CCD!B:B,CCD!C:C,_xlfn.XLOOKUP(A179,ICD!B:B,ICD!C:C)) -> ENTRADA DE ENERGIA ELÉTRICA, AÉREA, TRIFÁSICA, COM CAIXA DE SOBREPOR, CABO DE 25 MM2 E DISJUNTOR DIN 50A (NÃO INCLUSO O POSTE DE CONCRETO). AF_07/2020_PS | D179: =_xlfn.XLOOKUP(A179,CCD!B:B,CCD!D:D,_xlfn.XLOOKUP('COMP-CDF'!A179,ICD!B:B,ICD!D:D)) -> UN | E179: 1 | F179: =_xlfn.XLOOKUP(A179,CCD!B:B,CCD!O:O,_xlfn.XLOOKUP('COMP-CDF'!A179,ICD!B:B,ICD!K:K)) -> 2223.01 | G179: =ROUND(E179*F179,2) -> 2223.01
A180: 100578 | B180: SINAPI | C180: =_xlfn.XLOOKUP(A180,CCD!B:B,CCD!C:C,_xlfn.XLOOKUP(A180,ICD!B:B,ICD!C:C)) -> ASSENTAMENTO DE POSTE DE CONCRETO COM COMPRIMENTO NOMINAL DE 9 M, CARGA NOMINAL MENOR OU IGUAL A 1000 DAN, ENGASTAMENTO SIMPLES COM 1,5 M DE SOLO (NÃO INCLUI FORNECIMENTO). AF_04/2025 | D180: =_xlfn.XLOOKUP(A180,CCD!B:B,CCD!D:D,_xlfn.XLOOKUP('COMP-CDF'!A180,ICD!B:B,ICD!D:D)) -> UN | E180: 1 | F180: =_xlfn.XLOOKUP(A180,CCD!B:B,CCD!O:O,_xlfn.XLOOKUP('COMP-CDF'!A180,ICD!B:B,ICD!K:K)) -> 619.44 | G180: =ROUND(E180*F180,2) -> 619.44
A181: 5033 | B181: SINAPI | C181: =_xlfn.XLOOKUP(A181,CCD!B:B,CCD!C:C,_xlfn.XLOOKUP(A181,ICD!B:B,ICD!C:C)) -> POSTE DE CONCRETO ARMADO DE SECAO DUPLO T, EXTENSAO DE 9,00 M, RESISTENCIA DE 300 A 400 DAN, TIPO B OU D | D181: =_xlfn.XLOOKUP(A181,CCD!B:B,CCD!D:D,_xlfn.XLOOKUP('COMP-CDF'!A181,ICD!B:B,ICD!D:D)) -> UN | E181: 1 | F181: 818 | G181: =ROUND(E181*F181,2) -> 818 | H181: SP
F182: Total | G182: =TRUNC(SUM(G179:G181),2) -> 3660.45
A184: COMP-34 | B184: CODEVASF | C184: =Cotações!B220 -> FORMA PARA QUEIJO COALHO REDONDO DE 1KG | D184: UN | G184: =G186 -> 28.21
A185: =Cotações!A220 -> COT-31 | B185: COTAÇÃO | C185: =Cotações!B220 -> FORMA PARA QUEIJO COALHO REDONDO DE 1KG | D185: UN | E185: 1 | F185: =Cotações!D226 -> 28.21 | G185: =ROUND(E185*F185,2) -> 28.21
F186: Total | G186: =TRUNC(SUM(G185:G185),2) -> 28.21
A188: ='ORC1'!A158 -> FORTALEZA/CE, OUTUBRO DE 2025.
A896: ='ORC1'!A158 -> FORTALEZA/CE, OUTUBRO DE 2025.

Sheet COMP-SEINFRA
A2: ='ORC1'!D3 -> MINISTÉRIO DA INTEGRAÇÃO E DO DESENVOLVIMENTO REGIONAL - MIDR
A3: ='ORC1'!D4 -> COMPANHIA DE DESENVOLVIMENTO DOS VALES DO SÃO FRANCISCO E DO PARNAÍBA
A4: ='ORC1'!D5 -> 14ª SUPERINTENDÊNCIA REGIONAL
A6: ='ORC1'!A20 -> CONTRATAÇÃO DE SERVIÇOS DE ENGENHARIA, POR MEIO DO SISTEMA DE REGISTRO DE PREÇOS – SRP, PARA IMPLANTAÇÃO DE AGROINDÚSTRIAS DE LÁCTEOS EM COMUNIDADES RURAIS, NO ESTADO DO CEARÁ.
A8: COMPOSIÇÕES DE CUSTOS DA SEINFRA/CE*
D9: DESONERADO
A10: Código | C10: Descrição | D10: NÃO DESONERADO | E10: Coeficiente | F10: Preço | G10: Total
A11: C1353 | C11: ESTRUTURA METÁLICA TRELIÇADA EM AÇO, EM MARQUISES | D11: M2 | G11: =G15 -> 269.61
A12: 88278 | B12: SINAPI | C12: =_xlfn.XLOOKUP(A12,CCD!B:B,CCD!C:C,_xlfn.XLOOKUP(A12,ICD!B:B,ICD!C:C,_xlfn.XLOOKUP(A12,'CP-SEINFRA'!A:A,'CP-SEINFRA'!B:B,_xlfn.XLOOKUP(A12,'IS-SEINFRA'!A:A,'IS-SEINFRA'!B:B)))) -> MONTADOR DE ESTRUTURAS METÁLICAS COM ENCARGOS COMPLEMENTARES | D12: =_xlfn.XLOOKUP(A12,CCD!B:B,CCD!D:D,_xlfn.XLOOKUP(A12,ICD!B:B,ICD!C:C,_xlfn.XLOOKUP(A12,'CP-SEINFRA'!A:A,'CP-SEINFRA'!C:C,_xlfn.XLOOKUP(A12,'IS-SEINFRA'!A:A,'IS-SEINFRA'!C:C)))) -> H | E12: 2.75 | F12: =_xlfn.XLOOKUP(A12,CCD!B:B,CCD!O:O,_xlfn.XLOOKUP(A12,ICD!B:B,ICD!K:K,_xlfn.XLOOKUP(A12,'CP-SEINFRA'!A:A,'CP-SEINFRA'!D:D,_xlfn.XLOOKUP(A12,'IS-SEINFRA'!A:A,'IS-SEINFRA'!D:D)))) -> 25.36 | G12: =ROUND(E12*F12,4) -> 69.74
A13: 88316 | B13: SINAPI | C13: =_xlfn.XLOOKUP(A13,CCD!B:B,CCD!C:C,_xlfn.XLOOKUP(A13,ICD!B:B,ICD!C:C,_xlfn.XLOOKUP(A13,'CP-SEINFRA'!A:A,'CP-SEINFRA'!B:B,_xlfn.XLOOKUP(A13,'IS-SEINFRA'!A:A,'IS-SEINFRA'!B:B)))) -> SERVENTE COM ENCARGOS COMPLEMENTARES | D13: =_xlfn.XLOOKUP(A13,CCD!B:B,CCD!D:D,_xlfn.XLOOKUP(A13,ICD!B:B,ICD!C:C,_xlfn.XLOOKUP(A13,'CP-SEINFRA'!A:A,'CP-SEINFRA'!C:C,_xlfn.XLOOKUP(A13,'IS-SEINFRA'!A:A,'IS-SEINFRA'!C:C)))) -> H | E13: 2.75 | F13: =_xlfn.XLOOKUP(A13,CCD!B:B,CCD!O:O,_xlfn.XLOOKUP(A13,ICD!B:B,ICD!K:K,_xlfn.XLOOKUP(A13,'CP-SEINFRA'!A:A,'CP-SEINFRA'!D:D,_xlfn.XLOOKUP(A13,'IS-SEINFRA'!A:A,'IS-SEINFRA'!D:D)))) -> 21.93 | G13: 60.3075
A14: I0824 | B14: SEINFRA | C14: =_xlfn.XLOOKUP(A14,CCD!B:B,CCD!C:C,_xlfn.XLOOKUP(A14,ICD!B:B,ICD!C:C,_xlfn.XLOOKUP(A14,'CP-SEINFRA'!A:A,'CP-SEINFRA'!B:B,_xlfn.XLOOKUP(A14,'IS-SEINFRA'!A:A,'IS-SEINFRA'!B:B)))) -> COMPONENTES ESTRUTURAIS DE ACO | D14: =_xlfn.XLOOKUP(A14,CCD!B:B,CCD!D:D,_xlfn.XLOOKUP(A14,ICD!B:B,ICD!C:C,_xlfn.XLOOKUP(A14,'CP-SEINFRA'!A:A,'CP-SEINFRA'!C:C,_xlfn.XLOOKUP(A14,'IS-SEINFRA'!A:A,'IS-SEINFRA'!C:C)))) -> KG | E14: 14.8 | F14: =_xlfn.XLOOKUP(A14,CCD!B:B,CCD!O:O,_xlfn.XLOOKUP(A14,ICD!B:B,ICD!K:K,_xlfn.XLOOKUP(A14,'CP-SEINFRA'!A:A,'CP-SEINFRA'!D:D,_xlfn.XLOOKUP(A14,'IS-SEINFRA'!A:A,'IS-SEINFRA'!D:D)))) -> 9.43 | G14: =ROUND(E14*F14,4) -> 139.564
F15: Valor Geral | G15: =TRUNC(SUM(G12:G14),2) -> 269.61
A17: C2479 | C17: TOLDO COM ESTRUTURA METÁLICA | D17: M2 | G17: =G26 -> 268.5
A18: 88317 | B18: SINAPI | C18: =_xlfn.XLOOKUP(A18,CCD!B:B,CCD!C:C,_xlfn.XLOOKUP(A18,ICD!B:B,ICD!C:C,_xlfn.XLOOKUP(A18,'CP-SEINFRA'!A:A,'CP-SEINFRA'!B:B,_xlfn.XLOOKUP(A18,'IS-SEINFRA'!A:A,'IS-SEINFRA'!B:B)))) -> SOLDADOR COM ENCARGOS COMPLEMENTARES | D18: =_xlfn.XLOOKUP(A18,CCD!B:B,CCD!D:D,_xlfn.XLOOKUP(A18,ICD!B:B,ICD!C:C,_xlfn.XLOOKUP(A18,'CP-SEINFRA'!A:A,'CP-SEINFRA'!C:C,_xlfn.XLOOKUP(A18,'IS-SEINFRA'!A:A,'IS-SEINFRA'!C:C)))) -> H | E18: 0.8 | F18: =_xlfn.XLOOKUP(A18,CCD!B:B,CCD!O:O,_xlfn.XLOOKUP(A18,ICD!B:B,ICD!K:K,_xlfn.XLOOKUP(A18,'CP-SEINFRA'!A:A,'CP-SEINFRA'!D:D,_xlfn.XLOOKUP(A18,'IS-SEINFRA'!A:A,'IS-SEINFRA'!D:D)))) -> 28.95 | G18: =ROUND(E18*F18,4) -> 23.16
A19: 88309 | B19: SINAPI | C19: =_xlfn.XLOOKUP(A19,CCD!B:B,CCD!C:C,_xlfn.XLOOKUP(A19,ICD!B:B,ICD!C:C,_xlfn.XLOOKUP(A19,'CP-SEINFRA'!A:A,'CP-SEINFRA'!B:B,_xlfn.XLOOKUP(A19,'IS-SEINFRA'!A:A,'IS-SEINFRA'!B:B)))) -> PEDREIRO COM ENCARGOS COMPLEMENTARES | D19: =_xlfn.XLOOKUP(A19,CCD!B:B,CCD!D:D,_xlfn.XLOOKUP(A19,ICD!B:B,ICD!C:C,_xlfn.XLOOKUP(A19,'CP-SEINFRA'!A:A,'CP-SEINFRA'!C:C,_xlfn.XLOOKUP(A19,'IS-SEINFRA'!A:A,'IS-SEINFRA'!C:C)))) -> H | E19: 0.16 | F19: =_xlfn.XLOOKUP(A19,CCD!B:B,CCD!O:O,_xlfn.XLOOKUP(A19,ICD!B:B,ICD!K:K,_xlfn.XLOOKUP(A19,'CP-SEINFRA'!A:A,'CP-SEINFRA'!D:D,_xlfn.XLOOKUP(A19,'IS-SEINFRA'!A:A,'IS-SEINFRA'!D:D)))) -> 28.2 | G19: 4.512
A20: 88316 | B20: SINAPI | C20: =_xlfn.XLOOKUP(A20,CCD!B:B,CCD!C:C,_xlfn.XLOOKUP(A20,ICD!B:B,ICD!C:C,_xlfn.XLOOKUP(A20,'CP-SEINFRA'!A:A,'CP-SEINFRA'!B:B,_xlfn.XLOOKUP(A20,'IS-SEINFRA'!A:A,'IS-SEINFRA'!B:B)))) -> SERVENTE COM ENCARGOS COMPLEMENTARES | D20: =_xlfn.XLOOKUP(A20,CCD!B:B,CCD!D:D,_xlfn.XLOOKUP(A20,ICD!B:B,ICD!C:C,_xlfn.XLOOKUP(A20,'CP-SEINFRA'!A:A,'CP-SEINFRA'!C:C,_xlfn.XLOOKUP(A20,'IS-SEINFRA'!A:A,'IS-SEINFRA'!C:C)))) -> H | E20: 0.135 | F20: =_xlfn.XLOOKUP(A20,CCD!B:B,CCD!O:O,_xlfn.XLOOKUP(A20,ICD!B:B,ICD!K:K,_xlfn.XLOOKUP(A20,'CP-SEINFRA'!A:A,'CP-SEINFRA'!D:D,_xlfn.XLOOKUP(A20,'IS-SEINFRA'!A:A,'IS-SEINFRA'!D:D)))) -> 21.93 | G20: 2.9606
A21: I0109 | B21: SEINFRA | C21: =_xlfn.XLOOKUP(A21,CCD!B:B,CCD!C:C,_xlfn.XLOOKUP(A21,ICD!B:B,ICD!C:C,_xlfn.XLOOKUP(A21,'CP-SEINFRA'!A:A,'CP-SEINFRA'!B:B,_xlfn.XLOOKUP(A21,'IS-SEINFRA'!A:A,'IS-SEINFRA'!B:B)))) -> AREIA MEDIA | D21: =_xlfn.XLOOKUP(A21,CCD!B:B,CCD!D:D,_xlfn.XLOOKUP(A21,ICD!B:B,ICD!C:C,_xlfn.XLOOKUP(A21,'CP-SEINFRA'!A:A,'CP-SEINFRA'!C:C,_xlfn.XLOOKUP(A21,'IS-SEINFRA'!A:A,'IS-SEINFRA'!C:C)))) -> M3 | E21: 0.0003 | F21: =_xlfn.XLOOKUP(A21,CCD!B:B,CCD!O:O,_xlfn.XLOOKUP(A21,ICD!B:B,ICD!K:K,_xlfn.XLOOKUP(A21,'CP-SEINFRA'!A:A,'CP-SEINFRA'!D:D,_xlfn.XLOOKUP(A21,'IS-SEINFRA'!A:A,'IS-SEINFRA'!D:D)))) -> 83.58 | G21: =ROUND(E21*F21,4) -> 0.0251
A22: I0805 | B22: SEINFRA | C22: =_xlfn.XLOOKUP(A22,CCD!B:B,CCD!C:C,_xlfn.XLOOKUP(A22,ICD!B:B,ICD!C:C,_xlfn.XLOOKUP(A22,'CP-SEINFRA'!A:A,'CP-SEINFRA'!B:B,_xlfn.XLOOKUP(A22,'IS-SEINFRA'!A:A,'IS-SEINFRA'!B:B)))) -> CIMENTO PORTLAND | D22: =_xlfn.XLOOKUP(A22,CCD!B:B,CCD!D:D,_xlfn.XLOOKUP(A22,ICD!B:B,ICD!C:C,_xlfn.XLOOKUP(A22,'CP-SEINFRA'!A:A,'CP-SEINFRA'!C:C,_xlfn.XLOOKUP(A22,'IS-SEINFRA'!A:A,'IS-SEINFRA'!C:C)))) -> KG | E22: 0.3 | F22: =_xlfn.XLOOKUP(A22,CCD!B:B,CCD!O:O,_xlfn.XLOOKUP(A22,ICD!B:B,ICD!K:K,_xlfn.XLOOKUP(A22,'CP-SEINFRA'!A:A,'CP-SEINFRA'!D:D,_xlfn.XLOOKUP(A22,'IS-SEINFRA'!A:A,'IS-SEINFRA'!D:D)))) -> 0.71 | G22: 0.213
A23: I1872 | B23: SEINFRA | C23: =_xlfn.XLOOKUP(A23,CCD!B:B,CCD!C:C,_xlfn.XLOOKUP(A23,ICD!B:B,ICD!C:C,_xlfn.XLOOKUP(A23,'CP-SEINFRA'!A:A,'CP-SEINFRA'!B:B,_xlfn.XLOOKUP(A23,'IS-SEINFRA'!A:A,'IS-SEINFRA'!B:B)))) -> SOLDA 50X50 | D23: =_xlfn.XLOOKUP(A23,CCD!B:B,CCD!D:D,_xlfn.XLOOKUP(A23,ICD!B:B,ICD!C:C,_xlfn.XLOOKUP(A23,'CP-SEINFRA'!A:A,'CP-SEINFRA'!C:C,_xlfn.XLOOKUP(A23,'IS-SEINFRA'!A:A,'IS-SEINFRA'!C:C)))) -> KG | E23: 0.5 | F23: =_xlfn.XLOOKUP(A23,CCD!B:B,CCD!O:O,_xlfn.XLOOKUP(A23,ICD!B:B,ICD!K:K,_xlfn.XLOOKUP(A23,'CP-SEINFRA'!A:A,'CP-SEINFRA'!D:D,_xlfn.XLOOKUP(A23,'IS-SEINFRA'!A:A,'IS-SEINFRA'!D:D)))) -> 147.13 | G23: 73.565
A24: I2105 | B24: SEINFRA | C24: =_xlfn.XLOOKUP(A24,CCD!B:B,CCD!C:C,_xlfn.XLOOKUP(A24,ICD!B:B,ICD!C:C,_xlfn.XLOOKUP(A24,'CP-SEINFRA'!A:A,'CP-SEINFRA'!B:B,_xlfn.XLOOKUP(A24,'IS-SEINFRA'!A:A,'IS-SEINFRA'!B:B)))) -> TOLDO PLÁSTICO | D24: =_xlfn.XLOOKUP(A24,CCD!B:B,CCD!D:D,_xlfn.XLOOKUP(A24,ICD!B:B,ICD!C:C,_xlfn.XLOOKUP(A24,'CP-SEINFRA'!A:A,'CP-SEINFRA'!C:C,_xlfn.XLOOKUP(A24,'IS-SEINFRA'!A:A,'IS-SEINFRA'!C:C)))) -> M2 | E24: 1.1 | F24: =_xlfn.XLOOKUP(A24,CCD!B:B,CCD!O:O,_xlfn.XLOOKUP(A24,ICD!B:B,ICD!K:K,_xlfn.XLOOKUP(A24,'CP-SEINFRA'!A:A,'CP-SEINFRA'!D:D,_xlfn.XLOOKUP(A24,'IS-SEINFRA'!A:A,'IS-SEINFRA'!D:D)))) -> 90 | G24: 99
A25: I2167 | B25: SEINFRA | C25: =_xlfn.XLOOKUP(A25,CCD!B:B,CCD!C:C,_xlfn.XLOOKUP(A25,ICD!B:B,ICD!C:C,_xlfn.XLOOKUP(A25,'CP-SEINFRA'!A:A,'CP-SEINFRA'!B:B,_xlfn.XLOOKUP(A25,'IS-SEINFRA'!A:A,'IS-SEINFRA'!B:B)))) -> TUBO AÇO GALVANIZADO DE 20MM (3/4') | D25: =_xlfn.XLOOKUP(A25,CCD!B:B,CCD!D:D,_xlfn.XLOOKUP(A25,ICD!B:B,ICD!C:C,_xlfn.XLOOKUP(A25,'CP-SEINFRA'!A:A,'CP-SEINFRA'!C:C,_xlfn.XLOOKUP(A25,'IS-SEINFRA'!A:A,'IS-SEINFRA'!C:C)))) -> M | E25: 2.8 | F25: =_xlfn.XLOOKUP(A25,CCD!B:B,CCD!O:O,_xlfn.XLOOKUP(A25,ICD!B:B,ICD!K:K,_xlfn.XLOOKUP(A25,'CP-SEINFRA'!A:A,'CP-SEINFRA'!D:D,_xlfn.XLOOKUP(A25,'IS-SEINFRA'!A:A,'IS-SEINFRA'!D:D)))) -> 23.24 | G25: 65.072
F26: Valor Geral | G26: =TRUNC(SUM(G18:G25),2) -> 268.5
A28: C2040 | C28: PINTURA C/ PRIMER EPOXI EM ESTRUTURA DE AÇO CARBONO 25 MICRA C/REVÓLVER | D28: M2 | G28: =G34 -> 12.38
A29: 88316 | B29: SINAPI | C29: =_xlfn.XLOOKUP(A29,CCD!B:B,CCD!C:C,_xlfn.XLOOKUP(A29,ICD!B:B,ICD!C:C,_xlfn.XLOOKUP(A29,'CP-SEINFRA'!A:A,'CP-SEINFRA'!B:B,_xlfn.XLOOKUP(A29,'IS-SEINFRA'!A:A,'IS-SEINFRA'!B:B)))) -> SERVENTE COM ENCARGOS COMPLEMENTARES | D29: =_xlfn.XLOOKUP(A29,CCD!B:B,CCD!D:D,_xlfn.XLOOKUP(A29,ICD!B:B,ICD!C:C,_xlfn.XLOOKUP(A29,'CP-SEINFRA'!A:A,'CP-SEINFRA'!C:C,_xlfn.XLOOKUP(A29,'IS-SEINFRA'!A:A,'IS-SEINFRA'!C:C)))) -> H | E29: 0.04 | F29: =_xlfn.XLOOKUP(A29,CCD!B:B,CCD!O:O,_xlfn.XLOOKUP(A29,ICD!B:B,ICD!K:K,_xlfn.XLOOKUP(A29,'CP-SEINFRA'!A:A,'CP-SEINFRA'!D:D,_xlfn.XLOOKUP(A29,'IS-SEINFRA'!A:A,'IS-SEINFRA'!D:D)))) -> 21.93 | G29: =ROUND(E29*F29,4) -> 0.8772
A30: 88310 | B30: SINAPI | C30: =_xlfn.XLOOKUP(A30,CCD!B:B,CCD!C:C,_xlfn.XLOOKUP(A30,ICD!B:B,ICD!C:C,_xlfn.XLOOKUP(A30,'CP-SEINFRA'!A:A,'CP-SEINFRA'!B:B,_xlfn.XLOOKUP(A30,'IS-SEINFRA'!A:A,'IS-SEINFRA'!B:B)))) -> PINTOR COM ENCARGOS COMPLEMENTARES | D30: =_xlfn.XLOOKUP(A30,CCD!B:B,CCD!D:D,_xlfn.XLOOKUP(A30,ICD!B:B,ICD!C:C,_xlfn.XLOOKUP(A30,'CP-SEINFRA'!A:A,'CP-SEINFRA'!C:C,_xlfn.XLOOKUP(A30,'IS-SEINFRA'!A:A,'IS-SEINFRA'!C:C)))) -> H | E30: 0.08 | F30: =_xlfn.XLOOKUP(A30,CCD!B:B,CCD!O:O,_xlfn.XLOOKUP(A30,ICD!B:B,ICD!K:K,_xlfn.XLOOKUP(A30,'CP-SEINFRA'!A:A,'CP-SEINFRA'!D:D,_xlfn.XLOOKUP(A30,'IS-SEINFRA'!A:A,'IS-SEINFRA'!D:D)))) -> 29.88 | G30: 2.3904
A31: I1346 | B31: SEINFRA | C31: =_xlfn.XLOOKUP(A31,CCD!B:B,CCD!C:C,_xlfn.XLOOKUP(A31,ICD!B:B,ICD!C:C,_xlfn.XLOOKUP(A31,'CP-SEINFRA'!A:A,'CP-SEINFRA'!B:B,_xlfn.XLOOKUP(A31,'IS-SEINFRA'!A:A,'IS-SEINFRA'!B:B)))) -> LIXA PARA FERRO | D31: =_xlfn.XLOOKUP(A31,CCD!B:B,CCD!D:D,_xlfn.XLOOKUP(A31,ICD!B:B,ICD!C:C,_xlfn.XLOOKUP(A31,'CP-SEINFRA'!A:A,'CP-SEINFRA'!C:C,_xlfn.XLOOKUP(A31,'IS-SEINFRA'!A:A,'IS-SEINFRA'!C:C)))) -> UN | E31: 0.275 | F31: =_xlfn.XLOOKUP(A31,CCD!B:B,CCD!O:O,_xlfn.XLOOKUP(A31,ICD!B:B,ICD!K:K,_xlfn.XLOOKUP(A31,'CP-SEINFRA'!A:A,'CP-SEINFRA'!D:D,_xlfn.XLOOKUP(A31,'IS-SEINFRA'!A:A,'IS-SEINFRA'!D:D)))) -> 2.14 | G31: =ROUND(E31*F31,4) -> 0.5885
A32: I1735 | B32: SEINFRA | C32: =_xlfn.XLOOKUP(A32,CCD!B:B,CCD!C:C,_xlfn.XLOOKUP(A32,ICD!B:B,ICD!C:C,_xlfn.XLOOKUP(A32,'CP-SEINFRA'!A:A,'CP-SEINFRA'!B:B,_xlfn.XLOOKUP(A32,'IS-SEINFRA'!A:A,'IS-SEINFRA'!B:B)))) -> PRIMER A BASE DE EPOXI | D32: =_xlfn.XLOOKUP(A32,CCD!B:B,CCD!D:D,_xlfn.XLOOKUP(A32,ICD!B:B,ICD!C:C,_xlfn.XLOOKUP(A32,'CP-SEINFRA'!A:A,'CP-SEINFRA'!C:C,_xlfn.XLOOKUP(A32,'IS-SEINFRA'!A:A,'IS-SEINFRA'!C:C)))) -> L | E32: 0.132 | F32: =_xlfn.XLOOKUP(A32,CCD!B:B,CCD!O:O,_xlfn.XLOOKUP(A32,ICD!B:B,ICD!K:K,_xlfn.XLOOKUP(A32,'CP-SEINFRA'!A:A,'CP-SEINFRA'!D:D,_xlfn.XLOOKUP(A32,'IS-SEINFRA'!A:A,'IS-SEINFRA'!D:D)))) -> 53.03 | G32: 7
A33: I1890 | B33: SEINFRA | C33: =_xlfn.XLOOKUP(A33,CCD!B:B,CCD!C:C,_xlfn.XLOOKUP(A33,ICD!B:B,ICD!C:C,_xlfn.XLOOKUP(A33,'CP-SEINFRA'!A:A,'CP-SEINFRA'!B:B,_xlfn.XLOOKUP(A33,'IS-SEINFRA'!A:A,'IS-SEINFRA'!B:B)))) -> SOLVENTE P/TINTA EPOXI E BORRACHA CLORADA | D33: =_xlfn.XLOOKUP(A33,CCD!B:B,CCD!D:D,_xlfn.XLOOKUP(A33,ICD!B:B,ICD!C:C,_xlfn.XLOOKUP(A33,'CP-SEINFRA'!A:A,'CP-SEINFRA'!C:C,_xlfn.XLOOKUP(A33,'IS-SEINFRA'!A:A,'IS-SEINFRA'!C:C)))) -> L | E33: 0.033 | F33: =_xlfn.XLOOKUP(A33,CCD!B:B,CCD!O:O,_xlfn.XLOOKUP(A33,ICD!B:B,ICD!K:K,_xlfn.XLOOKUP(A33,'CP-SEINFRA'!A:A,'CP-SEINFRA'!D:D,_xlfn.XLOOKUP(A33,'IS-SEINFRA'!A:A,'IS-SEINFRA'!D:D)))) -> 46.25 | G33: 1.5263
F34: Valor Geral | G34: =TRUNC(SUM(G29:G33),2) -> 12.38
A36: C2473 | C36: PINTURA C/ TINTA EPOXI EM ESTRUTURA DE AÇO CARBONO 50 MICRA C/REVÓLVER | D36: M2 | G36: =G42 -> 21.32
A37: 88316 | B37: SINAPI | C37: =_xlfn.XLOOKUP(A37,CCD!B:B,CCD!C:C,_xlfn.XLOOKUP(A37,ICD!B:B,ICD!C:C,_xlfn.XLOOKUP(A37,'CP-SEINFRA'!A:A,'CP-SEINFRA'!B:B,_xlfn.XLOOKUP(A37,'IS-SEINFRA'!A:A,'IS-SEINFRA'!B:B)))) -> SERVENTE COM ENCARGOS COMPLEMENTARES | D37: =_xlfn.XLOOKUP(A37,CCD!B:B,CCD!D:D,_xlfn.XLOOKUP(A37,ICD!B:B,ICD!C:C,_xlfn.XLOOKUP(A37,'CP-SEINFRA'!A:A,'CP-SEINFRA'!C:C,_xlfn.XLOOKUP(A37,'IS-SEINFRA'!A:A,'IS-SEINFRA'!C:C)))) -> H | E37: 0.07 | F37: =_xlfn.XLOOKUP(A37,CCD!B:B,CCD!O:O,_xlfn.XLOOKUP(A37,ICD!B:B,ICD!K:K,_xlfn.XLOOKUP(A37,'CP-SEINFRA'!A:A,'CP-SEINFRA'!D:D,_xlfn.XLOOKUP(A37,'IS-SEINFRA'!A:A,'IS-SEINFRA'!D:D)))) -> 21.93 | G37: =ROUND(E37*F37,4) -> 1.5351
A38: 88310 | B38: SINAPI | C38: =_xlfn.XLOOKUP(A38,CCD!B:B,CCD!C:C,_xlfn.XLOOKUP(A38,ICD!B:B,ICD!C:C,_xlfn.XLOOKUP(A38,'CP-SEINFRA'!A:A,'CP-SEINFRA'!B:B,_xlfn.XLOOKUP(A38,'IS-SEINFRA'!A:A,'IS-SEINFRA'!B:B)))) -> PINTOR COM ENCARGOS COMPLEMENTARES | D38: =_xlfn.XLOOKUP(A38,CCD!B:B,CCD!D:D,_xlfn.XLOOKUP(A38,ICD!B:B,ICD!C:C,_xlfn.XLOOKUP(A38,'CP-SEINFRA'!A:A,'CP-SEINFRA'!C:C,_xlfn.XLOOKUP(A38,'IS-SEINFRA'!A:A,'IS-SEINFRA'!C:C)))) -> H | E38: 0.13 | F38: =_xlfn.XLOOKUP(A38,CCD!B:B,CCD!O:O,_xlfn.XLOOKUP(A38,ICD!B:B,ICD!K:K,_xlfn.XLOOKUP(A38,'CP-SEINFRA'!A:A,'CP-SEINFRA'!D:D,_xlfn.XLOOKUP(A38,'IS-SEINFRA'!A:A,'IS-SEINFRA'!D:D)))) -> 29.88 | G38: 3.8844
A39: I1346 | B39: SEINFRA | C39: =_xlfn.XLOOKUP(A39,CCD!B:B,CCD!C:C,_xlfn.XLOOKUP(A39,ICD!B:B,ICD!C:C,_xlfn.XLOOKUP(A39,'CP-SEINFRA'!A:A,'CP-SEINFRA'!B:B,_xlfn.XLOOKUP(A39,'IS-SEINFRA'!A:A,'IS-SEINFRA'!B:B)))) -> LIXA PARA FERRO | D39: =_xlfn.XLOOKUP(A39,CCD!B:B,CCD!D:D,_xlfn.XLOOKUP(A39,ICD!B:B,ICD!C:C,_xlfn.XLOOKUP(A39,'CP-SEINFRA'!A:A,'CP-SEINFRA'!C:C,_xlfn.XLOOKUP(A39,'IS-SEINFRA'!A:A,'IS-SEINFRA'!C:C)))) -> UN | E39: 0.275 | F39: =_xlfn.XLOOKUP(A39,CCD!B:B,CCD!O:O,_xlfn.XLOOKUP(A39,ICD!B:B,ICD!K:K,_xlfn.XLOOKUP(A39,'CP-SEINFRA'!A:A,'CP-SEINFRA'!D:D,_xlfn.XLOOKUP(A39,'IS-SEINFRA'!A:A,'IS-SEINFRA'!D:D)))) -> 2.14 | G39: =ROUND(E39*F39,4) -> 0.5885
A40: I1890 | B40: SEINFRA | C40: =_xlfn.XLOOKUP(A40,CCD!B:B,CCD!C:C,_xlfn.XLOOKUP(A40,ICD!B:B,ICD!C:C,_xlfn.XLOOKUP(A40,'CP-SEINFRA'!A:A,'CP-SEINFRA'!B:B,_xlfn.XLOOKUP(A40,'IS-SEINFRA'!A:A,'IS-SEINFRA'!B:B)))) -> SOLVENTE P/TINTA EPOXI E BORRACHA CLORADA | D40: =_xlfn.XLOOKUP(A40,CCD!B:B,CCD!D:D,_xlfn.XLOOKUP(A40,ICD!B:B,ICD!C:C,_xlfn.XLOOKUP(A40,'CP-SEINFRA'!A:A,'CP-SEINFRA'!C:C,_xlfn.XLOOKUP(A40,'IS-SEINFRA'!A:A,'IS-SEINFRA'!C:C)))) -> L | E40: 0.044 | F40: =_xlfn.XLOOKUP(A40,CCD!B:B,CCD!O:O,_xlfn.XLOOKUP(A40,ICD!B:B,ICD!K:K,_xlfn.XLOOKUP(A40,'CP-SEINFRA'!A:A,'CP-SEINFRA'!D:D,_xlfn.XLOOKUP(A40,'IS-SEINFRA'!A:A,'IS-SEINFRA'!D:D)))) -> 46.25 | G40: 2.035
A41: I2093 | B41: SEINFRA | C41: =_xlfn.XLOOKUP(A41,CCD!B:B,CCD!C:C,_xlfn.XLOOKUP(A41,ICD!B:B,ICD!C:C,_xlfn.XLOOKUP(A41,'CP-SEINFRA'!A:A,'CP-SEINFRA'!B:B,_xlfn.XLOOKUP(A41,'IS-SEINFRA'!A:A,'IS-SEINFRA'!B:B)))) -> TINTA EPOXI PARA ACABAMENTO | D41: =_xlfn.XLOOKUP(A41,CCD!B:B,CCD!D:D,_xlfn.XLOOKUP(A41,ICD!B:B,ICD!C:C,_xlfn.XLOOKUP(A41,'CP-SEINFRA'!A:A,'CP-SEINFRA'!C:C,_xlfn.XLOOKUP(A41,'IS-SEINFRA'!A:A,'IS-SEINFRA'!C:C)))) -> L | E41: 0.209 | F41: =_xlfn.XLOOKUP(A41,CCD!B:B,CCD!O:O,_xlfn.XLOOKUP(A41,ICD!B:B,ICD!K:K,_xlfn.XLOOKUP(A41,'CP-SEINFRA'!A:A,'CP-SEINFRA'!D:D,_xlfn.XLOOKUP(A41,'IS-SEINFRA'!A:A,'IS-SEINFRA'!D:D)))) -> 63.53 | G41: 13.2778
F42: Valor Geral | G42: =TRUNC(SUM(G37:G41),2) -> 21.32
A44: C4514 | C44: PORTA EM ALUMÍNIO ANODIZADO NATURAL/FOSCO, DE CORRER, SEM BANDEIROLA E/OU PEITORIL, SEM VIDRO - FORNECIMENTO E MONTAGEM | D44: M2 | G44: =G46 -> 404.39
A45: I8338 | B45: SEINFRA | C45: =_xlfn.XLOOKUP(A45,CCD!B:B,CCD!C:C,_xlfn.XLOOKUP(A45,ICD!B:B,ICD!C:C,_xlfn.XLOOKUP(A45,'CP-SEINFRA'!A:A,'CP-SEINFRA'!B:B,_xlfn.XLOOKUP(A45,'IS-SEINFRA'!A:A,'IS-SEINFRA'!B:B)))) -> PORTA EM ALUMÍNIO ANODIZADO NATURAL/FOSCO, DE CORRER, SEM BANDEIROLA E/OU PEITORIL, SEM VIDRO | D45: =_xlfn.XLOOKUP(A45,CCD!B:B,CCD!D:D,_xlfn.XLOOKUP(A45,ICD!B:B,ICD!C:C,_xlfn.XLOOKUP(A45,'CP-SEINFRA'!A:A,'CP-SEINFRA'!C:C,_xlfn.XLOOKUP(A45,'IS-SEINFRA'!A:A,'IS-SEINFRA'!C:C)))) -> M2 | E45: 1 | F45: =_xlfn.XLOOKUP(A45,CCD!B:B,CCD!O:O,_xlfn.XLOOKUP(A45,ICD!B:B,ICD!K:K,_xlfn.XLOOKUP(A45,'CP-SEINFRA'!A:A,'CP-SEINFRA'!D:D,_xlfn.XLOOKUP(A45,'IS-SEINFRA'!A:A,'IS-SEINFRA'!D:D)))) -> 404.39 | G45: =ROUND(E45*F45,4) -> 404.39
F46: Valor Geral | G46: =TRUNC(SUM(G45),2) -> 404.39
A48: C3737 | C48: PORTA FRIGORÍFICA TERMO-ISOLANTE DE ACIONAMENTO MANUAL C/AQUECIMENTO. 2100X1000X150MM -( FORNECIMENTO | D48: UN | G48: =G53 -> 3352.31
A49: I0109 | B49: SEINFRA | C49: =_xlfn.XLOOKUP(A49,CCD!B:B,CCD!C:C,_xlfn.XLOOKUP(A49,ICD!B:B,ICD!C:C,_xlfn.XLOOKUP(A49,'CP-SEINFRA'!A:A,'CP-SEINFRA'!B:B,_xlfn.XLOOKUP(A49,'IS-SEINFRA'!A:A,'IS-SEINFRA'!B:B)))) -> AREIA MEDIA | D49: =_xlfn.XLOOKUP(A49,CCD!B:B,CCD!D:D,_xlfn.XLOOKUP(A49,ICD!B:B,ICD!C:C,_xlfn.XLOOKUP(A49,'CP-SEINFRA'!A:A,'CP-SEINFRA'!C:C,_xlfn.XLOOKUP(A49,'IS-SEINFRA'!A:A,'IS-SEINFRA'!C:C)))) -> M3 | E49: 0.042 | F49: =_xlfn.XLOOKUP(A49,CCD!B:B,CCD!O:O,_xlfn.XLOOKUP(A49,ICD!B:B,ICD!K:K,_xlfn.XLOOKUP(A49,'CP-SEINFRA'!A:A,'CP-SEINFRA'!D:D,_xlfn.XLOOKUP(A49,'IS-SEINFRA'!A:A,'IS-SEINFRA'!D:D)))) -> 83.58 | G49: =ROUND(E49*F49,4) -> 3.5104
A50: I0280 | B50: SEINFRA | C50: =_xlfn.XLOOKUP(A50,CCD!B:B,CCD!C:C,_xlfn.XLOOKUP(A50,ICD!B:B,ICD!C:C,_xlfn.XLOOKUP(A50,'CP-SEINFRA'!A:A,'CP-SEINFRA'!B:B,_xlfn.XLOOKUP(A50,'IS-SEINFRA'!A:A,'IS-SEINFRA'!B:B)))) -> BRITA | D50: =_xlfn.XLOOKUP(A50,CCD!B:B,CCD!D:D,_xlfn.XLOOKUP(A50,ICD!B:B,ICD!C:C,_xlfn.XLOOKUP(A50,'CP-SEINFRA'!A:A,'CP-SEINFRA'!C:C,_xlfn.XLOOKUP(A50,'IS-SEINFRA'!A:A,'IS-SEINFRA'!C:C)))) -> M3 | E50: 0.0452 | F50: =_xlfn.XLOOKUP(A50,CCD!B:B,CCD!O:O,_xlfn.XLOOKUP(A50,ICD!B:B,ICD!K:K,_xlfn.XLOOKUP(A50,'CP-SEINFRA'!A:A,'CP-SEINFRA'!D:D,_xlfn.XLOOKUP(A50,'IS-SEINFRA'!A:A,'IS-SEINFRA'!D:D)))) -> 100.5 | G50: 4.5426
A51: I0805 | B51: SEINFRA | C51: =_xlfn.XLOOKUP(A51,CCD!B:B,CCD!C:C,_xlfn.XLOOKUP(A51,ICD!B:B,ICD!C:C,_xlfn.XLOOKUP(A51,'CP-SEINFRA'!A:A,'CP-SEINFRA'!B:B,_xlfn.XLOOKUP(A51,'IS-SEINFRA'!A:A,'IS-SEINFRA'!B:B)))) -> CIMENTO PORTLAND | D51: =_xlfn.XLOOKUP(A51,CCD!B:B,CCD!D:D,_xlfn.XLOOKUP(A51,ICD!B:B,ICD!C:C,_xlfn.XLOOKUP(A51,'CP-SEINFRA'!A:A,'CP-SEINFRA'!C:C,_xlfn.XLOOKUP(A51,'IS-SEINFRA'!A:A,'IS-SEINFRA'!C:C)))) -> KG | E51: 20.24 | F51: =_xlfn.XLOOKUP(A51,CCD!B:B,CCD!O:O,_xlfn.XLOOKUP(A51,ICD!B:B,ICD!K:K,_xlfn.XLOOKUP(A51,'CP-SEINFRA'!A:A,'CP-SEINFRA'!D:D,_xlfn.XLOOKUP(A51,'IS-SEINFRA'!A:A,'IS-SEINFRA'!D:D)))) -> 0.71 | G51: 14.3704
A52: I6811 | B52: SEINFRA | C52: =_xlfn.XLOOKUP(A52,CCD!B:B,CCD!C:C,_xlfn.XLOOKUP(A52,ICD!B:B,ICD!C:C,_xlfn.XLOOKUP(A52,'CP-SEINFRA'!A:A,'CP-SEINFRA'!B:B,_xlfn.XLOOKUP(A52,'IS-SEINFRA'!A:A,'IS-SEINFRA'!B:B)))) -> PORTA FRIGORIFICA TERMOISOLANTE DE ACIONAMENTO MANUAL C/AQUEC. DIM.:2100X1000X150MM - COLOCADA | D52: =_xlfn.XLOOKUP(A52,CCD!B:B,CCD!D:D,_xlfn.XLOOKUP(A52,ICD!B:B,ICD!C:C,_xlfn.XLOOKUP(A52,'CP-SEINFRA'!A:A,'CP-SEINFRA'!C:C,_xlfn.XLOOKUP(A52,'IS-SEINFRA'!A:A,'IS-SEINFRA'!C:C)))) -> UN | E52: 1 | F52: =_xlfn.XLOOKUP(A52,CCD!B:B,CCD!O:O,_xlfn.XLOOKUP(A52,ICD!B:B,ICD!K:K,_xlfn.XLOOKUP(A52,'CP-SEINFRA'!A:A,'CP-SEINFRA'!D:D,_xlfn.XLOOKUP(A52,'IS-SEINFRA'!A:A,'IS-SEINFRA'!D:D)))) -> 3329.89 | G52: 3329.89
F53: Valor Geral | G53: =TRUNC(SUM(G49:G52),2) -> 3352.31
A55: C1160 | C55: DUTO PERFURADO - ELETROCALHA DE CHAPA DE AÇO (50X100)mm | D55: M | G55: =G59 -> 81.17
A56: 88247 | B56: SINAPI | C56: =_xlfn.XLOOKUP(A56,CCD!B:B,CCD!C:C,_xlfn.XLOOKUP(A56,ICD!B:B,ICD!C:C,_xlfn.XLOOKUP(A56,'CP-SEINFRA'!A:A,'CP-SEINFRA'!B:B,_xlfn.XLOOKUP(A56,'IS-SEINFRA'!A:A,'IS-SEINFRA'!B:B)))) -> AUXILIAR DE ELETRICISTA COM ENCARGOS COMPLEMENTARES | D56: =_xlfn.XLOOKUP(A56,CCD!B:B,CCD!D:D,_xlfn.XLOOKUP(A56,ICD!B:B,ICD!C:C,_xlfn.XLOOKUP(A56,'CP-SEINFRA'!A:A,'CP-SEINFRA'!C:C,_xlfn.XLOOKUP(A56,'IS-SEINFRA'!A:A,'IS-SEINFRA'!C:C)))) -> H | E56: 1.2 | F56: =_xlfn.XLOOKUP(A56,CCD!B:B,CCD!O:O,_xlfn.XLOOKUP(A56,ICD!B:B,ICD!K:K,_xlfn.XLOOKUP(A56,'CP-SEINFRA'!A:A,'CP-SEINFRA'!D:D,_xlfn.XLOOKUP(A56,'IS-SEINFRA'!A:A,'IS-SEINFRA'!D:D)))) -> 23.42 | G56: =ROUND(E56*F56,4) -> 28.104
A57: 88264 | B57: SINAPI | C57: =_xlfn.XLOOKUP(A57,CCD!B:B,CCD!C:C,_xlfn.XLOOKUP(A57,ICD!B:B,ICD!C:C,_xlfn.XLOOKUP(A57,'CP-SEINFRA'!A:A,'CP-SEINFRA'!B:B,_xlfn.XLOOKUP(A57,'IS-SEINFRA'!A:A,'IS-SEINFRA'!B:B)))) -> ELETRICISTA COM ENCARGOS COMPLEMENTARES | D57: =_xlfn.XLOOKUP(A57,CCD!B:B,CCD!D:D,_xlfn.XLOOKUP(A57,ICD!B:B,ICD!C:C,_xlfn.XLOOKUP(A57,'CP-SEINFRA'!A:A,'CP-SEINFRA'!C:C,_xlfn.XLOOKUP(A57,'IS-SEINFRA'!A:A,'IS-SEINFRA'!C:C)))) -> H | E57: 1.2 | F57: =_xlfn.XLOOKUP(A57,CCD!B:B,CCD!O:O,_xlfn.XLOOKUP(A57,ICD!B:B,ICD!K:K,_xlfn.XLOOKUP(A57,'CP-SEINFRA'!A:A,'CP-SEINFRA'!D:D,_xlfn.XLOOKUP(A57,'IS-SEINFRA'!A:A,'IS-SEINFRA'!D:D)))) -> 28.54 | G57: 34.248
A58: I1048 | B58: SEINFRA | C58: =_xlfn.XLOOKUP(A58,CCD!B:B,CCD!C:C,_xlfn.XLOOKUP(A58,ICD!B:B,ICD!C:C,_xlfn.XLOOKUP(A58,'CP-SEINFRA'!A:A,'CP-SEINFRA'!B:B,_xlfn.XLOOKUP(A58,'IS-SEINFRA'!A:A,'IS-SEINFRA'!B:B)))) -> DUTO PERFURADO-ELETROCALHA CHAPA DE AÇO (50X100)MM | D58: =_xlfn.XLOOKUP(A58,CCD!B:B,CCD!D:D,_xlfn.XLOOKUP(A58,ICD!B:B,ICD!C:C,_xlfn.XLOOKUP(A58,'CP-SEINFRA'!A:A,'CP-SEINFRA'!C:C,_xlfn.XLOOKUP(A58,'IS-SEINFRA'!A:A,'IS-SEINFRA'!C:C)))) -> M | E58: 1 | F58: =_xlfn.XLOOKUP(A58,CCD!B:B,CCD!O:O,_xlfn.XLOOKUP(A58,ICD!B:B,ICD!K:K,_xlfn.XLOOKUP(A58,'CP-SEINFRA'!A:A,'CP-SEINFRA'!D:D,_xlfn.XLOOKUP(A58,'IS-SEINFRA'!A:A,'IS-SEINFRA'!D:D)))) -> 18.82 | G58: =ROUND(E58*F58,4) -> 18.82
F59: Valor Geral | G59: =TRUNC(SUM(G56:G58),2) -> 81.17
A61: C2832 | C61: FOSSA SÉPTICA E SUMIDOURO EM ALVENARIA | D61: UN | G61: =G74 -> 4989.48
A62: 88316 | B62: SINAPI | C62: =_xlfn.XLOOKUP(A62,CCD!B:B,CCD!C:C,_xlfn.XLOOKUP(A62,ICD!B:B,ICD!C:C,_xlfn.XLOOKUP(A62,'CP-SEINFRA'!A:A,'CP-SEINFRA'!B:B,_xlfn.XLOOKUP(A62,'IS-SEINFRA'!A:A,'IS-SEINFRA'!B:B)))) -> SERVENTE COM ENCARGOS COMPLEMENTARES | D62: =_xlfn.XLOOKUP(A62,CCD!B:B,CCD!D:D,_xlfn.XLOOKUP(A62,ICD!B:B,ICD!C:C,_xlfn.XLOOKUP(A62,'CP-SEINFRA'!A:A,'CP-SEINFRA'!C:C,_xlfn.XLOOKUP(A62,'IS-SEINFRA'!A:A,'IS-SEINFRA'!C:C)))) -> H | E62: 2 | F62: =_xlfn.XLOOKUP(A62,CCD!B:B,CCD!O:O,_xlfn.XLOOKUP(A62,ICD!B:B,ICD!K:K,_xlfn.XLOOKUP(A62,'CP-SEINFRA'!A:A,'CP-SEINFRA'!D:D,_xlfn.XLOOKUP(A62,'IS-SEINFRA'!A:A,'IS-SEINFRA'!D:D)))) -> 21.93 | G62: =ROUND(E62*F62,4) -> 43.86
A63: I0280 | B63: SEINFRA | C63: =_xlfn.XLOOKUP(A63,CCD!B:B,CCD!C:C,_xlfn.XLOOKUP(A63,ICD!B:B,ICD!C:C,_xlfn.XLOOKUP(A63,'CP-SEINFRA'!A:A,'CP-SEINFRA'!B:B,_xlfn.XLOOKUP(A63,'IS-SEINFRA'!A:A,'IS-SEINFRA'!B:B)))) -> BRITA | D63: =_xlfn.XLOOKUP(A63,CCD!B:B,CCD!D:D,_xlfn.XLOOKUP(A63,ICD!B:B,ICD!C:C,_xlfn.XLOOKUP(A63,'CP-SEINFRA'!A:A,'CP-SEINFRA'!C:C,_xlfn.XLOOKUP(A63,'IS-SEINFRA'!A:A,'IS-SEINFRA'!C:C)))) -> M3 | E63: 1.492 | F63: =_xlfn.XLOOKUP(A63,CCD!B:B,CCD!O:O,_xlfn.XLOOKUP(A63,ICD!B:B,ICD!K:K,_xlfn.XLOOKUP(A63,'CP-SEINFRA'!A:A,'CP-SEINFRA'!D:D,_xlfn.XLOOKUP(A63,'IS-SEINFRA'!A:A,'IS-SEINFRA'!D:D)))) -> 100.5 | G63: =ROUND(E63*F63,4) -> 149.946
A64: I2298 | B64: SEINFRA | C64: =_xlfn.XLOOKUP(A64,CCD!B:B,CCD!C:C,_xlfn.XLOOKUP(A64,ICD!B:B,ICD!C:C,_xlfn.XLOOKUP(A64,'CP-SEINFRA'!A:A,'CP-SEINFRA'!B:B,_xlfn.XLOOKUP(A64,'IS-SEINFRA'!A:A,'IS-SEINFRA'!B:B)))) -> CURVA PVC ESGOTO LONGA DN 100MM | D64: =_xlfn.XLOOKUP(A64,CCD!B:B,CCD!D:D,_xlfn.XLOOKUP(A64,ICD!B:B,ICD!C:C,_xlfn.XLOOKUP(A64,'CP-SEINFRA'!A:A,'CP-SEINFRA'!C:C,_xlfn.XLOOKUP(A64,'IS-SEINFRA'!A:A,'IS-SEINFRA'!C:C)))) -> UN | E64: 3 | F64: =_xlfn.XLOOKUP(A64,CCD!B:B,CCD!O:O,_xlfn.XLOOKUP(A64,ICD!B:B,ICD!K:K,_xlfn.XLOOKUP(A64,'CP-SEINFRA'!A:A,'CP-SEINFRA'!D:D,_xlfn.XLOOKUP(A64,'IS-SEINFRA'!A:A,'IS-SEINFRA'!D:D)))) -> 58.44 | G64: 175.32
A65: I2456 | B65: SEINFRA | C65: =_xlfn.XLOOKUP(A65,CCD!B:B,CCD!C:C,_xlfn.XLOOKUP(A65,ICD!B:B,ICD!C:C,_xlfn.XLOOKUP(A65,'CP-SEINFRA'!A:A,'CP-SEINFRA'!B:B,_xlfn.XLOOKUP(A65,'IS-SEINFRA'!A:A,'IS-SEINFRA'!B:B)))) -> TUBO PVC ESGOTO PRIMÁRIO DE 100 - (NBR 5688) | D65: =_xlfn.XLOOKUP(A65,CCD!B:B,CCD!D:D,_xlfn.XLOOKUP(A65,ICD!B:B,ICD!C:C,_xlfn.XLOOKUP(A65,'CP-SEINFRA'!A:A,'CP-SEINFRA'!C:C,_xlfn.XLOOKUP(A65,'IS-SEINFRA'!A:A,'IS-SEINFRA'!C:C)))) -> M | E65: 2.5 | F65: =_xlfn.XLOOKUP(A65,CCD!B:B,CCD!O:O,_xlfn.XLOOKUP(A65,ICD!B:B,ICD!K:K,_xlfn.XLOOKUP(A65,'CP-SEINFRA'!A:A,'CP-SEINFRA'!D:D,_xlfn.XLOOKUP(A65,'IS-SEINFRA'!A:A,'IS-SEINFRA'!D:D)))) -> 15.82 | G65: 39.55
A66: C0073 | B66: SEINFRA | C66: =_xlfn.XLOOKUP(A66,CCD!B:B,CCD!C:C,_xlfn.XLOOKUP(A66,ICD!B:B,ICD!C:C,_xlfn.XLOOKUP(A66,'CP-SEINFRA'!A:A,'CP-SEINFRA'!B:B,_xlfn.XLOOKUP(A66,'IS-SEINFRA'!A:A,'IS-SEINFRA'!B:B)))) -> ALVENARIA DE TIJOLO CERÂMICO FURADO (9x19x19)cm C/ARGAMASSA MISTA DE CAL HIDRATADA ESP.=10cm (1:2:8) | D66: =_xlfn.XLOOKUP(A66,CCD!B:B,CCD!D:D,_xlfn.XLOOKUP(A66,ICD!B:B,ICD!C:C,_xlfn.XLOOKUP(A66,'CP-SEINFRA'!A:A,'CP-SEINFRA'!C:C,_xlfn.XLOOKUP(A66,'IS-SEINFRA'!A:A,'IS-SEINFRA'!C:C)))) -> M2 | E66: 10.05 | F66: =_xlfn.XLOOKUP(A66,CCD!B:B,CCD!O:O,_xlfn.XLOOKUP(A66,ICD!B:B,ICD!K:K,_xlfn.XLOOKUP(A66,'CP-SEINFRA'!A:A,'CP-SEINFRA'!D:D,_xlfn.XLOOKUP(A66,'IS-SEINFRA'!A:A,'IS-SEINFRA'!D:D)))) -> 62.98 | G66: =ROUND(E66*F66,4) -> 632.949
A67: C0074 | B67: SEINFRA | C67: =_xlfn.XLOOKUP(A67,CCD!B:B,CCD!C:C,_xlfn.XLOOKUP(A67,ICD!B:B,ICD!C:C,_xlfn.XLOOKUP(A67,'CP-SEINFRA'!A:A,'CP-SEINFRA'!B:B,_xlfn.XLOOKUP(A67,'IS-SEINFRA'!A:A,'IS-SEINFRA'!B:B)))) -> ALVENARIA DE TIJOLO CERÂMICO FURADO (9x19x19)cm C/ARGAMASSA MISTA DE CAL HIDRATADA ESP=20 cm | D67: =_xlfn.XLOOKUP(A67,CCD!B:B,CCD!D:D,_xlfn.XLOOKUP(A67,ICD!B:B,ICD!C:C,_xlfn.XLOOKUP(A67,'CP-SEINFRA'!A:A,'CP-SEINFRA'!C:C,_xlfn.XLOOKUP(A67,'IS-SEINFRA'!A:A,'IS-SEINFRA'!C:C)))) -> M2 | E67: 12.92 | F67: =_xlfn.XLOOKUP(A67,CCD!B:B,CCD!O:O,_xlfn.XLOOKUP(A67,ICD!B:B,ICD!K:K,_xlfn.XLOOKUP(A67,'CP-SEINFRA'!A:A,'CP-SEINFRA'!D:D,_xlfn.XLOOKUP(A67,'IS-SEINFRA'!A:A,'IS-SEINFRA'!D:D)))) -> 108.91 | G67: 1407.1172
A68: C0216 | B68: SEINFRA | C68: =_xlfn.XLOOKUP(A68,CCD!B:B,CCD!C:C,_xlfn.XLOOKUP(A68,ICD!B:B,ICD!C:C,_xlfn.XLOOKUP(A68,'CP-SEINFRA'!A:A,'CP-SEINFRA'!B:B,_xlfn.XLOOKUP(A68,'IS-SEINFRA'!A:A,'IS-SEINFRA'!B:B)))) -> ARMADURA CA-50A MÉDIA D= 6,3 A 10,0mm | D68: =_xlfn.XLOOKUP(A68,CCD!B:B,CCD!D:D,_xlfn.XLOOKUP(A68,ICD!B:B,ICD!C:C,_xlfn.XLOOKUP(A68,'CP-SEINFRA'!A:A,'CP-SEINFRA'!C:C,_xlfn.XLOOKUP(A68,'IS-SEINFRA'!A:A,'IS-SEINFRA'!C:C)))) -> KG | E68: 41.86 | F68: =_xlfn.XLOOKUP(A68,CCD!B:B,CCD!O:O,_xlfn.XLOOKUP(A68,ICD!B:B,ICD!K:K,_xlfn.XLOOKUP(A68,'CP-SEINFRA'!A:A,'CP-SEINFRA'!D:D,_xlfn.XLOOKUP(A68,'IS-SEINFRA'!A:A,'IS-SEINFRA'!D:D)))) -> 11.96 | G68: 500.6456
A69: 94969 | B69: SINAPI | C69: =_xlfn.XLOOKUP(A69,CCD!B:B,CCD!C:C,_xlfn.XLOOKUP(A69,ICD!B:B,ICD!C:C,_xlfn.XLOOKUP(A69,'CP-SEINFRA'!A:A,'CP-SEINFRA'!B:B,_xlfn.XLOOKUP(A69,'IS-SEINFRA'!A:A,'IS-SEINFRA'!B:B)))) -> CONCRETO FCK = 15MPA, TRAÇO 1:3,4:3,5 (EM MASSA SECA DE CIMENTO/ AREIA MÉDIA/ BRITA 1) - PREPARO MECÂNICO COM BETONEIRA 600 L. AF_05/2021 | D69: =_xlfn.XLOOKUP(A69,CCD!B:B,CCD!D:D,_xlfn.XLOOKUP(A69,ICD!B:B,ICD!C:C,_xlfn.XLOOKUP(A69,'CP-SEINFRA'!A:A,'CP-SEINFRA'!C:C,_xlfn.XLOOKUP(A69,'IS-SEINFRA'!A:A,'IS-SEINFRA'!C:C)))) -> M3 | E69: 0.29 | F69: =_xlfn.XLOOKUP(A69,CCD!B:B,CCD!O:O,_xlfn.XLOOKUP(A69,ICD!B:B,ICD!K:K,_xlfn.XLOOKUP(A69,'CP-SEINFRA'!A:A,'CP-SEINFRA'!D:D,_xlfn.XLOOKUP(A69,'IS-SEINFRA'!A:A,'IS-SEINFRA'!D:D)))) -> 449.37 | G69: 130.3173
A70: 94962 | B70: SINAPI | C70: =_xlfn.XLOOKUP(A70,CCD!B:B,CCD!C:C,_xlfn.XLOOKUP(A70,ICD!B:B,ICD!C:C,_xlfn.XLOOKUP(A70,'CP-SEINFRA'!A:A,'CP-SEINFRA'!B:B,_xlfn.XLOOKUP(A70,'IS-SEINFRA'!A:A,'IS-SEINFRA'!B:B)))) -> CONCRETO MAGRO PARA LASTRO, TRAÇO 1:4,5:4,5 (EM MASSA SECA DE CIMENTO/ AREIA MÉDIA/ BRITA 1) - PREPARO MECÂNICO COM BETONEIRA 400 L. AF_05/2021 | D70: =_xlfn.XLOOKUP(A70,CCD!B:B,CCD!D:D,_xlfn.XLOOKUP(A70,ICD!B:B,ICD!C:C,_xlfn.XLOOKUP(A70,'CP-SEINFRA'!A:A,'CP-SEINFRA'!C:C,_xlfn.XLOOKUP(A70,'IS-SEINFRA'!A:A,'IS-SEINFRA'!C:C)))) -> M3 | E70: 0.598 | F70: =_xlfn.XLOOKUP(A70,CCD!B:B,CCD!O:O,_xlfn.XLOOKUP(A70,ICD!B:B,ICD!K:K,_xlfn.XLOOKUP(A70,'CP-SEINFRA'!A:A,'CP-SEINFRA'!D:D,_xlfn.XLOOKUP(A70,'IS-SEINFRA'!A:A,'IS-SEINFRA'!D:D)))) -> 415.66 | G70: 248.5647
A71: C1400 | B71: SEINFRA | C71: =_xlfn.XLOOKUP(A71,CCD!B:B,CCD!C:C,_xlfn.XLOOKUP(A71,ICD!B:B,ICD!C:C,_xlfn.XLOOKUP(A71,'CP-SEINFRA'!A:A,'CP-SEINFRA'!B:B,_xlfn.XLOOKUP(A71,'IS-SEINFRA'!A:A,'IS-SEINFRA'!B:B)))) -> FORMA DE TÁBUAS DE 1" DE 3A. P/FUNDAÇÕES UTIL. 5 X | D71: =_xlfn.XLOOKUP(A71,CCD!B:B,CCD!D:D,_xlfn.XLOOKUP(A71,ICD!B:B,ICD!C:C,_xlfn.XLOOKUP(A71,'CP-SEINFRA'!A:A,'CP-SEINFRA'!C:C,_xlfn.XLOOKUP(A71,'IS-SEINFRA'!A:A,'IS-SEINFRA'!C:C)))) -> M2 | E71: 1.84 | F71: =_xlfn.XLOOKUP(A71,CCD!B:B,CCD!O:O,_xlfn.XLOOKUP(A71,ICD!B:B,ICD!K:K,_xlfn.XLOOKUP(A71,'CP-SEINFRA'!A:A,'CP-SEINFRA'!D:D,_xlfn.XLOOKUP(A71,'IS-SEINFRA'!A:A,'IS-SEINFRA'!D:D)))) -> 77.54 | G71: 142.6736
A72: C2123 | B72: SEINFRA | C72: =_xlfn.XLOOKUP(A72,CCD!B:B,CCD!C:C,_xlfn.XLOOKUP(A72,ICD!B:B,ICD!C:C,_xlfn.XLOOKUP(A72,'CP-SEINFRA'!A:A,'CP-SEINFRA'!B:B,_xlfn.XLOOKUP(A72,'IS-SEINFRA'!A:A,'IS-SEINFRA'!B:B)))) -> REBOCO C/ARGAMASSA DE CAL HIDRATADA E AREIA PENEIRADA TRAÇO 1:3 ESP=5 mm P/PAREDE | D72: =_xlfn.XLOOKUP(A72,CCD!B:B,CCD!D:D,_xlfn.XLOOKUP(A72,ICD!B:B,ICD!C:C,_xlfn.XLOOKUP(A72,'CP-SEINFRA'!A:A,'CP-SEINFRA'!C:C,_xlfn.XLOOKUP(A72,'IS-SEINFRA'!A:A,'IS-SEINFRA'!C:C)))) -> M2 | E72: 11 | F72: =_xlfn.XLOOKUP(A72,CCD!B:B,CCD!O:O,_xlfn.XLOOKUP(A72,ICD!B:B,ICD!K:K,_xlfn.XLOOKUP(A72,'CP-SEINFRA'!A:A,'CP-SEINFRA'!D:D,_xlfn.XLOOKUP(A72,'IS-SEINFRA'!A:A,'IS-SEINFRA'!D:D)))) -> 25.76 | G72: 283.36
A73: 93358 | B73: SINAPI | C73: =_xlfn.XLOOKUP(A73,CCD!B:B,CCD!C:C,_xlfn.XLOOKUP(A73,ICD!B:B,ICD!C:C,_xlfn.XLOOKUP(A73,'CP-SEINFRA'!A:A,'CP-SEINFRA'!B:B,_xlfn.XLOOKUP(A73,'IS-SEINFRA'!A:A,'IS-SEINFRA'!B:B)))) -> ESCAVAÇÃO MANUAL DE VALA. AF_09/2024 | D73: =_xlfn.XLOOKUP(A73,CCD!B:B,CCD!D:D,_xlfn.XLOOKUP(A73,ICD!B:B,ICD!C:C,_xlfn.XLOOKUP(A73,'CP-SEINFRA'!A:A,'CP-SEINFRA'!C:C,_xlfn.XLOOKUP(A73,'IS-SEINFRA'!A:A,'IS-SEINFRA'!C:C)))) -> M3 | E73: 14.24 | F73: =_xlfn.XLOOKUP(A73,CCD!B:B,CCD!O:O,_xlfn.XLOOKUP(A73,ICD!B:B,ICD!K:K,_xlfn.XLOOKUP(A73,'CP-SEINFRA'!A:A,'CP-SEINFRA'!D:D,_xlfn.XLOOKUP(A73,'IS-SEINFRA'!A:A,'IS-SEINFRA'!D:D)))) -> 86.74 | G73: 1235.1776
F74: Valor Geral | G74: =TRUNC(SUM(G62:G73),2) -> 4989.48
A76: C3648 | C76: RESERVATÓRIO PRÉ MOLDADO ELEVADO CILÍNDRICO D=2,0M, CAP.=12,0M3, H=9,0M COMPLETO E CISTERNA CAP.=4,5 M3 | D76: UN | G76: =G79 -> 24049.25
A77: I6721 | B77: SEINFRA | C77: =_xlfn.XLOOKUP(A77,CCD!B:B,CCD!C:C,_xlfn.XLOOKUP(A77,ICD!B:B,ICD!C:C,_xlfn.XLOOKUP(A77,'CP-SEINFRA'!A:A,'CP-SEINFRA'!B:B,_xlfn.XLOOKUP(A77,'IS-SEINFRA'!A:A,'IS-SEINFRA'!B:B)))) -> RESERVATÓRIO PRÉ-MOLDADO ELEVADO CILINDRICO D=2,0M, CAP.=12,0M3, H=9,0M, CISTERNA CAP.=4,5M3, ESCADA METÁLICA COM GUARDA CORPO, ABRIGO P/ MOTOBOMBA COM PORTÃO DE FERRO - COMPLETO | D77: =_xlfn.XLOOKUP(A77,CCD!B:B,CCD!D:D,_xlfn.XLOOKUP(A77,ICD!B:B,ICD!C:C,_xlfn.XLOOKUP(A77,'CP-SEINFRA'!A:A,'CP-SEINFRA'!C:C,_xlfn.XLOOKUP(A77,'IS-SEINFRA'!A:A,'IS-SEINFRA'!C:C)))) -> UN | E77: 1 | F77: =_xlfn.XLOOKUP(A77,CCD!B:B,CCD!O:O,_xlfn.XLOOKUP(A77,ICD!B:B,ICD!K:K,_xlfn.XLOOKUP(A77,'CP-SEINFRA'!A:A,'CP-SEINFRA'!D:D,_xlfn.XLOOKUP(A77,'IS-SEINFRA'!A:A,'IS-SEINFRA'!D:D)))) -> 23615.55 | G77: =ROUND(E77*F77,4) -> 23615.55
A78: 93358 | B78: SINAPI | C78: =_xlfn.XLOOKUP(A78,CCD!B:B,CCD!C:C,_xlfn.XLOOKUP(A78,ICD!B:B,ICD!C:C,_xlfn.XLOOKUP(A78,'CP-SEINFRA'!A:A,'CP-SEINFRA'!B:B,_xlfn.XLOOKUP(A78,'IS-SEINFRA'!A:A,'IS-SEINFRA'!B:B)))) -> ESCAVAÇÃO MANUAL DE VALA. AF_09/2024 | D78: =_xlfn.XLOOKUP(A78,CCD!B:B,CCD!D:D,_xlfn.XLOOKUP(A78,ICD!B:B,ICD!C:C,_xlfn.XLOOKUP(A78,'CP-SEINFRA'!A:A,'CP-SEINFRA'!C:C,_xlfn.XLOOKUP(A78,'IS-SEINFRA'!A:A,'IS-SEINFRA'!C:C)))) -> M3 | E78: 5 | F78: =_xlfn.XLOOKUP(A78,CCD!B:B,CCD!O:O,_xlfn.XLOOKUP(A78,ICD!B:B,ICD!K:K,_xlfn.XLOOKUP(A78,'CP-SEINFRA'!A:A,'CP-SEINFRA'!D:D,_xlfn.XLOOKUP(A78,'IS-SEINFRA'!A:A,'IS-SEINFRA'!D:D)))) -> 86.74 | G78: =ROUND(E78*F78,4) -> 433.7
F79: Valor Geral | G79: =TRUNC(SUM(G77:G78),2) -> 24049.25
A81: C0073 | C81: ALVENARIA DE TIJOLO CERÂMICO FURADO (9x19x19)cm C/ARGAMASSA MISTA DE CAL HIDRATADA ESP.=10cm (1:2:8) | D81: M2 | G81: =G88 -> 70.9
A82: 88309 | B82: SINAPI | C82: =_xlfn.XLOOKUP(A82,CCD!B:B,CCD!C:C,_xlfn.XLOOKUP(A82,ICD!B:B,ICD!C:C,_xlfn.XLOOKUP(A82,'CP-SEINFRA'!A:A,'CP-SEINFRA'!B:B,_xlfn.XLOOKUP(A82,'IS-SEINFRA'!A:A,'IS-SEINFRA'!B:B)))) -> PEDREIRO COM ENCARGOS COMPLEMENTARES | D82: =_xlfn.XLOOKUP(A82,CCD!B:B,CCD!D:D,_xlfn.XLOOKUP(A82,ICD!B:B,ICD!C:C,_xlfn.XLOOKUP(A82,'CP-SEINFRA'!A:A,'CP-SEINFRA'!C:C,_xlfn.XLOOKUP(A82,'IS-SEINFRA'!A:A,'IS-SEINFRA'!C:C)))) -> H | E82: 1 | F82: =_xlfn.XLOOKUP(A82,CCD!B:B,CCD!O:O,_xlfn.XLOOKUP(A82,ICD!B:B,ICD!K:K,_xlfn.XLOOKUP(A82,'CP-SEINFRA'!A:A,'CP-SEINFRA'!D:D,_xlfn.XLOOKUP(A82,'IS-SEINFRA'!A:A,'IS-SEINFRA'!D:D)))) -> 28.2 | G82: =ROUND(E82*F82,4) -> 28.2
A83: 88316 | B83: SINAPI | C83: =_xlfn.XLOOKUP(A83,CCD!B:B,CCD!C:C,_xlfn.XLOOKUP(A83,ICD!B:B,ICD!C:C,_xlfn.XLOOKUP(A83,'CP-SEINFRA'!A:A,'CP-SEINFRA'!B:B,_xlfn.XLOOKUP(A83,'IS-SEINFRA'!A:A,'IS-SEINFRA'!B:B)))) -> SERVENTE COM ENCARGOS COMPLEMENTARES | D83: =_xlfn.XLOOKUP(A83,CCD!B:B,CCD!D:D,_xlfn.XLOOKUP(A83,ICD!B:B,ICD!C:C,_xlfn.XLOOKUP(A83,'CP-SEINFRA'!A:A,'CP-SEINFRA'!C:C,_xlfn.XLOOKUP(A83,'IS-SEINFRA'!A:A,'IS-SEINFRA'!C:C)))) -> H | E83: 1.12 | F83: =_xlfn.XLOOKUP(A83,CCD!B:B,CCD!O:O,_xlfn.XLOOKUP(A83,ICD!B:B,ICD!K:K,_xlfn.XLOOKUP(A83,'CP-SEINFRA'!A:A,'CP-SEINFRA'!D:D,_xlfn.XLOOKUP(A83,'IS-SEINFRA'!A:A,'IS-SEINFRA'!D:D)))) -> 21.93 | G83: 24.5616
A84: I0109 | B84: SEINFRA | C84: =_xlfn.XLOOKUP(A84,CCD!B:B,CCD!C:C,_xlfn.XLOOKUP(A84,ICD!B:B,ICD!C:C,_xlfn.XLOOKUP(A84,'CP-SEINFRA'!A:A,'CP-SEINFRA'!B:B,_xlfn.XLOOKUP(A84,'IS-SEINFRA'!A:A,'IS-SEINFRA'!B:B)))) -> AREIA MEDIA | D84: =_xlfn.XLOOKUP(A84,CCD!B:B,CCD!D:D,_xlfn.XLOOKUP(A84,ICD!B:B,ICD!C:C,_xlfn.XLOOKUP(A84,'CP-SEINFRA'!A:A,'CP-SEINFRA'!C:C,_xlfn.XLOOKUP(A84,'IS-SEINFRA'!A:A,'IS-SEINFRA'!C:C)))) -> M3 | E84: 0.015 | F84: =_xlfn.XLOOKUP(A84,CCD!B:B,CCD!O:O,_xlfn.XLOOKUP(A84,ICD!B:B,ICD!K:K,_xlfn.XLOOKUP(A84,'CP-SEINFRA'!A:A,'CP-SEINFRA'!D:D,_xlfn.XLOOKUP(A84,'IS-SEINFRA'!A:A,'IS-SEINFRA'!D:D)))) -> 83.58 | G84: =ROUND(E84*F84,4) -> 1.2537
A85: I0441 | B85: SEINFRA | C85: =_xlfn.XLOOKUP(A85,CCD!B:B,CCD!C:C,_xlfn.XLOOKUP(A85,ICD!B:B,ICD!C:C,_xlfn.XLOOKUP(A85,'CP-SEINFRA'!A:A,'CP-SEINFRA'!B:B,_xlfn.XLOOKUP(A85,'IS-SEINFRA'!A:A,'IS-SEINFRA'!B:B)))) -> CAL HIDRATADA | D85: =_xlfn.XLOOKUP(A85,CCD!B:B,CCD!D:D,_xlfn.XLOOKUP(A85,ICD!B:B,ICD!C:C,_xlfn.XLOOKUP(A85,'CP-SEINFRA'!A:A,'CP-SEINFRA'!C:C,_xlfn.XLOOKUP(A85,'IS-SEINFRA'!A:A,'IS-SEINFRA'!C:C)))) -> KG | E85: 2.18 | F85: =_xlfn.XLOOKUP(A85,CCD!B:B,CCD!O:O,_xlfn.XLOOKUP(A85,ICD!B:B,ICD!K:K,_xlfn.XLOOKUP(A85,'CP-SEINFRA'!A:A,'CP-SEINFRA'!D:D,_xlfn.XLOOKUP(A85,'IS-SEINFRA'!A:A,'IS-SEINFRA'!D:D)))) -> 0.96 | G85: 2.0928
A86: I0805 | B86: SEINFRA | C86: =_xlfn.XLOOKUP(A86,CCD!B:B,CCD!C:C,_xlfn.XLOOKUP(A86,ICD!B:B,ICD!C:C,_xlfn.XLOOKUP(A86,'CP-SEINFRA'!A:A,'CP-SEINFRA'!B:B,_xlfn.XLOOKUP(A86,'IS-SEINFRA'!A:A,'IS-SEINFRA'!B:B)))) -> CIMENTO PORTLAND | D86: =_xlfn.XLOOKUP(A86,CCD!B:B,CCD!D:D,_xlfn.XLOOKUP(A86,ICD!B:B,ICD!C:C,_xlfn.XLOOKUP(A86,'CP-SEINFRA'!A:A,'CP-SEINFRA'!C:C,_xlfn.XLOOKUP(A86,'IS-SEINFRA'!A:A,'IS-SEINFRA'!C:C)))) -> KG | E86: 2.18 | F86: =_xlfn.XLOOKUP(A86,CCD!B:B,CCD!O:O,_xlfn.XLOOKUP(A86,ICD!B:B,ICD!K:K,_xlfn.XLOOKUP(A86,'CP-SEINFRA'!A:A,'CP-SEINFRA'!D:D,_xlfn.XLOOKUP(A86,'IS-SEINFRA'!A:A,'IS-SEINFRA'!D:D)))) -> 0.71 | G86: 1.5478
A87: I2081 | B87: SEINFRA | C87: =_xlfn.XLOOKUP(A87,CCD!B:B,CCD!C:C,_xlfn.XLOOKUP(A87,ICD!B:B,ICD!C:C,_xlfn.XLOOKUP(A87,'CP-SEINFRA'!A:A,'CP-SEINFRA'!B:B,_xlfn.XLOOKUP(A87,'IS-SEINFRA'!A:A,'IS-SEINFRA'!B:B)))) -> TIJOLO CERÂMICO FURADO 9X19X19CM | D87: =_xlfn.XLOOKUP(A87,CCD!B:B,CCD!D:D,_xlfn.XLOOKUP(A87,ICD!B:B,ICD!C:C,_xlfn.XLOOKUP(A87,'CP-SEINFRA'!A:A,'CP-SEINFRA'!C:C,_xlfn.XLOOKUP(A87,'IS-SEINFRA'!A:A,'IS-SEINFRA'!C:C)))) -> UN | E87: 25 | F87: =_xlfn.XLOOKUP(A87,CCD!B:B,CCD!O:O,_xlfn.XLOOKUP(A87,ICD!B:B,ICD!K:K,_xlfn.XLOOKUP(A87,'CP-SEINFRA'!A:A,'CP-SEINFRA'!D:D,_xlfn.XLOOKUP(A87,'IS-SEINFRA'!A:A,'IS-SEINFRA'!D:D)))) -> 0.53 | G87: 13.25
F88: Valor Geral | G88: =TRUNC(SUM(G82:G87),2) -> 70.9
A90: C0074 | C90: ALVENARIA DE TIJOLO CERÂMICO FURADO (9x19x19)cm C/ARGAMASSA MISTA DE CAL HIDRATADA ESP=20 cm | D90: M2 | G90: =G97 -> 121.35
A91: 88309 | B91: SINAPI | C91: =_xlfn.XLOOKUP(A91,CCD!B:B,CCD!C:C,_xlfn.XLOOKUP(A91,ICD!B:B,ICD!C:C,_xlfn.XLOOKUP(A91,'CP-SEINFRA'!A:A,'CP-SEINFRA'!B:B,_xlfn.XLOOKUP(A91,'IS-SEINFRA'!A:A,'IS-SEINFRA'!B:B)))) -> PEDREIRO COM ENCARGOS COMPLEMENTARES | D91: =_xlfn.XLOOKUP(A91,CCD!B:B,CCD!D:D,_xlfn.XLOOKUP(A91,ICD!B:B,ICD!C:C,_xlfn.XLOOKUP(A91,'CP-SEINFRA'!A:A,'CP-SEINFRA'!C:C,_xlfn.XLOOKUP(A91,'IS-SEINFRA'!A:A,'IS-SEINFRA'!C:C)))) -> H | E91: 1.5 | F91: =_xlfn.XLOOKUP(A91,CCD!B:B,CCD!O:O,_xlfn.XLOOKUP(A91,ICD!B:B,ICD!K:K,_xlfn.XLOOKUP(A91,'CP-SEINFRA'!A:A,'CP-SEINFRA'!D:D,_xlfn.XLOOKUP(A91,'IS-SEINFRA'!A:A,'IS-SEINFRA'!D:D)))) -> 28.2 | G91: =ROUND(E91*F91,4) -> 42.3
A92: 88316 | B92: SINAPI | C92: =_xlfn.XLOOKUP(A92,CCD!B:B,CCD!C:C,_xlfn.XLOOKUP(A92,ICD!B:B,ICD!C:C,_xlfn.XLOOKUP(A92,'CP-SEINFRA'!A:A,'CP-SEINFRA'!B:B,_xlfn.XLOOKUP(A92,'IS-SEINFRA'!A:A,'IS-SEINFRA'!B:B)))) -> SERVENTE COM ENCARGOS COMPLEMENTARES | D92: =_xlfn.XLOOKUP(A92,CCD!B:B,CCD!D:D,_xlfn.XLOOKUP(A92,ICD!B:B,ICD!C:C,_xlfn.XLOOKUP(A92,'CP-SEINFRA'!A:A,'CP-SEINFRA'!C:C,_xlfn.XLOOKUP(A92,'IS-SEINFRA'!A:A,'IS-SEINFRA'!C:C)))) -> H | E92: 1.84 | F92: =_xlfn.XLOOKUP(A92,CCD!B:B,CCD!O:O,_xlfn.XLOOKUP(A92,ICD!B:B,ICD!K:K,_xlfn.XLOOKUP(A92,'CP-SEINFRA'!A:A,'CP-SEINFRA'!D:D,_xlfn.XLOOKUP(A92,'IS-SEINFRA'!A:A,'IS-SEINFRA'!D:D)))) -> 21.93 | G92: 40.3512
A93: I0109 | B93: SEINFRA | C93: =_xlfn.XLOOKUP(A93,CCD!B:B,CCD!C:C,_xlfn.XLOOKUP(A93,ICD!B:B,ICD!C:C,_xlfn.XLOOKUP(A93,'CP-SEINFRA'!A:A,'CP-SEINFRA'!B:B,_xlfn.XLOOKUP(A93,'IS-SEINFRA'!A:A,'IS-SEINFRA'!B:B)))) -> AREIA MEDIA | D93: =_xlfn.XLOOKUP(A93,CCD!B:B,CCD!D:D,_xlfn.XLOOKUP(A93,ICD!B:B,ICD!C:C,_xlfn.XLOOKUP(A93,'CP-SEINFRA'!A:A,'CP-SEINFRA'!C:C,_xlfn.XLOOKUP(A93,'IS-SEINFRA'!A:A,'IS-SEINFRA'!C:C)))) -> M3 | E93: 0.0413 | F93: =_xlfn.XLOOKUP(A93,CCD!B:B,CCD!O:O,_xlfn.XLOOKUP(A93,ICD!B:B,ICD!K:K,_xlfn.XLOOKUP(A93,'CP-SEINFRA'!A:A,'CP-SEINFRA'!D:D,_xlfn.XLOOKUP(A93,'IS-SEINFRA'!A:A,'IS-SEINFRA'!D:D)))) -> 83.58 | G93: =ROUND(E93*F93,4) -> 3.4519
A94: I0441 | B94: SEINFRA | C94: =_xlfn.XLOOKUP(A94,CCD!B:B,CCD!C:C,_xlfn.XLOOKUP(A94,ICD!B:B,ICD!C:C,_xlfn.XLOOKUP(A94,'CP-SEINFRA'!A:A,'CP-SEINFRA'!B:B,_xlfn.XLOOKUP(A94,'IS-SEINFRA'!A:A,'IS-SEINFRA'!B:B)))) -> CAL HIDRATADA | D94: =_xlfn.XLOOKUP(A94,CCD!B:B,CCD!D:D,_xlfn.XLOOKUP(A94,ICD!B:B,ICD!C:C,_xlfn.XLOOKUP(A94,'CP-SEINFRA'!A:A,'CP-SEINFRA'!C:C,_xlfn.XLOOKUP(A94,'IS-SEINFRA'!A:A,'IS-SEINFRA'!C:C)))) -> KG | E94: 6.19 | F94: =_xlfn.XLOOKUP(A94,CCD!B:B,CCD!O:O,_xlfn.XLOOKUP(A94,ICD!B:B,ICD!K:K,_xlfn.XLOOKUP(A94,'CP-SEINFRA'!A:A,'CP-SEINFRA'!D:D,_xlfn.XLOOKUP(A94,'IS-SEINFRA'!A:A,'IS-SEINFRA'!D:D)))) -> 0.96 | G94: 5.9424
A95: I0805 | B95: SEINFRA | C95: =_xlfn.XLOOKUP(A95,CCD!B:B,CCD!C:C,_xlfn.XLOOKUP(A95,ICD!B:B,ICD!C:C,_xlfn.XLOOKUP(A95,'CP-SEINFRA'!A:A,'CP-SEINFRA'!B:B,_xlfn.XLOOKUP(A95,'IS-SEINFRA'!A:A,'IS-SEINFRA'!B:B)))) -> CIMENTO PORTLAND | D95: =_xlfn.XLOOKUP(A95,CCD!B:B,CCD!D:D,_xlfn.XLOOKUP(A95,ICD!B:B,ICD!C:C,_xlfn.XLOOKUP(A95,'CP-SEINFRA'!A:A,'CP-SEINFRA'!C:C,_xlfn.XLOOKUP(A95,'IS-SEINFRA'!A:A,'IS-SEINFRA'!C:C)))) -> KG | E95: 6.19 | F95: =_xlfn.XLOOKUP(A95,CCD!B:B,CCD!O:O,_xlfn.XLOOKUP(A95,ICD!B:B,ICD!K:K,_xlfn.XLOOKUP(A95,'CP-SEINFRA'!A:A,'CP-SEINFRA'!D:D,_xlfn.XLOOKUP(A95,'IS-SEINFRA'!A:A,'IS-SEINFRA'!D:D)))) -> 0.71 | G95: 4.3949
A96: I2081 | B96: SEINFRA | C96: =_xlfn.XLOOKUP(A96,CCD!B:B,CCD!C:C,_xlfn.XLOOKUP(A96,ICD!B:B,ICD!C:C,_xlfn.XLOOKUP(A96,'CP-SEINFRA'!A:A,'CP-SEINFRA'!B:B,_xlfn.XLOOKUP(A96,'IS-SEINFRA'!A:A,'IS-SEINFRA'!B:B)))) -> TIJOLO CERÂMICO FURADO 9X19X19CM | D96: =_xlfn.XLOOKUP(A96,CCD!B:B,CCD!D:D,_xlfn.XLOOKUP(A96,ICD!B:B,ICD!C:C,_xlfn.XLOOKUP(A96,'CP-SEINFRA'!A:A,'CP-SEINFRA'!C:C,_xlfn.XLOOKUP(A96,'IS-SEINFRA'!A:A,'IS-SEINFRA'!C:C)))) -> UN | E96: 47 | F96: =_xlfn.XLOOKUP(A96,CCD!B:B,CCD!O:O,_xlfn.XLOOKUP(A96,ICD!B:B,ICD!K:K,_xlfn.XLOOKUP(A96,'CP-SEINFRA'!A:A,'CP-SEINFRA'!D:D,_xlfn.XLOOKUP(A96,'IS-SEINFRA'!A:A,'IS-SEINFRA'!D:D)))) -> 0.53 | G96: 24.91
F97: Valor Geral | G97: =TRUNC(SUM(G91:G96),2) -> 121.35
A99: C0216 | C99: ARMADURA CA-50A MÉDIA D= 6,3 A 10,0mm | D99: KG | G99: =G104 -> 12.58
A100: 88238 | B100: SINAPI | C100: =_xlfn.XLOOKUP(A100,CCD!B:B,CCD!C:C,_xlfn.XLOOKUP(A100,ICD!B:B,ICD!C:C,_xlfn.XLOOKUP(A100,'CP-SEINFRA'!A:A,'CP-SEINFRA'!B:B,_xlfn.XLOOKUP(A100,'IS-SEINFRA'!A:A,'IS-SEINFRA'!B:B)))) -> AJUDANTE DE ARMADOR COM ENCARGOS COMPLEMENTARES | D100: =_xlfn.XLOOKUP(A100,CCD!B:B,CCD!D:D,_xlfn.XLOOKUP(A100,ICD!B:B,ICD!C:C,_xlfn.XLOOKUP(A100,'CP-SEINFRA'!A:A,'CP-SEINFRA'!C:C,_xlfn.XLOOKUP(A100,'IS-SEINFRA'!A:A,'IS-SEINFRA'!C:C)))) -> H | E100: 0.08 | F100: =_xlfn.XLOOKUP(A100,CCD!B:B,CCD!O:O,_xlfn.XLOOKUP(A100,ICD!B:B,ICD!K:K,_xlfn.XLOOKUP(A100,'CP-SEINFRA'!A:A,'CP-SEINFRA'!D:D,_xlfn.XLOOKUP(A100,'IS-SEINFRA'!A:A,'IS-SEINFRA'!D:D)))) -> 23.01 | G100: =ROUND(E100*F100,4) -> 1.8408
A101: 88245 | B101: SINAPI | C101: =_xlfn.XLOOKUP(A101,CCD!B:B,CCD!C:C,_xlfn.XLOOKUP(A101,ICD!B:B,ICD!C:C,_xlfn.XLOOKUP(A101,'CP-SEINFRA'!A:A,'CP-SEINFRA'!B:B,_xlfn.XLOOKUP(A101,'IS-SEINFRA'!A:A,'IS-SEINFRA'!B:B)))) -> ARMADOR COM ENCARGOS COMPLEMENTARES | D101: =_xlfn.XLOOKUP(A101,CCD!B:B,CCD!D:D,_xlfn.XLOOKUP(A101,ICD!B:B,ICD!C:C,_xlfn.XLOOKUP(A101,'CP-SEINFRA'!A:A,'CP-SEINFRA'!C:C,_xlfn.XLOOKUP(A101,'IS-SEINFRA'!A:A,'IS-SEINFRA'!C:C)))) -> H | E101: 0.08 | F101: =_xlfn.XLOOKUP(A101,CCD!B:B,CCD!O:O,_xlfn.XLOOKUP(A101,ICD!B:B,ICD!K:K,_xlfn.XLOOKUP(A101,'CP-SEINFRA'!A:A,'CP-SEINFRA'!D:D,_xlfn.XLOOKUP(A101,'IS-SEINFRA'!A:A,'IS-SEINFRA'!D:D)))) -> 28.07 | G101: 2.2456
A102: I0103 | B102: SEINFRA | C102: =_xlfn.XLOOKUP(A102,CCD!B:B,CCD!C:C,_xlfn.XLOOKUP(A102,ICD!B:B,ICD!C:C,_xlfn.XLOOKUP(A102,'CP-SEINFRA'!A:A,'CP-SEINFRA'!B:B,_xlfn.XLOOKUP(A102,'IS-SEINFRA'!A:A,'IS-SEINFRA'!B:B)))) -> ARAME RECOZIDO N.18 BWG | D102: =_xlfn.XLOOKUP(A102,CCD!B:B,CCD!D:D,_xlfn.XLOOKUP(A102,ICD!B:B,ICD!C:C,_xlfn.XLOOKUP(A102,'CP-SEINFRA'!A:A,'CP-SEINFRA'!C:C,_xlfn.XLOOKUP(A102,'IS-SEINFRA'!A:A,'IS-SEINFRA'!C:C)))) -> KG | E102: 0.02 | F102: =_xlfn.XLOOKUP(A102,CCD!B:B,CCD!O:O,_xlfn.XLOOKUP(A102,ICD!B:B,ICD!K:K,_xlfn.XLOOKUP(A102,'CP-SEINFRA'!A:A,'CP-SEINFRA'!D:D,_xlfn.XLOOKUP(A102,'IS-SEINFRA'!A:A,'IS-SEINFRA'!D:D)))) -> 16.53 | G102: =ROUND(E102*F102,4) -> 0.3306
A103: I0163 | B103: SEINFRA | C103: =_xlfn.XLOOKUP(A103,CCD!B:B,CCD!C:C,_xlfn.XLOOKUP(A103,ICD!B:B,ICD!C:C,_xlfn.XLOOKUP(A103,'CP-SEINFRA'!A:A,'CP-SEINFRA'!B:B,_xlfn.XLOOKUP(A103,'IS-SEINFRA'!A:A,'IS-SEINFRA'!B:B)))) -> AÇO CA-50 | D103: =_xlfn.XLOOKUP(A103,CCD!B:B,CCD!D:D,_xlfn.XLOOKUP(A103,ICD!B:B,ICD!C:C,_xlfn.XLOOKUP(A103,'CP-SEINFRA'!A:A,'CP-SEINFRA'!C:C,_xlfn.XLOOKUP(A103,'IS-SEINFRA'!A:A,'IS-SEINFRA'!C:C)))) -> KG | E103: 1.15 | F103: =_xlfn.XLOOKUP(A103,CCD!B:B,CCD!O:O,_xlfn.XLOOKUP(A103,ICD!B:B,ICD!K:K,_xlfn.XLOOKUP(A103,'CP-SEINFRA'!A:A,'CP-SEINFRA'!D:D,_xlfn.XLOOKUP(A103,'IS-SEINFRA'!A:A,'IS-SEINFRA'!D:D)))) -> 7.1 | G103: 8.165
F104: Valor Geral | G104: =TRUNC(SUM(G100:G103),2) -> 12.58
A106: C1400 | C106: FORMA DE TÁBUAS DE 1" DE 3A. P/FUNDAÇÕES UTIL. 5 X | D106: M2 | G106: =G113 -> 87.12
A107: 88239 | B107: SINAPI | C107: =_xlfn.XLOOKUP(A107,CCD!B:B,CCD!C:C,_xlfn.XLOOKUP(A107,ICD!B:B,ICD!C:C,_xlfn.XLOOKUP(A107,'CP-SEINFRA'!A:A,'CP-SEINFRA'!B:B,_xlfn.XLOOKUP(A107,'IS-SEINFRA'!A:A,'IS-SEINFRA'!B:B)))) -> AJUDANTE DE CARPINTEIRO COM ENCARGOS COMPLEMENTARES | D107: =_xlfn.XLOOKUP(A107,CCD!B:B,CCD!D:D,_xlfn.XLOOKUP(A107,ICD!B:B,ICD!C:C,_xlfn.XLOOKUP(A107,'CP-SEINFRA'!A:A,'CP-SEINFRA'!C:C,_xlfn.XLOOKUP(A107,'IS-SEINFRA'!A:A,'IS-SEINFRA'!C:C)))) -> H | E107: 1.3 | F107: =_xlfn.XLOOKUP(A107,CCD!B:B,CCD!O:O,_xlfn.XLOOKUP(A107,ICD!B:B,ICD!K:K,_xlfn.XLOOKUP(A107,'CP-SEINFRA'!A:A,'CP-SEINFRA'!D:D,_xlfn.XLOOKUP(A107,'IS-SEINFRA'!A:A,'IS-SEINFRA'!D:D)))) -> 22.84 | G107: =ROUND(E107*F107,4) -> 29.692
A108: 88262 | B108: SINAPI | C108: =_xlfn.XLOOKUP(A108,CCD!B:B,CCD!C:C,_xlfn.XLOOKUP(A108,ICD!B:B,ICD!C:C,_xlfn.XLOOKUP(A108,'CP-SEINFRA'!A:A,'CP-SEINFRA'!B:B,_xlfn.XLOOKUP(A108,'IS-SEINFRA'!A:A,'IS-SEINFRA'!B:B)))) -> CARPINTEIRO DE FORMAS COM ENCARGOS COMPLEMENTARES | D108: =_xlfn.XLOOKUP(A108,CCD!B:B,CCD!D:D,_xlfn.XLOOKUP(A108,ICD!B:B,ICD!C:C,_xlfn.XLOOKUP(A108,'CP-SEINFRA'!A:A,'CP-SEINFRA'!C:C,_xlfn.XLOOKUP(A108,'IS-SEINFRA'!A:A,'IS-SEINFRA'!C:C)))) -> H | E108: 1.3 | F108: =_xlfn.XLOOKUP(A108,CCD!B:B,CCD!O:O,_xlfn.XLOOKUP(A108,ICD!B:B,ICD!K:K,_xlfn.XLOOKUP(A108,'CP-SEINFRA'!A:A,'CP-SEINFRA'!D:D,_xlfn.XLOOKUP(A108,'IS-SEINFRA'!A:A,'IS-SEINFRA'!D:D)))) -> 27.79 | G108: 36.127
A109: I0965 | B109: SEINFRA | C109: =_xlfn.XLOOKUP(A109,CCD!B:B,CCD!C:C,_xlfn.XLOOKUP(A109,ICD!B:B,ICD!C:C,_xlfn.XLOOKUP(A109,'CP-SEINFRA'!A:A,'CP-SEINFRA'!B:B,_xlfn.XLOOKUP(A109,'IS-SEINFRA'!A:A,'IS-SEINFRA'!B:B)))) -> DESMOLDANTE PARA FORMAS | D109: =_xlfn.XLOOKUP(A109,CCD!B:B,CCD!D:D,_xlfn.XLOOKUP(A109,ICD!B:B,ICD!C:C,_xlfn.XLOOKUP(A109,'CP-SEINFRA'!A:A,'CP-SEINFRA'!C:C,_xlfn.XLOOKUP(A109,'IS-SEINFRA'!A:A,'IS-SEINFRA'!C:C)))) -> L | E109: 0.4 | F109: =_xlfn.XLOOKUP(A109,CCD!B:B,CCD!O:O,_xlfn.XLOOKUP(A109,ICD!B:B,ICD!K:K,_xlfn.XLOOKUP(A109,'CP-SEINFRA'!A:A,'CP-SEINFRA'!D:D,_xlfn.XLOOKUP(A109,'IS-SEINFRA'!A:A,'IS-SEINFRA'!D:D)))) -> 8.45 | G109: =ROUND(E109*F109,4) -> 3.38
A110: I1728 | B110: SEINFRA | C110: =_xlfn.XLOOKUP(A110,CCD!B:B,CCD!C:C,_xlfn.XLOOKUP(A110,ICD!B:B,ICD!C:C,_xlfn.XLOOKUP(A110,'CP-SEINFRA'!A:A,'CP-SEINFRA'!B:B,_xlfn.XLOOKUP(A110,'IS-SEINFRA'!A:A,'IS-SEINFRA'!B:B)))) -> PREGO 18X27 (2.1/2" X 10) (APROXIMADAMENTE 198UN/KG) | D110: =_xlfn.XLOOKUP(A110,CCD!B:B,CCD!D:D,_xlfn.XLOOKUP(A110,ICD!B:B,ICD!C:C,_xlfn.XLOOKUP(A110,'CP-SEINFRA'!A:A,'CP-SEINFRA'!C:C,_xlfn.XLOOKUP(A110,'IS-SEINFRA'!A:A,'IS-SEINFRA'!C:C)))) -> KG | E110: 0.15 | F110: =_xlfn.XLOOKUP(A110,CCD!B:B,CCD!O:O,_xlfn.XLOOKUP(A110,ICD!B:B,ICD!K:K,_xlfn.XLOOKUP(A110,'CP-SEINFRA'!A:A,'CP-SEINFRA'!D:D,_xlfn.XLOOKUP(A110,'IS-SEINFRA'!A:A,'IS-SEINFRA'!D:D)))) -> 14.2 | G110: 2.13
A111: I1846 | B111: SEINFRA | C111: =_xlfn.XLOOKUP(A111,CCD!B:B,CCD!C:C,_xlfn.XLOOKUP(A111,ICD!B:B,ICD!C:C,_xlfn.XLOOKUP(A111,'CP-SEINFRA'!A:A,'CP-SEINFRA'!B:B,_xlfn.XLOOKUP(A111,'IS-SEINFRA'!A:A,'IS-SEINFRA'!B:B)))) -> SARRAFO DE 1"X4" | D111: =_xlfn.XLOOKUP(A111,CCD!B:B,CCD!D:D,_xlfn.XLOOKUP(A111,ICD!B:B,ICD!C:C,_xlfn.XLOOKUP(A111,'CP-SEINFRA'!A:A,'CP-SEINFRA'!C:C,_xlfn.XLOOKUP(A111,'IS-SEINFRA'!A:A,'IS-SEINFRA'!C:C)))) -> M | E111: 0.5 | F111: =_xlfn.XLOOKUP(A111,CCD!B:B,CCD!O:O,_xlfn.XLOOKUP(A111,ICD!B:B,ICD!K:K,_xlfn.XLOOKUP(A111,'CP-SEINFRA'!A:A,'CP-SEINFRA'!D:D,_xlfn.XLOOKUP(A111,'IS-SEINFRA'!A:A,'IS-SEINFRA'!D:D)))) -> 6.05 | G111: 3.025
A112: I1916 | B112: SEINFRA | C112: =_xlfn.XLOOKUP(A112,CCD!B:B,CCD!C:C,_xlfn.XLOOKUP(A112,ICD!B:B,ICD!C:C,_xlfn.XLOOKUP(A112,'CP-SEINFRA'!A:A,'CP-SEINFRA'!B:B,_xlfn.XLOOKUP(A112,'IS-SEINFRA'!A:A,'IS-SEINFRA'!B:B)))) -> TABUA DE 1" DE 3A. - L = 30cm | D112: =_xlfn.XLOOKUP(A112,CCD!B:B,CCD!D:D,_xlfn.XLOOKUP(A112,ICD!B:B,ICD!C:C,_xlfn.XLOOKUP(A112,'CP-SEINFRA'!A:A,'CP-SEINFRA'!C:C,_xlfn.XLOOKUP(A112,'IS-SEINFRA'!A:A,'IS-SEINFRA'!C:C)))) -> M | E112: 1 | F112: =_xlfn.XLOOKUP(A112,CCD!B:B,CCD!O:O,_xlfn.XLOOKUP(A112,ICD!B:B,ICD!K:K,_xlfn.XLOOKUP(A112,'CP-SEINFRA'!A:A,'CP-SEINFRA'!D:D,_xlfn.XLOOKUP(A112,'IS-SEINFRA'!A:A,'IS-SEINFRA'!D:D)))) -> 12.77 | G112: 12.77
F113: Valor Geral | G113: =TRUNC(SUM(G107:G112),2) -> 87.12
A115: C2123 | C115: REBOCO C/ARGAMASSA DE CAL HIDRATADA E AREIA PENEIRADA TRAÇO 1:3 ESP=5 mm P/PAREDE | D115: M2 | G115: =G120 -> 30.03
A116: 88309 | B116: SINAPI | C116: =_xlfn.XLOOKUP(A116,CCD!B:B,CCD!C:C,_xlfn.XLOOKUP(A116,ICD!B:B,ICD!C:C,_xlfn.XLOOKUP(A116,'CP-SEINFRA'!A:A,'CP-SEINFRA'!B:B,_xlfn.XLOOKUP(A116,'IS-SEINFRA'!A:A,'IS-SEINFRA'!B:B)))) -> PEDREIRO COM ENCARGOS COMPLEMENTARES | D116: =_xlfn.XLOOKUP(A116,CCD!B:B,CCD!D:D,_xlfn.XLOOKUP(A116,ICD!B:B,ICD!C:C,_xlfn.XLOOKUP(A116,'CP-SEINFRA'!A:A,'CP-SEINFRA'!C:C,_xlfn.XLOOKUP(A116,'IS-SEINFRA'!A:A,'IS-SEINFRA'!C:C)))) -> H | E116: 0.5 | F116: =_xlfn.XLOOKUP(A116,CCD!B:B,CCD!O:O,_xlfn.XLOOKUP(A116,ICD!B:B,ICD!K:K,_xlfn.XLOOKUP(A116,'CP-SEINFRA'!A:A,'CP-SEINFRA'!D:D,_xlfn.XLOOKUP(A116,'IS-SEINFRA'!A:A,'IS-SEINFRA'!D:D)))) -> 28.2 | G116: =ROUND(E116*F116,4) -> 14.1
A117: 88316 | B117: SINAPI | C117: =_xlfn.XLOOKUP(A117,CCD!B:B,CCD!C:C,_xlfn.XLOOKUP(A117,ICD!B:B,ICD!C:C,_xlfn.XLOOKUP(A117,'CP-SEINFRA'!A:A,'CP-SEINFRA'!B:B,_xlfn.XLOOKUP(A117,'IS-SEINFRA'!A:A,'IS-SEINFRA'!B:B)))) -> SERVENTE COM ENCARGOS COMPLEMENTARES | D117: =_xlfn.XLOOKUP(A117,CCD!B:B,CCD!D:D,_xlfn.XLOOKUP(A117,ICD!B:B,ICD!C:C,_xlfn.XLOOKUP(A117,'CP-SEINFRA'!A:A,'CP-SEINFRA'!C:C,_xlfn.XLOOKUP(A117,'IS-SEINFRA'!A:A,'IS-SEINFRA'!C:C)))) -> H | E117: 0.65 | F117: =_xlfn.XLOOKUP(A117,CCD!B:B,CCD!O:O,_xlfn.XLOOKUP(A117,ICD!B:B,ICD!K:K,_xlfn.XLOOKUP(A117,'CP-SEINFRA'!A:A,'CP-SEINFRA'!D:D,_xlfn.XLOOKUP(A117,'IS-SEINFRA'!A:A,'IS-SEINFRA'!D:D)))) -> 21.93 | G117: 14.2545
A118: I0109 | B118: SEINFRA | C118: =_xlfn.XLOOKUP(A118,CCD!B:B,CCD!C:C,_xlfn.XLOOKUP(A118,ICD!B:B,ICD!C:C,_xlfn.XLOOKUP(A118,'CP-SEINFRA'!A:A,'CP-SEINFRA'!B:B,_xlfn.XLOOKUP(A118,'IS-SEINFRA'!A:A,'IS-SEINFRA'!B:B)))) -> AREIA MEDIA | D118: =_xlfn.XLOOKUP(A118,CCD!B:B,CCD!D:D,_xlfn.XLOOKUP(A118,ICD!B:B,ICD!C:C,_xlfn.XLOOKUP(A118,'CP-SEINFRA'!A:A,'CP-SEINFRA'!C:C,_xlfn.XLOOKUP(A118,'IS-SEINFRA'!A:A,'IS-SEINFRA'!C:C)))) -> M3 | E118: 0.0061 | F118: =_xlfn.XLOOKUP(A118,CCD!B:B,CCD!O:O,_xlfn.XLOOKUP(A118,ICD!B:B,ICD!K:K,_xlfn.XLOOKUP(A118,'CP-SEINFRA'!A:A,'CP-SEINFRA'!D:D,_xlfn.XLOOKUP(A118,'IS-SEINFRA'!A:A,'IS-SEINFRA'!D:D)))) -> 83.58 | G118: =ROUND(E118*F118,4) -> 0.5098
A119: I0441 | B119: SEINFRA | C119: =_xlfn.XLOOKUP(A119,CCD!B:B,CCD!C:C,_xlfn.XLOOKUP(A119,ICD!B:B,ICD!C:C,_xlfn.XLOOKUP(A119,'CP-SEINFRA'!A:A,'CP-SEINFRA'!B:B,_xlfn.XLOOKUP(A119,'IS-SEINFRA'!A:A,'IS-SEINFRA'!B:B)))) -> CAL HIDRATADA | D119: =_xlfn.XLOOKUP(A119,CCD!B:B,CCD!D:D,_xlfn.XLOOKUP(A119,ICD!B:B,ICD!C:C,_xlfn.XLOOKUP(A119,'CP-SEINFRA'!A:A,'CP-SEINFRA'!C:C,_xlfn.XLOOKUP(A119,'IS-SEINFRA'!A:A,'IS-SEINFRA'!C:C)))) -> KG | E119: 1.22 | F119: =_xlfn.XLOOKUP(A119,CCD!B:B,CCD!O:O,_xlfn.XLOOKUP(A119,ICD!B:B,ICD!K:K,_xlfn.XLOOKUP(A119,'CP-SEINFRA'!A:A,'CP-SEINFRA'!D:D,_xlfn.XLOOKUP(A119,'IS-SEINFRA'!A:A,'IS-SEINFRA'!D:D)))) -> 0.96 | G119: 1.1712
F120: Valor Geral | G120: =TRUNC(SUM(G116:G119),2) -> 30.03
A122: *Composições da SEINFRA/CE com mão de obra e insumos do SINAPI/CE.
A124: ='ORC1'!A158 -> FORTALEZA/CE, OUTUBRO DE 2025.

Sheet Cotações
A2: ='ORC1'!D3 -> MINISTÉRIO DA INTEGRAÇÃO E DO DESENVOLVIMENTO REGIONAL - MIDR
A3: ='ORC1'!D4 -> COMPANHIA DE DESENVOLVIMENTO DOS VALES DO SÃO FRANCISCO E DO PARNAÍBA
A4: ='ORC1'!D5 -> 14ª SUPERINTENDÊNCIA REGIONAL
A6: ='MEMÓRIA DE CÁLCULO'!A6 -> CONTRATAÇÃO DE SERVIÇOS DE ENGENHARIA, POR MEIO DO SISTEMA DE REGISTRO DE PREÇOS – SRP, PARA IMPLANTAÇÃO DE AGROINDÚSTRIAS DE LÁCTEOS EM COMUNIDADES RURAIS, NO ESTADO DO CEARÁ.
A8: MAPA DE COTAÇÕES | F8: DETECÇÃO DE OUTLIERS MÉTODO DOS QUARTIS
D9: NÃO DESONERADO | F9: *utilizar nos casos em que se conseguiu mais de 3 cotações e os valores apresentam discrepância.
A10: COT-01 | B10: LUMINÁRIA PRISMÁTICA PENDENTE
A11: EMPRESA | C11: DATA DA COTAÇÃO | D11: VALOR (R$) | F11: 1Q | G11: 3Q | H11: IQR | I11: Inf | J11: Sup | K11: Outlier
A12: MadeiraMadeira | C12: 2025-03-24 | D12: =TRUNC(1565.96/26,2) -> 60.22 | F12: =_xlfn.QUARTILE.INC($D12:$D15,1) -> 66.4975 | G12: =_xlfn.QUARTILE.INC($D12:$D15,3) -> 94.62 | H12: =G12-F12 -> 28.1225 | I12: =F12-1.5*H12 -> 24.31375 | J12: =G12+1.5*H12 -> 136.80375 | K12: =IF(OR(D12<$I$12,D12>$J$12),"SIM","NÃO") -> NÃO
A13: Kem Constrói | C13: 2025-03-24 | D13: =TRUNC(2848.75/26,2) -> 109.56 | K13: =IF(OR(D13<$I$12,D13>$J$12),"SIM","NÃO") -> NÃO
A14: Casas Bahia | C14: 2025-03-24 | D14: =TRUNC(1371.84/20,2) -> 68.59 | K14: NÃO
A15: Eltrorastro | C15: 2025-03-24 | D15: =TRUNC(2330.64/26,2) -> 89.64 | K15: NÃO
C16: MÉDIA | D16: =TRUNC(AVERAGE(D12:D15),2) -> 82
A18: COT-02 | B18: LÂMPADA LED BULBO 20W 6500K
A19: EMPRESA | C19: DATA DA COTAÇÃO | D19: VALOR (R$) | F19: 1Q | G19: 3Q | H19: IQR | I19: Inf | J19: Sup | K19: Outlier
A20: Leroy Merlin | C20: 2025-03-24 | D20: =TRUNC(641.3/26,2) -> 24.66 | F20: =_xlfn.QUARTILE.INC($D20:$D23,1) -> 14.225 | G20: =_xlfn.QUARTILE.INC($D20:$D23,3) -> 19.9425 | H20: =G20-F20 -> 5.7175 | I20: =F20-1.5*H20 -> 5.64875 | J20: =G20+1.5*H20 -> 28.51875 | K20: =IF(OR(D20<$I$20,D20>$J$20),"SIM","NÃO") -> NÃO
A21: Elgin | C21: 2025-03-24 | D21: =TRUNC(477.86/26,2) -> 18.37 | K21: =IF(OR(D21<$I$20,D21>$J$20),"SIM","NÃO") -> NÃO
A22: Santil | C22: 2025-03-24 | D22: =TRUNC(396.43/26,2) -> 15.24 | K22: NÃO
A23: Kalunga | C23: 2025-03-24 | D23: =TRUNC(290.84/26,2) -> 11.18 | K23: NÃO
C24: MÉDIA | D24: =TRUNC(AVERAGE(D20:D23),2) -> 17.36
A26: COT-03 | B26: MESA INOX DE APOIO
A27: EMPRESA | C27: DATA DA COTAÇÃO | D27: VALOR (R$) | F27: 1Q | G27: 3Q | H27: IQR | I27: Inf | J27: Sup | K27: Outlier
A28: PA Equipamentos | C28: 2025-03-24 | D28: 2474.65 | F28: =_xlfn.QUARTILE.INC(D28:D31,1) -> 2696.1625 | G28: =_xlfn.QUARTILE.INC(D28:D31,3) -> 4390.75 | H28: =G28-F28 -> 1694.5875 | I28: =F28-1.5*H28 -> 154.28125 | J28: =G28+1.5*H28 -> 6932.63125 | K28: =IF(OR(D28<$I$28,D28>$J$28),"SIM","NÃO") -> NÃO
A29: Casa das Desnatadeiras | C29: 2025-03-24 | D29: 3900 | K29: =IF(OR(D29<$I$28,D29>$J$28),"SIM","NÃO") -> NÃO
A30: MARSTEIN | C30: 2025-03-25 | D30: 5863 | K30: NÃO
A31: CIÊNCIA DO LEITE | C31: 2025-03-26 | D31: 2770 | K31: NÃO
C32: MÉDIA | D32: =TRUNC(AVERAGE(D28:D31),2) -> 3751.91
A33: COT-04 | B33: SELADORA MANUAL PARA POTES
A34: EMPRESA | C34: DATA DA COTAÇÃO | D34: VALOR (R$) | F34: 1Q | G34: 3Q | H34: IQR | I34: Inf | J34: Sup | K34: Outlier
A35: Registron | C35: 2025-03-26 | D35: =TRUNC(4997.56/2,2) -> 2498.78 | F35: =_xlfn.QUARTILE.INC($D35:$D38,1) -> 2632.535 | G35: =_xlfn.QUARTILE.INC($D35:$D38,3) -> 2750.4775 | H35: =G35-F35 -> 117.9425 | I35: =F35-1.5*H35 -> 2455.62125 | J35: =G35+1.5*H35 -> 2927.39125 | K35: =IF(OR(D35<$I$35,D35>$J$35),"SIM","NÃO") -> NÃO
A36: Magazine Luiza | C36: 2025-03-26 | D36: =TRUNC(5485.93/2,2) -> 2742.96 | K36: =IF(OR(D36<$I$35,D36>$J$35),"SIM","NÃO") -> NÃO
A37: Compact Print | C37: 2025-03-26 | D37: =TRUNC(5546.06/2,2) -> 2773.03 | K37: NÃO
A38: Etitec | C38: 2025-03-26 | D38: =2599+78.12 -> 2677.12 | K38: NÃO
C39: MÉDIA | D39: =TRUNC(AVERAGE(D35:D38),2) -> 2672.97
A41: COT-05 | B41: SELADORA A VÁCUO DE BANCADA
A42: EMPRESA | C42: DATA DA COTAÇÃO | D42: VALOR (R$) | F42: 1Q | G42: 3Q | H42: IQR | I42: Inf | J42: Sup | K42: Outlier
A43: Tecfag | C43: 2025-03-27 | D43: =TRUNC(12801.86/2,2) -> 6400.93 | F43: =_xlfn.QUARTILE.INC($D43:$D47,1) -> 5000 | G43: =_xlfn.QUARTILE.INC($D43:$D47,3) -> 6190 | H43: =G43-F43 -> 1190 | I43: =F43-1.5*H43 -> 3215 | J43: =G43+1.5*H43 -> 7975 | K43: =IF(OR(D43<$I$43,D43>$J$43),"SIM","NÃO") -> NÃO
A44: Selovac | C44: 2025-03-27 | D44: =TRUNC(12380/2,2) -> 6190 | K44: =IF(OR(D44<$I$43,D44>$J$43),"SIM","NÃO") -> NÃO
A45: CETRO | C45: 2025-03-27 | D45: =TRUNC(10323.67/2,2) -> 5161.83 | K45: NÃO
A46: Registron | C46: 2025-03-27 | D46: =TRUNC(9072.74/2,2) -> 4536.37 | K46: NÃO
A47: MARSTEIN | C47: 2025-03-25 | D47: 5000 | K47: NÃO
C48: MÉDIA | D48: =TRUNC(AVERAGE(D43:D47),2) -> 5457.82
A50: COT-06 | B50: LAVA DE BOTAS MANUAL
A51: EMPRESA | C51: DATA DA COTAÇÃO | D51: VALOR (R$) | F51: 1Q | G51: 3Q | H51: IQR | I51: Inf | J51: Sup | K51: Outlier
A52: Inox Lambari | C52: 2025-03-28 | D52: 5500 | F52: =_xlfn.QUARTILE.INC($D52:$D55,1) -> 3895.25 | G52: =_xlfn.QUARTILE.INC($D52:$D55,3) -> 6140 | H52: =G52-F52 -> 2244.75 | I52: =F52-1.5*H52 -> 528.125 | J52: =G52+1.5*H52 -> 9507.125 | K52: =IF(OR(D52<$I$52,D52>$J$52),"SIM","NÃO") -> NÃO
A53: CIÊNCIA DO LEITE | C53: 2025-03-26 | D53: 3800 | K53: =IF(OR(D53<$I$52,D53>$J$52),"SIM","NÃO") -> NÃO
A54: MARSTEIN | C54: 2025-03-25 | D54: 8060 | K54: NÃO
A55: INJESUL PLASTICOS IND E COM LTDA | C55: 2025-03-24 | D55: 3927 | K55: NÃO
C56: MÉDIA | D56: =TRUNC(AVERAGE(D52:D55),2) -> 5321.75
A58: COT-07 | B58: ANALISADOR DE LEITE ULTRASSÔNICO
A59: EMPRESA | C59: DATA DA COTAÇÃO | D59: VALOR (R$) | F59: 1Q | G59: 3Q | H59: IQR | I59: Inf | J59: Sup | K59: Outlier
A60: CheeseLab | C60: 2025-03-26 | D60: 4774.05 | F60: =_xlfn.QUARTILE.INC($D60:$D64,1) -> 5583.75 | G60: =_xlfn.QUARTILE.INC($D60:$D64,3) -> 6259.31 | H60: =G60-F60 -> 675.56 | I60: =F60-1.5*H60 -> 4570.41 | J60: =G60+1.5*H60 -> 7272.65 | K60: =IF(OR(D60<$I$60,D60>$J$60),"SIM","NÃO") -> NÃO
A61: CheeseLab | C61: 2025-03-26 | D61: 6259.31 | K61: =IF(OR(D61<$I$60,D61>$J$60),"SIM","NÃO") -> NÃO
A62: CheeseLab | C62: 2025-03-26 | D62: 6259.31 | K62: NÃO
A63: TexTech | C63: 2025-03-26 | D63: 5583.75 | K63: NÃO
A64: Mercado Livre | C64: 2025-03-26 | D64: 5969.99 | K64: NÃO
C65: MÉDIA | D65: =TRUNC(AVERAGE(D60:D64),2) -> 5769.28
A67: COT-08 | B67: LAVADORA E SECADORA DE ROUPAS INVERTER 11KG
A68: EMPRESA | C68: DATA DA COTAÇÃO | D68: VALOR (R$) | F68: 1Q | G68: 3Q | H68: IQR | I68: Inf | J68: Sup | K68: Outlier
A69: Philco | C69: 2025-03-24 | D69: =3199.9+190.01 -> 3389.91 | F69: =_xlfn.QUARTILE.INC($D69:$D72,1) -> 3425.22 | G69: =_xlfn.QUARTILE.INC($D69:$D72,3) -> 3736.845 | H69: =G69-F69 -> 311.625 | I69: =F69-1.5*H69 -> 2957.7825 | J69: =G69+1.5*H69 -> 4204.2825 | K69: =IF(OR(D69<$I$69,D69>$J$69),"SIM","NÃO") -> NÃO
A70: Midea | C70: 2025-03-24 | D70: =3799.05+150 -> 3949.05 | K70: =IF(OR(D70<$I$69,D70>$J$69),"SIM","NÃO") -> NÃO
A71: Carrefour | C71: 2025-03-24 | D71: =3299+137.99 -> 3436.99 | K71: NÃO
A72: Magazine Luiza | C72: 2025-03-24 | D72: =3590.05+76.06 -> 3666.11 | K72: NÃO
C73: MÉDIA | D73: =TRUNC(AVERAGE(D69:D72),2) -> 3610.51
A75: COT-09 | B75: ARMÁRIO TIPO ROUPEIRO
A76: EMPRESA | C76: DATA DA COTAÇÃO | D76: VALOR (R$) | F76: 1Q | G76: 3Q | H76: IQR | I76: Inf | J76: Sup | K76: Outlier
A77: Madeira Madeira | C77: 2025-03-24 | D77: =TRUNC(6724.17/4,2) -> 1681.04 | F77: =_xlfn.QUARTILE.INC($D77:$D80,1) -> 1007.75 | G77: =_xlfn.QUARTILE.INC($D77:$D80,3) -> 1536.515 | H77: =G77-F77 -> 528.765 | I77: =F77-1.5*H77 -> 214.6025 | J77: =G77+1.5*H77 -> 2329.6625 | K77: =IF(OR(D77<$I$77,D77>$J$77),"SIM","NÃO") -> NÃO
A78: Conexão Office | C78: 2025-03-24 | D78: =TRUNC(3716/4,2) -> 929 | K78: =IF(OR(D78<$I$77,D78>$J$77),"SIM","NÃO") -> NÃO
A79: Floradas Office | C79: 2025-03-24 | D79: =TRUNC(4136/4,2) -> 1034 | K79: NÃO
A80: Magazine Luiza | C80: 2025-03-24 | D80: =TRUNC(5953.37/4,2) -> 1488.34 | K80: NÃO
C81: MÉDIA | D81: =TRUNC(AVERAGE(D77:D80),2) -> 1283.09
A83: COT-12 | B83: ESTANTE EM AÇO INOX PARA SECAGEM/MATURAÇÃO DE QUEIJOS
A84: EMPRESA | C84: DATA DA COTAÇÃO | D84: VALOR (R$) | F84: 1Q | G84: 3Q | H84: IQR | I84: Inf | J84: Sup | K84: Outlier
A85: PA Equipamentos | C85: 2025-03-24 | D85: 4755.59 | F85: =_xlfn.QUARTILE.INC($D85:$D88,1) -> 3857.2025 | G85: =_xlfn.QUARTILE.INC($D85:$D88,3) -> 4927.005 | H85: =G85-F85 -> 1069.8025 | I85: =F85-1.5*H85 -> 2252.49875 | J85: =G85+1.5*H85 -> 6531.70875 | K85: =IF(OR(D85<$I$85,D85>$J$85),"SIM","NÃO") -> NÃO
A86: Krasinox | C86: 2025-03-27 | D86: =TRUNC(24290/6,2) -> 4048.33 | K86: =IF(OR(D86<$I$85,D86>$J$85),"SIM","NÃO") -> NÃO
A87: Varimaq | C87: 2025-03-27 | D87: =TRUNC(32647.5/6,2) -> 5441.25 | K87: NÃO
A88: Tramontina | C88: 2025-03-28 | D88: =TRUNC(19702.92/6,2) -> 3283.82 | K88: NÃO
C89: MÉDIA | D89: =TRUNC(AVERAGE(D85:D88),2) -> 4382.24
A91: COT-13 | B91: TANQUE DE RESFRIAMENTO 1000L
A92: EMPRESA | C92: DATA DA COTAÇÃO | D92: VALOR (R$) | F92: 1Q | G92: 3Q | H92: IQR | I92: Inf | J92: Sup | K92: Outlier
A93: Suck Milk | C93: 2025-10-07 | D93: 30311.92 | F93: =_xlfn.QUARTILE.INC($D93:$D96,1) -> 18995 | G93: =_xlfn.QUARTILE.INC($D93:$D96,3) -> 31133.94 | H93: =G93-F93 -> 12138.94 | I93: =F93-1.5*H93 -> 786.59 | J93: =G93+1.5*H93 -> 49342.35 | K93: =IF(OR(D93<$I$93,D93>$J$93),"SIM","NÃO") -> NÃO
A94: Congel Inox | C94: 2025-10-08 | D94: 21760 | K94: =IF(OR(D94<$I$93,D94>$J$93),"SIM","NÃO") -> NÃO
A95: MINAS ORDENHA | C95: 2025-03-27 | D95: 10700 | K95: NÃO
A96: SE Inovações Industriais | C96: 2024-07-17 | D96: 33600 | K96: NÃO
C97: MÉDIA | D97: =TRUNC(AVERAGE(D93:D96),2) -> 24092.98
A99: COT-14 | B99: PASTEURIZADOR LENTO 1000L
